Workbook

Sheet Documentation
A5: Documentation
A7: Introduction
A9: This Risk Margin Calculator is intended as a demonstration of an approach that might be usable by long-term insurers to determine risk margins by the cost of capital method. Companies are welcome to (a) use this tool directly, (b) use their own processes to develop components of the future risk margins and enter them into this model, or (c) determine risk margins by the cost of capital method using their own processes entirely.
A11: Approach Taken
A13: Most long-term insurers determine their capital requirements from the capital factors in the standard BSCR model. Consequently, forecasting future capital requirements can reasonably be driven by forecasting the base amounts from which the standard capital requirements are obtained. This Risk Margin Calculator seeks as input the current and projected base amounts. Typically these are annual premiums, net amounts at risk, or best estimates. Future capital requirements are obtained by scaling the current capital requirements for each component in proportion to the projected base amounts. This spreadsheet contains simplified projection of future capital requirements under both the old (pre-2019) and the new BSCR basis. The projected amounts under the old and the new basis are used, together with a transitional rule, to calculate the Risk Margin under the transitional arrangement.
A15: General Instructions
A17: 1. The Simplified Capital Projection worksheets contain sample data for illustrative purposes only. This data should be removed prior to use.
A19: 2. On the Simplified Capital Projection worksheets, insurers can enter their current BSCR capital requirement for various BSCR components in cells D8 to D18. These amounts can be obtained from the BSCR Summary page. For each relevant capital risk, the current base amount is to be entered on row 22. Future projected base amounts can then be entered in the remainder of the columns. The third column for each capital risk will then be calculated as the current capital requirement prorated to each future year. The required components for the Risk Margin calculation are:
B21: Operational Risk
B22: Counterparty Credit Risk
B23: Insurance Risk - Mortality
B24: Insurance Risk - Stop Loss
B25: Insurance Risk - Riders
B26: Insurance Risk - Morbidity and Disability
B27: Insurance Risk - Longevity
B28: Insurance Risk - Variable Annuities
B29: Insurance Risk - Other
B31: All other capital requirement components can be omitted.
A33: 3. After all relevant data has been entered on the Simplified Capital Projection worksheet, the estimated future component capital requirements are carried to the Capital Requirement Calculation worksheets. These worksheet do not require any user inputs. The projected future BSCRs calculated in the worksheet are passed on to the Summary worksheet for final Risk Margin calculation; the yield curve used in the Capital Requirement Calculation worksheets is determined by the selection in the Summary worksheet.
A35: 4. The Summary worksheet implements the transition from the old BSCR basis to the new BSCR basis in order to determine the final Risk Margin. For the transitional calculation, the calender year must be entered in cell I7. To obtain the appropriate discount rates, the currency can be selected in cell C11. The calculated Risk Margin is then shown in cell D7.
A37: 5. Companies that use their own approaches to developing the cost of capital risk margin may wish to enter their own forecast capital requirements into the Summary work page, or complete their own analysis for their business.
A39: Specific Situations
A41: A few insurers have had adjustments to their capital requirements approved by the Authority. If an adjustment relates to a specific risk identified above, the adjustment can be netted against the appropriate capital requirement on the Simplified Capital Projection worksheets. If the adjustment relates to an insurer's risk not identified above, it can be omitted. In case needed, column G on the Capital Requirement Calculation worksheets allows direct input of the current and forecasted adjustments. This might be useful if a company uses its own tools for developing some of the future capital requirement components.

Sheet Simplified Capital Proj - Old
B5: Simplified Capital Projection - Old (2018) Basis
B7: Current Bermuda Solvency Capital Requirement
B8: BMA Approved Adj | D8: 200000
B9: Credit Risk | D9: 500000
B10: Mortality | D10: 500000
B11: Stop Loss | D11: 5000
B12: Riders | D12: 5000
B13: Morbidity & Disability | D13: 50000
B14: Longevity | D14: 400000
B15: Variable Annuities | D15: 1000000
B16: Other Insurance Risk | D16: 20000
B18: Operational Risk Factor | D18: 0.03 | F18: Note: Projected Capital Requirements for Operational Risk are determined on the 'Capital Req't Calc - Old' worksheet
B20: BMA Approved Adj. for Insurance or Credit Risk | F20: Credit Risk | J20: Mortality Risk | N20: Stop Loss | R20: Riders | V20: Morbidity & Disability | Z20: Longevity | AE20: Variable Annuities | AI20: Other Insurance Risk
B21: t | C21: Future Best Estimates | D21: BMA Approved Adjustments | F21: t | G21: Future Credit Risk Amounts | H21: Counterparty credit risk default capital requirement | J21: t | K21: Future Net Amounts At Risk | L21: Mortality capital requirement | N21: t | O21: Future Stop Loss Annual Premiums | P21: Stop Loss capital requirement | R21: t | S21: Future Riders Annual Premiums | T21: Riders capital requirement | V21: t | W21: Future Morbidity &Disability Annual Premiums | X21: Morbidity and Disability capital requirement | Z21: t | AA21: Future Longevity Best Estimates | AB21: Longevity capital requirement | AE21: t | AF21: Future VA Guarantee Values | AG21: VA Capital requirement | AI21: t | AJ21: Total Future Best Estimates | AK21: Other Insurance Risk capital requirement
B22: 0 | C22: 2000000 | D22: =IF(C22<>0,D$8*C22/C$22,0) -> 200000 | F22: 0 | G22: 10000000 | H22: =IF(G22<>0,D$9*G22/G$22,0) -> 500000 | J22: 0 | K22: 25000000 | L22: =IF(K22<>0,D$10*K22/K$22,0) -> 500000 | N22: 0 | O22: 20000 | P22: =IF(O22<>0,D$11*O22/O$22,0) -> 5000 | R22: 0 | S22: 100000 | T22: =IF(S22<>0,D$12*S22/S$22,0) -> 5000 | V22: 0 | W22: 1000000 | X22: =IF(W22<>0,D$13*W22/W$22,0) -> 50000 | Z22: 0 | AA22: 10000000 | AB22: =IF(AA22<>0,D$14*AA22/AA$22,0) -> 400000 | AE22: 0 | AF22: 50000000 | AG22: =IF(AF22<>0,D$15*AF22/AF$22,0) -> 1000000 | AI22: 0 | AJ22: 1000000 | AK22: =IF(AJ22<>0,D$16*AJ22/AJ$22,0) -> 20000
B23: 1 | C23: 1800000 | D23: =IF(C23<>0,D$8*C23/C$22,0) -> 180000 | F23: 1 | G23: 8000000 | H23: 400000 | J23: 1 | K23: 22500000 | L23: 450000 | N23: 1 | O23: 16000 | P23: 4000 | R23: 1 | S23: 80000 | T23: 4000 | V23: 1 | W23: 800000 | X23: 40000 | Z23: 1 | AA23: 9000000 | AB23: 360000 | AE23: 1 | AF23: 45000000 | AG23: 900000 | AI23: 1 | AJ23: 900000 | AK23: 18000
B24: 2 | C24: 1600000 | D24: 160000 | F24: 2 | G24: 6000000 | H24: 300000 | J24: 2 | K24: 20000000 | L24: 400000 | N24: 2 | O24: 12000 | P24: 3000 | R24: 2 | S24: 60000 | T24: 3000 | V24: 2 | W24: 600000 | X24: 30000 | Z24: 2 | AA24: 8000000 | AB24: 320000 | AE24: 2 | AF24: 40000000 | AG24: 800000 | AI24: 2 | AJ24: 800000 | AK24: 16000
B25: 3 | C25: 1400000 | D25: 140000 | F25: 3 | G25: 4000000 | H25: 200000 | J25: 3 | K25: 17500000 | L25: 350000 | N25: 3 | O25: 8000 | P25: 2000 | R25: 3 | S25: 40000 | T25: 2000 | V25: 3 | W25: 400000 | X25: 20000 | Z25: 3 | AA25: 7000000 | AB25: 280000 | AE25: 3 | AF25: 35000000 | AG25: 700000 | AI25: 3 | AJ25: 700000 | AK25: 14000
B26: 4 | C26: 1200000 | D26: 120000 | F26: 4 | G26: 2000000 | H26: 100000 | J26: 4 | K26: 15000000 | L26: 300000 | N26: 4 | O26: 4000 | P26: 1000 | R26: 4 | S26: 20000 | T26: 1000 | V26: 4 | W26: 200000 | X26: 10000 | Z26: 4 | AA26: 6000000 | AB26: 240000 | AE26: 4 | AF26: 30000000 | AG26: 600000 | AI26: 4 | AJ26: 600000 | AK26: 12000
B27: 5 | C27: 1000000 | D27: 100000 | F27: 5 | H27: 0 | J27: 5 | K27: 12500000 | L27: 250000 | N27: 5 | P27: 0 | R27: 5 | T27: 0 | V27: 5 | X27: 0 | Z27: 5 | AA27: 5000000 | AB27: 200000 | AE27: 5 | AF27: 25000000 | AG27: 500000 | AI27: 5 | AJ27: 500000 | AK27: 10000
B28: 6 | C28: 800000 | D28: 80000 | F28: 6 | H28: 0 | J28: 6 | K28: 10000000 | L28: 200000 | N28: 6 | P28: 0 | R28: 6 | T28: 0 | V28: 6 | X28: 0 | Z28: 6 | AA28: 4000000 | AB28: 160000 | AE28: 6 | AF28: 20000000 | AG28: 400000 | AI28: 6 | AJ28: 400000 | AK28: 8000
B29: 7 | C29: 600000 | D29: 60000 | F29: 7 | H29: 0 | J29: 7 | K29: 7500000 | L29: 150000 | N29: 7 | P29: 0 | R29: 7 | T29: 0 | V29: 7 | X29: 0 | Z29: 7 | AA29: 3000000 | AB29: 120000 | AE29: 7 | AF29: 15000000 | AG29: 300000 | AI29: 7 | AJ29: 300000 | AK29: 6000
B30: 8 | C30: 400000 | D30: 40000 | F30: 8 | H30: 0 | J30: 8 | K30: 5000000 | L30: 100000 | N30: 8 | P30: 0 | R30: 8 | T30: 0 | V30: 8 | X30: 0 | Z30: 8 | AA30: 2000000 | AB30: 80000 | AE30: 8 | AF30: 10000000 | AG30: 200000 | AI30: 8 | AJ30: 200000 | AK30: 4000
B31: 9 | C31: 200000 | D31: 20000 | F31: 9 | H31: 0 | J31: 9 | K31: 2500000 | L31: 50000 | N31: 9 | P31: 0 | R31: 9 | T31: 0 | V31: 9 | X31: 0 | Z31: 9 | AA31: 1000000 | AB31: 40000 | AE31: 9 | AF31: 5000000 | AG31: 100000 | AI31: 9 | AJ31: 100000 | AK31: 2000
B32: 10 | D32: 0 | F32: 10 | H32: 0 | J32: 10 | L32: 0 | N32: 10 | P32: 0 | R32: 10 | T32: 0 | V32: 10 | X32: 0 | Z32: 10 | AB32: 0 | AE32: 10 | AG32: 0 | AI32: 10 | AK32: 0
B33: 11 | D33: 0 | F33: 11 | H33: 0 | J33: 11 | L33: 0 | N33: 11 | P33: 0 | R33: 11 | T33: 0 | V33: 11 | X33: 0 | Z33: 11 | AB33: 0 | AE33: 11 | AG33: 0 | AI33: 11 | AK33: 0
B34: 12 | D34: 0 | F34: 12 | H34: 0 | J34: 12 | L34: 0 | N34: 12 | P34: 0 | R34: 12 | T34: 0 | V34: 12 | X34: 0 | Z34: 12 | AB34: 0 | AE34: 12 | AG34: 0 | AI34: 12 | AK34: 0
B35: 13 | D35: 0 | F35: 13 | H35: 0 | J35: 13 | L35: 0 | N35: 13 | P35: 0 | R35: 13 | T35: 0 | V35: 13 | X35: 0 | Z35: 13 | AB35: 0 | AE35: 13 | AG35: 0 | AI35: 13 | AK35: 0
B36: 14 | D36: 0 | F36: 14 | H36: 0 | J36: 14 | L36: 0 | N36: 14 | P36: 0 | R36: 14 | T36: 0 | V36: 14 | X36: 0 | Z36: 14 | AB36: 0 | AE36: 14 | AG36: 0 | AI36: 14 | AK36: 0
B37: 15 | D37: 0 | F37: 15 | H37: 0 | J37: 15 | L37: 0 | N37: 15 | P37: 0 | R37: 15 | T37: 0 | V37: 15 | X37: 0 | Z37: 15 | AB37: 0 | AE37: 15 | AG37: 0 | AI37: 15 | AK37: 0
B38: 16 | D38: 0 | F38: 16 | H38: 0 | J38: 16 | L38: 0 | N38: 16 | P38: 0 | R38: 16 | T38: 0 | V38: 16 | X38: 0 | Z38: 16 | AB38: 0 | AE38: 16 | AG38: 0 | AI38: 16 | AK38: 0
B39: 17 | D39: 0 | F39: 17 | H39: 0 | J39: 17 | L39: 0 | N39: 17 | P39: 0 | R39: 17 | T39: 0 | V39: 17 | X39: 0 | Z39: 17 | AB39: 0 | AE39: 17 | AG39: 0 | AI39: 17 | AK39: 0
B40: 18 | D40: 0 | F40: 18 | H40: 0 | J40: 18 | L40: 0 | N40: 18 | P40: 0 | R40: 18 | T40: 0 | V40: 18 | X40: 0 | Z40: 18 | AB40: 0 | AE40: 18 | AG40: 0 | AI40: 18 | AK40: 0
B41: 19 | D41: 0 | F41: 19 | H41: 0 | J41: 19 | L41: 0 | N41: 19 | P41: 0 | R41: 19 | T41: 0 | V41: 19 | X41: 0 | Z41: 19 | AB41: 0 | AE41: 19 | AG41: 0 | AI41: 19 | AK41: 0
B42: 20 | D42: 0 | F42: 20 | H42: 0 | J42: 20 | L42: 0 | N42: 20 | P42: 0 | R42: 20 | T42: 0 | V42: 20 | X42: 0 | Z42: 20 | AB42: 0 | AE42: 20 | AG42: 0 | AI42: 20 | AK42: 0
B43: 21 | D43: 0 | F43: 21 | H43: 0 | J43: 21 | L43: 0 | N43: 21 | P43: 0 | R43: 21 | T43: 0 | V43: 21 | X43: 0 | Z43: 21 | AB43: 0 | AE43: 21 | AG43: 0 | AI43: 21 | AK43: 0
B44: 22 | D44: 0 | F44: 22 | H44: 0 | J44: 22 | L44: 0 | N44: 22 | P44: 0 | R44: 22 | T44: 0 | V44: 22 | X44: 0 | Z44: 22 | AB44: 0 | AE44: 22 | AG44: 0 | AI44: 22 | AK44: 0
B45: 23 | D45: 0 | F45: 23 | H45: 0 | J45: 23 | L45: 0 | N45: 23 | P45: 0 | R45: 23 | T45: 0 | V45: 23 | X45: 0 | Z45: 23 | AB45: 0 | AE45: 23 | AG45: 0 | AI45: 23 | AK45: 0
B46: 24 | D46: 0 | F46: 24 | H46: 0 | J46: 24 | L46: 0 | N46: 24 | P46: 0 | R46: 24 | T46: 0 | V46: 24 | X46: 0 | Z46: 24 | AB46: 0 | AE46: 24 | AG46: 0 | AI46: 24 | AK46: 0
B47: 25 | D47: 0 | F47: 25 | H47: 0 | J47: 25 | L47: 0 | N47: 25 | P47: 0 | R47: 25 | T47: 0 | V47: 25 | X47: 0 | Z47: 25 | AB47: 0 | AE47: 25 | AG47: 0 | AI47: 25 | AK47: 0
B48: 26 | D48: 0 | F48: 26 | H48: 0 | J48: 26 | L48: 0 | N48: 26 | P48: 0 | R48: 26 | T48: 0 | V48: 26 | X48: 0 | Z48: 26 | AB48: 0 | AE48: 26 | AG48: 0 | AI48: 26 | AK48: 0
B49: 27 | D49: 0 | F49: 27 | H49: 0 | J49: 27 | L49: 0 | N49: 27 | P49: 0 | R49: 27 | T49: 0 | V49: 27 | X49: 0 | Z49: 27 | AB49: 0 | AE49: 27 | AG49: 0 | AI49: 27 | AK49: 0
B50: 28 | D50: 0 | F50: 28 | H50: 0 | J50: 28 | L50: 0 | N50: 28 | P50: 0 | R50: 28 | T50: 0 | V50: 28 | X50: 0 | Z50: 28 | AB50: 0 | AE50: 28 | AG50: 0 | AI50: 28 | AK50: 0
B51: 29 | D51: 0 | F51: 29 | H51: 0 | J51: 29 | L51: 0 | N51: 29 | P51: 0 | R51: 29 | T51: 0 | V51: 29 | X51: 0 | Z51: 29 | AB51: 0 | AE51: 29 | AG51: 0 | AI51: 29 | AK51: 0
B52: 30 | D52: 0 | F52: 30 | H52: 0 | J52: 30 | L52: 0 | N52: 30 | P52: 0 | R52: 30 | T52: 0 | V52: 30 | X52: 0 | Z52: 30 | AB52: 0 | AE52: 30 | AG52: 0 | AI52: 30 | AK52: 0
B53: 31 | D53: 0 | F53: 31 | H53: 0 | J53: 31 | L53: 0 | N53: 31 | P53: 0 | R53: 31 | T53: 0 | V53: 31 | X53: 0 | Z53: 31 | AB53: 0 | AE53: 31 | AG53: 0 | AI53: 31 | AK53: 0
B54: 32 | D54: 0 | F54: 32 | H54: 0 | J54: 32 | L54: 0 | N54: 32 | P54: 0 | R54: 32 | T54: 0 | V54: 32 | X54: 0 | Z54: 32 | AB54: 0 | AE54: 32 | AG54: 0 | AI54: 32 | AK54: 0
B55: 33 | D55: 0 | F55: 33 | H55: 0 | J55: 33 | L55: 0 | N55: 33 | P55: 0 | R55: 33 | T55: 0 | V55: 33 | X55: 0 | Z55: 33 | AB55: 0 | AE55: 33 | AG55: 0 | AI55: 33 | AK55: 0
B56: 34 | D56: 0 | F56: 34 | H56: 0 | J56: 34 | L56: 0 | N56: 34 | P56: 0 | R56: 34 | T56: 0 | V56: 34 | X56: 0 | Z56: 34 | AB56: 0 | AE56: 34 | AG56: 0 | AI56: 34 | AK56: 0
B57: 35 | D57: 0 | F57: 35 | H57: 0 | J57: 35 | L57: 0 | N57: 35 | P57: 0 | R57: 35 | T57: 0 | V57: 35 | X57: 0 | Z57: 35 | AB57: 0 | AE57: 35 | AG57: 0 | AI57: 35 | AK57: 0
B58: 36 | D58: 0 | F58: 36 | H58: 0 | J58: 36 | L58: 0 | N58: 36 | P58: 0 | R58: 36 | T58: 0 | V58: 36 | X58: 0 | Z58: 36 | AB58: 0 | AE58: 36 | AG58: 0 | AI58: 36 | AK58: 0
B59: 37 | D59: 0 | F59: 37 | H59: 0 | J59: 37 | L59: 0 | N59: 37 | P59: 0 | R59: 37 | T59: 0 | V59: 37 | X59: 0 | Z59: 37 | AB59: 0 | AE59: 37 | AG59: 0 | AI59: 37 | AK59: 0
B60: 38 | D60: 0 | F60: 38 | H60: 0 | J60: 38 | L60: 0 | N60: 38 | P60: 0 | R60: 38 | T60: 0 | V60: 38 | X60: 0 | Z60: 38 | AB60: 0 | AE60: 38 | AG60: 0 | AI60: 38 | AK60: 0
B61: 39 | D61: 0 | F61: 39 | H61: 0 | J61: 39 | L61: 0 | N61: 39 | P61: 0 | R61: 39 | T61: 0 | V61: 39 | X61: 0 | Z61: 39 | AB61: 0 | AE61: 39 | AG61: 0 | AI61: 39 | AK61: 0
B62: 40 | D62: 0 | F62: 40 | H62: 0 | J62: 40 | L62: 0 | N62: 40 | P62: 0 | R62: 40 | T62: 0 | V62: 40 | X62: 0 | Z62: 40 | AB62: 0 | AE62: 40 | AG62: 0 | AI62: 40 | AK62: 0
B63: 41 | D63: 0 | F63: 41 | H63: 0 | J63: 41 | L63: 0 | N63: 41 | P63: 0 | R63: 41 | T63: 0 | V63: 41 | X63: 0 | Z63: 41 | AB63: 0 | AE63: 41 | AG63: 0 | AI63: 41 | AK63: 0
B64: 42 | D64: 0 | F64: 42 | H64: 0 | J64: 42 | L64: 0 | N64: 42 | P64: 0 | R64: 42 | T64: 0 | V64: 42 | X64: 0 | Z64: 42 | AB64: 0 | AE64: 42 | AG64: 0 | AI64: 42 | AK64: 0
B65: 43 | D65: 0 | F65: 43 | H65: 0 | J65: 43 | L65: 0 | N65: 43 | P65: 0 | R65: 43 | T65: 0 | V65: 43 | X65: 0 | Z65: 43 | AB65: 0 | AE65: 43 | AG65: 0 | AI65: 43 | AK65: 0
B66: 44 | D66: 0 | F66: 44 | H66: 0 | J66: 44 | L66: 0 | N66: 44 | P66: 0 | R66: 44 | T66: 0 | V66: 44 | X66: 0 | Z66: 44 | AB66: 0 | AE66: 44 | AG66: 0 | AI66: 44 | AK66: 0
B67: 45 | D67: 0 | F67: 45 | H67: 0 | J67: 45 | L67: 0 | N67: 45 | P67: 0 | R67: 45 | T67: 0 | V67: 45 | X67: 0 | Z67: 45 | AB67: 0 | AE67: 45 | AG67: 0 | AI67: 45 | AK67: 0
B68: 46 | D68: 0 | F68: 46 | H68: 0 | J68: 46 | L68: 0 | N68: 46 | P68: 0 | R68: 46 | T68: 0 | V68: 46 | X68: 0 | Z68: 46 | AB68: 0 | AE68: 46 | AG68: 0 | AI68: 46 | AK68: 0
B69: 47 | D69: 0 | F69: 47 | H69: 0 | J69: 47 | L69: 0 | N69: 47 | P69: 0 | R69: 47 | T69: 0 | V69: 47 | X69: 0 | Z69: 47 | AB69: 0 | AE69: 47 | AG69: 0 | AI69: 47 | AK69: 0
B70: 48 | D70: 0 | F70: 48 | H70: 0 | J70: 48 | L70: 0 | N70: 48 | P70: 0 | R70: 48 | T70: 0 | V70: 48 | X70: 0 | Z70: 48 | AB70: 0 | AE70: 48 | AG70: 0 | AI70: 48 | AK70: 0
B71: 49 | D71: 0 | F71: 49 | H71: 0 | J71: 49 | L71: 0 | N71: 49 | P71: 0 | R71: 49 | T71: 0 | V71: 49 | X71: 0 | Z71: 49 | AB71: 0 | AE71: 49 | AG71: 0 | AI71: 49 | AK71: 0
B72: 50 | D72: 0 | F72: 50 | H72: 0 | J72: 50 | L72: 0 | N72: 50 | P72: 0 | R72: 50 | T72: 0 | V72: 50 | X72: 0 | Z72: 50 | AB72: 0 | AE72: 50 | AG72: 0 | AI72: 50 | AK72: 0
B73: 51 | D73: 0 | F73: 51 | H73: 0 | J73: 51 | L73: 0 | N73: 51 | P73: 0 | R73: 51 | T73: 0 | V73: 51 | X73: 0 | Z73: 51 | AB73: 0 | AE73: 51 | AG73: 0 | AI73: 51 | AK73: 0
B74: 52 | D74: 0 | F74: 52 | H74: 0 | J74: 52 | L74: 0 | N74: 52 | P74: 0 | R74: 52 | T74: 0 | V74: 52 | X74: 0 | Z74: 52 | AB74: 0 | AE74: 52 | AG74: 0 | AI74: 52 | AK74: 0
B75: 53 | D75: 0 | F75: 53 | H75: 0 | J75: 53 | L75: 0 | N75: 53 | P75: 0 | R75: 53 | T75: 0 | V75: 53 | X75: 0 | Z75: 53 | AB75: 0 | AE75: 53 | AG75: 0 | AI75: 53 | AK75: 0
B76: 54 | D76: 0 | F76: 54 | H76: 0 | J76: 54 | L76: 0 | N76: 54 | P76: 0 | R76: 54 | T76: 0 | V76: 54 | X76: 0 | Z76: 54 | AB76: 0 | AE76: 54 | AG76: 0 | AI76: 54 | AK76: 0
B77: 55 | D77: 0 | F77: 55 | H77: 0 | J77: 55 | L77: 0 | N77: 55 | P77: 0 | R77: 55 | T77: 0 | V77: 55 | X77: 0 | Z77: 55 | AB77: 0 | AE77: 55 | AG77: 0 | AI77: 55 | AK77: 0
B78: 56 | D78: 0 | F78: 56 | H78: 0 | J78: 56 | L78: 0 | N78: 56 | P78: 0 | R78: 56 | T78: 0 | V78: 56 | X78: 0 | Z78: 56 | AB78: 0 | AE78: 56 | AG78: 0 | AI78: 56 | AK78: 0
B79: 57 | D79: 0 | F79: 57 | H79: 0 | J79: 57 | L79: 0 | N79: 57 | P79: 0 | R79: 57 | T79: 0 | V79: 57 | X79: 0 | Z79: 57 | AB79: 0 | AE79: 57 | AG79: 0 | AI79: 57 | AK79: 0
B80: 58 | D80: 0 | F80: 58 | H80: 0 | J80: 58 | L80: 0 | N80: 58 | P80: 0 | R80: 58 | T80: 0 | V80: 58 | X80: 0 | Z80: 58 | AB80: 0 | AE80: 58 | AG80: 0 | AI80: 58 | AK80: 0
B81: 59 | D81: 0 | F81: 59 | H81: 0 | J81: 59 | L81: 0 | N81: 59 | P81: 0 | R81: 59 | T81: 0 | V81: 59 | X81: 0 | Z81: 59 | AB81: 0 | AE81: 59 | AG81: 0 | AI81: 59 | AK81: 0
B82: 60 | D82: 0 | F82: 60 | H82: 0 | J82: 60 | L82: 0 | N82: 60 | P82: 0 | R82: 60 | T82: 0 | V82: 60 | X82: 0 | Z82: 60 | AB82: 0 | AE82: 60 | AG82: 0 | AI82: 60 | AK82: 0
B83: 61 | D83: 0 | F83: 61 | H83: 0 | J83: 61 | L83: 0 | N83: 61 | P83: 0 | R83: 61 | T83: 0 | V83: 61 | X83: 0 | Z83: 61 | AB83: 0 | AE83: 61 | AG83: 0 | AI83: 61 | AK83: 0
B84: 62 | D84: 0 | F84: 62 | H84: 0 | J84: 62 | L84: 0 | N84: 62 | P84: 0 | R84: 62 | T84: 0 | V84: 62 | X84: 0 | Z84: 62 | AB84: 0 | AE84: 62 | AG84: 0 | AI84: 62 | AK84: 0
B85: 63 | D85: 0 | F85: 63 | H85: 0 | J85: 63 | L85: 0 | N85: 63 | P85: 0 | R85: 63 | T85: 0 | V85: 63 | X85: 0 | Z85: 63 | AB85: 0 | AE85: 63 | AG85: 0 | AI85: 63 | AK85: 0
B86: 64 | D86: 0 | F86: 64 | H86: =IF(G86<>0,D$9*G86/G$22,0) -> 0 | J86: 64 | L86: =IF(K86<>0,D$10*K86/K$22,0) -> 0 | N86: 64 | P86: =IF(O86<>0,D$11*O86/O$22,0) -> 0 | R86: 64 | T86: =IF(S86<>0,D$12*S86/S$22,0) -> 0 | V86: 64 | X86: =IF(W86<>0,D$13*W86/W$22,0) -> 0 | Z86: 64 | AB86: =IF(AA86<>0,D$14*AA86/AA$22,0) -> 0 | AE86: 64 | AG86: =IF(AF86<>0,D$15*AF86/AF$22,0) -> 0 | AI86: 64 | AK86: =IF(AJ86<>0,D$16*AJ86/AJ$22,0) -> 0
B87: 65 | D87: =IF(C87<>0,D$8*C87/C$22,0) -> 0 | F87: 65 | H87: =IF(G87<>0,D$9*G87/G$22,0) -> 0 | J87: 65 | L87: =IF(K87<>0,D$10*K87/K$22,0) -> 0 | N87: 65 | P87: =IF(O87<>0,D$11*O87/O$22,0) -> 0 | R87: 65 | T87: =IF(S87<>0,D$12*S87/S$22,0) -> 0 | V87: 65 | X87: =IF(W87<>0,D$13*W87/W$22,0) -> 0 | Z87: 65 | AB87: =IF(AA87<>0,D$14*AA87/AA$22,0) -> 0 | AE87: 65 | AG87: =IF(AF87<>0,D$15*AF87/AF$22,0) -> 0 | AI87: 65 | AK87: =IF(AJ87<>0,D$16*AJ87/AJ$22,0) -> 0
B88: 66 | D88: =IF(C88<>0,D$8*C88/C$22,0) -> 0 | F88: 66 | H88: =IF(G88<>0,D$9*G88/G$22,0) -> 0 | J88: 66 | L88: =IF(K88<>0,D$10*K88/K$22,0) -> 0 | N88: 66 | P88: =IF(O88<>0,D$11*O88/O$22,0) -> 0 | R88: 66 | T88: =IF(S88<>0,D$12*S88/S$22,0) -> 0 | V88: 66 | X88: =IF(W88<>0,D$13*W88/W$22,0) -> 0 | Z88: 66 | AB88: =IF(AA88<>0,D$14*AA88/AA$22,0) -> 0 | AE88: 66 | AG88: =IF(AF88<>0,D$15*AF88/AF$22,0) -> 0 | AI88: 66 | AK88: =IF(AJ88<>0,D$16*AJ88/AJ$22,0) -> 0
B89: 67 | D89: =IF(C89<>0,D$8*C89/C$22,0) -> 0 | F89: 67 | H89: =IF(G89<>0,D$9*G89/G$22,0) -> 0 | J89: 67 | L89: =IF(K89<>0,D$10*K89/K$22,0) -> 0 | N89: 67 | P89: =IF(O89<>0,D$11*O89/O$22,0) -> 0 | R89: 67 | T89: =IF(S89<>0,D$12*S89/S$22,0) -> 0 | V89: 67 | X89: =IF(W89<>0,D$13*W89/W$22,0) -> 0 | Z89: 67 | AB89: =IF(AA89<>0,D$14*AA89/AA$22,0) -> 0 | AE89: 67 | AG89: =IF(AF89<>0,D$15*AF89/AF$22,0) -> 0 | AI89: 67 | AK89: =IF(AJ89<>0,D$16*AJ89/AJ$22,0) -> 0
B90: 68 | D90: =IF(C90<>0,D$8*C90/C$22,0) -> 0 | F90: 68 | H90: =IF(G90<>0,D$9*G90/G$22,0) -> 0 | J90: 68 | L90: =IF(K90<>0,D$10*K90/K$22,0) -> 0 | N90: 68 | P90: =IF(O90<>0,D$11*O90/O$22,0) -> 0 | R90: 68 | T90: =IF(S90<>0,D$12*S90/S$22,0) -> 0 | V90: 68 | X90: =IF(W90<>0,D$13*W90/W$22,0) -> 0 | Z90: 68 | AB90: =IF(AA90<>0,D$14*AA90/AA$22,0) -> 0 | AE90: 67 | AG90: =IF(AF90<>0,D$15*AF90/AF$22,0) -> 0 | AI90: 67 | AK90: =IF(AJ90<>0,D$16*AJ90/AJ$22,0) -> 0
B91: 69 | D91: 0 | F91: 69 | H91: 0 | J91: 69 | L91: 0 | N91: 69 | P91: 0 | R91: 69 | T91: 0 | V91: 69 | X91: 0 | Z91: 69 | AB91: 0 | AE91: 67 | AG91: 0 | AI91: 67 | AK91: 0
B92: 70 | D92: 0 | F92: 70 | H92: 0 | J92: 70 | L92: 0 | N92: 70 | P92: 0 | R92: 70 | T92: 0 | V92: 70 | X92: 0 | Z92: 70 | AB92: 0 | AE92: 67 | AG92: 0 | AI92: 67 | AK92: 0
B93: 71 | D93: 0 | F93: 71 | H93: 0 | J93: 71 | L93: 0 | N93: 71 | P93: 0 | R93: 71 | T93: 0 | V93: 71 | X93: 0 | Z93: 71 | AB93: 0 | AE93: 67 | AG93: 0 | AI93: 67 | AK93: 0
B94: 72 | D94: 0 | F94: 72 | H94: 0 | J94: 72 | L94: 0 | N94: 72 | P94: 0 | R94: 72 | T94: 0 | V94: 72 | X94: 0 | Z94: 72 | AB94: 0 | AE94: 67 | AG94: 0 | AI94: 67 | AK94: 0
B95: 73 | D95: 0 | F95: 73 | H95: 0 | J95: 73 | L95: 0 | N95: 73 | P95: 0 | R95: 73 | T95: 0 | V95: 73 | X95: 0 | Z95: 73 | AB95: 0 | AE95: 67 | AG95: 0 | AI95: 67 | AK95: 0
B96: 74 | D96: 0 | F96: 74 | H96: 0 | J96: 74 | L96: 0 | N96: 74 | P96: 0 | R96: 74 | T96: 0 | V96: 74 | X96: 0 | Z96: 74 | AB96: 0 | AE96: 67 | AG96: 0 | AI96: 67 | AK96: 0
B97: 75 | D97: 0 | F97: 75 | H97: 0 | J97: 75 | L97: 0 | N97: 75 | P97: 0 | R97: 75 | T97: 0 | V97: 75 | X97: 0 | Z97: 75 | AB97: 0 | AE97: 67 | AG97: 0 | AI97: 67 | AK97: 0
B98: 76 | D98: 0 | F98: 76 | H98: 0 | J98: 76 | L98: 0 | N98: 76 | P98: 0 | R98: 76 | T98: 0 | V98: 76 | X98: 0 | Z98: 76 | AB98: 0 | AE98: 67 | AG98: 0 | AI98: 67 | AK98: 0
B99: 77 | D99: 0 | F99: 77 | H99: 0 | J99: 77 | L99: 0 | N99: 77 | P99: 0 | R99: 77 | T99: 0 | V99: 77 | X99: 0 | Z99: 77 | AB99: 0 | AE99: 67 | AG99: 0 | AI99: 67 | AK99: 0
B100: 78 | D100: 0 | F100: 78 | H100: 0 | J100: 78 | L100: 0 | N100: 78 | P100: 0 | R100: 78 | T100: 0 | V100: 78 | X100: 0 | Z100: 78 | AB100: 0 | AE100: 67 | AG100: 0 | AI100: 67 | AK100: 0
B101: 79 | D101: 0 | F101: 79 | H101: 0 | J101: 79 | L101: 0 | N101: 79 | P101: 0 | R101: 79 | T101: 0 | V101: 79 | X101: 0 | Z101: 79 | AB101: 0 | AE101: 67 | AG101: 0 | AI101: 67 | AK101: 0
B102: 80 | D102: 0 | F102: 80 | H102: 0 | J102: 80 | L102: 0 | N102: 80 | P102: 0 | R102: 80 | T102: 0 | V102: 80 | X102: 0 | Z102: 80 | AB102: 0 | AE102: 67 | AG102: 0 | AI102: 67 | AK102: 0
B103: 81 | D103: 0 | F103: 81 | H103: 0 | J103: 81 | L103: 0 | N103: 81 | P103: 0 | R103: 81 | T103: 0 | V103: 81 | X103: 0 | Z103: 81 | AB103: 0 | AE103: 67 | AG103: 0 | AI103: 67 | AK103: 0
B104: 82 | D104: 0 | F104: 82 | H104: 0 | J104: 82 | L104: 0 | N104: 82 | P104: 0 | R104: 82 | T104: 0 | V104: 82 | X104: 0 | Z104: 82 | AB104: 0 | AE104: 67 | AG104: 0 | AI104: 67 | AK104: 0
B105: 83 | D105: 0 | F105: 83 | H105: 0 | J105: 83 | L105: 0 | N105: 83 | P105: 0 | R105: 83 | T105: 0 | V105: 83 | X105: 0 | Z105: 83 | AB105: 0 | AE105: 67 | AG105: 0 | AI105: 67 | AK105: 0
B106: 84 | D106: 0 | F106: 84 | H106: 0 | J106: 84 | L106: 0 | N106: 84 | P106: 0 | R106: 84 | T106: 0 | V106: 84 | X106: 0 | Z106: 84 | AB106: 0 | AE106: 67 | AG106: 0 | AI106: 67 | AK106: 0
B107: 85 | D107: 0 | F107: 85 | H107: 0 | J107: 85 | L107: 0 | N107: 85 | P107: 0 | R107: 85 | T107: 0 | V107: 85 | X107: 0 | Z107: 85 | AB107: 0 | AE107: 67 | AG107: 0 | AI107: 67 | AK107: 0
B108: 86 | D108: 0 | F108: 86 | H108: 0 | J108: 86 | L108: 0 | N108: 86 | P108: 0 | R108: 86 | T108: 0 | V108: 86 | X108: 0 | Z108: 86 | AB108: 0 | AE108: 67 | AG108: 0 | AI108: 67 | AK108: 0
B109: 87 | D109: 0 | F109: 87 | H109: 0 | J109: 87 | L109: 0 | N109: 87 | P109: 0 | R109: 87 | T109: 0 | V109: 87 | X109: 0 | Z109: 87 | AB109: 0 | AE109: 67 | AG109: 0 | AI109: 67 | AK109: 0
B110: 88 | D110: 0 | F110: 88 | H110: 0 | J110: 88 | L110: 0 | N110: 88 | P110: 0 | R110: 88 | T110: 0 | V110: 88 | X110: 0 | Z110: 88 | AB110: 0 | AE110: 67 | AG110: 0 | AI110: 67 | AK110: 0
B111: 89 | D111: 0 | F111: 89 | H111: 0 | J111: 89 | L111: 0 | N111: 89 | P111: 0 | R111: 89 | T111: 0 | V111: 89 | X111: 0 | Z111: 89 | AB111: 0 | AE111: 67 | AG111: 0 | AI111: 67 | AK111: 0
B112: 90 | D112: 0 | F112: 90 | H112: 0 | J112: 90 | L112: 0 | N112: 90 | P112: 0 | R112: 90 | T112: 0 | V112: 90 | X112: 0 | Z112: 90 | AB112: 0 | AE112: 67 | AG112: 0 | AI112: 67 | AK112: 0
B113: 91 | D113: 0 | F113: 91 | H113: 0 | J113: 91 | L113: 0 | N113: 91 | P113: 0 | R113: 91 | T113: 0 | V113: 91 | X113: 0 | Z113: 91 | AB113: 0 | AE113: 67 | AG113: 0 | AI113: 67 | AK113: 0
B114: 92 | D114: 0 | F114: 92 | H114: 0 | J114: 92 | L114: 0 | N114: 92 | P114: 0 | R114: 92 | T114: 0 | V114: 92 | X114: 0 | Z114: 92 | AB114: 0 | AE114: 67 | AG114: 0 | AI114: 67 | AK114: 0
B115: 93 | D115: 0 | F115: 93 | H115: 0 | J115: 93 | L115: 0 | N115: 93 | P115: 0 | R115: 93 | T115: 0 | V115: 93 | X115: 0 | Z115: 93 | AB115: 0 | AE115: 67 | AG115: 0 | AI115: 67 | AK115: 0
B116: 94 | D116: 0 | F116: 94 | H116: =IF(G116<>0,D$9*G116/G$22,0) -> 0 | J116: 94 | L116: =IF(K116<>0,D$10*K116/K$22,0) -> 0 | N116: 94 | P116: =IF(O116<>0,D$11*O116/O$22,0) -> 0 | R116: 94 | T116: =IF(S116<>0,D$12*S116/S$22,0) -> 0 | V116: 94 | X116: =IF(W116<>0,D$13*W116/W$22,0) -> 0 | Z116: 94 | AB116: =IF(AA116<>0,D$14*AA116/AA$22,0) -> 0 | AE116: 67 | AG116: =IF(AF116<>0,D$15*AF116/AF$22,0) -> 0 | AI116: 67 | AK116: =IF(AJ116<>0,D$16*AJ116/AJ$22,0) -> 0
B117: 95 | D117: 0 | F117: 95 | H117: 0 | J117: 95 | L117: 0 | N117: 95 | P117: 0 | R117: 95 | T117: 0 | V117: 95 | X117: 0 | Z117: 95 | AB117: 0 | AE117: 67 | AG117: 0 | AI117: 67 | AK117: 0
B118: 96 | D118: 0 | F118: 96 | H118: 0 | J118: 96 | L118: 0 | N118: 96 | P118: 0 | R118: 96 | T118: 0 | V118: 96 | X118: 0 | Z118: 96 | AB118: 0 | AE118: 67 | AG118: 0 | AI118: 67 | AK118: 0
B119: 97 | D119: 0 | F119: 97 | H119: 0 | J119: 97 | L119: 0 | N119: 97 | P119: 0 | R119: 97 | T119: 0 | V119: 97 | X119: 0 | Z119: 97 | AB119: 0 | AE119: 67 | AG119: 0 | AI119: 67 | AK119: 0
B120: 98 | D120: 0 | F120: 98 | H120: 0 | J120: 98 | L120: 0 | N120: 98 | P120: 0 | R120: 98 | T120: 0 | V120: 98 | X120: 0 | Z120: 98 | AB120: 0 | AE120: 67 | AG120: 0 | AI120: 67 | AK120: 0
B121: 99 | D121: 0 | F121: 99 | H121: 0 | J121: 99 | L121: 0 | N121: 99 | P121: 0 | R121: 99 | T121: 0 | V121: 99 | X121: 0 | Z121: 99 | AB121: 0 | AE121: 67 | AG121: 0 | AI121: 67 | AK121: 0
B122: 100 | D122: 0 | F122: 100 | H122: 0 | J122: 100 | L122: 0 | N122: 100 | P122: 0 | R122: 100 | T122: 0 | V122: 100 | X122: 0 | Z122: 100 | AB122: 0 | AE122: 67 | AG122: 0 | AI122: 67 | AK122: 0

Sheet Simplified Capital Proj - New
B5: Simplified Capital Projection - New Basis
B7: Current Bermuda Solvency Capital Requirement
B8: BMA Approved Adj | D8: 200000
B9: Credit Risk | D9: 500000
B10: Mortality | D10: 500000
B11: Stop Loss | D11: 5000
B12: Riders | D12: 5000
B13: Morbidity & Disability | D13: 50000
B14: Longevity | D14: 400000
B15: Variable Annuities | D15: 1000000
B16: Other Insurance Risk | D16: 20000
B18: Operational Risk Factor | D18: 0.1 | F18: Note: Projected Capital Requirements for Operational Risk are determined on the 'Capital Req't Calc - New' worksheet
B20: BMA Approved Adj. for Insurance or Credit Risk | F20: Credit Risk | J20: Mortality Risk | N20: Stop Loss | R20: Riders | V20: Morbidity & Disability | Z20: Longevity | AE20: Variable Annuities | AI20: Other Insurance Risk
B21: t | C21: Future Best Estimates | D21: BMA Approved Adjustments | F21: t | G21: Future Credit Risk Amounts | H21: Counterparty credit risk default capital requirement | J21: t | K21: Future Net Amounts At Risk | L21: Mortality capital requirement | N21: t | O21: Future Stop Loss Annual Premiums | P21: Stop Loss capital requirement | R21: t | S21: Future Riders Annual Premiums | T21: Riders capital requirement | V21: t | W21: Future Morbidity &Disability Annual Premiums | X21: Morbidity and Disability capital requirement | Z21: t | AA21: Future Longevity Best Estimates | AB21: Longevity capital requirement | AE21: t | AF21: Future VA Guarantee Values | AG21: VA Capital requirement | AI21: t | AJ21: Total Future Best Estimates | AK21: Other Insurance Risk capital requirement
B22: 0 | C22: 2000000 | D22: =IF(C22<>0,D$8*C22/C$22,0) -> 200000 | F22: 0 | G22: 10000000 | H22: =IF(G22<>0,D$9*G22/G$22,0) -> 500000 | J22: 0 | K22: 25000000 | L22: =IF(K22<>0,D$10*K22/K$22,0) -> 500000 | N22: 0 | O22: 20000 | P22: =IF(O22<>0,D$11*O22/O$22,0) -> 5000 | R22: 0 | S22: 100000 | T22: =IF(S22<>0,D$12*S22/S$22,0) -> 5000 | V22: 0 | W22: 1000000 | X22: =IF(W22<>0,D$13*W22/W$22,0) -> 50000 | Z22: 0 | AA22: 10000000 | AB22: =IF(AA22<>0,D$14*AA22/AA$22,0) -> 400000 | AE22: 0 | AF22: 50000000 | AG22: =IF(AF22<>0,D$15*AF22/AF$22,0) -> 1000000 | AI22: 0 | AJ22: 1000000 | AK22: =IF(AJ22<>0,D$16*AJ22/AJ$22,0) -> 20000
B23: 1 | C23: 1800000 | D23: =IF(C23<>0,D$8*C23/C$22,0) -> 180000 | F23: 1 | G23: 8000000 | H23: 400000 | J23: 1 | K23: 22500000 | L23: 450000 | N23: 1 | O23: 16000 | P23: 4000 | R23: 1 | S23: 80000 | T23: 4000 | V23: 1 | W23: 800000 | X23: 40000 | Z23: 1 | AA23: 9000000 | AB23: 360000 | AE23: 1 | AF23: 45000000 | AG23: 900000 | AI23: 1 | AJ23: 900000 | AK23: 18000
B24: 2 | C24: 1600000 | D24: 160000 | F24: 2 | G24: 6000000 | H24: 300000 | J24: 2 | K24: 20000000 | L24: 400000 | N24: 2 | O24: 12000 | P24: 3000 | R24: 2 | S24: 60000 | T24: 3000 | V24: 2 | W24: 600000 | X24: 30000 | Z24: 2 | AA24: 8000000 | AB24: 320000 | AE24: 2 | AF24: 40000000 | AG24: 800000 | AI24: 2 | AJ24: 800000 | AK24: 16000
B25: 3 | C25: 1400000 | D25: 140000 | F25: 3 | G25: 4000000 | H25: 200000 | J25: 3 | K25: 17500000 | L25: 350000 | N25: 3 | O25: 8000 | P25: 2000 | R25: 3 | S25: 40000 | T25: 2000 | V25: 3 | W25: 400000 | X25: 20000 | Z25: 3 | AA25: 7000000 | AB25: 280000 | AE25: 3 | AF25: 35000000 | AG25: 700000 | AI25: 3 | AJ25: 700000 | AK25: 14000
B26: 4 | C26: 1200000 | D26: 120000 | F26: 4 | G26: 2000000 | H26: 100000 | J26: 4 | K26: 15000000 | L26: 300000 | N26: 4 | O26: 4000 | P26: 1000 | R26: 4 | S26: 20000 | T26: 1000 | V26: 4 | W26: 200000 | X26: 10000 | Z26: 4 | AA26: 6000000 | AB26: 240000 | AE26: 4 | AF26: 30000000 | AG26: 600000 | AI26: 4 | AJ26: 600000 | AK26: 12000
B27: 5 | C27: 1000000 | D27: 100000 | F27: 5 | H27: 0 | J27: 5 | K27: 12500000 | L27: 250000 | N27: 5 | P27: 0 | R27: 5 | T27: 0 | V27: 5 | X27: 0 | Z27: 5 | AA27: 5000000 | AB27: 200000 | AE27: 5 | AF27: 25000000 | AG27: 500000 | AI27: 5 | AJ27: 500000 | AK27: 10000
B28: 6 | C28: 800000 | D28: 80000 | F28: 6 | H28: 0 | J28: 6 | K28: 10000000 | L28: 200000 | N28: 6 | P28: 0 | R28: 6 | T28: 0 | V28: 6 | X28: 0 | Z28: 6 | AA28: 4000000 | AB28: 160000 | AE28: 6 | AF28: 20000000 | AG28: 400000 | AI28: 6 | AJ28: 400000 | AK28: 8000
B29: 7 | C29: 600000 | D29: 60000 | F29: 7 | H29: 0 | J29: 7 | K29: 7500000 | L29: 150000 | N29: 7 | P29: 0 | R29: 7 | T29: 0 | V29: 7 | X29: 0 | Z29: 7 | AA29: 3000000 | AB29: 120000 | AE29: 7 | AF29: 15000000 | AG29: 300000 | AI29: 7 | AJ29: 300000 | AK29: 6000
B30: 8 | C30: 400000 | D30: 40000 | F30: 8 | H30: 0 | J30: 8 | K30: 5000000 | L30: 100000 | N30: 8 | P30: 0 | R30: 8 | T30: 0 | V30: 8 | X30: 0 | Z30: 8 | AA30: 2000000 | AB30: 80000 | AE30: 8 | AF30: 10000000 | AG30: 200000 | AI30: 8 | AJ30: 200000 | AK30: 4000
B31: 9 | C31: 200000 | D31: 20000 | F31: 9 | H31: 0 | J31: 9 | K31: 2500000 | L31: 50000 | N31: 9 | P31: 0 | R31: 9 | T31: 0 | V31: 9 | X31: 0 | Z31: 9 | AA31: 1000000 | AB31: 40000 | AE31: 9 | AF31: 5000000 | AG31: 100000 | AI31: 9 | AJ31: 100000 | AK31: 2000
B32: 10 | D32: 0 | F32: 10 | H32: 0 | J32: 10 | L32: 0 | N32: 10 | P32: 0 | R32: 10 | T32: 0 | V32: 10 | X32: 0 | Z32: 10 | AB32: 0 | AE32: 10 | AG32: 0 | AI32: 10 | AK32: 0
B33: 11 | D33: 0 | F33: 11 | H33: 0 | J33: 11 | L33: 0 | N33: 11 | P33: 0 | R33: 11 | T33: 0 | V33: 11 | X33: 0 | Z33: 11 | AB33: 0 | AE33: 11 | AG33: 0 | AI33: 11 | AK33: 0
B34: 12 | D34: 0 | F34: 12 | H34: 0 | J34: 12 | L34: 0 | N34: 12 | P34: 0 | R34: 12 | T34: 0 | V34: 12 | X34: 0 | Z34: 12 | AB34: 0 | AE34: 12 | AG34: 0 | AI34: 12 | AK34: 0
B35: 13 | D35: 0 | F35: 13 | H35: 0 | J35: 13 | L35: 0 | N35: 13 | P35: 0 | R35: 13 | T35: 0 | V35: 13 | X35: 0 | Z35: 13 | AB35: 0 | AE35: 13 | AG35: 0 | AI35: 13 | AK35: 0
B36: 14 | D36: 0 | F36: 14 | H36: 0 | J36: 14 | L36: 0 | N36: 14 | P36: 0 | R36: 14 | T36: 0 | V36: 14 | X36: 0 | Z36: 14 | AB36: 0 | AE36: 14 | AG36: 0 | AI36: 14 | AK36: 0
B37: 15 | D37: 0 | F37: 15 | H37: 0 | J37: 15 | L37: 0 | N37: 15 | P37: 0 | R37: 15 | T37: 0 | V37: 15 | X37: 0 | Z37: 15 | AB37: 0 | AE37: 15 | AG37: 0 | AI37: 15 | AK37: 0
B38: 16 | D38: 0 | F38: 16 | H38: 0 | J38: 16 | L38: 0 | N38: 16 | P38: 0 | R38: 16 | T38: 0 | V38: 16 | X38: 0 | Z38: 16 | AB38: 0 | AE38: 16 | AG38: 0 | AI38: 16 | AK38: 0
B39: 17 | D39: 0 | F39: 17 | H39: 0 | J39: 17 | L39: 0 | N39: 17 | P39: 0 | R39: 17 | T39: 0 | V39: 17 | X39: 0 | Z39: 17 | AB39: 0 | AE39: 17 | AG39: 0 | AI39: 17 | AK39: 0
B40: 18 | D40: 0 | F40: 18 | H40: 0 | J40: 18 | L40: 0 | N40: 18 | P40: 0 | R40: 18 | T40: 0 | V40: 18 | X40: 0 | Z40: 18 | AB40: 0 | AE40: 18 | AG40: 0 | AI40: 18 | AK40: 0
B41: 19 | D41: 0 | F41: 19 | H41: 0 | J41: 19 | L41: 0 | N41: 19 | P41: 0 | R41: 19 | T41: 0 | V41: 19 | X41: 0 | Z41: 19 | AB41: 0 | AE41: 19 | AG41: 0 | AI41: 19 | AK41: 0
B42: 20 | D42: 0 | F42: 20 | H42: 0 | J42: 20 | L42: 0 | N42: 20 | P42: 0 | R42: 20 | T42: 0 | V42: 20 | X42: 0 | Z42: 20 | AB42: 0 | AE42: 20 | AG42: 0 | AI42: 20 | AK42: 0
B43: 21 | D43: 0 | F43: 21 | H43: 0 | J43: 21 | L43: 0 | N43: 21 | P43: 0 | R43: 21 | T43: 0 | V43: 21 | X43: 0 | Z43: 21 | AB43: 0 | AE43: 21 | AG43: 0 | AI43: 21 | AK43: 0
B44: 22 | D44: 0 | F44: 22 | H44: 0 | J44: 22 | L44: 0 | N44: 22 | P44: 0 | R44: 22 | T44: 0 | V44: 22 | X44: 0 | Z44: 22 | AB44: 0 | AE44: 22 | AG44: 0 | AI44: 22 | AK44: 0
B45: 23 | D45: 0 | F45: 23 | H45: 0 | J45: 23 | L45: 0 | N45: 23 | P45: 0 | R45: 23 | T45: 0 | V45: 23 | X45: 0 | Z45: 23 | AB45: 0 | AE45: 23 | AG45: 0 | AI45: 23 | AK45: 0
B46: 24 | D46: 0 | F46: 24 | H46: 0 | J46: 24 | L46: 0 | N46: 24 | P46: 0 | R46: 24 | T46: 0 | V46: 24 | X46: 0 | Z46: 24 | AB46: 0 | AE46: 24 | AG46: 0 | AI46: 24 | AK46: 0
B47: 25 | D47: 0 | F47: 25 | H47: 0 | J47: 25 | L47: 0 | N47: 25 | P47: 0 | R47: 25 | T47: 0 | V47: 25 | X47: 0 | Z47: 25 | AB47: 0 | AE47: 25 | AG47: 0 | AI47: 25 | AK47: 0
B48: 26 | D48: 0 | F48: 26 | H48: 0 | J48: 26 | L48: 0 | N48: 26 | P48: 0 | R48: 26 | T48: 0 | V48: 26 | X48: 0 | Z48: 26 | AB48: 0 | AE48: 26 | AG48: 0 | AI48: 26 | AK48: 0
B49: 27 | D49: 0 | F49: 27 | H49: 0 | J49: 27 | L49: 0 | N49: 27 | P49: 0 | R49: 27 | T49: 0 | V49: 27 | X49: 0 | Z49: 27 | AB49: 0 | AE49: 27 | AG49: 0 | AI49: 27 | AK49: 0
B50: 28 | D50: 0 | F50: 28 | H50: 0 | J50: 28 | L50: 0 | N50: 28 | P50: 0 | R50: 28 | T50: 0 | V50: 28 | X50: 0 | Z50: 28 | AB50: 0 | AE50: 28 | AG50: 0 | AI50: 28 | AK50: 0
B51: 29 | D51: 0 | F51: 29 | H51: 0 | J51: 29 | L51: 0 | N51: 29 | P51: 0 | R51: 29 | T51: 0 | V51: 29 | X51: 0 | Z51: 29 | AB51: 0 | AE51: 29 | AG51: 0 | AI51: 29 | AK51: 0
B52: 30 | D52: 0 | F52: 30 | H52: 0 | J52: 30 | L52: 0 | N52: 30 | P52: 0 | R52: 30 | T52: 0 | V52: 30 | X52: 0 | Z52: 30 | AB52: 0 | AE52: 30 | AG52: 0 | AI52: 30 | AK52: 0
B53: 31 | D53: 0 | F53: 31 | H53: 0 | J53: 31 | L53: 0 | N53: 31 | P53: 0 | R53: 31 | T53: 0 | V53: 31 | X53: 0 | Z53: 31 | AB53: 0 | AE53: 31 | AG53: 0 | AI53: 31 | AK53: 0
B54: 32 | D54: 0 | F54: 32 | H54: 0 | J54: 32 | L54: 0 | N54: 32 | P54: 0 | R54: 32 | T54: 0 | V54: 32 | X54: 0 | Z54: 32 | AB54: 0 | AE54: 32 | AG54: 0 | AI54: 32 | AK54: 0
B55: 33 | D55: 0 | F55: 33 | H55: 0 | J55: 33 | L55: 0 | N55: 33 | P55: 0 | R55: 33 | T55: 0 | V55: 33 | X55: 0 | Z55: 33 | AB55: 0 | AE55: 33 | AG55: 0 | AI55: 33 | AK55: 0
B56: 34 | D56: 0 | F56: 34 | H56: 0 | J56: 34 | L56: 0 | N56: 34 | P56: 0 | R56: 34 | T56: 0 | V56: 34 | X56: 0 | Z56: 34 | AB56: 0 | AE56: 34 | AG56: 0 | AI56: 34 | AK56: 0
B57: 35 | D57: 0 | F57: 35 | H57: 0 | J57: 35 | L57: 0 | N57: 35 | P57: 0 | R57: 35 | T57: 0 | V57: 35 | X57: 0 | Z57: 35 | AB57: 0 | AE57: 35 | AG57: 0 | AI57: 35 | AK57: 0
B58: 36 | D58: 0 | F58: 36 | H58: 0 | J58: 36 | L58: 0 | N58: 36 | P58: 0 | R58: 36 | T58: 0 | V58: 36 | X58: 0 | Z58: 36 | AB58: 0 | AE58: 36 | AG58: 0 | AI58: 36 | AK58: 0
B59: 37 | D59: 0 | F59: 37 | H59: 0 | J59: 37 | L59: 0 | N59: 37 | P59: 0 | R59: 37 | T59: 0 | V59: 37 | X59: 0 | Z59: 37 | AB59: 0 | AE59: 37 | AG59: 0 | AI59: 37 | AK59: 0
B60: 38 | D60: 0 | F60: 38 | H60: 0 | J60: 38 | L60: 0 | N60: 38 | P60: 0 | R60: 38 | T60: 0 | V60: 38 | X60: 0 | Z60: 38 | AB60: 0 | AE60: 38 | AG60: 0 | AI60: 38 | AK60: 0
B61: 39 | D61: 0 | F61: 39 | H61: 0 | J61: 39 | L61: 0 | N61: 39 | P61: 0 | R61: 39 | T61: 0 | V61: 39 | X61: 0 | Z61: 39 | AB61: 0 | AE61: 39 | AG61: 0 | AI61: 39 | AK61: 0
B62: 40 | D62: 0 | F62: 40 | H62: 0 | J62: 40 | L62: 0 | N62: 40 | P62: 0 | R62: 40 | T62: 0 | V62: 40 | X62: 0 | Z62: 40 | AB62: 0 | AE62: 40 | AG62: 0 | AI62: 40 | AK62: 0
B63: 41 | D63: 0 | F63: 41 | H63: 0 | J63: 41 | L63: 0 | N63: 41 | P63: 0 | R63: 41 | T63: 0 | V63: 41 | X63: 0 | Z63: 41 | AB63: 0 | AE63: 41 | AG63: 0 | AI63: 41 | AK63: 0
B64: 42 | D64: 0 | F64: 42 | H64: 0 | J64: 42 | L64: 0 | N64: 42 | P64: 0 | R64: 42 | T64: 0 | V64: 42 | X64: 0 | Z64: 42 | AB64: 0 | AE64: 42 | AG64: 0 | AI64: 42 | AK64: 0
B65: 43 | D65: 0 | F65: 43 | H65: 0 | J65: 43 | L65: 0 | N65: 43 | P65: 0 | R65: 43 | T65: 0 | V65: 43 | X65: 0 | Z65: 43 | AB65: 0 | AE65: 43 | AG65: 0 | AI65: 43 | AK65: 0
B66: 44 | D66: 0 | F66: 44 | H66: 0 | J66: 44 | L66: 0 | N66: 44 | P66: 0 | R66: 44 | T66: 0 | V66: 44 | X66: 0 | Z66: 44 | AB66: 0 | AE66: 44 | AG66: 0 | AI66: 44 | AK66: 0
B67: 45 | D67: 0 | F67: 45 | H67: 0 | J67: 45 | L67: 0 | N67: 45 | P67: 0 | R67: 45 | T67: 0 | V67: 45 | X67: 0 | Z67: 45 | AB67: 0 | AE67: 45 | AG67: 0 | AI67: 45 | AK67: 0
B68: 46 | D68: 0 | F68: 46 | H68: 0 | J68: 46 | L68: 0 | N68: 46 | P68: 0 | R68: 46 | T68: 0 | V68: 46 | X68: 0 | Z68: 46 | AB68: 0 | AE68: 46 | AG68: 0 | AI68: 46 | AK68: 0
B69: 47 | D69: 0 | F69: 47 | H69: 0 | J69: 47 | L69: 0 | N69: 47 | P69: 0 | R69: 47 | T69: 0 | V69: 47 | X69: 0 | Z69: 47 | AB69: 0 | AE69: 47 | AG69: 0 | AI69: 47 | AK69: 0
B70: 48 | D70: 0 | F70: 48 | H70: 0 | J70: 48 | L70: 0 | N70: 48 | P70: 0 | R70: 48 | T70: 0 | V70: 48 | X70: 0 | Z70: 48 | AB70: 0 | AE70: 48 | AG70: 0 | AI70: 48 | AK70: 0
B71: 49 | D71: 0 | F71: 49 | H71: 0 | J71: 49 | L71: 0 | N71: 49 | P71: 0 | R71: 49 | T71: 0 | V71: 49 | X71: 0 | Z71: 49 | AB71: 0 | AE71: 49 | AG71: 0 | AI71: 49 | AK71: 0
B72: 50 | D72: 0 | F72: 50 | H72: 0 | J72: 50 | L72: 0 | N72: 50 | P72: 0 | R72: 50 | T72: 0 | V72: 50 | X72: 0 | Z72: 50 | AB72: 0 | AE72: 50 | AG72: 0 | AI72: 50 | AK72: 0
B73: 51 | D73: 0 | F73: 51 | H73: 0 | J73: 51 | L73: 0 | N73: 51 | P73: 0 | R73: 51 | T73: 0 | V73: 51 | X73: 0 | Z73: 51 | AB73: 0 | AE73: 51 | AG73: 0 | AI73: 51 | AK73: 0
B74: 52 | D74: 0 | F74: 52 | H74: 0 | J74: 52 | L74: 0 | N74: 52 | P74: 0 | R74: 52 | T74: 0 | V74: 52 | X74: 0 | Z74: 52 | AB74: 0 | AE74: 52 | AG74: 0 | AI74: 52 | AK74: 0
B75: 53 | D75: 0 | F75: 53 | H75: 0 | J75: 53 | L75: 0 | N75: 53 | P75: 0 | R75: 53 | T75: 0 | V75: 53 | X75: 0 | Z75: 53 | AB75: 0 | AE75: 53 | AG75: 0 | AI75: 53 | AK75: 0
B76: 54 | D76: 0 | F76: 54 | H76: 0 | J76: 54 | L76: 0 | N76: 54 | P76: 0 | R76: 54 | T76: 0 | V76: 54 | X76: 0 | Z76: 54 | AB76: 0 | AE76: 54 | AG76: 0 | AI76: 54 | AK76: 0
B77: 55 | D77: 0 | F77: 55 | H77: 0 | J77: 55 | L77: 0 | N77: 55 | P77: 0 | R77: 55 | T77: 0 | V77: 55 | X77: 0 | Z77: 55 | AB77: 0 | AE77: 55 | AG77: 0 | AI77: 55 | AK77: 0
B78: 56 | D78: 0 | F78: 56 | H78: 0 | J78: 56 | L78: 0 | N78: 56 | P78: 0 | R78: 56 | T78: 0 | V78: 56 | X78: 0 | Z78: 56 | AB78: 0 | AE78: 56 | AG78: 0 | AI78: 56 | AK78: 0
B79: 57 | D79: 0 | F79: 57 | H79: 0 | J79: 57 | L79: 0 | N79: 57 | P79: 0 | R79: 57 | T79: 0 | V79: 57 | X79: 0 | Z79: 57 | AB79: 0 | AE79: 57 | AG79: 0 | AI79: 57 | AK79: 0
B80: 58 | D80: 0 | F80: 58 | H80: 0 | J80: 58 | L80: 0 | N80: 58 | P80: 0 | R80: 58 | T80: 0 | V80: 58 | X80: 0 | Z80: 58 | AB80: 0 | AE80: 58 | AG80: 0 | AI80: 58 | AK80: 0
B81: 59 | D81: 0 | F81: 59 | H81: 0 | J81: 59 | L81: 0 | N81: 59 | P81: 0 | R81: 59 | T81: 0 | V81: 59 | X81: 0 | Z81: 59 | AB81: 0 | AE81: 59 | AG81: 0 | AI81: 59 | AK81: 0
B82: 60 | D82: 0 | F82: 60 | H82: 0 | J82: 60 | L82: 0 | N82: 60 | P82: 0 | R82: 60 | T82: 0 | V82: 60 | X82: 0 | Z82: 60 | AB82: 0 | AE82: 60 | AG82: 0 | AI82: 60 | AK82: 0
B83: 61 | D83: 0 | F83: 61 | H83: 0 | J83: 61 | L83: 0 | N83: 61 | P83: 0 | R83: 61 | T83: 0 | V83: 61 | X83: 0 | Z83: 61 | AB83: 0 | AE83: 61 | AG83: 0 | AI83: 61 | AK83: 0
B84: 62 | D84: 0 | F84: 62 | H84: 0 | J84: 62 | L84: 0 | N84: 62 | P84: 0 | R84: 62 | T84: 0 | V84: 62 | X84: 0 | Z84: 62 | AB84: 0 | AE84: 62 | AG84: 0 | AI84: 62 | AK84: 0
B85: 63 | D85: 0 | F85: 63 | H85: 0 | J85: 63 | L85: 0 | N85: 63 | P85: 0 | R85: 63 | T85: 0 | V85: 63 | X85: 0 | Z85: 63 | AB85: 0 | AE85: 63 | AG85: 0 | AI85: 63 | AK85: 0
B86: 64 | D86: 0 | F86: 64 | H86: =IF(G86<>0,D$9*G86/G$22,0) -> 0 | J86: 64 | L86: =IF(K86<>0,D$10*K86/K$22,0) -> 0 | N86: 64 | P86: =IF(O86<>0,D$11*O86/O$22,0) -> 0 | R86: 64 | T86: =IF(S86<>0,D$12*S86/S$22,0) -> 0 | V86: 64 | X86: =IF(W86<>0,D$13*W86/W$22,0) -> 0 | Z86: 64 | AB86: =IF(AA86<>0,D$14*AA86/AA$22,0) -> 0 | AE86: 64 | AG86: =IF(AF86<>0,D$15*AF86/AF$22,0) -> 0 | AI86: 64 | AK86: =IF(AJ86<>0,D$16*AJ86/AJ$22,0) -> 0
B87: 65 | D87: =IF(C87<>0,D$8*C87/C$22,0) -> 0 | F87: 65 | H87: =IF(G87<>0,D$9*G87/G$22,0) -> 0 | J87: 65 | L87: =IF(K87<>0,D$10*K87/K$22,0) -> 0 | N87: 65 | P87: =IF(O87<>0,D$11*O87/O$22,0) -> 0 | R87: 65 | T87: =IF(S87<>0,D$12*S87/S$22,0) -> 0 | V87: 65 | X87: =IF(W87<>0,D$13*W87/W$22,0) -> 0 | Z87: 65 | AB87: =IF(AA87<>0,D$14*AA87/AA$22,0) -> 0 | AE87: 65 | AG87: =IF(AF87<>0,D$15*AF87/AF$22,0) -> 0 | AI87: 65 | AK87: =IF(AJ87<>0,D$16*AJ87/AJ$22,0) -> 0
B88: 66 | D88: 0 | F88: 66 | H88: =IF(G88<>0,D$9*G88/G$22,0) -> 0 | J88: 66 | L88: =IF(K88<>0,D$10*K88/K$22,0) -> 0 | N88: 66 | P88: =IF(O88<>0,D$11*O88/O$22,0) -> 0 | R88: 66 | T88: =IF(S88<>0,D$12*S88/S$22,0) -> 0 | V88: 66 | X88: =IF(W88<>0,D$13*W88/W$22,0) -> 0 | Z88: 66 | AB88: =IF(AA88<>0,D$14*AA88/AA$22,0) -> 0 | AE88: 66 | AG88: =IF(AF88<>0,D$15*AF88/AF$22,0) -> 0 | AI88: 66 | AK88: =IF(AJ88<>0,D$16*AJ88/AJ$22,0) -> 0
B89: 67 | D89: 0 | F89: 67 | H89: =IF(G89<>0,D$9*G89/G$22,0) -> 0 | J89: 67 | L89: =IF(K89<>0,D$10*K89/K$22,0) -> 0 | N89: 67 | P89: =IF(O89<>0,D$11*O89/O$22,0) -> 0 | R89: 67 | T89: =IF(S89<>0,D$12*S89/S$22,0) -> 0 | V89: 67 | X89: =IF(W89<>0,D$13*W89/W$22,0) -> 0 | Z89: 67 | AB89: =IF(AA89<>0,D$14*AA89/AA$22,0) -> 0 | AE89: 67 | AG89: =IF(AF89<>0,D$15*AF89/AF$22,0) -> 0 | AI89: 67 | AK89: =IF(AJ89<>0,D$16*AJ89/AJ$22,0) -> 0
B90: 68 | D90: 0 | F90: 68 | H90: =IF(G90<>0,D$9*G90/G$22,0) -> 0 | J90: 68 | L90: =IF(K90<>0,D$10*K90/K$22,0) -> 0 | N90: 68 | P90: =IF(O90<>0,D$11*O90/O$22,0) -> 0 | R90: 68 | T90: =IF(S90<>0,D$12*S90/S$22,0) -> 0 | V90: 68 | X90: =IF(W90<>0,D$13*W90/W$22,0) -> 0 | Z90: 68 | AB90: =IF(AA90<>0,D$14*AA90/AA$22,0) -> 0 | AE90: 68 | AG90: =IF(AF90<>0,D$15*AF90/AF$22,0) -> 0 | AI90: 68 | AK90: =IF(AJ90<>0,D$16*AJ90/AJ$22,0) -> 0
B91: 69 | D91: 0 | F91: 69 | H91: 0 | J91: 69 | L91: 0 | N91: 69 | P91: 0 | R91: 69 | T91: 0 | V91: 69 | X91: 0 | Z91: 69 | AB91: 0 | AE91: 69 | AG91: 0 | AI91: 69 | AK91: 0
B92: 70 | D92: 0 | F92: 70 | H92: 0 | J92: 70 | L92: 0 | N92: 70 | P92: 0 | R92: 70 | T92: 0 | V92: 70 | X92: 0 | Z92: 70 | AB92: 0 | AE92: 70 | AG92: 0 | AI92: 70 | AK92: 0
B93: 71 | D93: 0 | F93: 71 | H93: 0 | J93: 71 | L93: 0 | N93: 71 | P93: 0 | R93: 71 | T93: 0 | V93: 71 | X93: 0 | Z93: 71 | AB93: 0 | AE93: 71 | AG93: 0 | AI93: 71 | AK93: 0
B94: 72 | D94: 0 | F94: 72 | H94: 0 | J94: 72 | L94: 0 | N94: 72 | P94: 0 | R94: 72 | T94: 0 | V94: 72 | X94: 0 | Z94: 72 | AB94: 0 | AE94: 72 | AG94: 0 | AI94: 72 | AK94: 0
B95: 73 | D95: 0 | F95: 73 | H95: 0 | J95: 73 | L95: 0 | N95: 73 | P95: 0 | R95: 73 | T95: 0 | V95: 73 | X95: 0 | Z95: 73 | AB95: 0 | AE95: 73 | AG95: 0 | AI95: 73 | AK95: 0
B96: 74 | D96: 0 | F96: 74 | H96: 0 | J96: 74 | L96: 0 | N96: 74 | P96: 0 | R96: 74 | T96: 0 | V96: 74 | X96: 0 | Z96: 74 | AB96: 0 | AE96: 74 | AG96: 0 | AI96: 74 | AK96: 0
B97: 75 | D97: 0 | F97: 75 | H97: 0 | J97: 75 | L97: 0 | N97: 75 | P97: 0 | R97: 75 | T97: 0 | V97: 75 | X97: 0 | Z97: 75 | AB97: 0 | AE97: 75 | AG97: 0 | AI97: 75 | AK97: 0
B98: 76 | D98: 0 | F98: 76 | H98: 0 | J98: 76 | L98: 0 | N98: 76 | P98: 0 | R98: 76 | T98: 0 | V98: 76 | X98: 0 | Z98: 76 | AB98: 0 | AE98: 76 | AG98: 0 | AI98: 76 | AK98: 0
B99: 77 | D99: 0 | F99: 77 | H99: 0 | J99: 77 | L99: 0 | N99: 77 | P99: 0 | R99: 77 | T99: 0 | V99: 77 | X99: 0 | Z99: 77 | AB99: 0 | AE99: 77 | AG99: 0 | AI99: 77 | AK99: 0
B100: 78 | D100: 0 | F100: 78 | H100: 0 | J100: 78 | L100: 0 | N100: 78 | P100: 0 | R100: 78 | T100: 0 | V100: 78 | X100: 0 | Z100: 78 | AB100: 0 | AE100: 78 | AG100: 0 | AI100: 78 | AK100: 0
B101: 79 | D101: 0 | F101: 79 | H101: 0 | J101: 79 | L101: 0 | N101: 79 | P101: 0 | R101: 79 | T101: 0 | V101: 79 | X101: 0 | Z101: 79 | AB101: 0 | AE101: 79 | AG101: 0 | AI101: 79 | AK101: 0
B102: 80 | D102: 0 | F102: 80 | H102: 0 | J102: 80 | L102: 0 | N102: 80 | P102: 0 | R102: 80 | T102: 0 | V102: 80 | X102: 0 | Z102: 80 | AB102: 0 | AE102: 80 | AG102: 0 | AI102: 80 | AK102: 0
B103: 81 | D103: 0 | F103: 81 | H103: 0 | J103: 81 | L103: 0 | N103: 81 | P103: 0 | R103: 81 | T103: 0 | V103: 81 | X103: 0 | Z103: 81 | AB103: 0 | AE103: 81 | AG103: 0 | AI103: 81 | AK103: 0
B104: 82 | D104: 0 | F104: 82 | H104: 0 | J104: 82 | L104: 0 | N104: 82 | P104: 0 | R104: 82 | T104: 0 | V104: 82 | X104: 0 | Z104: 82 | AB104: 0 | AE104: 82 | AG104: 0 | AI104: 82 | AK104: 0
B105: 83 | D105: 0 | F105: 83 | H105: 0 | J105: 83 | L105: 0 | N105: 83 | P105: 0 | R105: 83 | T105: 0 | V105: 83 | X105: 0 | Z105: 83 | AB105: 0 | AE105: 83 | AG105: 0 | AI105: 83 | AK105: 0
B106: 84 | D106: 0 | F106: 84 | H106: 0 | J106: 84 | L106: 0 | N106: 84 | P106: 0 | R106: 84 | T106: 0 | V106: 84 | X106: 0 | Z106: 84 | AB106: 0 | AE106: 84 | AG106: 0 | AI106: 84 | AK106: 0
B107: 85 | D107: 0 | F107: 85 | H107: 0 | J107: 85 | L107: 0 | N107: 85 | P107: 0 | R107: 85 | T107: 0 | V107: 85 | X107: 0 | Z107: 85 | AB107: 0 | AE107: 85 | AG107: 0 | AI107: 85 | AK107: 0
B108: 86 | D108: 0 | F108: 86 | H108: 0 | J108: 86 | L108: 0 | N108: 86 | P108: 0 | R108: 86 | T108: 0 | V108: 86 | X108: 0 | Z108: 86 | AB108: 0 | AE108: 86 | AG108: 0 | AI108: 86 | AK108: 0
B109: 87 | D109: 0 | F109: 87 | H109: =IF(G109<>0,D$9*G109/G$22,0) -> 0 | J109: 87 | L109: =IF(K109<>0,D$10*K109/K$22,0) -> 0 | N109: 87 | P109: =IF(O109<>0,D$11*O109/O$22,0) -> 0 | R109: 87 | T109: =IF(S109<>0,D$12*S109/S$22,0) -> 0 | V109: 87 | X109: =IF(W109<>0,D$13*W109/W$22,0) -> 0 | Z109: 87 | AB109: =IF(AA109<>0,D$14*AA109/AA$22,0) -> 0 | AE109: 87 | AG109: =IF(AF109<>0,D$15*AF109/AF$22,0) -> 0 | AI109: 87 | AK109: =IF(AJ109<>0,D$16*AJ109/AJ$22,0) -> 0
B110: 88 | D110: 0 | F110: 88 | H110: =IF(G110<>0,D$9*G110/G$22,0) -> 0 | J110: 88 | L110: =IF(K110<>0,D$10*K110/K$22,0) -> 0 | N110: 88 | P110: =IF(O110<>0,D$11*O110/O$22,0) -> 0 | R110: 88 | T110: =IF(S110<>0,D$12*S110/S$22,0) -> 0 | V110: 88 | X110: =IF(W110<>0,D$13*W110/W$22,0) -> 0 | Z110: 88 | AB110: =IF(AA110<>0,D$14*AA110/AA$22,0) -> 0 | AE110: 88 | AG110: =IF(AF110<>0,D$15*AF110/AF$22,0) -> 0 | AI110: 88 | AK110: =IF(AJ110<>0,D$16*AJ110/AJ$22,0) -> 0
B111: 89 | D111: 0 | F111: 89 | H111: =IF(G111<>0,D$9*G111/G$22,0) -> 0 | J111: 89 | L111: =IF(K111<>0,D$10*K111/K$22,0) -> 0 | N111: 89 | P111: =IF(O111<>0,D$11*O111/O$22,0) -> 0 | R111: 89 | T111: =IF(S111<>0,D$12*S111/S$22,0) -> 0 | V111: 89 | X111: =IF(W111<>0,D$13*W111/W$22,0) -> 0 | Z111: 89 | AB111: =IF(AA111<>0,D$14*AA111/AA$22,0) -> 0 | AE111: 89 | AG111: =IF(AF111<>0,D$15*AF111/AF$22,0) -> 0 | AI111: 89 | AK111: =IF(AJ111<>0,D$16*AJ111/AJ$22,0) -> 0
B112: 90 | D112: 0 | F112: 90 | H112: 0 | J112: 90 | L112: 0 | N112: 90 | P112: 0 | R112: 90 | T112: 0 | V112: 90 | X112: 0 | Z112: 90 | AB112: 0 | AE112: 90 | AG112: 0 | AI112: 90 | AK112: 0
B113: 91 | D113: 0 | F113: 91 | H113: 0 | J113: 91 | L113: 0 | N113: 91 | P113: 0 | R113: 91 | T113: 0 | V113: 91 | X113: 0 | Z113: 91 | AB113: 0 | AE113: 91 | AG113: 0 | AI113: 91 | AK113: 0
B114: 92 | D114: 0 | F114: 92 | H114: 0 | J114: 92 | L114: 0 | N114: 92 | P114: 0 | R114: 92 | T114: 0 | V114: 92 | X114: 0 | Z114: 92 | AB114: 0 | AE114: 92 | AG114: 0 | AI114: 92 | AK114: 0
B115: 93 | D115: 0 | F115: 93 | H115: 0 | J115: 93 | L115: 0 | N115: 93 | P115: 0 | R115: 93 | T115: 0 | V115: 93 | X115: 0 | Z115: 93 | AB115: 0 | AE115: 93 | AG115: 0 | AI115: 93 | AK115: 0
B116: 94 | D116: 0 | F116: 94 | H116: 0 | J116: 94 | L116: 0 | N116: 94 | P116: 0 | R116: 94 | T116: 0 | V116: 94 | X116: 0 | Z116: 94 | AB116: 0 | AE116: 94 | AG116: 0 | AI116: 94 | AK116: 0
B117: 95 | D117: 0 | F117: 95 | H117: 0 | J117: 95 | L117: 0 | N117: 95 | P117: 0 | R117: 95 | T117: 0 | V117: 95 | X117: 0 | Z117: 95 | AB117: 0 | AE117: 95 | AG117: 0 | AI117: 95 | AK117: 0
B118: 96 | D118: 0 | F118: 96 | H118: 0 | J118: 96 | L118: 0 | N118: 96 | P118: 0 | R118: 96 | T118: 0 | V118: 96 | X118: 0 | Z118: 96 | AB118: 0 | AE118: 96 | AG118: 0 | AI118: 96 | AK118: 0
B119: 97 | D119: 0 | F119: 97 | H119: 0 | J119: 97 | L119: 0 | N119: 97 | P119: 0 | R119: 97 | T119: 0 | V119: 97 | X119: 0 | Z119: 97 | AB119: 0 | AE119: 97 | AG119: 0 | AI119: 97 | AK119: 0
B120: 98 | D120: 0 | F120: 98 | H120: 0 | J120: 98 | L120: 0 | N120: 98 | P120: 0 | R120: 98 | T120: 0 | V120: 98 | X120: 0 | Z120: 98 | AB120: 0 | AE120: 98 | AG120: 0 | AI120: 98 | AK120: 0
B121: 99 | D121: 0 | F121: 99 | H121: 0 | J121: 99 | L121: 0 | N121: 99 | P121: 0 | R121: 99 | T121: 0 | V121: 99 | X121: 0 | Z121: 99 | AB121: 0 | AE121: 99 | AG121: 0 | AI121: 99 | AK121: 0
B122: 100 | D122: 0 | F122: 100 | H122: 0 | J122: 100 | L122: 0 | N122: 100 | P122: 0 | R122: 100 | T122: 0 | V122: 100 | X122: 0 | Z122: 100 | AB122: 0 | AE122: 100 | AG122: 0 | AI122: 100 | AK122: 0

Sheet Capital Req't Calc - Old
B5: Capital Requirement Calculation - Old Basis
B7: Risk Margin - Old Basis | D7: =SUM(D14:D113) -> 442548.0828
B9: Cost of Capital | D9: 0.06
C10: Currency
C11: =Summary!D11 -> USD | F11: Future Capital Req't calculation | I11: Risk Component
B12: t | C12: Yield curve | D12: Discounted CoC | E12: Total BSCR | F12: BMA Approved Adjustments | G12: Operational Risk | H12: BSCR (excl adj and OR) | I12: Counterparty Credit Risk | J12: Insurance Risk - Mortality | K12: Insurance Risk - Stop Loss | L12: Insurance Risk - Riders | M12: Insurance Risk - Morbidity and Disability | N12: Insurance Risk - Longevity | O12: Insurance Risk - Variable Annuities | P12: Insurance Risk - Other
B13: 0 | C13: N/A | D13: N/A | E13: =H13+F13+G13 -> 1490997.25 | F13: ='Simplified Capital Proj - Old'!D22 -> 200000 | G13: ='Simplified Capital Proj - Old'!$D$18*H13 -> 37601.86166 | H13: =((J13+K13+L13)^2+M13^2+N13^2+-0.5*((J13+K13+L13)*N13)+O13^2+P13^2+I13^2)^0.5 -> 1253395.389 | I13: ='Simplified Capital Proj - Old'!H22 -> 500000 | J13: ='Simplified Capital Proj - Old'!L22 -> 500000 | K13: ='Simplified Capital Proj - Old'!P22 -> 5000 | L13: ='Simplified Capital Proj - Old'!T22 -> 5000 | M13: ='Simplified Capital Proj - Old'!X22 -> 50000 | N13: ='Simplified Capital Proj - Old'!AB22 -> 400000 | O13: ='Simplified Capital Proj - Old'!AG22 -> 1000000 | P13: ='Simplified Capital Proj - Old'!AK22 -> 20000
B14: 1 | C14: =HLOOKUP($C$11,'Risk-free rates'!$B$9:$J$110,2+B14,FALSE) -> 0.01684894319 | D14: ='Capital Req''t Calc - Old'!$D$9*E13*(1+C14)^(-B14) -> 87977.50699 | E14: 1321790.192 | F14: ='Simplified Capital Proj - Old'!D23 -> 180000 | G14: ='Simplified Capital Proj - Old'!$D$18*H14 -> 33256.02502 | H14: =((J14+K14+L14)^2+M14^2+N14^2+-0.5*((J14+K14+L14)*N14)+O14^2+P14^2+I14^2)^0.5 -> 1108534.167 | I14: ='Simplified Capital Proj - Old'!H23 -> 400000 | J14: ='Simplified Capital Proj - Old'!L23 -> 450000 | K14: ='Simplified Capital Proj - Old'!P23 -> 4000 | L14: ='Simplified Capital Proj - Old'!T23 -> 4000 | M14: ='Simplified Capital Proj - Old'!X23 -> 40000 | N14: ='Simplified Capital Proj - Old'!AB23 -> 360000 | O14: ='Simplified Capital Proj - Old'!AG23 -> 900000 | P14: ='Simplified Capital Proj - Old'!AK23 -> 18000
B15: 2 | C15: =HLOOKUP($C$11,'Risk-free rates'!$B$9:$J$110,2+B15,FALSE) -> 0.01600462569 | D15: ='Capital Req''t Calc - Old'!$D$9*E14*(1+C15)^(-B15) -> 76828.50901 | E15: 1155127.132 | F15: ='Simplified Capital Proj - Old'!D24 -> 160000 | G15: ='Simplified Capital Proj - Old'!$D$18*H15 -> 28984.2854 | H15: 966142.8466 | I15: ='Simplified Capital Proj - Old'!H24 -> 300000 | J15: ='Simplified Capital Proj - Old'!L24 -> 400000 | K15: ='Simplified Capital Proj - Old'!P24 -> 3000 | L15: ='Simplified Capital Proj - Old'!T24 -> 3000 | M15: ='Simplified Capital Proj - Old'!X24 -> 30000 | N15: ='Simplified Capital Proj - Old'!AB24 -> 320000 | O15: ='Simplified Capital Proj - Old'!AG24 -> 800000 | P15: ='Simplified Capital Proj - Old'!AK24 -> 16000
B16: 3 | C16: =HLOOKUP($C$11,'Risk-free rates'!$B$9:$J$110,2+B16,FALSE) -> 0.01592702203 | D16: ='Capital Req''t Calc - Old'!$D$9*E15*(1+C16)^(-B16) -> 66098.78844 | E16: 992322.355 | F16: ='Simplified Capital Proj - Old'!D25 -> 140000 | G16: ='Simplified Capital Proj - Old'!$D$18*H16 -> 24824.92296 | H16: 827497.432 | I16: ='Simplified Capital Proj - Old'!H25 -> 200000 | J16: ='Simplified Capital Proj - Old'!L25 -> 350000 | K16: ='Simplified Capital Proj - Old'!P25 -> 2000 | L16: ='Simplified Capital Proj - Old'!T25 -> 2000 | M16: ='Simplified Capital Proj - Old'!X25 -> 20000 | N16: ='Simplified Capital Proj - Old'!AB25 -> 280000 | O16: ='Simplified Capital Proj - Old'!AG25 -> 700000 | P16: ='Simplified Capital Proj - Old'!AK25 -> 14000
B17: 4 | C17: =HLOOKUP($C$11,'Risk-free rates'!$B$9:$J$110,2+B17,FALSE) -> 0.01608265108 | D17: ='Capital Req''t Calc - Old'!$D$9*E16*(1+C17)^(-B17) -> 55858.32146 | E17: 835689.1834 | F17: ='Simplified Capital Proj - Old'!D26 -> 120000 | G17: ='Simplified Capital Proj - Old'!$D$18*H17 -> 20845.31602 | H17: 694843.8674 | I17: ='Simplified Capital Proj - Old'!H26 -> 100000 | J17: ='Simplified Capital Proj - Old'!L26 -> 300000 | K17: ='Simplified Capital Proj - Old'!P26 -> 1000 | L17: ='Simplified Capital Proj - Old'!T26 -> 1000 | M17: ='Simplified Capital Proj - Old'!X26 -> 10000 | N17: ='Simplified Capital Proj - Old'!AB26 -> 240000 | O17: ='Simplified Capital Proj - Old'!AG26 -> 600000 | P17: ='Simplified Capital Proj - Old'!AK26 -> 12000
B18: 5 | C18: =HLOOKUP($C$11,'Risk-free rates'!$B$9:$J$110,2+B18,FALSE) -> 0.01636053865 | D18: ='Capital Req''t Calc - Old'!$D$9*E17*(1+C18)^(-B18) -> 46233.53042 | E18: 689534.4265 | F18: ='Simplified Capital Proj - Old'!D27 -> 100000 | G18: ='Simplified Capital Proj - Old'!$D$18*H18 -> 17170.90563 | H18: 572363.5209 | I18: ='Simplified Capital Proj - Old'!H27 -> 0 | J18: ='Simplified Capital Proj - Old'!L27 -> 250000 | K18: ='Simplified Capital Proj - Old'!P27 -> 0 | L18: ='Simplified Capital Proj - Old'!T27 -> 0 | M18: ='Simplified Capital Proj - Old'!X27 -> 0 | N18: ='Simplified Capital Proj - Old'!AB27 -> 200000 | O18: ='Simplified Capital Proj - Old'!AG27 -> 500000 | P18: ='Simplified Capital Proj - Old'!AK27 -> 10000
B19: 6 | C19: =HLOOKUP($C$11,'Risk-free rates'!$B$9:$J$110,2+B19,FALSE) -> 0.01669133192 | D19: ='Capital Req''t Calc - Old'!$D$9*E18*(1+C19)^(-B19) -> 37460.40594 | E19: 551627.5412 | F19: ='Simplified Capital Proj - Old'!D28 -> 80000 | G19: ='Simplified Capital Proj - Old'!$D$18*H19 -> 13736.7245 | H19: 457890.8167 | I19: ='Simplified Capital Proj - Old'!H28 -> 0 | J19: ='Simplified Capital Proj - Old'!L28 -> 200000 | K19: ='Simplified Capital Proj - Old'!P28 -> 0 | L19: ='Simplified Capital Proj - Old'!T28 -> 0 | M19: ='Simplified Capital Proj - Old'!X28 -> 0 | N19: ='Simplified Capital Proj - Old'!AB28 -> 160000 | O19: ='Simplified Capital Proj - Old'!AG28 -> 400000 | P19: ='Simplified Capital Proj - Old'!AK28 -> 8000
B20: 7 | C20: =HLOOKUP($C$11,'Risk-free rates'!$B$9:$J$110,2+B20,FALSE) -> 0.01702833084 | D20: ='Capital Req''t Calc - Old'!$D$9*E19*(1+C20)^(-B20) -> 29408.02334 | E20: 413720.6559 | F20: ='Simplified Capital Proj - Old'!D29 -> 60000 | G20: ='Simplified Capital Proj - Old'!$D$18*H20 -> 10302.54338 | H20: 343418.1125 | I20: ='Simplified Capital Proj - Old'!H29 -> 0 | J20: ='Simplified Capital Proj - Old'!L29 -> 150000 | K20: ='Simplified Capital Proj - Old'!P29 -> 0 | L20: ='Simplified Capital Proj - Old'!T29 -> 0 | M20: ='Simplified Capital Proj - Old'!X29 -> 0 | N20: ='Simplified Capital Proj - Old'!AB29 -> 120000 | O20: ='Simplified Capital Proj - Old'!AG29 -> 300000 | P20: ='Simplified Capital Proj - Old'!AK29 -> 6000
B21: 8 | C21: =HLOOKUP($C$11,'Risk-free rates'!$B$9:$J$110,2+B21,FALSE) -> 0.01735579372 | D21: ='Capital Req''t Calc - Old'!$D$9*E20*(1+C21)^(-B21) -> 21630.94801 | E21: 275813.7706 | F21: ='Simplified Capital Proj - Old'!D30 -> 40000 | G21: ='Simplified Capital Proj - Old'!$D$18*H21 -> 6868.36225 | H21: 228945.4083 | I21: ='Simplified Capital Proj - Old'!H30 -> 0 | J21: ='Simplified Capital Proj - Old'!L30 -> 100000 | K21: ='Simplified Capital Proj - Old'!P30 -> 0 | L21: ='Simplified Capital Proj - Old'!T30 -> 0 | M21: ='Simplified Capital Proj - Old'!X30 -> 0 | N21: ='Simplified Capital Proj - Old'!AB30 -> 80000 | O21: ='Simplified Capital Proj - Old'!AG30 -> 200000 | P21: ='Simplified Capital Proj - Old'!AK30 -> 4000
B22: 9 | C22: =HLOOKUP($C$11,'Risk-free rates'!$B$9:$J$110,2+B22,FALSE) -> 0.01769454424 | D22: ='Capital Req''t Calc - Old'!$D$9*E21*(1+C22)^(-B22) -> 14132.21315 | E22: 137906.8853 | F22: ='Simplified Capital Proj - Old'!D31 -> 20000 | G22: ='Simplified Capital Proj - Old'!$D$18*H22 -> 3434.181125 | H22: 114472.7042 | I22: ='Simplified Capital Proj - Old'!H31 -> 0 | J22: ='Simplified Capital Proj - Old'!L31 -> 50000 | K22: ='Simplified Capital Proj - Old'!P31 -> 0 | L22: ='Simplified Capital Proj - Old'!T31 -> 0 | M22: ='Simplified Capital Proj - Old'!X31 -> 0 | N22: ='Simplified Capital Proj - Old'!AB31 -> 40000 | O22: ='Simplified Capital Proj - Old'!AG31 -> 100000 | P22: ='Simplified Capital Proj - Old'!AK31 -> 2000
B23: 10 | C23: =HLOOKUP($C$11,'Risk-free rates'!$B$9:$J$110,2+B23,FALSE) -> 0.01803835286 | D23: ='Capital Req''t Calc - Old'!$D$9*E22*(1+C23)^(-B23) -> 6919.836036 | E23: 0 | F23: ='Simplified Capital Proj - Old'!D32 -> 0 | G23: ='Simplified Capital Proj - Old'!$D$18*H23 -> 0 | H23: 0 | I23: ='Simplified Capital Proj - Old'!H32 -> 0 | J23: ='Simplified Capital Proj - Old'!L32 -> 0 | K23: ='Simplified Capital Proj - Old'!P32 -> 0 | L23: ='Simplified Capital Proj - Old'!T32 -> 0 | M23: ='Simplified Capital Proj - Old'!X32 -> 0 | N23: ='Simplified Capital Proj - Old'!AB32 -> 0 | O23: ='Simplified Capital Proj - Old'!AG32 -> 0 | P23: ='Simplified Capital Proj - Old'!AK32 -> 0
B24: 11 | C24: =HLOOKUP($C$11,'Risk-free rates'!$B$9:$J$110,2+B24,FALSE) -> 0.0183561285 | D24: ='Capital Req''t Calc - Old'!$D$9*E23*(1+C24)^(-B24) -> 0 | E24: 0 | F24: ='Simplified Capital Proj - Old'!D33 -> 0 | G24: ='Simplified Capital Proj - Old'!$D$18*H24 -> 0 | H24: 0 | I24: ='Simplified Capital Proj - Old'!H33 -> 0 | J24: ='Simplified Capital Proj - Old'!L33 -> 0 | K24: ='Simplified Capital Proj - Old'!P33 -> 0 | L24: ='Simplified Capital Proj - Old'!T33 -> 0 | M24: ='Simplified Capital Proj - Old'!X33 -> 0 | N24: ='Simplified Capital Proj - Old'!AB33 -> 0 | O24: ='Simplified Capital Proj - Old'!AG33 -> 0 | P24: ='Simplified Capital Proj - Old'!AK33 -> 0
B25: 12 | C25: =HLOOKUP($C$11,'Risk-free rates'!$B$9:$J$110,2+B25,FALSE) -> 0.01861797367 | D25: ='Capital Req''t Calc - Old'!$D$9*E24*(1+C25)^(-B25) -> 0 | E25: 0 | F25: ='Simplified Capital Proj - Old'!D34 -> 0 | G25: ='Simplified Capital Proj - Old'!$D$18*H25 -> 0 | H25: 0 | I25: ='Simplified Capital Proj - Old'!H34 -> 0 | J25: ='Simplified Capital Proj - Old'!L34 -> 0 | K25: ='Simplified Capital Proj - Old'!P34 -> 0 | L25: ='Simplified Capital Proj - Old'!T34 -> 0 | M25: ='Simplified Capital Proj - Old'!X34 -> 0 | N25: ='Simplified Capital Proj - Old'!AB34 -> 0 | O25: ='Simplified Capital Proj - Old'!AG34 -> 0 | P25: ='Simplified Capital Proj - Old'!AK34 -> 0
B26: 13 | C26: =HLOOKUP($C$11,'Risk-free rates'!$B$9:$J$110,2+B26,FALSE) -> 0.01886533683 | D26: ='Capital Req''t Calc - Old'!$D$9*E25*(1+C26)^(-B26) -> 0 | E26: 0 | F26: ='Simplified Capital Proj - Old'!D35 -> 0 | G26: ='Simplified Capital Proj - Old'!$D$18*H26 -> 0 | H26: 0 | I26: ='Simplified Capital Proj - Old'!H35 -> 0 | J26: ='Simplified Capital Proj - Old'!L35 -> 0 | K26: ='Simplified Capital Proj - Old'!P35 -> 0 | L26: ='Simplified Capital Proj - Old'!T35 -> 0 | M26: ='Simplified Capital Proj - Old'!X35 -> 0 | N26: ='Simplified Capital Proj - Old'!AB35 -> 0 | O26: ='Simplified Capital Proj - Old'!AG35 -> 0 | P26: ='Simplified Capital Proj - Old'!AK35 -> 0
B27: 14 | C27: =HLOOKUP($C$11,'Risk-free rates'!$B$9:$J$110,2+B27,FALSE) -> 0.019083972 | D27: ='Capital Req''t Calc - Old'!$D$9*E26*(1+C27)^(-B27) -> 0 | E27: 0 | F27: ='Simplified Capital Proj - Old'!D36 -> 0 | G27: ='Simplified Capital Proj - Old'!$D$18*H27 -> 0 | H27: 0 | I27: ='Simplified Capital Proj - Old'!H36 -> 0 | J27: ='Simplified Capital Proj - Old'!L36 -> 0 | K27: ='Simplified Capital Proj - Old'!P36 -> 0 | L27: ='Simplified Capital Proj - Old'!T36 -> 0 | M27: ='Simplified Capital Proj - Old'!X36 -> 0 | N27: ='Simplified Capital Proj - Old'!AB36 -> 0 | O27: ='Simplified Capital Proj - Old'!AG36 -> 0 | P27: ='Simplified Capital Proj - Old'!AK36 -> 0
B28: 15 | C28: =HLOOKUP($C$11,'Risk-free rates'!$B$9:$J$110,2+B28,FALSE) -> 0.01923089545 | D28: ='Capital Req''t Calc - Old'!$D$9*E27*(1+C28)^(-B28) -> 0 | E28: 0 | F28: ='Simplified Capital Proj - Old'!D37 -> 0 | G28: ='Simplified Capital Proj - Old'!$D$18*H28 -> 0 | H28: 0 | I28: ='Simplified Capital Proj - Old'!H37 -> 0 | J28: ='Simplified Capital Proj - Old'!L37 -> 0 | K28: ='Simplified Capital Proj - Old'!P37 -> 0 | L28: ='Simplified Capital Proj - Old'!T37 -> 0 | M28: ='Simplified Capital Proj - Old'!X37 -> 0 | N28: ='Simplified Capital Proj - Old'!AB37 -> 0 | O28: ='Simplified Capital Proj - Old'!AG37 -> 0 | P28: ='Simplified Capital Proj - Old'!AK37 -> 0
B29: 16 | C29: =HLOOKUP($C$11,'Risk-free rates'!$B$9:$J$110,2+B29,FALSE) -> 0.01943352016 | D29: ='Capital Req''t Calc - Old'!$D$9*E28*(1+C29)^(-B29) -> 0 | E29: 0 | F29: ='Simplified Capital Proj - Old'!D38 -> 0 | G29: ='Simplified Capital Proj - Old'!$D$18*H29 -> 0 | H29: 0 | I29: ='Simplified Capital Proj - Old'!H38 -> 0 | J29: ='Simplified Capital Proj - Old'!L38 -> 0 | K29: ='Simplified Capital Proj - Old'!P38 -> 0 | L29: ='Simplified Capital Proj - Old'!T38 -> 0 | M29: ='Simplified Capital Proj - Old'!X38 -> 0 | N29: ='Simplified Capital Proj - Old'!AB38 -> 0 | O29: ='Simplified Capital Proj - Old'!AG38 -> 0 | P29: ='Simplified Capital Proj - Old'!AK38 -> 0
B30: 17 | C30: =HLOOKUP($C$11,'Risk-free rates'!$B$9:$J$110,2+B30,FALSE) -> 0.01957444155 | D30: ='Capital Req''t Calc - Old'!$D$9*E29*(1+C30)^(-B30) -> 0 | E30: 0 | F30: ='Simplified Capital Proj - Old'!D39 -> 0 | G30: ='Simplified Capital Proj - Old'!$D$18*H30 -> 0 | H30: 0 | I30: ='Simplified Capital Proj - Old'!H39 -> 0 | J30: ='Simplified Capital Proj - Old'!L39 -> 0 | K30: ='Simplified Capital Proj - Old'!P39 -> 0 | L30: ='Simplified Capital Proj - Old'!T39 -> 0 | M30: ='Simplified Capital Proj - Old'!X39 -> 0 | N30: ='Simplified Capital Proj - Old'!AB39 -> 0 | O30: ='Simplified Capital Proj - Old'!AG39 -> 0 | P30: ='Simplified Capital Proj - Old'!AK39 -> 0
B31: 18 | C31: =HLOOKUP($C$11,'Risk-free rates'!$B$9:$J$110,2+B31,FALSE) -> 0.01972096985 | D31: ='Capital Req''t Calc - Old'!$D$9*E30*(1+C31)^(-B31) -> 0 | E31: 0 | F31: ='Simplified Capital Proj - Old'!D40 -> 0 | G31: ='Simplified Capital Proj - Old'!$D$18*H31 -> 0 | H31: 0 | I31: ='Simplified Capital Proj - Old'!H40 -> 0 | J31: ='Simplified Capital Proj - Old'!L40 -> 0 | K31: ='Simplified Capital Proj - Old'!P40 -> 0 | L31: ='Simplified Capital Proj - Old'!T40 -> 0 | M31: ='Simplified Capital Proj - Old'!X40 -> 0 | N31: ='Simplified Capital Proj - Old'!AB40 -> 0 | O31: ='Simplified Capital Proj - Old'!AG40 -> 0 | P31: ='Simplified Capital Proj - Old'!AK40 -> 0
B32: 19 | C32: =HLOOKUP($C$11,'Risk-free rates'!$B$9:$J$110,2+B32,FALSE) -> 0.0198322475 | D32: ='Capital Req''t Calc - Old'!$D$9*E31*(1+C32)^(-B32) -> 0 | E32: 0 | F32: ='Simplified Capital Proj - Old'!D41 -> 0 | G32: ='Simplified Capital Proj - Old'!$D$18*H32 -> 0 | H32: 0 | I32: ='Simplified Capital Proj - Old'!H41 -> 0 | J32: ='Simplified Capital Proj - Old'!L41 -> 0 | K32: ='Simplified Capital Proj - Old'!P41 -> 0 | L32: ='Simplified Capital Proj - Old'!T41 -> 0 | M32: ='Simplified Capital Proj - Old'!X41 -> 0 | N32: ='Simplified Capital Proj - Old'!AB41 -> 0 | O32: ='Simplified Capital Proj - Old'!AG41 -> 0 | P32: ='Simplified Capital Proj - Old'!AK41 -> 0
B33: 20 | C33: =HLOOKUP($C$11,'Risk-free rates'!$B$9:$J$110,2+B33,FALSE) -> 0.01991133845 | D33: ='Capital Req''t Calc - Old'!$D$9*E32*(1+C33)^(-B33) -> 0 | E33: 0 | F33: ='Simplified Capital Proj - Old'!D42 -> 0 | G33: ='Simplified Capital Proj - Old'!$D$18*H33 -> 0 | H33: 0 | I33: ='Simplified Capital Proj - Old'!H42 -> 0 | J33: ='Simplified Capital Proj - Old'!L42 -> 0 | K33: ='Simplified Capital Proj - Old'!P42 -> 0 | L33: ='Simplified Capital Proj - Old'!T42 -> 0 | M33: ='Simplified Capital Proj - Old'!X42 -> 0 | N33: ='Simplified Capital Proj - Old'!AB42 -> 0 | O33: ='Simplified Capital Proj - Old'!AG42 -> 0 | P33: ='Simplified Capital Proj - Old'!AK42 -> 0
B34: 21 | C34: =HLOOKUP($C$11,'Risk-free rates'!$B$9:$J$110,2+B34,FALSE) -> 0.01996204977 | D34: ='Capital Req''t Calc - Old'!$D$9*E33*(1+C34)^(-B34) -> 0 | E34: 0 | F34: ='Simplified Capital Proj - Old'!D43 -> 0 | G34: ='Simplified Capital Proj - Old'!$D$18*H34 -> 0 | H34: 0 | I34: ='Simplified Capital Proj - Old'!H43 -> 0 | J34: ='Simplified Capital Proj - Old'!L43 -> 0 | K34: ='Simplified Capital Proj - Old'!P43 -> 0 | L34: ='Simplified Capital Proj - Old'!T43 -> 0 | M34: ='Simplified Capital Proj - Old'!X43 -> 0 | N34: ='Simplified Capital Proj - Old'!AB43 -> 0 | O34: ='Simplified Capital Proj - Old'!AG43 -> 0 | P34: ='Simplified Capital Proj - Old'!AK43 -> 0
B35: 22 | C35: =HLOOKUP($C$11,'Risk-free rates'!$B$9:$J$110,2+B35,FALSE) -> 0.02000696399 | D35: ='Capital Req''t Calc - Old'!$D$9*E34*(1+C35)^(-B35) -> 0 | E35: 0 | F35: ='Simplified Capital Proj - Old'!D44 -> 0 | G35: ='Simplified Capital Proj - Old'!$D$18*H35 -> 0 | H35: 0 | I35: ='Simplified Capital Proj - Old'!H44 -> 0 | J35: ='Simplified Capital Proj - Old'!L44 -> 0 | K35: ='Simplified Capital Proj - Old'!P44 -> 0 | L35: ='Simplified Capital Proj - Old'!T44 -> 0 | M35: ='Simplified Capital Proj - Old'!X44 -> 0 | N35: ='Simplified Capital Proj - Old'!AB44 -> 0 | O35: ='Simplified Capital Proj - Old'!AG44 -> 0 | P35: ='Simplified Capital Proj - Old'!AK44 -> 0
B36: 23 | C36: =HLOOKUP($C$11,'Risk-free rates'!$B$9:$J$110,2+B36,FALSE) -> 0.02004636892 | D36: ='Capital Req''t Calc - Old'!$D$9*E35*(1+C36)^(-B36) -> 0 | E36: 0 | F36: ='Simplified Capital Proj - Old'!D45 -> 0 | G36: ='Simplified Capital Proj - Old'!$D$18*H36 -> 0 | H36: 0 | I36: ='Simplified Capital Proj - Old'!H45 -> 0 | J36: ='Simplified Capital Proj - Old'!L45 -> 0 | K36: ='Simplified Capital Proj - Old'!P45 -> 0 | L36: ='Simplified Capital Proj - Old'!T45 -> 0 | M36: ='Simplified Capital Proj - Old'!X45 -> 0 | N36: ='Simplified Capital Proj - Old'!AB45 -> 0 | O36: ='Simplified Capital Proj - Old'!AG45 -> 0 | P36: ='Simplified Capital Proj - Old'!AK45 -> 0
B37: 24 | C37: =HLOOKUP($C$11,'Risk-free rates'!$B$9:$J$110,2+B37,FALSE) -> 0.02008051041 | D37: ='Capital Req''t Calc - Old'!$D$9*E36*(1+C37)^(-B37) -> 0 | E37: 0 | F37: ='Simplified Capital Proj - Old'!D46 -> 0 | G37: ='Simplified Capital Proj - Old'!$D$18*H37 -> 0 | H37: 0 | I37: ='Simplified Capital Proj - Old'!H46 -> 0 | J37: ='Simplified Capital Proj - Old'!L46 -> 0 | K37: ='Simplified Capital Proj - Old'!P46 -> 0 | L37: ='Simplified Capital Proj - Old'!T46 -> 0 | M37: ='Simplified Capital Proj - Old'!X46 -> 0 | N37: ='Simplified Capital Proj - Old'!AB46 -> 0 | O37: ='Simplified Capital Proj - Old'!AG46 -> 0 | P37: ='Simplified Capital Proj - Old'!AK46 -> 0
B38: 25 | C38: =HLOOKUP($C$11,'Risk-free rates'!$B$9:$J$110,2+B38,FALSE) -> 0.02010959838 | D38: ='Capital Req''t Calc - Old'!$D$9*E37*(1+C38)^(-B38) -> 0 | E38: 0 | F38: ='Simplified Capital Proj - Old'!D47 -> 0 | G38: ='Simplified Capital Proj - Old'!$D$18*H38 -> 0 | H38: 0 | I38: ='Simplified Capital Proj - Old'!H47 -> 0 | J38: ='Simplified Capital Proj - Old'!L47 -> 0 | K38: ='Simplified Capital Proj - Old'!P47 -> 0 | L38: ='Simplified Capital Proj - Old'!T47 -> 0 | M38: ='Simplified Capital Proj - Old'!X47 -> 0 | N38: ='Simplified Capital Proj - Old'!AB47 -> 0 | O38: ='Simplified Capital Proj - Old'!AG47 -> 0 | P38: ='Simplified Capital Proj - Old'!AK47 -> 0
B39: 26 | C39: =HLOOKUP($C$11,'Risk-free rates'!$B$9:$J$110,2+B39,FALSE) -> 0.02012357486 | D39: ='Capital Req''t Calc - Old'!$D$9*E38*(1+C39)^(-B39) -> 0 | E39: 0 | F39: ='Simplified Capital Proj - Old'!D48 -> 0 | G39: ='Simplified Capital Proj - Old'!$D$18*H39 -> 0 | H39: 0 | I39: ='Simplified Capital Proj - Old'!H48 -> 0 | J39: ='Simplified Capital Proj - Old'!L48 -> 0 | K39: ='Simplified Capital Proj - Old'!P48 -> 0 | L39: ='Simplified Capital Proj - Old'!T48 -> 0 | M39: ='Simplified Capital Proj - Old'!X48 -> 0 | N39: ='Simplified Capital Proj - Old'!AB48 -> 0 | O39: ='Simplified Capital Proj - Old'!AG48 -> 0 | P39: ='Simplified Capital Proj - Old'!AK48 -> 0
B40: 27 | C40: =HLOOKUP($C$11,'Risk-free rates'!$B$9:$J$110,2+B40,FALSE) -> 0.02013283039 | D40: ='Capital Req''t Calc - Old'!$D$9*E39*(1+C40)^(-B40) -> 0 | E40: 0 | F40: ='Simplified Capital Proj - Old'!D49 -> 0 | G40: ='Simplified Capital Proj - Old'!$D$18*H40 -> 0 | H40: 0 | I40: ='Simplified Capital Proj - Old'!H49 -> 0 | J40: ='Simplified Capital Proj - Old'!L49 -> 0 | K40: ='Simplified Capital Proj - Old'!P49 -> 0 | L40: ='Simplified Capital Proj - Old'!T49 -> 0 | M40: ='Simplified Capital Proj - Old'!X49 -> 0 | N40: ='Simplified Capital Proj - Old'!AB49 -> 0 | O40: ='Simplified Capital Proj - Old'!AG49 -> 0 | P40: ='Simplified Capital Proj - Old'!AK49 -> 0
B41: 28 | C41: =HLOOKUP($C$11,'Risk-free rates'!$B$9:$J$110,2+B41,FALSE) -> 0.0201374953 | D41: ='Capital Req''t Calc - Old'!$D$9*E40*(1+C41)^(-B41) -> 0 | E41: 0 | F41: ='Simplified Capital Proj - Old'!D50 -> 0 | G41: ='Simplified Capital Proj - Old'!$D$18*H41 -> 0 | H41: 0 | I41: ='Simplified Capital Proj - Old'!H50 -> 0 | J41: ='Simplified Capital Proj - Old'!L50 -> 0 | K41: ='Simplified Capital Proj - Old'!P50 -> 0 | L41: ='Simplified Capital Proj - Old'!T50 -> 0 | M41: ='Simplified Capital Proj - Old'!X50 -> 0 | N41: ='Simplified Capital Proj - Old'!AB50 -> 0 | O41: ='Simplified Capital Proj - Old'!AG50 -> 0 | P41: ='Simplified Capital Proj - Old'!AK50 -> 0
B42: 29 | C42: =HLOOKUP($C$11,'Risk-free rates'!$B$9:$J$110,2+B42,FALSE) -> 0.02013768128 | D42: ='Capital Req''t Calc - Old'!$D$9*E41*(1+C42)^(-B42) -> 0 | E42: 0 | F42: ='Simplified Capital Proj - Old'!D51 -> 0 | G42: ='Simplified Capital Proj - Old'!$D$18*H42 -> 0 | H42: 0 | I42: ='Simplified Capital Proj - Old'!H51 -> 0 | J42: ='Simplified Capital Proj - Old'!L51 -> 0 | K42: ='Simplified Capital Proj - Old'!P51 -> 0 | L42: ='Simplified Capital Proj - Old'!T51 -> 0 | M42: ='Simplified Capital Proj - Old'!X51 -> 0 | N42: ='Simplified Capital Proj - Old'!AB51 -> 0 | O42: ='Simplified Capital Proj - Old'!AG51 -> 0 | P42: ='Simplified Capital Proj - Old'!AK51 -> 0
B43: 30 | C43: =HLOOKUP($C$11,'Risk-free rates'!$B$9:$J$110,2+B43,FALSE) -> 0.02013348579 | D43: ='Capital Req''t Calc - Old'!$D$9*E42*(1+C43)^(-B43) -> 0 | E43: 0 | F43: ='Simplified Capital Proj - Old'!D52 -> 0 | G43: ='Simplified Capital Proj - Old'!$D$18*H43 -> 0 | H43: 0 | I43: ='Simplified Capital Proj - Old'!H52 -> 0 | J43: ='Simplified Capital Proj - Old'!L52 -> 0 | K43: ='Simplified Capital Proj - Old'!P52 -> 0 | L43: ='Simplified Capital Proj - Old'!T52 -> 0 | M43: ='Simplified Capital Proj - Old'!X52 -> 0 | N43: ='Simplified Capital Proj - Old'!AB52 -> 0 | O43: ='Simplified Capital Proj - Old'!AG52 -> 0 | P43: ='Simplified Capital Proj - Old'!AK52 -> 0
B44: 31 | C44: =HLOOKUP($C$11,'Risk-free rates'!$B$9:$J$110,2+B44,FALSE) -> 0.02016882814 | D44: ='Capital Req''t Calc - Old'!$D$9*E43*(1+C44)^(-B44) -> 0 | E44: 0 | F44: ='Simplified Capital Proj - Old'!D53 -> 0 | G44: ='Simplified Capital Proj - Old'!$D$18*H44 -> 0 | H44: 0 | I44: ='Simplified Capital Proj - Old'!H53 -> 0 | J44: ='Simplified Capital Proj - Old'!L53 -> 0 | K44: ='Simplified Capital Proj - Old'!P53 -> 0 | L44: ='Simplified Capital Proj - Old'!T53 -> 0 | M44: ='Simplified Capital Proj - Old'!X53 -> 0 | N44: ='Simplified Capital Proj - Old'!AB53 -> 0 | O44: ='Simplified Capital Proj - Old'!AG53 -> 0 | P44: ='Simplified Capital Proj - Old'!AK53 -> 0
B45: 32 | C45: =HLOOKUP($C$11,'Risk-free rates'!$B$9:$J$110,2+B45,FALSE) -> 0.02025355063 | D45: ='Capital Req''t Calc - Old'!$D$9*E44*(1+C45)^(-B45) -> 0 | E45: 0 | F45: ='Simplified Capital Proj - Old'!D54 -> 0 | G45: ='Simplified Capital Proj - Old'!$D$18*H45 -> 0 | H45: 0 | I45: ='Simplified Capital Proj - Old'!H54 -> 0 | J45: ='Simplified Capital Proj - Old'!L54 -> 0 | K45: ='Simplified Capital Proj - Old'!P54 -> 0 | L45: ='Simplified Capital Proj - Old'!T54 -> 0 | M45: ='Simplified Capital Proj - Old'!X54 -> 0 | N45: ='Simplified Capital Proj - Old'!AB54 -> 0 | O45: ='Simplified Capital Proj - Old'!AG54 -> 0 | P45: ='Simplified Capital Proj - Old'!AK54 -> 0
B46: 33 | C46: =HLOOKUP($C$11,'Risk-free rates'!$B$9:$J$110,2+B46,FALSE) -> 0.02038462088 | D46: ='Capital Req''t Calc - Old'!$D$9*E45*(1+C46)^(-B46) -> 0 | E46: 0 | F46: ='Simplified Capital Proj - Old'!D55 -> 0 | G46: ='Simplified Capital Proj - Old'!$D$18*H46 -> 0 | H46: 0 | I46: ='Simplified Capital Proj - Old'!H55 -> 0 | J46: ='Simplified Capital Proj - Old'!L55 -> 0 | K46: ='Simplified Capital Proj - Old'!P55 -> 0 | L46: ='Simplified Capital Proj - Old'!T55 -> 0 | M46: ='Simplified Capital Proj - Old'!X55 -> 0 | N46: ='Simplified Capital Proj - Old'!AB55 -> 0 | O46: ='Simplified Capital Proj - Old'!AG55 -> 0 | P46: ='Simplified Capital Proj - Old'!AK55 -> 0
B47: 34 | C47: =HLOOKUP($C$11,'Risk-free rates'!$B$9:$J$110,2+B47,FALSE) -> 0.0205589873 | D47: ='Capital Req''t Calc - Old'!$D$9*E46*(1+C47)^(-B47) -> 0 | E47: 0 | F47: ='Simplified Capital Proj - Old'!D56 -> 0 | G47: ='Simplified Capital Proj - Old'!$D$18*H47 -> 0 | H47: 0 | I47: ='Simplified Capital Proj - Old'!H56 -> 0 | J47: ='Simplified Capital Proj - Old'!L56 -> 0 | K47: ='Simplified Capital Proj - Old'!P56 -> 0 | L47: ='Simplified Capital Proj - Old'!T56 -> 0 | M47: ='Simplified Capital Proj - Old'!X56 -> 0 | N47: ='Simplified Capital Proj - Old'!AB56 -> 0 | O47: ='Simplified Capital Proj - Old'!AG56 -> 0 | P47: ='Simplified Capital Proj - Old'!AK56 -> 0
B48: 35 | C48: =HLOOKUP($C$11,'Risk-free rates'!$B$9:$J$110,2+B48,FALSE) -> 0.02077357815 | D48: ='Capital Req''t Calc - Old'!$D$9*E47*(1+C48)^(-B48) -> 0 | E48: 0 | F48: ='Simplified Capital Proj - Old'!D57 -> 0 | G48: ='Simplified Capital Proj - Old'!$D$18*H48 -> 0 | H48: 0 | I48: ='Simplified Capital Proj - Old'!H57 -> 0 | J48: ='Simplified Capital Proj - Old'!L57 -> 0 | K48: ='Simplified Capital Proj - Old'!P57 -> 0 | L48: ='Simplified Capital Proj - Old'!T57 -> 0 | M48: ='Simplified Capital Proj - Old'!X57 -> 0 | N48: ='Simplified Capital Proj - Old'!AB57 -> 0 | O48: ='Simplified Capital Proj - Old'!AG57 -> 0 | P48: ='Simplified Capital Proj - Old'!AK57 -> 0
B49: 36 | C49: =HLOOKUP($C$11,'Risk-free rates'!$B$9:$J$110,2+B49,FALSE) -> 0.02102530737 | D49: ='Capital Req''t Calc - Old'!$D$9*E48*(1+C49)^(-B49) -> 0 | E49: 0 | F49: ='Simplified Capital Proj - Old'!D58 -> 0 | G49: ='Simplified Capital Proj - Old'!$D$18*H49 -> 0 | H49: 0 | I49: ='Simplified Capital Proj - Old'!H58 -> 0 | J49: ='Simplified Capital Proj - Old'!L58 -> 0 | K49: ='Simplified Capital Proj - Old'!P58 -> 0 | L49: ='Simplified Capital Proj - Old'!T58 -> 0 | M49: ='Simplified Capital Proj - Old'!X58 -> 0 | N49: ='Simplified Capital Proj - Old'!AB58 -> 0 | O49: ='Simplified Capital Proj - Old'!AG58 -> 0 | P49: ='Simplified Capital Proj - Old'!AK58 -> 0
B50: 37 | C50: =HLOOKUP($C$11,'Risk-free rates'!$B$9:$J$110,2+B50,FALSE) -> 0.02131107416 | D50: ='Capital Req''t Calc - Old'!$D$9*E49*(1+C50)^(-B50) -> 0 | E50: 0 | F50: ='Simplified Capital Proj - Old'!D59 -> 0 | G50: ='Simplified Capital Proj - Old'!$D$18*H50 -> 0 | H50: 0 | I50: ='Simplified Capital Proj - Old'!H59 -> 0 | J50: ='Simplified Capital Proj - Old'!L59 -> 0 | K50: ='Simplified Capital Proj - Old'!P59 -> 0 | L50: ='Simplified Capital Proj - Old'!T59 -> 0 | M50: ='Simplified Capital Proj - Old'!X59 -> 0 | N50: ='Simplified Capital Proj - Old'!AB59 -> 0 | O50: ='Simplified Capital Proj - Old'!AG59 -> 0 | P50: ='Simplified Capital Proj - Old'!AK59 -> 0
B51: 38 | C51: =HLOOKUP($C$11,'Risk-free rates'!$B$9:$J$110,2+B51,FALSE) -> 0.02162776833 | D51: ='Capital Req''t Calc - Old'!$D$9*E50*(1+C51)^(-B51) -> 0 | E51: 0 | F51: ='Simplified Capital Proj - Old'!D60 -> 0 | G51: ='Simplified Capital Proj - Old'!$D$18*H51 -> 0 | H51: 0 | I51: ='Simplified Capital Proj - Old'!H60 -> 0 | J51: ='Simplified Capital Proj - Old'!L60 -> 0 | K51: ='Simplified Capital Proj - Old'!P60 -> 0 | L51: ='Simplified Capital Proj - Old'!T60 -> 0 | M51: ='Simplified Capital Proj - Old'!X60 -> 0 | N51: ='Simplified Capital Proj - Old'!AB60 -> 0 | O51: ='Simplified Capital Proj - Old'!AG60 -> 0 | P51: ='Simplified Capital Proj - Old'!AK60 -> 0
B52: 39 | C52: =HLOOKUP($C$11,'Risk-free rates'!$B$9:$J$110,2+B52,FALSE) -> 0.0219722707 | D52: ='Capital Req''t Calc - Old'!$D$9*E51*(1+C52)^(-B52) -> 0 | E52: 0 | F52: ='Simplified Capital Proj - Old'!D61 -> 0 | G52: ='Simplified Capital Proj - Old'!$D$18*H52 -> 0 | H52: 0 | I52: ='Simplified Capital Proj - Old'!H61 -> 0 | J52: ='Simplified Capital Proj - Old'!L61 -> 0 | K52: ='Simplified Capital Proj - Old'!P61 -> 0 | L52: ='Simplified Capital Proj - Old'!T61 -> 0 | M52: ='Simplified Capital Proj - Old'!X61 -> 0 | N52: ='Simplified Capital Proj - Old'!AB61 -> 0 | O52: ='Simplified Capital Proj - Old'!AG61 -> 0 | P52: ='Simplified Capital Proj - Old'!AK61 -> 0
B53: 40 | C53: =HLOOKUP($C$11,'Risk-free rates'!$B$9:$J$110,2+B53,FALSE) -> 0.02234145354 | D53: ='Capital Req''t Calc - Old'!$D$9*E52*(1+C53)^(-B53) -> 0 | E53: 0 | F53: ='Simplified Capital Proj - Old'!D62 -> 0 | G53: ='Simplified Capital Proj - Old'!$D$18*H53 -> 0 | H53: 0 | I53: ='Simplified Capital Proj - Old'!H62 -> 0 | J53: ='Simplified Capital Proj - Old'!L62 -> 0 | K53: ='Simplified Capital Proj - Old'!P62 -> 0 | L53: ='Simplified Capital Proj - Old'!T62 -> 0 | M53: ='Simplified Capital Proj - Old'!X62 -> 0 | N53: ='Simplified Capital Proj - Old'!AB62 -> 0 | O53: ='Simplified Capital Proj - Old'!AG62 -> 0 | P53: ='Simplified Capital Proj - Old'!AK62 -> 0
B54: 41 | C54: =HLOOKUP($C$11,'Risk-free rates'!$B$9:$J$110,2+B54,FALSE) -> 0.0227321838 | D54: ='Capital Req''t Calc - Old'!$D$9*E53*(1+C54)^(-B54) -> 0 | E54: 0 | F54: ='Simplified Capital Proj - Old'!D63 -> 0 | G54: ='Simplified Capital Proj - Old'!$D$18*H54 -> 0 | H54: 0 | I54: ='Simplified Capital Proj - Old'!H63 -> 0 | J54: ='Simplified Capital Proj - Old'!L63 -> 0 | K54: ='Simplified Capital Proj - Old'!P63 -> 0 | L54: ='Simplified Capital Proj - Old'!T63 -> 0 | M54: ='Simplified Capital Proj - Old'!X63 -> 0 | N54: ='Simplified Capital Proj - Old'!AB63 -> 0 | O54: ='Simplified Capital Proj - Old'!AG63 -> 0 | P54: ='Simplified Capital Proj - Old'!AK63 -> 0
B55: 42 | C55: =HLOOKUP($C$11,'Risk-free rates'!$B$9:$J$110,2+B55,FALSE) -> 0.02314132278 | D55: ='Capital Req''t Calc - Old'!$D$9*E54*(1+C55)^(-B55) -> 0 | E55: 0 | F55: ='Simplified Capital Proj - Old'!D64 -> 0 | G55: ='Simplified Capital Proj - Old'!$D$18*H55 -> 0 | H55: 0 | I55: ='Simplified Capital Proj - Old'!H64 -> 0 | J55: ='Simplified Capital Proj - Old'!L64 -> 0 | K55: ='Simplified Capital Proj - Old'!P64 -> 0 | L55: ='Simplified Capital Proj - Old'!T64 -> 0 | M55: ='Simplified Capital Proj - Old'!X64 -> 0 | N55: ='Simplified Capital Proj - Old'!AB64 -> 0 | O55: ='Simplified Capital Proj - Old'!AG64 -> 0 | P55: ='Simplified Capital Proj - Old'!AK64 -> 0
B56: 43 | C56: =HLOOKUP($C$11,'Risk-free rates'!$B$9:$J$110,2+B56,FALSE) -> 0.02356572806 | D56: ='Capital Req''t Calc - Old'!$D$9*E55*(1+C56)^(-B56) -> 0 | E56: 0 | F56: ='Simplified Capital Proj - Old'!D65 -> 0 | G56: ='Simplified Capital Proj - Old'!$D$18*H56 -> 0 | H56: 0 | I56: ='Simplified Capital Proj - Old'!H65 -> 0 | J56: ='Simplified Capital Proj - Old'!L65 -> 0 | K56: ='Simplified Capital Proj - Old'!P65 -> 0 | L56: ='Simplified Capital Proj - Old'!T65 -> 0 | M56: ='Simplified Capital Proj - Old'!X65 -> 0 | N56: ='Simplified Capital Proj - Old'!AB65 -> 0 | O56: ='Simplified Capital Proj - Old'!AG65 -> 0 | P56: ='Simplified Capital Proj - Old'!AK65 -> 0
B57: 44 | C57: =HLOOKUP($C$11,'Risk-free rates'!$B$9:$J$110,2+B57,FALSE) -> 0.02400225293 | D57: ='Capital Req''t Calc - Old'!$D$9*E56*(1+C57)^(-B57) -> 0 | E57: 0 | F57: ='Simplified Capital Proj - Old'!D66 -> 0 | G57: ='Simplified Capital Proj - Old'!$D$18*H57 -> 0 | H57: 0 | I57: ='Simplified Capital Proj - Old'!H66 -> 0 | J57: ='Simplified Capital Proj - Old'!L66 -> 0 | K57: ='Simplified Capital Proj - Old'!P66 -> 0 | L57: ='Simplified Capital Proj - Old'!T66 -> 0 | M57: ='Simplified Capital Proj - Old'!X66 -> 0 | N57: ='Simplified Capital Proj - Old'!AB66 -> 0 | O57: ='Simplified Capital Proj - Old'!AG66 -> 0 | P57: ='Simplified Capital Proj - Old'!AK66 -> 0
B58: 45 | C58: =HLOOKUP($C$11,'Risk-free rates'!$B$9:$J$110,2+B58,FALSE) -> 0.02444774882 | D58: ='Capital Req''t Calc - Old'!$D$9*E57*(1+C58)^(-B58) -> 0 | E58: 0 | F58: ='Simplified Capital Proj - Old'!D67 -> 0 | G58: ='Simplified Capital Proj - Old'!$D$18*H58 -> 0 | H58: 0 | I58: ='Simplified Capital Proj - Old'!H67 -> 0 | J58: ='Simplified Capital Proj - Old'!L67 -> 0 | K58: ='Simplified Capital Proj - Old'!P67 -> 0 | L58: ='Simplified Capital Proj - Old'!T67 -> 0 | M58: ='Simplified Capital Proj - Old'!X67 -> 0 | N58: ='Simplified Capital Proj - Old'!AB67 -> 0 | O58: ='Simplified Capital Proj - Old'!AG67 -> 0 | P58: ='Simplified Capital Proj - Old'!AK67 -> 0
B59: 46 | C59: =HLOOKUP($C$11,'Risk-free rates'!$B$9:$J$110,2+B59,FALSE) -> 0.02489906386 | D59: ='Capital Req''t Calc - Old'!$D$9*E58*(1+C59)^(-B59) -> 0 | E59: 0 | F59: ='Simplified Capital Proj - Old'!D68 -> 0 | G59: ='Simplified Capital Proj - Old'!$D$18*H59 -> 0 | H59: 0 | I59: ='Simplified Capital Proj - Old'!H68 -> 0 | J59: ='Simplified Capital Proj - Old'!L68 -> 0 | K59: ='Simplified Capital Proj - Old'!P68 -> 0 | L59: ='Simplified Capital Proj - Old'!T68 -> 0 | M59: ='Simplified Capital Proj - Old'!X68 -> 0 | N59: ='Simplified Capital Proj - Old'!AB68 -> 0 | O59: ='Simplified Capital Proj - Old'!AG68 -> 0 | P59: ='Simplified Capital Proj - Old'!AK68 -> 0
B60: 47 | C60: =HLOOKUP($C$11,'Risk-free rates'!$B$9:$J$110,2+B60,FALSE) -> 0.02535304441 | D60: ='Capital Req''t Calc - Old'!$D$9*E59*(1+C60)^(-B60) -> 0 | E60: 0 | F60: ='Simplified Capital Proj - Old'!D69 -> 0 | G60: ='Simplified Capital Proj - Old'!$D$18*H60 -> 0 | H60: 0 | I60: ='Simplified Capital Proj - Old'!H69 -> 0 | J60: ='Simplified Capital Proj - Old'!L69 -> 0 | K60: ='Simplified Capital Proj - Old'!P69 -> 0 | L60: ='Simplified Capital Proj - Old'!T69 -> 0 | M60: ='Simplified Capital Proj - Old'!X69 -> 0 | N60: ='Simplified Capital Proj - Old'!AB69 -> 0 | O60: ='Simplified Capital Proj - Old'!AG69 -> 0 | P60: ='Simplified Capital Proj - Old'!AK69 -> 0
B61: 48 | C61: =HLOOKUP($C$11,'Risk-free rates'!$B$9:$J$110,2+B61,FALSE) -> 0.02580653585 | D61: ='Capital Req''t Calc - Old'!$D$9*E60*(1+C61)^(-B61) -> 0 | E61: 0 | F61: ='Simplified Capital Proj - Old'!D70 -> 0 | G61: ='Simplified Capital Proj - Old'!$D$18*H61 -> 0 | H61: 0 | I61: ='Simplified Capital Proj - Old'!H70 -> 0 | J61: ='Simplified Capital Proj - Old'!L70 -> 0 | K61: ='Simplified Capital Proj - Old'!P70 -> 0 | L61: ='Simplified Capital Proj - Old'!T70 -> 0 | M61: ='Simplified Capital Proj - Old'!X70 -> 0 | N61: ='Simplified Capital Proj - Old'!AB70 -> 0 | O61: ='Simplified Capital Proj - Old'!AG70 -> 0 | P61: ='Simplified Capital Proj - Old'!AK70 -> 0
B62: 49 | C62: =HLOOKUP($C$11,'Risk-free rates'!$B$9:$J$110,2+B62,FALSE) -> 0.02625638132 | D62: ='Capital Req''t Calc - Old'!$D$9*E61*(1+C62)^(-B62) -> 0 | E62: 0 | F62: ='Simplified Capital Proj - Old'!D71 -> 0 | G62: ='Simplified Capital Proj - Old'!$D$18*H62 -> 0 | H62: 0 | I62: ='Simplified Capital Proj - Old'!H71 -> 0 | J62: ='Simplified Capital Proj - Old'!L71 -> 0 | K62: ='Simplified Capital Proj - Old'!P71 -> 0 | L62: ='Simplified Capital Proj - Old'!T71 -> 0 | M62: ='Simplified Capital Proj - Old'!X71 -> 0 | N62: ='Simplified Capital Proj - Old'!AB71 -> 0 | O62: ='Simplified Capital Proj - Old'!AG71 -> 0 | P62: ='Simplified Capital Proj - Old'!AK71 -> 0
B63: 50 | C63: =HLOOKUP($C$11,'Risk-free rates'!$B$9:$J$110,2+B63,FALSE) -> 0.02669942378 | D63: ='Capital Req''t Calc - Old'!$D$9*E62*(1+C63)^(-B63) -> 0 | E63: 0 | F63: ='Simplified Capital Proj - Old'!D72 -> 0 | G63: ='Simplified Capital Proj - Old'!$D$18*H63 -> 0 | H63: 0 | I63: ='Simplified Capital Proj - Old'!H72 -> 0 | J63: ='Simplified Capital Proj - Old'!L72 -> 0 | K63: ='Simplified Capital Proj - Old'!P72 -> 0 | L63: ='Simplified Capital Proj - Old'!T72 -> 0 | M63: ='Simplified Capital Proj - Old'!X72 -> 0 | N63: ='Simplified Capital Proj - Old'!AB72 -> 0 | O63: ='Simplified Capital Proj - Old'!AG72 -> 0 | P63: ='Simplified Capital Proj - Old'!AK72 -> 0
B64: 51 | C64: =HLOOKUP($C$11,'Risk-free rates'!$B$9:$J$110,2+B64,FALSE) -> 0.02713250441 | D64: ='Capital Req''t Calc - Old'!$D$9*E63*(1+C64)^(-B64) -> 0 | E64: 0 | F64: ='Simplified Capital Proj - Old'!D73 -> 0 | G64: ='Simplified Capital Proj - Old'!$D$18*H64 -> 0 | H64: 0 | I64: ='Simplified Capital Proj - Old'!H73 -> 0 | J64: ='Simplified Capital Proj - Old'!L73 -> 0 | K64: ='Simplified Capital Proj - Old'!P73 -> 0 | L64: ='Simplified Capital Proj - Old'!T73 -> 0 | M64: ='Simplified Capital Proj - Old'!X73 -> 0 | N64: ='Simplified Capital Proj - Old'!AB73 -> 0 | O64: ='Simplified Capital Proj - Old'!AG73 -> 0 | P64: ='Simplified Capital Proj - Old'!AK73 -> 0
B65: 52 | C65: =HLOOKUP($C$11,'Risk-free rates'!$B$9:$J$110,2+B65,FALSE) -> 0.02755246406 | D65: ='Capital Req''t Calc - Old'!$D$9*E64*(1+C65)^(-B65) -> 0 | E65: 0 | F65: ='Simplified Capital Proj - Old'!D74 -> 0 | G65: ='Simplified Capital Proj - Old'!$D$18*H65 -> 0 | H65: 0 | I65: ='Simplified Capital Proj - Old'!H74 -> 0 | J65: ='Simplified Capital Proj - Old'!L74 -> 0 | K65: ='Simplified Capital Proj - Old'!P74 -> 0 | L65: ='Simplified Capital Proj - Old'!T74 -> 0 | M65: ='Simplified Capital Proj - Old'!X74 -> 0 | N65: ='Simplified Capital Proj - Old'!AB74 -> 0 | O65: ='Simplified Capital Proj - Old'!AG74 -> 0 | P65: ='Simplified Capital Proj - Old'!AK74 -> 0
B66: 53 | C66: =HLOOKUP($C$11,'Risk-free rates'!$B$9:$J$110,2+B66,FALSE) -> 0.02795614297 | D66: ='Capital Req''t Calc - Old'!$D$9*E65*(1+C66)^(-B66) -> 0 | E66: 0 | F66: ='Simplified Capital Proj - Old'!D75 -> 0 | G66: ='Simplified Capital Proj - Old'!$D$18*H66 -> 0 | H66: 0 | I66: ='Simplified Capital Proj - Old'!H75 -> 0 | J66: ='Simplified Capital Proj - Old'!L75 -> 0 | K66: ='Simplified Capital Proj - Old'!P75 -> 0 | L66: ='Simplified Capital Proj - Old'!T75 -> 0 | M66: ='Simplified Capital Proj - Old'!X75 -> 0 | N66: ='Simplified Capital Proj - Old'!AB75 -> 0 | O66: ='Simplified Capital Proj - Old'!AG75 -> 0 | P66: ='Simplified Capital Proj - Old'!AK75 -> 0
B67: 54 | C67: =HLOOKUP($C$11,'Risk-free rates'!$B$9:$J$110,2+B67,FALSE) -> 0.02834038008 | D67: ='Capital Req''t Calc - Old'!$D$9*E66*(1+C67)^(-B67) -> 0 | E67: 0 | F67: ='Simplified Capital Proj - Old'!D76 -> 0 | G67: ='Simplified Capital Proj - Old'!$D$18*H67 -> 0 | H67: 0 | I67: ='Simplified Capital Proj - Old'!H76 -> 0 | J67: ='Simplified Capital Proj - Old'!L76 -> 0 | K67: ='Simplified Capital Proj - Old'!P76 -> 0 | L67: ='Simplified Capital Proj - Old'!T76 -> 0 | M67: ='Simplified Capital Proj - Old'!X76 -> 0 | N67: ='Simplified Capital Proj - Old'!AB76 -> 0 | O67: ='Simplified Capital Proj - Old'!AG76 -> 0 | P67: ='Simplified Capital Proj - Old'!AK76 -> 0
B68: 55 | C68: =HLOOKUP($C$11,'Risk-free rates'!$B$9:$J$110,2+B68,FALSE) -> 0.02870201436 | D68: ='Capital Req''t Calc - Old'!$D$9*E67*(1+C68)^(-B68) -> 0 | E68: 0 | F68: ='Simplified Capital Proj - Old'!D77 -> 0 | G68: ='Simplified Capital Proj - Old'!$D$18*H68 -> 0 | H68: 0 | I68: ='Simplified Capital Proj - Old'!H77 -> 0 | J68: ='Simplified Capital Proj - Old'!L77 -> 0 | K68: ='Simplified Capital Proj - Old'!P77 -> 0 | L68: ='Simplified Capital Proj - Old'!T77 -> 0 | M68: ='Simplified Capital Proj - Old'!X77 -> 0 | N68: ='Simplified Capital Proj - Old'!AB77 -> 0 | O68: ='Simplified Capital Proj - Old'!AG77 -> 0 | P68: ='Simplified Capital Proj - Old'!AK77 -> 0
B69: 56 | C69: =HLOOKUP($C$11,'Risk-free rates'!$B$9:$J$110,2+B69,FALSE) -> 0.02903788401 | D69: ='Capital Req''t Calc - Old'!$D$9*E68*(1+C69)^(-B69) -> 0 | E69: 0 | F69: ='Simplified Capital Proj - Old'!D78 -> 0 | G69: ='Simplified Capital Proj - Old'!$D$18*H69 -> 0 | H69: 0 | I69: ='Simplified Capital Proj - Old'!H78 -> 0 | J69: ='Simplified Capital Proj - Old'!L78 -> 0 | K69: ='Simplified Capital Proj - Old'!P78 -> 0 | L69: ='Simplified Capital Proj - Old'!T78 -> 0 | M69: ='Simplified Capital Proj - Old'!X78 -> 0 | N69: ='Simplified Capital Proj - Old'!AB78 -> 0 | O69: ='Simplified Capital Proj - Old'!AG78 -> 0 | P69: ='Simplified Capital Proj - Old'!AK78 -> 0
B70: 57 | C70: =HLOOKUP($C$11,'Risk-free rates'!$B$9:$J$110,2+B70,FALSE) -> 0.02934482677 | D70: ='Capital Req''t Calc - Old'!$D$9*E69*(1+C70)^(-B70) -> 0 | E70: 0 | F70: ='Simplified Capital Proj - Old'!D79 -> 0 | G70: ='Simplified Capital Proj - Old'!$D$18*H70 -> 0 | H70: 0 | I70: ='Simplified Capital Proj - Old'!H79 -> 0 | J70: ='Simplified Capital Proj - Old'!L79 -> 0 | K70: ='Simplified Capital Proj - Old'!P79 -> 0 | L70: ='Simplified Capital Proj - Old'!T79 -> 0 | M70: ='Simplified Capital Proj - Old'!X79 -> 0 | N70: ='Simplified Capital Proj - Old'!AB79 -> 0 | O70: ='Simplified Capital Proj - Old'!AG79 -> 0 | P70: ='Simplified Capital Proj - Old'!AK79 -> 0
B71: 58 | C71: =HLOOKUP($C$11,'Risk-free rates'!$B$9:$J$110,2+B71,FALSE) -> 0.02961967945 | D71: ='Capital Req''t Calc - Old'!$D$9*E70*(1+C71)^(-B71) -> 0 | E71: 0 | F71: ='Simplified Capital Proj - Old'!D80 -> 0 | G71: ='Simplified Capital Proj - Old'!$D$18*H71 -> 0 | H71: 0 | I71: ='Simplified Capital Proj - Old'!H80 -> 0 | J71: ='Simplified Capital Proj - Old'!L80 -> 0 | K71: ='Simplified Capital Proj - Old'!P80 -> 0 | L71: ='Simplified Capital Proj - Old'!T80 -> 0 | M71: ='Simplified Capital Proj - Old'!X80 -> 0 | N71: ='Simplified Capital Proj - Old'!AB80 -> 0 | O71: ='Simplified Capital Proj - Old'!AG80 -> 0 | P71: ='Simplified Capital Proj - Old'!AK80 -> 0
B72: 59 | C72: =HLOOKUP($C$11,'Risk-free rates'!$B$9:$J$110,2+B72,FALSE) -> 0.0298592787 | D72: ='Capital Req''t Calc - Old'!$D$9*E71*(1+C72)^(-B72) -> 0 | E72: 0 | F72: ='Simplified Capital Proj - Old'!D81 -> 0 | G72: ='Simplified Capital Proj - Old'!$D$18*H72 -> 0 | H72: 0 | I72: ='Simplified Capital Proj - Old'!H81 -> 0 | J72: ='Simplified Capital Proj - Old'!L81 -> 0 | K72: ='Simplified Capital Proj - Old'!P81 -> 0 | L72: ='Simplified Capital Proj - Old'!T81 -> 0 | M72: ='Simplified Capital Proj - Old'!X81 -> 0 | N72: ='Simplified Capital Proj - Old'!AB81 -> 0 | O72: ='Simplified Capital Proj - Old'!AG81 -> 0 | P72: ='Simplified Capital Proj - Old'!AK81 -> 0
B73: 60 | C73: =HLOOKUP($C$11,'Risk-free rates'!$B$9:$J$110,2+B73,FALSE) -> 0.03006046029 | D73: ='Capital Req''t Calc - Old'!$D$9*E72*(1+C73)^(-B73) -> 0 | E73: 0 | F73: ='Simplified Capital Proj - Old'!D82 -> 0 | G73: ='Simplified Capital Proj - Old'!$D$18*H73 -> 0 | H73: 0 | I73: ='Simplified Capital Proj - Old'!H82 -> 0 | J73: ='Simplified Capital Proj - Old'!L82 -> 0 | K73: ='Simplified Capital Proj - Old'!P82 -> 0 | L73: ='Simplified Capital Proj - Old'!T82 -> 0 | M73: ='Simplified Capital Proj - Old'!X82 -> 0 | N73: ='Simplified Capital Proj - Old'!AB82 -> 0 | O73: ='Simplified Capital Proj - Old'!AG82 -> 0 | P73: ='Simplified Capital Proj - Old'!AK82 -> 0
B74: 61 | C74: =HLOOKUP($C$11,'Risk-free rates'!$B$9:$J$110,2+B74,FALSE) -> 0.03025508316 | D74: ='Capital Req''t Calc - Old'!$D$9*E73*(1+C74)^(-B74) -> 0 | E74: 0 | F74: ='Simplified Capital Proj - Old'!D83 -> 0 | G74: ='Simplified Capital Proj - Old'!$D$18*H74 -> 0 | H74: 0 | I74: ='Simplified Capital Proj - Old'!H83 -> 0 | J74: ='Simplified Capital Proj - Old'!L83 -> 0 | K74: ='Simplified Capital Proj - Old'!P83 -> 0 | L74: ='Simplified Capital Proj - Old'!T83 -> 0 | M74: ='Simplified Capital Proj - Old'!X83 -> 0 | N74: ='Simplified Capital Proj - Old'!AB83 -> 0 | O74: ='Simplified Capital Proj - Old'!AG83 -> 0 | P74: ='Simplified Capital Proj - Old'!AK83 -> 0
B75: 62 | C75: =HLOOKUP($C$11,'Risk-free rates'!$B$9:$J$110,2+B75,FALSE) -> 0.03044346289 | D75: ='Capital Req''t Calc - Old'!$D$9*E74*(1+C75)^(-B75) -> 0 | E75: 0 | F75: ='Simplified Capital Proj - Old'!D84 -> 0 | G75: ='Simplified Capital Proj - Old'!$D$18*H75 -> 0 | H75: 0 | I75: ='Simplified Capital Proj - Old'!H84 -> 0 | J75: ='Simplified Capital Proj - Old'!L84 -> 0 | K75: ='Simplified Capital Proj - Old'!P84 -> 0 | L75: ='Simplified Capital Proj - Old'!T84 -> 0 | M75: ='Simplified Capital Proj - Old'!X84 -> 0 | N75: ='Simplified Capital Proj - Old'!AB84 -> 0 | O75: ='Simplified Capital Proj - Old'!AG84 -> 0 | P75: ='Simplified Capital Proj - Old'!AK84 -> 0
B76: 63 | C76: =HLOOKUP($C$11,'Risk-free rates'!$B$9:$J$110,2+B76,FALSE) -> 0.03062589512 | D76: ='Capital Req''t Calc - Old'!$D$9*E75*(1+C76)^(-B76) -> 0 | E76: 0 | F76: ='Simplified Capital Proj - Old'!D85 -> 0 | G76: ='Simplified Capital Proj - Old'!$D$18*H76 -> 0 | H76: 0 | I76: ='Simplified Capital Proj - Old'!H85 -> 0 | J76: ='Simplified Capital Proj - Old'!L85 -> 0 | K76: ='Simplified Capital Proj - Old'!P85 -> 0 | L76: ='Simplified Capital Proj - Old'!T85 -> 0 | M76: ='Simplified Capital Proj - Old'!X85 -> 0 | N76: ='Simplified Capital Proj - Old'!AB85 -> 0 | O76: ='Simplified Capital Proj - Old'!AG85 -> 0 | P76: ='Simplified Capital Proj - Old'!AK85 -> 0
B77: 64 | C77: =HLOOKUP($C$11,'Risk-free rates'!$B$9:$J$110,2+B77,FALSE) -> 0.03080265715 | D77: ='Capital Req''t Calc - Old'!$D$9*E76*(1+C77)^(-B77) -> 0 | E77: =H77+F77+G77 -> 0 | F77: ='Simplified Capital Proj - Old'!D86 -> 0 | G77: ='Simplified Capital Proj - Old'!$D$18*H77 -> 0 | H77: 0 | I77: ='Simplified Capital Proj - Old'!H86 -> 0 | J77: ='Simplified Capital Proj - Old'!L86 -> 0 | K77: ='Simplified Capital Proj - Old'!P86 -> 0 | L77: ='Simplified Capital Proj - Old'!T86 -> 0 | M77: ='Simplified Capital Proj - Old'!X86 -> 0 | N77: ='Simplified Capital Proj - Old'!AB86 -> 0 | O77: ='Simplified Capital Proj - Old'!AG86 -> 0 | P77: ='Simplified Capital Proj - Old'!AK86 -> 0
B78: 65 | C78: =HLOOKUP($C$11,'Risk-free rates'!$B$9:$J$110,2+B78,FALSE) -> 0.03097400928 | D78: ='Capital Req''t Calc - Old'!$D$9*E77*(1+C78)^(-B78) -> 0 | E78: =H78+F78+G78 -> 0 | F78: ='Simplified Capital Proj - Old'!D87 -> 0 | G78: ='Simplified Capital Proj - Old'!$D$18*H78 -> 0 | H78: =((J78+K78+L78)^2+M78^2+N78^2+-0.5*((J78+K78+L78)*N78)+O78^2+P78^2+I78^2)^0.5 -> 0 | I78: ='Simplified Capital Proj - Old'!H87 -> 0 | J78: ='Simplified Capital Proj - Old'!L87 -> 0 | K78: ='Simplified Capital Proj - Old'!P87 -> 0 | L78: ='Simplified Capital Proj - Old'!T87 -> 0 | M78: ='Simplified Capital Proj - Old'!X87 -> 0 | N78: ='Simplified Capital Proj - Old'!AB87 -> 0 | O78: ='Simplified Capital Proj - Old'!AG87 -> 0 | P78: ='Simplified Capital Proj - Old'!AK87 -> 0
B79: 66 | C79: =HLOOKUP($C$11,'Risk-free rates'!$B$9:$J$110,2+B79,FALSE) -> 0.03114019613 | D79: ='Capital Req''t Calc - Old'!$D$9*E78*(1+C79)^(-B79) -> 0 | E79: =H79+F79+G79 -> 0 | F79: ='Simplified Capital Proj - Old'!D88 -> 0 | G79: ='Simplified Capital Proj - Old'!$D$18*H79 -> 0 | H79: =((J79+K79+L79)^2+M79^2+N79^2+-0.5*((J79+K79+L79)*N79)+O79^2+P79^2+I79^2)^0.5 -> 0 | I79: ='Simplified Capital Proj - Old'!H88 -> 0 | J79: ='Simplified Capital Proj - Old'!L88 -> 0 | K79: ='Simplified Capital Proj - Old'!P88 -> 0 | L79: ='Simplified Capital Proj - Old'!T88 -> 0 | M79: ='Simplified Capital Proj - Old'!X88 -> 0 | N79: ='Simplified Capital Proj - Old'!AB88 -> 0 | O79: ='Simplified Capital Proj - Old'!AG88 -> 0 | P79: ='Simplified Capital Proj - Old'!AK88 -> 0
B80: 67 | C80: =HLOOKUP($C$11,'Risk-free rates'!$B$9:$J$110,2+B80,FALSE) -> 0.03130144777 | D80: ='Capital Req''t Calc - Old'!$D$9*E79*(1+C80)^(-B80) -> 0 | E80: =H80+F80+G80 -> 0 | F80: ='Simplified Capital Proj - Old'!D89 -> 0 | G80: ='Simplified Capital Proj - Old'!$D$18*H80 -> 0 | H80: =((J80+K80+L80)^2+M80^2+N80^2+-0.5*((J80+K80+L80)*N80)+O80^2+P80^2+I80^2)^0.5 -> 0 | I80: ='Simplified Capital Proj - Old'!H89 -> 0 | J80: ='Simplified Capital Proj - Old'!L89 -> 0 | K80: ='Simplified Capital Proj - Old'!P89 -> 0 | L80: ='Simplified Capital Proj - Old'!T89 -> 0 | M80: ='Simplified Capital Proj - Old'!X89 -> 0 | N80: ='Simplified Capital Proj - Old'!AB89 -> 0 | O80: ='Simplified Capital Proj - Old'!AG89 -> 0 | P80: ='Simplified Capital Proj - Old'!AK89 -> 0
B81: 68 | C81: =HLOOKUP($C$11,'Risk-free rates'!$B$9:$J$110,2+B81,FALSE) -> 0.03145798083 | D81: ='Capital Req''t Calc - Old'!$D$9*E80*(1+C81)^(-B81) -> 0 | E81: =H81+F81+G81 -> 0 | F81: ='Simplified Capital Proj - Old'!D90 -> 0 | G81: ='Simplified Capital Proj - Old'!$D$18*H81 -> 0 | H81: =((J81+K81+L81)^2+M81^2+N81^2+-0.5*((J81+K81+L81)*N81)+O81^2+P81^2+I81^2)^0.5 -> 0 | I81: ='Simplified Capital Proj - Old'!H90 -> 0 | J81: ='Simplified Capital Proj - Old'!L90 -> 0 | K81: ='Simplified Capital Proj - Old'!P90 -> 0 | L81: ='Simplified Capital Proj - Old'!T90 -> 0 | M81: ='Simplified Capital Proj - Old'!X90 -> 0 | N81: ='Simplified Capital Proj - Old'!AB90 -> 0 | O81: ='Simplified Capital Proj - Old'!AG90 -> 0 | P81: ='Simplified Capital Proj - Old'!AK90 -> 0
B82: 69 | C82: =HLOOKUP($C$11,'Risk-free rates'!$B$9:$J$110,2+B82,FALSE) -> 0.03160999944 | D82: ='Capital Req''t Calc - Old'!$D$9*E81*(1+C82)^(-B82) -> 0 | E82: 0 | F82: ='Simplified Capital Proj - Old'!D91 -> 0 | G82: ='Simplified Capital Proj - Old'!$D$18*H82 -> 0 | H82: 0 | I82: ='Simplified Capital Proj - Old'!H91 -> 0 | J82: ='Simplified Capital Proj - Old'!L91 -> 0 | K82: ='Simplified Capital Proj - Old'!P91 -> 0 | L82: ='Simplified Capital Proj - Old'!T91 -> 0 | M82: ='Simplified Capital Proj - Old'!X91 -> 0 | N82: ='Simplified Capital Proj - Old'!AB91 -> 0 | O82: ='Simplified Capital Proj - Old'!AG91 -> 0 | P82: ='Simplified Capital Proj - Old'!AK91 -> 0
B83: 70 | C83: =HLOOKUP($C$11,'Risk-free rates'!$B$9:$J$110,2+B83,FALSE) -> 0.03175769611 | D83: ='Capital Req''t Calc - Old'!$D$9*E82*(1+C83)^(-B83) -> 0 | E83: 0 | F83: ='Simplified Capital Proj - Old'!D92 -> 0 | G83: ='Simplified Capital Proj - Old'!$D$18*H83 -> 0 | H83: 0 | I83: ='Simplified Capital Proj - Old'!H92 -> 0 | J83: ='Simplified Capital Proj - Old'!L92 -> 0 | K83: ='Simplified Capital Proj - Old'!P92 -> 0 | L83: ='Simplified Capital Proj - Old'!T92 -> 0 | M83: ='Simplified Capital Proj - Old'!X92 -> 0 | N83: ='Simplified Capital Proj - Old'!AB92 -> 0 | O83: ='Simplified Capital Proj - Old'!AG92 -> 0 | P83: ='Simplified Capital Proj - Old'!AK92 -> 0
B84: 71 | C84: =HLOOKUP($C$11,'Risk-free rates'!$B$9:$J$110,2+B84,FALSE) -> 0.03190125258 | D84: ='Capital Req''t Calc - Old'!$D$9*E83*(1+C84)^(-B84) -> 0 | E84: 0 | F84: ='Simplified Capital Proj - Old'!D93 -> 0 | G84: ='Simplified Capital Proj - Old'!$D$18*H84 -> 0 | H84: 0 | I84: ='Simplified Capital Proj - Old'!H93 -> 0 | J84: ='Simplified Capital Proj - Old'!L93 -> 0 | K84: ='Simplified Capital Proj - Old'!P93 -> 0 | L84: ='Simplified Capital Proj - Old'!T93 -> 0 | M84: ='Simplified Capital Proj - Old'!X93 -> 0 | N84: ='Simplified Capital Proj - Old'!AB93 -> 0 | O84: ='Simplified Capital Proj - Old'!AG93 -> 0 | P84: ='Simplified Capital Proj - Old'!AK93 -> 0
B85: 72 | C85: =HLOOKUP($C$11,'Risk-free rates'!$B$9:$J$110,2+B85,FALSE) -> 0.03204084051 | D85: ='Capital Req''t Calc - Old'!$D$9*E84*(1+C85)^(-B85) -> 0 | E85: 0 | F85: ='Simplified Capital Proj - Old'!D94 -> 0 | G85: ='Simplified Capital Proj - Old'!$D$18*H85 -> 0 | H85: 0 | I85: ='Simplified Capital Proj - Old'!H94 -> 0 | J85: ='Simplified Capital Proj - Old'!L94 -> 0 | K85: ='Simplified Capital Proj - Old'!P94 -> 0 | L85: ='Simplified Capital Proj - Old'!T94 -> 0 | M85: ='Simplified Capital Proj - Old'!X94 -> 0 | N85: ='Simplified Capital Proj - Old'!AB94 -> 0 | O85: ='Simplified Capital Proj - Old'!AG94 -> 0 | P85: ='Simplified Capital Proj - Old'!AK94 -> 0
B86: 73 | C86: =HLOOKUP($C$11,'Risk-free rates'!$B$9:$J$110,2+B86,FALSE) -> 0.03217662223 | D86: ='Capital Req''t Calc - Old'!$D$9*E85*(1+C86)^(-B86) -> 0 | E86: 0 | F86: ='Simplified Capital Proj - Old'!D95 -> 0 | G86: ='Simplified Capital Proj - Old'!$D$18*H86 -> 0 | H86: 0 | I86: ='Simplified Capital Proj - Old'!H95 -> 0 | J86: ='Simplified Capital Proj - Old'!L95 -> 0 | K86: ='Simplified Capital Proj - Old'!P95 -> 0 | L86: ='Simplified Capital Proj - Old'!T95 -> 0 | M86: ='Simplified Capital Proj - Old'!X95 -> 0 | N86: ='Simplified Capital Proj - Old'!AB95 -> 0 | O86: ='Simplified Capital Proj - Old'!AG95 -> 0 | P86: ='Simplified Capital Proj - Old'!AK95 -> 0
B87: 74 | C87: =HLOOKUP($C$11,'Risk-free rates'!$B$9:$J$110,2+B87,FALSE) -> 0.03230875132 | D87: ='Capital Req''t Calc - Old'!$D$9*E86*(1+C87)^(-B87) -> 0 | E87: 0 | F87: ='Simplified Capital Proj - Old'!D96 -> 0 | G87: ='Simplified Capital Proj - Old'!$D$18*H87 -> 0 | H87: 0 | I87: ='Simplified Capital Proj - Old'!H96 -> 0 | J87: ='Simplified Capital Proj - Old'!L96 -> 0 | K87: ='Simplified Capital Proj - Old'!P96 -> 0 | L87: ='Simplified Capital Proj - Old'!T96 -> 0 | M87: ='Simplified Capital Proj - Old'!X96 -> 0 | N87: ='Simplified Capital Proj - Old'!AB96 -> 0 | O87: ='Simplified Capital Proj - Old'!AG96 -> 0 | P87: ='Simplified Capital Proj - Old'!AK96 -> 0
B88: 75 | C88: =HLOOKUP($C$11,'Risk-free rates'!$B$9:$J$110,2+B88,FALSE) -> 0.03243737322 | D88: ='Capital Req''t Calc - Old'!$D$9*E87*(1+C88)^(-B88) -> 0 | E88: 0 | F88: ='Simplified Capital Proj - Old'!D97 -> 0 | G88: ='Simplified Capital Proj - Old'!$D$18*H88 -> 0 | H88: 0 | I88: ='Simplified Capital Proj - Old'!H97 -> 0 | J88: ='Simplified Capital Proj - Old'!L97 -> 0 | K88: ='Simplified Capital Proj - Old'!P97 -> 0 | L88: ='Simplified Capital Proj - Old'!T97 -> 0 | M88: ='Simplified Capital Proj - Old'!X97 -> 0 | N88: ='Simplified Capital Proj - Old'!AB97 -> 0 | O88: ='Simplified Capital Proj - Old'!AG97 -> 0 | P88: ='Simplified Capital Proj - Old'!AK97 -> 0
B89: 76 | C89: =HLOOKUP($C$11,'Risk-free rates'!$B$9:$J$110,2+B89,FALSE) -> 0.03256262572 | D89: ='Capital Req''t Calc - Old'!$D$9*E88*(1+C89)^(-B89) -> 0 | E89: 0 | F89: ='Simplified Capital Proj - Old'!D98 -> 0 | G89: ='Simplified Capital Proj - Old'!$D$18*H89 -> 0 | H89: 0 | I89: ='Simplified Capital Proj - Old'!H98 -> 0 | J89: ='Simplified Capital Proj - Old'!L98 -> 0 | K89: ='Simplified Capital Proj - Old'!P98 -> 0 | L89: ='Simplified Capital Proj - Old'!T98 -> 0 | M89: ='Simplified Capital Proj - Old'!X98 -> 0 | N89: ='Simplified Capital Proj - Old'!AB98 -> 0 | O89: ='Simplified Capital Proj - Old'!AG98 -> 0 | P89: ='Simplified Capital Proj - Old'!AK98 -> 0
B90: 77 | C90: =HLOOKUP($C$11,'Risk-free rates'!$B$9:$J$110,2+B90,FALSE) -> 0.03268463952 | D90: ='Capital Req''t Calc - Old'!$D$9*E89*(1+C90)^(-B90) -> 0 | E90: 0 | F90: ='Simplified Capital Proj - Old'!D99 -> 0 | G90: ='Simplified Capital Proj - Old'!$D$18*H90 -> 0 | H90: 0 | I90: ='Simplified Capital Proj - Old'!H99 -> 0 | J90: ='Simplified Capital Proj - Old'!L99 -> 0 | K90: ='Simplified Capital Proj - Old'!P99 -> 0 | L90: ='Simplified Capital Proj - Old'!T99 -> 0 | M90: ='Simplified Capital Proj - Old'!X99 -> 0 | N90: ='Simplified Capital Proj - Old'!AB99 -> 0 | O90: ='Simplified Capital Proj - Old'!AG99 -> 0 | P90: ='Simplified Capital Proj - Old'!AK99 -> 0
B91: 78 | C91: =HLOOKUP($C$11,'Risk-free rates'!$B$9:$J$110,2+B91,FALSE) -> 0.03280353863 | D91: ='Capital Req''t Calc - Old'!$D$9*E90*(1+C91)^(-B91) -> 0 | E91: 0 | F91: ='Simplified Capital Proj - Old'!D100 -> 0 | G91: ='Simplified Capital Proj - Old'!$D$18*H91 -> 0 | H91: 0 | I91: ='Simplified Capital Proj - Old'!H100 -> 0 | J91: ='Simplified Capital Proj - Old'!L100 -> 0 | K91: ='Simplified Capital Proj - Old'!P100 -> 0 | L91: ='Simplified Capital Proj - Old'!T100 -> 0 | M91: ='Simplified Capital Proj - Old'!X100 -> 0 | N91: ='Simplified Capital Proj - Old'!AB100 -> 0 | O91: ='Simplified Capital Proj - Old'!AG100 -> 0 | P91: ='Simplified Capital Proj - Old'!AK100 -> 0
B92: 79 | C92: =HLOOKUP($C$11,'Risk-free rates'!$B$9:$J$110,2+B92,FALSE) -> 0.03291944081 | D92: ='Capital Req''t Calc - Old'!$D$9*E91*(1+C92)^(-B92) -> 0 | E92: 0 | F92: ='Simplified Capital Proj - Old'!D101 -> 0 | G92: ='Simplified Capital Proj - Old'!$D$18*H92 -> 0 | H92: 0 | I92: ='Simplified Capital Proj - Old'!H101 -> 0 | J92: ='Simplified Capital Proj - Old'!L101 -> 0 | K92: ='Simplified Capital Proj - Old'!P101 -> 0 | L92: ='Simplified Capital Proj - Old'!T101 -> 0 | M92: ='Simplified Capital Proj - Old'!X101 -> 0 | N92: ='Simplified Capital Proj - Old'!AB101 -> 0 | O92: ='Simplified Capital Proj - Old'!AG101 -> 0 | P92: ='Simplified Capital Proj - Old'!AK101 -> 0
B93: 80 | C93: =HLOOKUP($C$11,'Risk-free rates'!$B$9:$J$110,2+B93,FALSE) -> 0.03303245796 | D93: ='Capital Req''t Calc - Old'!$D$9*E92*(1+C93)^(-B93) -> 0 | E93: 0 | F93: ='Simplified Capital Proj - Old'!D102 -> 0 | G93: ='Simplified Capital Proj - Old'!$D$18*H93 -> 0 | H93: 0 | I93: ='Simplified Capital Proj - Old'!H102 -> 0 | J93: ='Simplified Capital Proj - Old'!L102 -> 0 | K93: ='Simplified Capital Proj - Old'!P102 -> 0 | L93: ='Simplified Capital Proj - Old'!T102 -> 0 | M93: ='Simplified Capital Proj - Old'!X102 -> 0 | N93: ='Simplified Capital Proj - Old'!AB102 -> 0 | O93: ='Simplified Capital Proj - Old'!AG102 -> 0 | P93: ='Simplified Capital Proj - Old'!AK102 -> 0
B94: 81 | C94: =HLOOKUP($C$11,'Risk-free rates'!$B$9:$J$110,2+B94,FALSE) -> 0.03314269647 | D94: ='Capital Req''t Calc - Old'!$D$9*E93*(1+C94)^(-B94) -> 0 | E94: 0 | F94: ='Simplified Capital Proj - Old'!D103 -> 0 | G94: ='Simplified Capital Proj - Old'!$D$18*H94 -> 0 | H94: 0 | I94: ='Simplified Capital Proj - Old'!H103 -> 0 | J94: ='Simplified Capital Proj - Old'!L103 -> 0 | K94: ='Simplified Capital Proj - Old'!P103 -> 0 | L94: ='Simplified Capital Proj - Old'!T103 -> 0 | M94: ='Simplified Capital Proj - Old'!X103 -> 0 | N94: ='Simplified Capital Proj - Old'!AB103 -> 0 | O94: ='Simplified Capital Proj - Old'!AG103 -> 0 | P94: ='Simplified Capital Proj - Old'!AK103 -> 0
B95: 82 | C95: =HLOOKUP($C$11,'Risk-free rates'!$B$9:$J$110,2+B95,FALSE) -> 0.03325025758 | D95: ='Capital Req''t Calc - Old'!$D$9*E94*(1+C95)^(-B95) -> 0 | E95: 0 | F95: ='Simplified Capital Proj - Old'!D104 -> 0 | G95: ='Simplified Capital Proj - Old'!$D$18*H95 -> 0 | H95: 0 | I95: ='Simplified Capital Proj - Old'!H104 -> 0 | J95: ='Simplified Capital Proj - Old'!L104 -> 0 | K95: ='Simplified Capital Proj - Old'!P104 -> 0 | L95: ='Simplified Capital Proj - Old'!T104 -> 0 | M95: ='Simplified Capital Proj - Old'!X104 -> 0 | N95: ='Simplified Capital Proj - Old'!AB104 -> 0 | O95: ='Simplified Capital Proj - Old'!AG104 -> 0 | P95: ='Simplified Capital Proj - Old'!AK104 -> 0
B96: 83 | C96: =HLOOKUP($C$11,'Risk-free rates'!$B$9:$J$110,2+B96,FALSE) -> 0.03335523765 | D96: ='Capital Req''t Calc - Old'!$D$9*E95*(1+C96)^(-B96) -> 0 | E96: 0 | F96: ='Simplified Capital Proj - Old'!D105 -> 0 | G96: ='Simplified Capital Proj - Old'!$D$18*H96 -> 0 | H96: 0 | I96: ='Simplified Capital Proj - Old'!H105 -> 0 | J96: ='Simplified Capital Proj - Old'!L105 -> 0 | K96: ='Simplified Capital Proj - Old'!P105 -> 0 | L96: ='Simplified Capital Proj - Old'!T105 -> 0 | M96: ='Simplified Capital Proj - Old'!X105 -> 0 | N96: ='Simplified Capital Proj - Old'!AB105 -> 0 | O96: ='Simplified Capital Proj - Old'!AG105 -> 0 | P96: ='Simplified Capital Proj - Old'!AK105 -> 0
B97: 84 | C97: =HLOOKUP($C$11,'Risk-free rates'!$B$9:$J$110,2+B97,FALSE) -> 0.03345772848 | D97: ='Capital Req''t Calc - Old'!$D$9*E96*(1+C97)^(-B97) -> 0 | E97: 0 | F97: ='Simplified Capital Proj - Old'!D106 -> 0 | G97: ='Simplified Capital Proj - Old'!$D$18*H97 -> 0 | H97: 0 | I97: ='Simplified Capital Proj - Old'!H106 -> 0 | J97: ='Simplified Capital Proj - Old'!L106 -> 0 | K97: ='Simplified Capital Proj - Old'!P106 -> 0 | L97: ='Simplified Capital Proj - Old'!T106 -> 0 | M97: ='Simplified Capital Proj - Old'!X106 -> 0 | N97: ='Simplified Capital Proj - Old'!AB106 -> 0 | O97: ='Simplified Capital Proj - Old'!AG106 -> 0 | P97: ='Simplified Capital Proj - Old'!AK106 -> 0
B98: 85 | C98: =HLOOKUP($C$11,'Risk-free rates'!$B$9:$J$110,2+B98,FALSE) -> 0.03355781757 | D98: ='Capital Req''t Calc - Old'!$D$9*E97*(1+C98)^(-B98) -> 0 | E98: 0 | F98: ='Simplified Capital Proj - Old'!D107 -> 0 | G98: ='Simplified Capital Proj - Old'!$D$18*H98 -> 0 | H98: 0 | I98: ='Simplified Capital Proj - Old'!H107 -> 0 | J98: ='Simplified Capital Proj - Old'!L107 -> 0 | K98: ='Simplified Capital Proj - Old'!P107 -> 0 | L98: ='Simplified Capital Proj - Old'!T107 -> 0 | M98: ='Simplified Capital Proj - Old'!X107 -> 0 | N98: ='Simplified Capital Proj - Old'!AB107 -> 0 | O98: ='Simplified Capital Proj - Old'!AG107 -> 0 | P98: ='Simplified Capital Proj - Old'!AK107 -> 0
B99: 86 | C99: =HLOOKUP($C$11,'Risk-free rates'!$B$9:$J$110,2+B99,FALSE) -> 0.03365558837 | D99: ='Capital Req''t Calc - Old'!$D$9*E98*(1+C99)^(-B99) -> 0 | E99: 0 | F99: ='Simplified Capital Proj - Old'!D108 -> 0 | G99: ='Simplified Capital Proj - Old'!$D$18*H99 -> 0 | H99: 0 | I99: ='Simplified Capital Proj - Old'!H108 -> 0 | J99: ='Simplified Capital Proj - Old'!L108 -> 0 | K99: ='Simplified Capital Proj - Old'!P108 -> 0 | L99: ='Simplified Capital Proj - Old'!T108 -> 0 | M99: ='Simplified Capital Proj - Old'!X108 -> 0 | N99: ='Simplified Capital Proj - Old'!AB108 -> 0 | O99: ='Simplified Capital Proj - Old'!AG108 -> 0 | P99: ='Simplified Capital Proj - Old'!AK108 -> 0
B100: 87 | C100: =HLOOKUP($C$11,'Risk-free rates'!$B$9:$J$110,2+B100,FALSE) -> 0.03375112049 | D100: ='Capital Req''t Calc - Old'!$D$9*E99*(1+C100)^(-B100) -> 0 | E100: 0 | F100: ='Simplified Capital Proj - Old'!D109 -> 0 | G100: ='Simplified Capital Proj - Old'!$D$18*H100 -> 0 | H100: 0 | I100: ='Simplified Capital Proj - Old'!H109 -> 0 | J100: ='Simplified Capital Proj - Old'!L109 -> 0 | K100: ='Simplified Capital Proj - Old'!P109 -> 0 | L100: ='Simplified Capital Proj - Old'!T109 -> 0 | M100: ='Simplified Capital Proj - Old'!X109 -> 0 | N100: ='Simplified Capital Proj - Old'!AB109 -> 0 | O100: ='Simplified Capital Proj - Old'!AG109 -> 0 | P100: ='Simplified Capital Proj - Old'!AK109 -> 0
B101: 88 | C101: =HLOOKUP($C$11,'Risk-free rates'!$B$9:$J$110,2+B101,FALSE) -> 0.03384448996 | D101: ='Capital Req''t Calc - Old'!$D$9*E100*(1+C101)^(-B101) -> 0 | E101: 0 | F101: ='Simplified Capital Proj - Old'!D110 -> 0 | G101: ='Simplified Capital Proj - Old'!$D$18*H101 -> 0 | H101: 0 | I101: ='Simplified Capital Proj - Old'!H110 -> 0 | J101: ='Simplified Capital Proj - Old'!L110 -> 0 | K101: ='Simplified Capital Proj - Old'!P110 -> 0 | L101: ='Simplified Capital Proj - Old'!T110 -> 0 | M101: ='Simplified Capital Proj - Old'!X110 -> 0 | N101: ='Simplified Capital Proj - Old'!AB110 -> 0 | O101: ='Simplified Capital Proj - Old'!AG110 -> 0 | P101: ='Simplified Capital Proj - Old'!AK110 -> 0
B102: 89 | C102: =HLOOKUP($C$11,'Risk-free rates'!$B$9:$J$110,2+B102,FALSE) -> 0.03393576939 | D102: ='Capital Req''t Calc - Old'!$D$9*E101*(1+C102)^(-B102) -> 0 | E102: 0 | F102: ='Simplified Capital Proj - Old'!D111 -> 0 | G102: ='Simplified Capital Proj - Old'!$D$18*H102 -> 0 | H102: 0 | I102: ='Simplified Capital Proj - Old'!H111 -> 0 | J102: ='Simplified Capital Proj - Old'!L111 -> 0 | K102: ='Simplified Capital Proj - Old'!P111 -> 0 | L102: ='Simplified Capital Proj - Old'!T111 -> 0 | M102: ='Simplified Capital Proj - Old'!X111 -> 0 | N102: ='Simplified Capital Proj - Old'!AB111 -> 0 | O102: ='Simplified Capital Proj - Old'!AG111 -> 0 | P102: ='Simplified Capital Proj - Old'!AK111 -> 0
B103: 90 | C103: =HLOOKUP($C$11,'Risk-free rates'!$B$9:$J$110,2+B103,FALSE) -> 0.03402502818 | D103: ='Capital Req''t Calc - Old'!$D$9*E102*(1+C103)^(-B103) -> 0 | E103: 0 | F103: ='Simplified Capital Proj - Old'!D112 -> 0 | G103: ='Simplified Capital Proj - Old'!$D$18*H103 -> 0 | H103: 0 | I103: ='Simplified Capital Proj - Old'!H112 -> 0 | J103: ='Simplified Capital Proj - Old'!L112 -> 0 | K103: ='Simplified Capital Proj - Old'!P112 -> 0 | L103: ='Simplified Capital Proj - Old'!T112 -> 0 | M103: ='Simplified Capital Proj - Old'!X112 -> 0 | N103: ='Simplified Capital Proj - Old'!AB112 -> 0 | O103: ='Simplified Capital Proj - Old'!AG112 -> 0 | P103: ='Simplified Capital Proj - Old'!AK112 -> 0
B104: 91 | C104: =HLOOKUP($C$11,'Risk-free rates'!$B$9:$J$110,2+B104,FALSE) -> 0.0341123327 | D104: ='Capital Req''t Calc - Old'!$D$9*E103*(1+C104)^(-B104) -> 0 | E104: 0 | F104: ='Simplified Capital Proj - Old'!D113 -> 0 | G104: ='Simplified Capital Proj - Old'!$D$18*H104 -> 0 | H104: 0 | I104: ='Simplified Capital Proj - Old'!H113 -> 0 | J104: ='Simplified Capital Proj - Old'!L113 -> 0 | K104: ='Simplified Capital Proj - Old'!P113 -> 0 | L104: ='Simplified Capital Proj - Old'!T113 -> 0 | M104: ='Simplified Capital Proj - Old'!X113 -> 0 | N104: ='Simplified Capital Proj - Old'!AB113 -> 0 | O104: ='Simplified Capital Proj - Old'!AG113 -> 0 | P104: ='Simplified Capital Proj - Old'!AK113 -> 0
B105: 92 | C105: =HLOOKUP($C$11,'Risk-free rates'!$B$9:$J$110,2+B105,FALSE) -> 0.03419774642 | D105: ='Capital Req''t Calc - Old'!$D$9*E104*(1+C105)^(-B105) -> 0 | E105: 0 | F105: ='Simplified Capital Proj - Old'!D114 -> 0 | G105: ='Simplified Capital Proj - Old'!$D$18*H105 -> 0 | H105: 0 | I105: ='Simplified Capital Proj - Old'!H114 -> 0 | J105: ='Simplified Capital Proj - Old'!L114 -> 0 | K105: ='Simplified Capital Proj - Old'!P114 -> 0 | L105: ='Simplified Capital Proj - Old'!T114 -> 0 | M105: ='Simplified Capital Proj - Old'!X114 -> 0 | N105: ='Simplified Capital Proj - Old'!AB114 -> 0 | O105: ='Simplified Capital Proj - Old'!AG114 -> 0 | P105: ='Simplified Capital Proj - Old'!AK114 -> 0
B106: 93 | C106: =HLOOKUP($C$11,'Risk-free rates'!$B$9:$J$110,2+B106,FALSE) -> 0.03428133012 | D106: ='Capital Req''t Calc - Old'!$D$9*E105*(1+C106)^(-B106) -> 0 | E106: 0 | F106: ='Simplified Capital Proj - Old'!D115 -> 0 | G106: ='Simplified Capital Proj - Old'!$D$18*H106 -> 0 | H106: 0 | I106: ='Simplified Capital Proj - Old'!H115 -> 0 | J106: ='Simplified Capital Proj - Old'!L115 -> 0 | K106: ='Simplified Capital Proj - Old'!P115 -> 0 | L106: ='Simplified Capital Proj - Old'!T115 -> 0 | M106: ='Simplified Capital Proj - Old'!X115 -> 0 | N106: ='Simplified Capital Proj - Old'!AB115 -> 0 | O106: ='Simplified Capital Proj - Old'!AG115 -> 0 | P106: ='Simplified Capital Proj - Old'!AK115 -> 0
B107: 94 | C107: =HLOOKUP($C$11,'Risk-free rates'!$B$9:$J$110,2+B107,FALSE) -> 0.03436314198 | D107: ='Capital Req''t Calc - Old'!$D$9*E106*(1+C107)^(-B107) -> 0 | E107: 0 | F107: ='Simplified Capital Proj - Old'!D116 -> 0 | G107: ='Simplified Capital Proj - Old'!$D$18*H107 -> 0 | H107: 0 | I107: ='Simplified Capital Proj - Old'!H116 -> 0 | J107: ='Simplified Capital Proj - Old'!L116 -> 0 | K107: ='Simplified Capital Proj - Old'!P116 -> 0 | L107: ='Simplified Capital Proj - Old'!T116 -> 0 | M107: ='Simplified Capital Proj - Old'!X116 -> 0 | N107: ='Simplified Capital Proj - Old'!AB116 -> 0 | O107: ='Simplified Capital Proj - Old'!AG116 -> 0 | P107: ='Simplified Capital Proj - Old'!AK116 -> 0
B108: 95 | C108: =HLOOKUP($C$11,'Risk-free rates'!$B$9:$J$110,2+B108,FALSE) -> 0.03444323775 | D108: ='Capital Req''t Calc - Old'!$D$9*E107*(1+C108)^(-B108) -> 0 | E108: 0 | F108: ='Simplified Capital Proj - Old'!D117 -> 0 | G108: ='Simplified Capital Proj - Old'!$D$18*H108 -> 0 | H108: 0 | I108: ='Simplified Capital Proj - Old'!H117 -> 0 | J108: ='Simplified Capital Proj - Old'!L117 -> 0 | K108: ='Simplified Capital Proj - Old'!P117 -> 0 | L108: ='Simplified Capital Proj - Old'!T117 -> 0 | M108: ='Simplified Capital Proj - Old'!X117 -> 0 | N108: ='Simplified Capital Proj - Old'!AB117 -> 0 | O108: ='Simplified Capital Proj - Old'!AG117 -> 0 | P108: ='Simplified Capital Proj - Old'!AK117 -> 0
B109: 96 | C109: =HLOOKUP($C$11,'Risk-free rates'!$B$9:$J$110,2+B109,FALSE) -> 0.03452167087 | D109: ='Capital Req''t Calc - Old'!$D$9*E108*(1+C109)^(-B109) -> 0 | E109: =H109+F109+G109 -> 0 | F109: ='Simplified Capital Proj - Old'!D118 -> 0 | G109: ='Simplified Capital Proj - Old'!$D$18*H109 -> 0 | H109: =((J109+K109+L109)^2+M109^2+N109^2+-0.5*((J109+K109+L109)*N109)+O109^2+P109^2+I109^2)^0.5 -> 0 | I109: ='Simplified Capital Proj - Old'!H118 -> 0 | J109: ='Simplified Capital Proj - Old'!L118 -> 0 | K109: ='Simplified Capital Proj - Old'!P118 -> 0 | L109: ='Simplified Capital Proj - Old'!T118 -> 0 | M109: ='Simplified Capital Proj - Old'!X118 -> 0 | N109: ='Simplified Capital Proj - Old'!AB118 -> 0 | O109: ='Simplified Capital Proj - Old'!AG118 -> 0 | P109: ='Simplified Capital Proj - Old'!AK118 -> 0
B110: 97 | C110: =HLOOKUP($C$11,'Risk-free rates'!$B$9:$J$110,2+B110,FALSE) -> 0.03459849258 | D110: ='Capital Req''t Calc - Old'!$D$9*E109*(1+C110)^(-B110) -> 0 | E110: =H110+F110+G110 -> 0 | F110: ='Simplified Capital Proj - Old'!D119 -> 0 | G110: ='Simplified Capital Proj - Old'!$D$18*H110 -> 0 | H110: =((J110+K110+L110)^2+M110^2+N110^2+-0.5*((J110+K110+L110)*N110)+O110^2+P110^2+I110^2)^0.5 -> 0 | I110: ='Simplified Capital Proj - Old'!H119 -> 0 | J110: ='Simplified Capital Proj - Old'!L119 -> 0 | K110: ='Simplified Capital Proj - Old'!P119 -> 0 | L110: ='Simplified Capital Proj - Old'!T119 -> 0 | M110: ='Simplified Capital Proj - Old'!X119 -> 0 | N110: ='Simplified Capital Proj - Old'!AB119 -> 0 | O110: ='Simplified Capital Proj - Old'!AG119 -> 0 | P110: ='Simplified Capital Proj - Old'!AK119 -> 0
B111: 98 | C111: =HLOOKUP($C$11,'Risk-free rates'!$B$9:$J$110,2+B111,FALSE) -> 0.03467375203 | D111: ='Capital Req''t Calc - Old'!$D$9*E110*(1+C111)^(-B111) -> 0 | E111: =H111+F111+G111 -> 0 | F111: ='Simplified Capital Proj - Old'!D120 -> 0 | G111: ='Simplified Capital Proj - Old'!$D$18*H111 -> 0 | H111: =((J111+K111+L111)^2+M111^2+N111^2+-0.5*((J111+K111+L111)*N111)+O111^2+P111^2+I111^2)^0.5 -> 0 | I111: ='Simplified Capital Proj - Old'!H120 -> 0 | J111: ='Simplified Capital Proj - Old'!L120 -> 0 | K111: ='Simplified Capital Proj - Old'!P120 -> 0 | L111: ='Simplified Capital Proj - Old'!T120 -> 0 | M111: ='Simplified Capital Proj - Old'!X120 -> 0 | N111: ='Simplified Capital Proj - Old'!AB120 -> 0 | O111: ='Simplified Capital Proj - Old'!AG120 -> 0 | P111: ='Simplified Capital Proj - Old'!AK120 -> 0
B112: 99 | C112: =HLOOKUP($C$11,'Risk-free rates'!$B$9:$J$110,2+B112,FALSE) -> 0.0347474964 | D112: ='Capital Req''t Calc - Old'!$D$9*E111*(1+C112)^(-B112) -> 0 | E112: =H112+F112+G112 -> 0 | F112: ='Simplified Capital Proj - Old'!D121 -> 0 | G112: ='Simplified Capital Proj - Old'!$D$18*H112 -> 0 | H112: =((J112+K112+L112)^2+M112^2+N112^2+-0.5*((J112+K112+L112)*N112)+O112^2+P112^2+I112^2)^0.5 -> 0 | I112: ='Simplified Capital Proj - Old'!H121 -> 0 | J112: ='Simplified Capital Proj - Old'!L121 -> 0 | K112: ='Simplified Capital Proj - Old'!P121 -> 0 | L112: ='Simplified Capital Proj - Old'!T121 -> 0 | M112: ='Simplified Capital Proj - Old'!X121 -> 0 | N112: ='Simplified Capital Proj - Old'!AB121 -> 0 | O112: ='Simplified Capital Proj - Old'!AG121 -> 0 | P112: ='Simplified Capital Proj - Old'!AK121 -> 0
B113: 100 | C113: =HLOOKUP($C$11,'Risk-free rates'!$B$9:$J$110,2+B113,FALSE) -> 0.03481977098 | D113: ='Capital Req''t Calc - Old'!$D$9*E112*(1+C113)^(-B113) -> 0 | E113: =H113+F113+G113 -> 0 | F113: ='Simplified Capital Proj - Old'!D122 -> 0 | G113: ='Simplified Capital Proj - Old'!$D$18*H113 -> 0 | H113: =((J113+K113+L113)^2+M113^2+N113^2+-0.5*((J113+K113+L113)*N113)+O113^2+P113^2+I113^2)^0.5 -> 0 | I113: ='Simplified Capital Proj - Old'!H122 -> 0 | J113: ='Simplified Capital Proj - Old'!L122 -> 0 | K113: ='Simplified Capital Proj - Old'!P122 -> 0 | L113: ='Simplified Capital Proj - Old'!T122 -> 0 | M113: ='Simplified Capital Proj - Old'!X122 -> 0 | N113: ='Simplified Capital Proj - Old'!AB122 -> 0 | O113: ='Simplified Capital Proj - Old'!AG122 -> 0 | P113: ='Simplified Capital Proj - Old'!AK122 -> 0

Sheet Simplified Capital ProjectionV2 (hidden)
B3: Projected Capital Requirements for Operational Risk are determined on the Summary and Discount of CoC worksheet | E3: May want to remove comment
B7: Bermuda Solvency Capital Requirement Charges | G7: Simplification for the calculation of the overall unavoidable market risk in the full calculation (TP5.71)
B8: Fixed IncomeRisk | D8: 100
B9: Equity Risk | D9: 100 | G9: Net Best estimates at t=0 | L9: 1000
B10: Credit Risk | D10: 100 | E10: * | G10: Modified duration of the undertaking | L10: 2
B11: Interest Rate | D11: 25 | G11: Longest duration of available instruments | L11: 1
B12: Mortality | D12: 100 | E12: * | G12: Absolute decrease of risk-free rate for this duration | L12: 4
B13: Stop Loss | D13: 50 | E13: *
B14: Riders | D14: 25 | E14: * | G14: Overall unavoidable market risk | L14: =MAX(0,0.5*L9*(L10-L11)*(L10-L11+1)*L12) -> 4000
B15: Morbidity & Disability | D15: 15 | E15: *
B16: Longevity | D16: 50 | E16: *
B17: Annuity Risk | D17: 100
B18: Other Insurance Risk | D18: 50 | E18: *
B19: BSCR Prior to Covariance | D19: =SUM(D8:D18) -> 715
B20: BSCR After Covariance | D20: =(D8^2+D9^2+D10^2+D11^2+((D12+D13+D14))^2+D15^2+D16^2+-0.5*((D12+D13+D14)*D16)+D17^2+D18^2)^0.5 -> 268.5144316
B21: Operational Risk Charge | D21: 50 | E21: *
B22: Capital Adjustment | D22: 0
B23: Final BSCR | D23: =D20+D21+D22 -> 318.5144316
B25: Credit Risk | F25: Mortality Risk | J25: Stop Loss | N25: Riders | R25: Morbidity & Disability | V25: Longevity | Z25: Other Insurance Risk
B26: t | C26: Future Ceded Best Estimates | D26: Counterparty credit risk default capital requirement | F26: t | G26: Future Net Amounts At Risk | H26: Counterparty credit risk default capital requirement | J26: t | K26: Future Stop Loss Annual Premiums | L26: Counterparty credit risk default capital requirement | N26: t | O26: Future Riders Annual Premiums | P26: Counterparty credit risk default capital requirement | R26: t | S26: Future Morbidity &Disability Annual Premiums | T26: Counterparty credit risk default capital requirement | V26: t | W26: Future Longevity Technical Provisions | X26: Counterparty credit risk default capital requirement | Z26: t | AA26: Total Future Technical Provisions | AB26: Counterparty credit risk default capital requirement
B27: 0 | C27: 1000 | D27: =IF(C27<>0,D$10*C27/C$27,0) -> 100 | F27: 0 | G27: 100000 | H27: =IF(G27<>0,D$12*G27/G$27,0) -> 100 | J27: 0 | K27: 100 | L27: =IF(K27<>0,D$13*K27/K$27,0) -> 50 | N27: 0 | O27: 100 | P27: =IF(O27<>0,D$14*O27/O$27,0) -> 25 | R27: 0 | S27: 100 | T27: =IF(S27<>0,D$15*S27/S$27,0) -> 15 | V27: 0 | W27: 1000 | X27: =IF(W27<>0,D$16*W27/W$27,0) -> 50 | Z27: 0 | AA27: 5000 | AB27: =IF(AA27<>0,D$18*AA27/AA$27,0) -> 50
B28: 1 | C28: 800 | D28: 80 | F28: 1 | G28: 90000 | H28: 90 | J28: 1 | K28: 80 | L28: 40 | N28: 1 | O28: 80 | P28: 20 | R28: 1 | S28: 80 | T28: 12 | V28: 1 | W28: 900 | X28: 45 | Z28: 1 | AA28: 4500 | AB28: 45
B29: 2 | C29: 600 | D29: 60 | F29: 2 | G29: 80000 | H29: 80 | J29: 2 | K29: 60 | L29: 30 | N29: 2 | O29: 60 | P29: 15 | R29: 2 | S29: 60 | T29: 9 | V29: 2 | W29: 800 | X29: 40 | Z29: 2 | AA29: 4000 | AB29: 40
B30: 3 | C30: 400 | D30: 40 | F30: 3 | G30: 70000 | H30: 70 | J30: 3 | K30: 40 | L30: 20 | N30: 3 | O30: 40 | P30: 10 | R30: 3 | S30: 40 | T30: 6 | V30: 3 | W30: 700 | X30: 35 | Z30: 3 | AA30: 3500 | AB30: 35
B31: 4 | C31: 200 | D31: 20 | F31: 4 | G31: 60000 | H31: 60 | J31: 4 | K31: 20 | L31: 10 | N31: 4 | O31: 20 | P31: 5 | R31: 4 | S31: 20 | T31: 3 | V31: 4 | W31: 600 | X31: 30 | Z31: 4 | AA31: 3000 | AB31: 30
B32: 5 | D32: 0 | F32: 5 | G32: 50000 | H32: 50 | J32: 5 | L32: 0 | N32: 5 | P32: 0 | R32: 5 | T32: 0 | V32: 5 | W32: 500 | X32: 25 | Z32: 5 | AA32: 2500 | AB32: 25
B33: 6 | D33: 0 | F33: 6 | G33: 40000 | H33: 40 | J33: 6 | L33: 0 | N33: 6 | P33: 0 | R33: 6 | T33: 0 | V33: 6 | W33: 400 | X33: 20 | Z33: 6 | AA33: 2000 | AB33: 20
B34: 7 | D34: 0 | F34: 7 | G34: 30000 | H34: 30 | J34: 7 | L34: 0 | N34: 7 | P34: 0 | R34: 7 | T34: 0 | V34: 7 | W34: 300 | X34: 15 | Z34: 7 | AA34: 1500 | AB34: 15
B35: 8 | D35: 0 | F35: 8 | G35: 20000 | H35: 20 | J35: 8 | L35: 0 | N35: 8 | P35: 0 | R35: 8 | T35: 0 | V35: 8 | W35: 200 | X35: 10 | Z35: 8 | AA35: 1000 | AB35: 10
B36: 9 | D36: 0 | F36: 9 | G36: 10000 | H36: 10 | J36: 9 | L36: 0 | N36: 9 | P36: 0 | R36: 9 | T36: 0 | V36: 9 | W36: 100 | X36: 5 | Z36: 9 | AA36: 500 | AB36: 5
B37: 10 | D37: 0 | F37: 10 | H37: 0 | J37: 10 | L37: 0 | N37: 10 | P37: 0 | R37: 10 | T37: 0 | V37: 10 | X37: 0 | Z37: 10 | AB37: 0
B38: 11 | D38: 0 | F38: 11 | H38: 0 | J38: 11 | L38: 0 | N38: 11 | P38: 0 | R38: 11 | T38: 0 | V38: 11 | X38: 0 | Z38: 11 | AB38: 0
B39: 12 | D39: 0 | F39: 12 | H39: 0 | J39: 12 | L39: 0 | N39: 12 | P39: 0 | R39: 12 | T39: 0 | V39: 12 | X39: 0 | Z39: 12 | AB39: 0
B40: 13 | D40: 0 | F40: 13 | H40: 0 | J40: 13 | L40: 0 | N40: 13 | P40: 0 | R40: 13 | T40: 0 | V40: 13 | X40: 0 | Z40: 13 | AB40: 0
B41: 14 | D41: 0 | F41: 14 | H41: 0 | J41: 14 | L41: 0 | N41: 14 | P41: 0 | R41: 14 | T41: 0 | V41: 14 | X41: 0 | Z41: 14 | AB41: 0
B42: 15 | D42: 0 | F42: 15 | H42: 0 | J42: 15 | L42: 0 | N42: 15 | P42: 0 | R42: 15 | T42: 0 | V42: 15 | X42: 0 | Z42: 15 | AB42: 0
B43: 16 | D43: 0 | F43: 16 | H43: 0 | J43: 16 | L43: 0 | N43: 16 | P43: 0 | R43: 16 | T43: 0 | V43: 16 | X43: 0 | Z43: 16 | AB43: 0
B44: 17 | D44: 0 | F44: 17 | H44: 0 | J44: 17 | L44: 0 | N44: 17 | P44: 0 | R44: 17 | T44: 0 | V44: 17 | X44: 0 | Z44: 17 | AB44: 0
B45: 18 | D45: 0 | F45: 18 | H45: 0 | J45: 18 | L45: 0 | N45: 18 | P45: 0 | R45: 18 | T45: 0 | V45: 18 | X45: 0 | Z45: 18 | AB45: 0
B46: 19 | D46: 0 | F46: 19 | H46: 0 | J46: 19 | L46: 0 | N46: 19 | P46: 0 | R46: 19 | T46: 0 | V46: 19 | X46: 0 | Z46: 19 | AB46: 0
B47: 20 | D47: 0 | F47: 20 | H47: 0 | J47: 20 | L47: 0 | N47: 20 | P47: 0 | R47: 20 | T47: 0 | V47: 20 | X47: 0 | Z47: 20 | AB47: 0
B48: 21 | D48: 0 | F48: 21 | H48: 0 | J48: 21 | L48: 0 | N48: 21 | P48: 0 | R48: 21 | T48: 0 | V48: 21 | X48: 0 | Z48: 21 | AB48: 0
B49: 22 | D49: 0 | F49: 22 | H49: 0 | J49: 22 | L49: 0 | N49: 22 | P49: 0 | R49: 22 | T49: 0 | V49: 22 | X49: 0 | Z49: 22 | AB49: 0
B50: 23 | D50: 0 | F50: 23 | H50: 0 | J50: 23 | L50: 0 | N50: 23 | P50: 0 | R50: 23 | T50: 0 | V50: 23 | X50: 0 | Z50: 23 | AB50: 0
B51: 24 | D51: 0 | F51: 24 | H51: 0 | J51: 24 | L51: 0 | N51: 24 | P51: 0 | R51: 24 | T51: 0 | V51: 24 | X51: 0 | Z51: 24 | AB51: 0
B52: 25 | D52: 0 | F52: 25 | H52: 0 | J52: 25 | L52: 0 | N52: 25 | P52: 0 | R52: 25 | T52: 0 | V52: 25 | X52: 0 | Z52: 25 | AB52: 0
B53: 26 | D53: 0 | F53: 26 | H53: 0 | J53: 26 | L53: 0 | N53: 26 | P53: 0 | R53: 26 | T53: 0 | V53: 26 | X53: 0 | Z53: 26 | AB53: 0
B54: 27 | D54: 0 | F54: 27 | H54: 0 | J54: 27 | L54: 0 | N54: 27 | P54: 0 | R54: 27 | T54: 0 | V54: 27 | X54: 0 | Z54: 27 | AB54: 0
B55: 28 | D55: 0 | F55: 28 | H55: 0 | J55: 28 | L55: 0 | N55: 28 | P55: 0 | R55: 28 | T55: 0 | V55: 28 | X55: 0 | Z55: 28 | AB55: 0
B56: 29 | D56: 0 | F56: 29 | H56: 0 | J56: 29 | L56: 0 | N56: 29 | P56: 0 | R56: 29 | T56: 0 | V56: 29 | X56: 0 | Z56: 29 | AB56: 0
B57: 30 | D57: 0 | F57: 30 | H57: 0 | J57: 30 | L57: 0 | N57: 30 | P57: 0 | R57: 30 | T57: 0 | V57: 30 | X57: 0 | Z57: 30 | AB57: 0
B58: 31 | D58: 0 | F58: 31 | H58: 0 | J58: 31 | L58: 0 | N58: 31 | P58: 0 | R58: 31 | T58: 0 | V58: 31 | X58: 0 | Z58: 31 | AB58: 0
B59: 32 | D59: =IF(C59<>0,D$10*C59/C$27,0) -> 0 | F59: 32 | H59: =IF(G59<>0,D$12*G59/G$27,0) -> 0 | J59: 32 | L59: =IF(K59<>0,D$13*K59/K$27,0) -> 0 | N59: 32 | P59: =IF(O59<>0,D$14*O59/O$27,0) -> 0 | R59: 32 | T59: =IF(S59<>0,D$15*S59/S$27,0) -> 0 | V59: 32 | X59: =IF(W59<>0,D$16*W59/W$27,0) -> 0 | Z59: 32 | AB59: =IF(AA59<>0,D$18*AA59/AA$27,0) -> 0
B60: 33 | D60: 0 | F60: 33 | H60: 0 | J60: 33 | L60: 0 | N60: 33 | P60: 0 | R60: 33 | T60: 0 | V60: 33 | X60: 0 | Z60: 33 | AB60: 0
B61: 34 | D61: 0 | F61: 34 | H61: 0 | J61: 34 | L61: 0 | N61: 34 | P61: 0 | R61: 34 | T61: 0 | V61: 34 | X61: 0 | Z61: 34 | AB61: 0
B62: 35 | D62: 0 | F62: 35 | H62: 0 | J62: 35 | L62: 0 | N62: 35 | P62: 0 | R62: 35 | T62: 0 | V62: 35 | X62: 0 | Z62: 35 | AB62: 0
B63: 36 | D63: 0 | F63: 36 | H63: 0 | J63: 36 | L63: 0 | N63: 36 | P63: 0 | R63: 36 | T63: 0 | V63: 36 | X63: 0 | Z63: 36 | AB63: 0
B64: 37 | D64: 0 | F64: 37 | H64: 0 | J64: 37 | L64: 0 | N64: 37 | P64: 0 | R64: 37 | T64: 0 | V64: 37 | X64: 0 | Z64: 37 | AB64: 0
B65: 38 | D65: 0 | F65: 38 | H65: 0 | J65: 38 | L65: 0 | N65: 38 | P65: 0 | R65: 38 | T65: 0 | V65: 38 | X65: 0 | Z65: 38 | AB65: 0
B66: 39 | D66: 0 | F66: 39 | H66: 0 | J66: 39 | L66: 0 | N66: 39 | P66: 0 | R66: 39 | T66: 0 | V66: 39 | X66: 0 | Z66: 39 | AB66: 0
B67: 40 | D67: 0 | F67: 40 | H67: 0 | J67: 40 | L67: 0 | N67: 40 | P67: 0 | R67: 40 | T67: 0 | V67: 40 | X67: 0 | Z67: 40 | AB67: 0
B68: 41 | D68: 0 | F68: 41 | H68: 0 | J68: 41 | L68: 0 | N68: 41 | P68: 0 | R68: 41 | T68: 0 | V68: 41 | X68: 0 | Z68: 41 | AB68: 0
B69: 42 | D69: 0 | F69: 42 | H69: 0 | J69: 42 | L69: 0 | N69: 42 | P69: 0 | R69: 42 | T69: 0 | V69: 42 | X69: 0 | Z69: 42 | AB69: 0
B70: 43 | D70: 0 | F70: 43 | H70: 0 | J70: 43 | L70: 0 | N70: 43 | P70: 0 | R70: 43 | T70: 0 | V70: 43 | X70: 0 | Z70: 43 | AB70: 0
B71: 44 | D71: 0 | F71: 44 | H71: 0 | J71: 44 | L71: 0 | N71: 44 | P71: 0 | R71: 44 | T71: 0 | V71: 44 | X71: 0 | Z71: 44 | AB71: 0
B72: 45 | D72: 0 | F72: 45 | H72: 0 | J72: 45 | L72: 0 | N72: 45 | P72: 0 | R72: 45 | T72: 0 | V72: 45 | X72: 0 | Z72: 45 | AB72: 0
B73: 46 | D73: 0 | F73: 46 | H73: 0 | J73: 46 | L73: 0 | N73: 46 | P73: 0 | R73: 46 | T73: 0 | V73: 46 | X73: 0 | Z73: 46 | AB73: 0
B74: 47 | D74: 0 | F74: 47 | H74: 0 | J74: 47 | L74: 0 | N74: 47 | P74: 0 | R74: 47 | T74: 0 | V74: 47 | X74: 0 | Z74: 47 | AB74: 0
B75: 48 | D75: 0 | F75: 48 | H75: 0 | J75: 48 | L75: 0 | N75: 48 | P75: 0 | R75: 48 | T75: 0 | V75: 48 | X75: 0 | Z75: 48 | AB75: 0
B76: 49 | D76: 0 | F76: 49 | H76: 0 | J76: 49 | L76: 0 | N76: 49 | P76: 0 | R76: 49 | T76: 0 | V76: 49 | X76: 0 | Z76: 49 | AB76: 0
B77: 50 | D77: 0 | F77: 50 | H77: 0 | J77: 50 | L77: 0 | N77: 50 | P77: 0 | R77: 50 | T77: 0 | V77: 50 | X77: 0 | Z77: 50 | AB77: 0
B78: 51 | D78: 0 | F78: 51 | H78: 0 | J78: 51 | L78: 0 | N78: 51 | P78: 0 | R78: 51 | T78: 0 | V78: 51 | X78: 0 | Z78: 51 | AB78: 0
B79: 52 | D79: 0 | F79: 52 | H79: 0 | J79: 52 | L79: 0 | N79: 52 | P79: 0 | R79: 52 | T79: 0 | V79: 52 | X79: 0 | Z79: 52 | AB79: 0
B80: 53 | D80: 0 | F80: 53 | H80: 0 | J80: 53 | L80: 0 | N80: 53 | P80: 0 | R80: 53 | T80: 0 | V80: 53 | X80: 0 | Z80: 53 | AB80: 0
B81: 54 | D81: 0 | F81: 54 | H81: 0 | J81: 54 | L81: 0 | N81: 54 | P81: 0 | R81: 54 | T81: 0 | V81: 54 | X81: 0 | Z81: 54 | AB81: 0
B82: 55 | D82: 0 | F82: 55 | H82: 0 | J82: 55 | L82: 0 | N82: 55 | P82: 0 | R82: 55 | T82: 0 | V82: 55 | X82: 0 | Z82: 55 | AB82: 0
B83: 56 | D83: 0 | F83: 56 | H83: 0 | J83: 56 | L83: 0 | N83: 56 | P83: 0 | R83: 56 | T83: 0 | V83: 56 | X83: 0 | Z83: 56 | AB83: 0
B84: 57 | D84: 0 | F84: 57 | H84: 0 | J84: 57 | L84: 0 | N84: 57 | P84: 0 | R84: 57 | T84: 0 | V84: 57 | X84: 0 | Z84: 57 | AB84: 0
B85: 58 | D85: 0 | F85: 58 | H85: 0 | J85: 58 | L85: 0 | N85: 58 | P85: 0 | R85: 58 | T85: 0 | V85: 58 | X85: 0 | Z85: 58 | AB85: 0
B86: 59 | D86: 0 | F86: 59 | H86: 0 | J86: 59 | L86: 0 | N86: 59 | P86: 0 | R86: 59 | T86: 0 | V86: 59 | X86: 0 | Z86: 59 | AB86: 0
B87: 60 | D87: 0 | F87: 60 | H87: 0 | J87: 60 | L87: 0 | N87: 60 | P87: 0 | R87: 60 | T87: 0 | V87: 60 | X87: 0 | Z87: 60 | AB87: 0
B88: 61 | D88: 0 | F88: 61 | H88: 0 | J88: 61 | L88: 0 | N88: 61 | P88: 0 | R88: 61 | T88: 0 | V88: 61 | X88: 0 | Z88: 61 | AB88: 0
B89: 62 | D89: 0 | F89: 62 | H89: 0 | J89: 62 | L89: 0 | N89: 62 | P89: 0 | R89: 62 | T89: 0 | V89: 62 | X89: 0 | Z89: 62 | AB89: 0
B90: 63 | D90: 0 | F90: 63 | H90: 0 | J90: 63 | L90: 0 | N90: 63 | P90: 0 | R90: 63 | T90: 0 | V90: 63 | X90: 0 | Z90: 63 | AB90: 0
B91: 64 | D91: =IF(C91<>0,D$10*C91/C$27,0) -> 0 | F91: 64 | H91: =IF(G91<>0,D$12*G91/G$27,0) -> 0 | J91: 64 | L91: =IF(K91<>0,D$13*K91/K$27,0) -> 0 | N91: 64 | P91: =IF(O91<>0,D$14*O91/O$27,0) -> 0 | R91: 64 | T91: =IF(S91<>0,D$15*S91/S$27,0) -> 0 | V91: 64 | X91: =IF(W91<>0,D$16*W91/W$27,0) -> 0 | Z91: 64 | AB91: =IF(AA91<>0,D$18*AA91/AA$27,0) -> 0
B92: 65 | D92: =IF(C92<>0,D$10*C92/C$27,0) -> 0 | F92: 65 | H92: =IF(G92<>0,D$12*G92/G$27,0) -> 0 | J92: 65 | L92: =IF(K92<>0,D$13*K92/K$27,0) -> 0 | N92: 65 | P92: =IF(O92<>0,D$14*O92/O$27,0) -> 0 | R92: 65 | T92: =IF(S92<>0,D$15*S92/S$27,0) -> 0 | V92: 65 | X92: =IF(W92<>0,D$16*W92/W$27,0) -> 0 | Z92: 65 | AB92: =IF(AA92<>0,D$18*AA92/AA$27,0) -> 0
B93: 66 | D93: =IF(C93<>0,D$10*C93/C$27,0) -> 0 | F93: 66 | H93: =IF(G93<>0,D$12*G93/G$27,0) -> 0 | J93: 66 | L93: =IF(K93<>0,D$13*K93/K$27,0) -> 0 | N93: 66 | P93: =IF(O93<>0,D$14*O93/O$27,0) -> 0 | R93: 66 | T93: =IF(S93<>0,D$15*S93/S$27,0) -> 0 | V93: 66 | X93: =IF(W93<>0,D$16*W93/W$27,0) -> 0 | Z93: 66 | AB93: =IF(AA93<>0,D$18*AA93/AA$27,0) -> 0
B94: 67 | D94: =IF(C94<>0,D$10*C94/C$27,0) -> 0 | F94: 67 | H94: =IF(G94<>0,D$12*G94/G$27,0) -> 0 | J94: 67 | L94: =IF(K94<>0,D$13*K94/K$27,0) -> 0 | N94: 67 | P94: =IF(O94<>0,D$14*O94/O$27,0) -> 0 | R94: 67 | T94: =IF(S94<>0,D$15*S94/S$27,0) -> 0 | V94: 67 | X94: =IF(W94<>0,D$16*W94/W$27,0) -> 0 | Z94: 67 | AB94: =IF(AA94<>0,D$18*AA94/AA$27,0) -> 0

Sheet Summary and Discount of CoC V2 (hidden)
A1: Summary and Discount of Cost of Capital
B3: Cost of Capital | D3: 0.06
C4: Currency | D4: USD | F4: Future SCRs calculation | I4: Future BSCRs Calculation
B5: t | C5: Yield curve | D5: Discounted CoC | E5: Total BSCR | F5: BSCR (excl adj and OR) | G5: BMA Approved Adjustments | H5: Operational Risk | I5: Fixed Income Investment Risk | J5: Equity Investment Risk | K5: Counterparty Credit Default Risk | L5: Interest and Liquidity Risk | M5: Insurance Risk - Mortality | N5: Insurance Risk - Stop Loss | O5: Insurance Risk - Riders | P5: Insurance Risk - Morbidity and Disability | Q5: Insurance Risk - Longevity | R5: Insurance Risk - Variable Annuities | S5: Insurance Risk - Other
B6: 0 | C6: N/A | D6: N/A | E6: =F6+G6+H6 -> 319.6757312 | F6: =(I6^2+J6^2+K6^2+L6^2+(M6+N6+O6)^2+O6^2+P6^2+Q6^2+-0.5*((M6+N6+O6)*Q6)+R6^2+S6^2)^0.5 -> 269.6757312 | H6: ='Simplified Capital ProjectionV2'!D21 -> 50 | I6: =+'Simplified Capital ProjectionV2'!D8 -> 100 | J6: =+'Simplified Capital ProjectionV2'!D9 -> 100 | K6: ='Simplified Capital ProjectionV2'!D27 -> 100 | L6: =+'Simplified Capital ProjectionV2'!D11 -> 25 | M6: ='Simplified Capital ProjectionV2'!H27 -> 100 | N6: ='Simplified Capital ProjectionV2'!L27 -> 50 | O6: ='Simplified Capital ProjectionV2'!P27 -> 25 | P6: ='Simplified Capital ProjectionV2'!T27 -> 15 | Q6: ='Simplified Capital ProjectionV2'!X27 -> 50 | R6: =+'Simplified Capital ProjectionV2'!D17 -> 100 | S6: ='Simplified Capital ProjectionV2'!AB27 -> 50
B7: 1 | C7: =HLOOKUP($D$4,'Risk-free rates'!$B$9:$J$110,2+B7,FALSE) -> 0.01684894319 | D7: ='Summary and Discount of CoC V2'!$D$3*E6*(1+C7)^(-B7) -> 18.86272686 | E7: =F7+G7+H7 -> 205.7254763 | F7: =(I7^2+J7^2+K7^2+L7^2+(M7+N7+O7)^2+O7^2+P7^2+Q7^2+-0.5*((M7+N7+O7)*Q7)+R7^2+S7^2)^0.5 -> 173.5482642 | H7: =IF(F7<>0,H$6*F7/F$6,0) -> 32.17721213 | K7: ='Simplified Capital ProjectionV2'!D28 -> 80 | M7: ='Simplified Capital ProjectionV2'!H28 -> 90 | N7: ='Simplified Capital ProjectionV2'!L28 -> 40 | O7: ='Simplified Capital ProjectionV2'!P28 -> 20 | P7: ='Simplified Capital ProjectionV2'!T28 -> 12 | Q7: ='Simplified Capital ProjectionV2'!X28 -> 45 | S7: ='Simplified Capital ProjectionV2'!AB28 -> 45
B8: 2 | C8: =HLOOKUP($D$4,'Risk-free rates'!$B$9:$J$110,2+B8,FALSE) -> 0.01600462569 | D8: ='Summary and Discount of CoC V2'!$D$3*E7*(1+C8)^(-B8) -> 11.95770834 | E8: 168.6073402 | F8: 142.2357198 | H8: =IF(F8<>0,H$6*F8/F$6,0) -> 26.37162032 | K8: ='Simplified Capital ProjectionV2'!D29 -> 60 | M8: ='Simplified Capital ProjectionV2'!H29 -> 80 | N8: ='Simplified Capital ProjectionV2'!L29 -> 30 | O8: ='Simplified Capital ProjectionV2'!P29 -> 15 | P8: ='Simplified Capital ProjectionV2'!T29 -> 9 | Q8: ='Simplified Capital ProjectionV2'!X29 -> 40 | S8: ='Simplified Capital ProjectionV2'!AB29 -> 40
B9: 3 | C9: =HLOOKUP($D$4,'Risk-free rates'!$B$9:$J$110,2+B9,FALSE) -> 0.01592702203 | D9: ='Summary and Discount of CoC V2'!$D$3*E8*(1+C9)^(-B9) -> 9.648064355 | E9: 132.1929088 | F9: 111.5168149 | H9: 20.67609391 | K9: ='Simplified Capital ProjectionV2'!D30 -> 40 | M9: ='Simplified Capital ProjectionV2'!H30 -> 70 | N9: ='Simplified Capital ProjectionV2'!L30 -> 20 | O9: ='Simplified Capital ProjectionV2'!P30 -> 10 | P9: ='Simplified Capital ProjectionV2'!T30 -> 6 | Q9: ='Simplified Capital ProjectionV2'!X30 -> 35 | S9: ='Simplified Capital ProjectionV2'!AB30 -> 35
B10: 4 | C10: =HLOOKUP($D$4,'Risk-free rates'!$B$9:$J$110,2+B10,FALSE) -> 0.01608265108 | D10: ='Summary and Discount of CoC V2'!$D$3*E9*(1+C10)^(-B10) -> 7.441204924 | E10: 97.27569857 | F10: 82.06095296 | H10: 15.21474561 | K10: ='Simplified Capital ProjectionV2'!D31 -> 20 | M10: ='Simplified Capital ProjectionV2'!H31 -> 60 | N10: ='Simplified Capital ProjectionV2'!L31 -> 10 | O10: ='Simplified Capital ProjectionV2'!P31 -> 5 | P10: ='Simplified Capital ProjectionV2'!T31 -> 3 | Q10: ='Simplified Capital ProjectionV2'!X31 -> 30 | S10: ='Simplified Capital ProjectionV2'!AB31 -> 30
B11: 5 | C11: =HLOOKUP($D$4,'Risk-free rates'!$B$9:$J$110,2+B11,FALSE) -> 0.01636053865 | D11: ='Summary and Discount of CoC V2'!$D$3*E10*(1+C11)^(-B11) -> 5.381664689 | E11: 66.26631386 | F11: 55.90169944 | H11: 10.36461442 | K11: ='Simplified Capital ProjectionV2'!D32 -> 0 | M11: ='Simplified Capital ProjectionV2'!H32 -> 50 | N11: ='Simplified Capital ProjectionV2'!L32 -> 0 | O11: ='Simplified Capital ProjectionV2'!P32 -> 0 | P11: ='Simplified Capital ProjectionV2'!T32 -> 0 | Q11: ='Simplified Capital ProjectionV2'!X32 -> 25 | S11: ='Simplified Capital ProjectionV2'!AB32 -> 25
B12: 6 | C12: =HLOOKUP($D$4,'Risk-free rates'!$B$9:$J$110,2+B12,FALSE) -> 0.01669133192 | D12: ='Summary and Discount of CoC V2'!$D$3*E11*(1+C12)^(-B12) -> 3.600056678 | E12: 53.01305108 | F12: 44.72135955 | H12: 8.291691535 | K12: ='Simplified Capital ProjectionV2'!D33 -> 0 | M12: ='Simplified Capital ProjectionV2'!H33 -> 40 | N12: ='Simplified Capital ProjectionV2'!L33 -> 0 | O12: ='Simplified Capital ProjectionV2'!P33 -> 0 | P12: ='Simplified Capital ProjectionV2'!T33 -> 0 | Q12: ='Simplified Capital ProjectionV2'!X33 -> 20 | S12: ='Simplified Capital ProjectionV2'!AB33 -> 20
B13: 7 | C13: =HLOOKUP($D$4,'Risk-free rates'!$B$9:$J$110,2+B13,FALSE) -> 0.01702833084 | D13: ='Summary and Discount of CoC V2'!$D$3*E12*(1+C13)^(-B13) -> 2.826198707 | E13: 39.75978831 | F13: 33.54101966 | H13: 6.218768651 | K13: ='Simplified Capital ProjectionV2'!D34 -> 0 | M13: ='Simplified Capital ProjectionV2'!H34 -> 30 | N13: ='Simplified Capital ProjectionV2'!L34 -> 0 | O13: ='Simplified Capital ProjectionV2'!P34 -> 0 | P13: ='Simplified Capital ProjectionV2'!T34 -> 0 | Q13: ='Simplified Capital ProjectionV2'!X34 -> 15 | S13: ='Simplified Capital ProjectionV2'!AB34 -> 15
B14: 8 | C14: =HLOOKUP($D$4,'Risk-free rates'!$B$9:$J$110,2+B14,FALSE) -> 0.01735579372 | D14: ='Summary and Discount of CoC V2'!$D$3*E13*(1+C14)^(-B14) -> 2.078798584 | E14: 26.50652554 | F14: 22.36067977 | H14: 4.145845767 | K14: ='Simplified Capital ProjectionV2'!D35 -> 0 | M14: ='Simplified Capital ProjectionV2'!H35 -> 20 | N14: ='Simplified Capital ProjectionV2'!L35 -> 0 | O14: ='Simplified Capital ProjectionV2'!P35 -> 0 | P14: ='Simplified Capital ProjectionV2'!T35 -> 0 | Q14: ='Simplified Capital ProjectionV2'!X35 -> 10 | S14: ='Simplified Capital ProjectionV2'!AB35 -> 10
B15: 9 | C15: =HLOOKUP($D$4,'Risk-free rates'!$B$9:$J$110,2+B15,FALSE) -> 0.01769454424 | D15: ='Summary and Discount of CoC V2'!$D$3*E14*(1+C15)^(-B15) -> 1.358147811 | E15: 13.25326277 | F15: 11.18033989 | H15: 2.072922884 | K15: ='Simplified Capital ProjectionV2'!D36 -> 0 | M15: ='Simplified Capital ProjectionV2'!H36 -> 10 | N15: ='Simplified Capital ProjectionV2'!L36 -> 0 | O15: ='Simplified Capital ProjectionV2'!P36 -> 0 | P15: ='Simplified Capital ProjectionV2'!T36 -> 0 | Q15: ='Simplified Capital ProjectionV2'!X36 -> 5 | S15: ='Simplified Capital ProjectionV2'!AB36 -> 5
B16: 10 | C16: =HLOOKUP($D$4,'Risk-free rates'!$B$9:$J$110,2+B16,FALSE) -> 0.01803835286 | D16: ='Summary and Discount of CoC V2'!$D$3*E15*(1+C16)^(-B16) -> 0.6650168708 | E16: 0 | F16: 0 | H16: 0 | K16: ='Simplified Capital ProjectionV2'!D37 -> 0 | M16: ='Simplified Capital ProjectionV2'!H37 -> 0 | N16: ='Simplified Capital ProjectionV2'!L37 -> 0 | O16: ='Simplified Capital ProjectionV2'!P37 -> 0 | P16: ='Simplified Capital ProjectionV2'!T37 -> 0 | Q16: ='Simplified Capital ProjectionV2'!X37 -> 0 | S16: ='Simplified Capital ProjectionV2'!AB37 -> 0
B17: 11 | C17: =HLOOKUP($D$4,'Risk-free rates'!$B$9:$J$110,2+B17,FALSE) -> 0.0183561285 | D17: ='Summary and Discount of CoC V2'!$D$3*E16*(1+C17)^(-B17) -> 0 | E17: 0 | F17: 0 | H17: 0 | K17: ='Simplified Capital ProjectionV2'!D38 -> 0 | M17: ='Simplified Capital ProjectionV2'!H38 -> 0 | N17: ='Simplified Capital ProjectionV2'!L38 -> 0 | O17: ='Simplified Capital ProjectionV2'!P38 -> 0 | P17: ='Simplified Capital ProjectionV2'!T38 -> 0 | Q17: ='Simplified Capital ProjectionV2'!X38 -> 0 | S17: ='Simplified Capital ProjectionV2'!AB38 -> 0
B18: 12 | C18: =HLOOKUP($D$4,'Risk-free rates'!$B$9:$J$110,2+B18,FALSE) -> 0.01861797367 | D18: ='Summary and Discount of CoC V2'!$D$3*E17*(1+C18)^(-B18) -> 0 | E18: 0 | F18: 0 | H18: 0 | K18: ='Simplified Capital ProjectionV2'!D39 -> 0 | M18: ='Simplified Capital ProjectionV2'!H39 -> 0 | N18: ='Simplified Capital ProjectionV2'!L39 -> 0 | O18: ='Simplified Capital ProjectionV2'!P39 -> 0 | P18: ='Simplified Capital ProjectionV2'!T39 -> 0 | Q18: ='Simplified Capital ProjectionV2'!X39 -> 0 | S18: ='Simplified Capital ProjectionV2'!AB39 -> 0
B19: 13 | C19: =HLOOKUP($D$4,'Risk-free rates'!$B$9:$J$110,2+B19,FALSE) -> 0.01886533683 | D19: ='Summary and Discount of CoC V2'!$D$3*E18*(1+C19)^(-B19) -> 0 | E19: 0 | F19: 0 | H19: 0 | K19: ='Simplified Capital ProjectionV2'!D40 -> 0 | M19: ='Simplified Capital ProjectionV2'!H40 -> 0 | N19: ='Simplified Capital ProjectionV2'!L40 -> 0 | O19: ='Simplified Capital ProjectionV2'!P40 -> 0 | P19: ='Simplified Capital ProjectionV2'!T40 -> 0 | Q19: ='Simplified Capital ProjectionV2'!X40 -> 0 | S19: ='Simplified Capital ProjectionV2'!AB40 -> 0
B20: 14 | C20: =HLOOKUP($D$4,'Risk-free rates'!$B$9:$J$110,2+B20,FALSE) -> 0.019083972 | D20: ='Summary and Discount of CoC V2'!$D$3*E19*(1+C20)^(-B20) -> 0 | E20: 0 | F20: 0 | H20: 0 | K20: ='Simplified Capital ProjectionV2'!D41 -> 0 | M20: ='Simplified Capital ProjectionV2'!H41 -> 0 | N20: ='Simplified Capital ProjectionV2'!L41 -> 0 | O20: ='Simplified Capital ProjectionV2'!P41 -> 0 | P20: ='Simplified Capital ProjectionV2'!T41 -> 0 | Q20: ='Simplified Capital ProjectionV2'!X41 -> 0 | S20: ='Simplified Capital ProjectionV2'!AB41 -> 0
B21: 15 | C21: =HLOOKUP($D$4,'Risk-free rates'!$B$9:$J$110,2+B21,FALSE) -> 0.01923089545 | D21: ='Summary and Discount of CoC V2'!$D$3*E20*(1+C21)^(-B21) -> 0 | E21: 0 | F21: 0 | H21: 0 | K21: ='Simplified Capital ProjectionV2'!D42 -> 0 | M21: ='Simplified Capital ProjectionV2'!H42 -> 0 | N21: ='Simplified Capital ProjectionV2'!L42 -> 0 | O21: ='Simplified Capital ProjectionV2'!P42 -> 0 | P21: ='Simplified Capital ProjectionV2'!T42 -> 0 | Q21: ='Simplified Capital ProjectionV2'!X42 -> 0 | S21: ='Simplified Capital ProjectionV2'!AB42 -> 0
B22: 16 | C22: =HLOOKUP($D$4,'Risk-free rates'!$B$9:$J$110,2+B22,FALSE) -> 0.01943352016 | D22: ='Summary and Discount of CoC V2'!$D$3*E21*(1+C22)^(-B22) -> 0 | E22: 0 | F22: 0 | H22: 0 | K22: ='Simplified Capital ProjectionV2'!D43 -> 0 | M22: ='Simplified Capital ProjectionV2'!H43 -> 0 | N22: ='Simplified Capital ProjectionV2'!L43 -> 0 | O22: ='Simplified Capital ProjectionV2'!P43 -> 0 | P22: ='Simplified Capital ProjectionV2'!T43 -> 0 | Q22: ='Simplified Capital ProjectionV2'!X43 -> 0 | S22: ='Simplified Capital ProjectionV2'!AB43 -> 0
B23: 17 | C23: =HLOOKUP($D$4,'Risk-free rates'!$B$9:$J$110,2+B23,FALSE) -> 0.01957444155 | D23: ='Summary and Discount of CoC V2'!$D$3*E22*(1+C23)^(-B23) -> 0 | E23: 0 | F23: 0 | H23: 0 | K23: ='Simplified Capital ProjectionV2'!D44 -> 0 | M23: ='Simplified Capital ProjectionV2'!H44 -> 0 | N23: ='Simplified Capital ProjectionV2'!L44 -> 0 | O23: ='Simplified Capital ProjectionV2'!P44 -> 0 | P23: ='Simplified Capital ProjectionV2'!T44 -> 0 | Q23: ='Simplified Capital ProjectionV2'!X44 -> 0 | S23: ='Simplified Capital ProjectionV2'!AB44 -> 0
B24: 18 | C24: =HLOOKUP($D$4,'Risk-free rates'!$B$9:$J$110,2+B24,FALSE) -> 0.01972096985 | D24: ='Summary and Discount of CoC V2'!$D$3*E23*(1+C24)^(-B24) -> 0 | E24: 0 | F24: 0 | H24: 0 | K24: ='Simplified Capital ProjectionV2'!D45 -> 0 | M24: ='Simplified Capital ProjectionV2'!H45 -> 0 | N24: ='Simplified Capital ProjectionV2'!L45 -> 0 | O24: ='Simplified Capital ProjectionV2'!P45 -> 0 | P24: ='Simplified Capital ProjectionV2'!T45 -> 0 | Q24: ='Simplified Capital ProjectionV2'!X45 -> 0 | S24: ='Simplified Capital ProjectionV2'!AB45 -> 0
B25: 19 | C25: =HLOOKUP($D$4,'Risk-free rates'!$B$9:$J$110,2+B25,FALSE) -> 0.0198322475 | D25: ='Summary and Discount of CoC V2'!$D$3*E24*(1+C25)^(-B25) -> 0 | E25: 0 | F25: 0 | H25: 0 | K25: ='Simplified Capital ProjectionV2'!D46 -> 0 | M25: ='Simplified Capital ProjectionV2'!H46 -> 0 | N25: ='Simplified Capital ProjectionV2'!L46 -> 0 | O25: ='Simplified Capital ProjectionV2'!P46 -> 0 | P25: ='Simplified Capital ProjectionV2'!T46 -> 0 | Q25: ='Simplified Capital ProjectionV2'!X46 -> 0 | S25: ='Simplified Capital ProjectionV2'!AB46 -> 0
B26: 20 | C26: =HLOOKUP($D$4,'Risk-free rates'!$B$9:$J$110,2+B26,FALSE) -> 0.01991133845 | D26: ='Summary and Discount of CoC V2'!$D$3*E25*(1+C26)^(-B26) -> 0 | E26: 0 | F26: 0 | H26: 0 | K26: ='Simplified Capital ProjectionV2'!D47 -> 0 | M26: ='Simplified Capital ProjectionV2'!H47 -> 0 | N26: ='Simplified Capital ProjectionV2'!L47 -> 0 | O26: ='Simplified Capital ProjectionV2'!P47 -> 0 | P26: ='Simplified Capital ProjectionV2'!T47 -> 0 | Q26: ='Simplified Capital ProjectionV2'!X47 -> 0 | S26: ='Simplified Capital ProjectionV2'!AB47 -> 0
B27: 21 | C27: =HLOOKUP($D$4,'Risk-free rates'!$B$9:$J$110,2+B27,FALSE) -> 0.01996204977 | D27: ='Summary and Discount of CoC V2'!$D$3*E26*(1+C27)^(-B27) -> 0 | E27: 0 | F27: 0 | H27: 0 | K27: ='Simplified Capital ProjectionV2'!D48 -> 0 | M27: ='Simplified Capital ProjectionV2'!H48 -> 0 | N27: ='Simplified Capital ProjectionV2'!L48 -> 0 | O27: ='Simplified Capital ProjectionV2'!P48 -> 0 | P27: ='Simplified Capital ProjectionV2'!T48 -> 0 | Q27: ='Simplified Capital ProjectionV2'!X48 -> 0 | S27: ='Simplified Capital ProjectionV2'!AB48 -> 0
B28: 22 | C28: =HLOOKUP($D$4,'Risk-free rates'!$B$9:$J$110,2+B28,FALSE) -> 0.02000696399 | D28: ='Summary and Discount of CoC V2'!$D$3*E27*(1+C28)^(-B28) -> 0 | E28: 0 | F28: 0 | H28: 0 | K28: ='Simplified Capital ProjectionV2'!D49 -> 0 | M28: ='Simplified Capital ProjectionV2'!H49 -> 0 | N28: ='Simplified Capital ProjectionV2'!L49 -> 0 | O28: ='Simplified Capital ProjectionV2'!P49 -> 0 | P28: ='Simplified Capital ProjectionV2'!T49 -> 0 | Q28: ='Simplified Capital ProjectionV2'!X49 -> 0 | S28: ='Simplified Capital ProjectionV2'!AB49 -> 0
B29: 23 | C29: =HLOOKUP($D$4,'Risk-free rates'!$B$9:$J$110,2+B29,FALSE) -> 0.02004636892 | D29: ='Summary and Discount of CoC V2'!$D$3*E28*(1+C29)^(-B29) -> 0 | E29: 0 | F29: 0 | H29: 0 | K29: ='Simplified Capital ProjectionV2'!D50 -> 0 | M29: ='Simplified Capital ProjectionV2'!H50 -> 0 | N29: ='Simplified Capital ProjectionV2'!L50 -> 0 | O29: ='Simplified Capital ProjectionV2'!P50 -> 0 | P29: ='Simplified Capital ProjectionV2'!T50 -> 0 | Q29: ='Simplified Capital ProjectionV2'!X50 -> 0 | S29: ='Simplified Capital ProjectionV2'!AB50 -> 0
B30: 24 | C30: =HLOOKUP($D$4,'Risk-free rates'!$B$9:$J$110,2+B30,FALSE) -> 0.02008051041 | D30: ='Summary and Discount of CoC V2'!$D$3*E29*(1+C30)^(-B30) -> 0 | E30: 0 | F30: 0 | H30: 0 | K30: ='Simplified Capital ProjectionV2'!D51 -> 0 | M30: ='Simplified Capital ProjectionV2'!H51 -> 0 | N30: ='Simplified Capital ProjectionV2'!L51 -> 0 | O30: ='Simplified Capital ProjectionV2'!P51 -> 0 | P30: ='Simplified Capital ProjectionV2'!T51 -> 0 | Q30: ='Simplified Capital ProjectionV2'!X51 -> 0 | S30: ='Simplified Capital ProjectionV2'!AB51 -> 0
B31: 25 | C31: =HLOOKUP($D$4,'Risk-free rates'!$B$9:$J$110,2+B31,FALSE) -> 0.02010959838 | D31: ='Summary and Discount of CoC V2'!$D$3*E30*(1+C31)^(-B31) -> 0 | E31: 0 | F31: 0 | H31: 0 | K31: ='Simplified Capital ProjectionV2'!D52 -> 0 | M31: ='Simplified Capital ProjectionV2'!H52 -> 0 | N31: ='Simplified Capital ProjectionV2'!L52 -> 0 | O31: ='Simplified Capital ProjectionV2'!P52 -> 0 | P31: ='Simplified Capital ProjectionV2'!T52 -> 0 | Q31: ='Simplified Capital ProjectionV2'!X52 -> 0 | S31: ='Simplified Capital ProjectionV2'!AB52 -> 0
B32: 26 | C32: =HLOOKUP($D$4,'Risk-free rates'!$B$9:$J$110,2+B32,FALSE) -> 0.02012357486 | D32: ='Summary and Discount of CoC V2'!$D$3*E31*(1+C32)^(-B32) -> 0 | E32: 0 | F32: 0 | H32: 0 | K32: ='Simplified Capital ProjectionV2'!D53 -> 0 | M32: ='Simplified Capital ProjectionV2'!H53 -> 0 | N32: ='Simplified Capital ProjectionV2'!L53 -> 0 | O32: ='Simplified Capital ProjectionV2'!P53 -> 0 | P32: ='Simplified Capital ProjectionV2'!T53 -> 0 | Q32: ='Simplified Capital ProjectionV2'!X53 -> 0 | S32: ='Simplified Capital ProjectionV2'!AB53 -> 0
B33: 27 | C33: =HLOOKUP($D$4,'Risk-free rates'!$B$9:$J$110,2+B33,FALSE) -> 0.02013283039 | D33: ='Summary and Discount of CoC V2'!$D$3*E32*(1+C33)^(-B33) -> 0 | E33: 0 | F33: 0 | H33: 0 | K33: ='Simplified Capital ProjectionV2'!D54 -> 0 | M33: ='Simplified Capital ProjectionV2'!H54 -> 0 | N33: ='Simplified Capital ProjectionV2'!L54 -> 0 | O33: ='Simplified Capital ProjectionV2'!P54 -> 0 | P33: ='Simplified Capital ProjectionV2'!T54 -> 0 | Q33: ='Simplified Capital ProjectionV2'!X54 -> 0 | S33: ='Simplified Capital ProjectionV2'!AB54 -> 0
B34: 28 | C34: =HLOOKUP($D$4,'Risk-free rates'!$B$9:$J$110,2+B34,FALSE) -> 0.0201374953 | D34: ='Summary and Discount of CoC V2'!$D$3*E33*(1+C34)^(-B34) -> 0 | E34: 0 | F34: 0 | H34: 0 | K34: ='Simplified Capital ProjectionV2'!D55 -> 0 | M34: ='Simplified Capital ProjectionV2'!H55 -> 0 | N34: ='Simplified Capital ProjectionV2'!L55 -> 0 | O34: ='Simplified Capital ProjectionV2'!P55 -> 0 | P34: ='Simplified Capital ProjectionV2'!T55 -> 0 | Q34: ='Simplified Capital ProjectionV2'!X55 -> 0 | S34: ='Simplified Capital ProjectionV2'!AB55 -> 0
B35: 29 | C35: =HLOOKUP($D$4,'Risk-free rates'!$B$9:$J$110,2+B35,FALSE) -> 0.02013768128 | D35: ='Summary and Discount of CoC V2'!$D$3*E34*(1+C35)^(-B35) -> 0 | E35: 0 | F35: 0 | H35: 0 | K35: ='Simplified Capital ProjectionV2'!D56 -> 0 | M35: ='Simplified Capital ProjectionV2'!H56 -> 0 | N35: ='Simplified Capital ProjectionV2'!L56 -> 0 | O35: ='Simplified Capital ProjectionV2'!P56 -> 0 | P35: ='Simplified Capital ProjectionV2'!T56 -> 0 | Q35: ='Simplified Capital ProjectionV2'!X56 -> 0 | S35: ='Simplified Capital ProjectionV2'!AB56 -> 0
B36: 30 | C36: =HLOOKUP($D$4,'Risk-free rates'!$B$9:$J$110,2+B36,FALSE) -> 0.02013348579 | D36: ='Summary and Discount of CoC V2'!$D$3*E35*(1+C36)^(-B36) -> 0 | E36: 0 | F36: 0 | H36: 0 | K36: ='Simplified Capital ProjectionV2'!D57 -> 0 | M36: ='Simplified Capital ProjectionV2'!H57 -> 0 | N36: ='Simplified Capital ProjectionV2'!L57 -> 0 | O36: ='Simplified Capital ProjectionV2'!P57 -> 0 | P36: ='Simplified Capital ProjectionV2'!T57 -> 0 | Q36: ='Simplified Capital ProjectionV2'!X57 -> 0 | S36: ='Simplified Capital ProjectionV2'!AB57 -> 0
B37: 31 | C37: =HLOOKUP($D$4,'Risk-free rates'!$B$9:$J$110,2+B37,FALSE) -> 0.02016882814 | D37: ='Summary and Discount of CoC V2'!$D$3*E36*(1+C37)^(-B37) -> 0 | E37: 0 | F37: 0 | H37: 0 | K37: ='Simplified Capital ProjectionV2'!D58 -> 0 | M37: ='Simplified Capital ProjectionV2'!H58 -> 0 | N37: ='Simplified Capital ProjectionV2'!L58 -> 0 | O37: ='Simplified Capital ProjectionV2'!P58 -> 0 | P37: ='Simplified Capital ProjectionV2'!T58 -> 0 | Q37: ='Simplified Capital ProjectionV2'!X58 -> 0 | S37: ='Simplified Capital ProjectionV2'!AB58 -> 0
B38: 32 | C38: =HLOOKUP($D$4,'Risk-free rates'!$B$9:$J$110,2+B38,FALSE) -> 0.02025355063 | D38: ='Summary and Discount of CoC V2'!$D$3*E37*(1+C38)^(-B38) -> 0 | E38: 0 | F38: 0 | H38: 0 | K38: ='Simplified Capital ProjectionV2'!D59 -> 0 | M38: ='Simplified Capital ProjectionV2'!H59 -> 0 | N38: ='Simplified Capital ProjectionV2'!L59 -> 0 | O38: ='Simplified Capital ProjectionV2'!P59 -> 0 | P38: ='Simplified Capital ProjectionV2'!T59 -> 0 | Q38: ='Simplified Capital ProjectionV2'!X59 -> 0 | S38: ='Simplified Capital ProjectionV2'!AB59 -> 0
B39: 33 | C39: =HLOOKUP($D$4,'Risk-free rates'!$B$9:$J$110,2+B39,FALSE) -> 0.02038462088 | D39: ='Summary and Discount of CoC V2'!$D$3*E38*(1+C39)^(-B39) -> 0 | E39: 0 | F39: 0 | H39: 0 | K39: ='Simplified Capital ProjectionV2'!D60 -> 0 | M39: ='Simplified Capital ProjectionV2'!H60 -> 0 | N39: ='Simplified Capital ProjectionV2'!L60 -> 0 | O39: ='Simplified Capital ProjectionV2'!P60 -> 0 | P39: ='Simplified Capital ProjectionV2'!T60 -> 0 | Q39: ='Simplified Capital ProjectionV2'!X60 -> 0 | S39: ='Simplified Capital ProjectionV2'!AB60 -> 0
B40: 34 | C40: =HLOOKUP($D$4,'Risk-free rates'!$B$9:$J$110,2+B40,FALSE) -> 0.0205589873 | D40: ='Summary and Discount of CoC V2'!$D$3*E39*(1+C40)^(-B40) -> 0 | E40: 0 | F40: 0 | H40: 0 | K40: ='Simplified Capital ProjectionV2'!D61 -> 0 | M40: ='Simplified Capital ProjectionV2'!H61 -> 0 | N40: ='Simplified Capital ProjectionV2'!L61 -> 0 | O40: ='Simplified Capital ProjectionV2'!P61 -> 0 | P40: ='Simplified Capital ProjectionV2'!T61 -> 0 | Q40: ='Simplified Capital ProjectionV2'!X61 -> 0 | S40: ='Simplified Capital ProjectionV2'!AB61 -> 0
B41: 35 | C41: =HLOOKUP($D$4,'Risk-free rates'!$B$9:$J$110,2+B41,FALSE) -> 0.02077357815 | D41: ='Summary and Discount of CoC V2'!$D$3*E40*(1+C41)^(-B41) -> 0 | E41: 0 | F41: 0 | H41: 0 | K41: ='Simplified Capital ProjectionV2'!D62 -> 0 | M41: ='Simplified Capital ProjectionV2'!H62 -> 0 | N41: ='Simplified Capital ProjectionV2'!L62 -> 0 | O41: ='Simplified Capital ProjectionV2'!P62 -> 0 | P41: ='Simplified Capital ProjectionV2'!T62 -> 0 | Q41: ='Simplified Capital ProjectionV2'!X62 -> 0 | S41: ='Simplified Capital ProjectionV2'!AB62 -> 0
B42: 36 | C42: =HLOOKUP($D$4,'Risk-free rates'!$B$9:$J$110,2+B42,FALSE) -> 0.02102530737 | D42: ='Summary and Discount of CoC V2'!$D$3*E41*(1+C42)^(-B42) -> 0 | E42: 0 | F42: 0 | H42: 0 | K42: ='Simplified Capital ProjectionV2'!D63 -> 0 | M42: ='Simplified Capital ProjectionV2'!H63 -> 0 | N42: ='Simplified Capital ProjectionV2'!L63 -> 0 | O42: ='Simplified Capital ProjectionV2'!P63 -> 0 | P42: ='Simplified Capital ProjectionV2'!T63 -> 0 | Q42: ='Simplified Capital ProjectionV2'!X63 -> 0 | S42: ='Simplified Capital ProjectionV2'!AB63 -> 0
B43: 37 | C43: =HLOOKUP($D$4,'Risk-free rates'!$B$9:$J$110,2+B43,FALSE) -> 0.02131107416 | D43: ='Summary and Discount of CoC V2'!$D$3*E42*(1+C43)^(-B43) -> 0 | E43: 0 | F43: 0 | H43: 0 | K43: ='Simplified Capital ProjectionV2'!D64 -> 0 | M43: ='Simplified Capital ProjectionV2'!H64 -> 0 | N43: ='Simplified Capital ProjectionV2'!L64 -> 0 | O43: ='Simplified Capital ProjectionV2'!P64 -> 0 | P43: ='Simplified Capital ProjectionV2'!T64 -> 0 | Q43: ='Simplified Capital ProjectionV2'!X64 -> 0 | S43: ='Simplified Capital ProjectionV2'!AB64 -> 0
B44: 38 | C44: =HLOOKUP($D$4,'Risk-free rates'!$B$9:$J$110,2+B44,FALSE) -> 0.02162776833 | D44: ='Summary and Discount of CoC V2'!$D$3*E43*(1+C44)^(-B44) -> 0 | E44: 0 | F44: 0 | H44: 0 | K44: ='Simplified Capital ProjectionV2'!D65 -> 0 | M44: ='Simplified Capital ProjectionV2'!H65 -> 0 | N44: ='Simplified Capital ProjectionV2'!L65 -> 0 | O44: ='Simplified Capital ProjectionV2'!P65 -> 0 | P44: ='Simplified Capital ProjectionV2'!T65 -> 0 | Q44: ='Simplified Capital ProjectionV2'!X65 -> 0 | S44: ='Simplified Capital ProjectionV2'!AB65 -> 0
B45: 39 | C45: =HLOOKUP($D$4,'Risk-free rates'!$B$9:$J$110,2+B45,FALSE) -> 0.0219722707 | D45: ='Summary and Discount of CoC V2'!$D$3*E44*(1+C45)^(-B45) -> 0 | E45: 0 | F45: 0 | H45: 0 | K45: ='Simplified Capital ProjectionV2'!D66 -> 0 | M45: ='Simplified Capital ProjectionV2'!H66 -> 0 | N45: ='Simplified Capital ProjectionV2'!L66 -> 0 | O45: ='Simplified Capital ProjectionV2'!P66 -> 0 | P45: ='Simplified Capital ProjectionV2'!T66 -> 0 | Q45: ='Simplified Capital ProjectionV2'!X66 -> 0 | S45: ='Simplified Capital ProjectionV2'!AB66 -> 0
B46: 40 | C46: =HLOOKUP($D$4,'Risk-free rates'!$B$9:$J$110,2+B46,FALSE) -> 0.02234145354 | D46: ='Summary and Discount of CoC V2'!$D$3*E45*(1+C46)^(-B46) -> 0 | E46: 0 | F46: 0 | H46: 0 | K46: ='Simplified Capital ProjectionV2'!D67 -> 0 | M46: ='Simplified Capital ProjectionV2'!H67 -> 0 | N46: ='Simplified Capital ProjectionV2'!L67 -> 0 | O46: ='Simplified Capital ProjectionV2'!P67 -> 0 | P46: ='Simplified Capital ProjectionV2'!T67 -> 0 | Q46: ='Simplified Capital ProjectionV2'!X67 -> 0 | S46: ='Simplified Capital ProjectionV2'!AB67 -> 0
B47: 41 | C47: =HLOOKUP($D$4,'Risk-free rates'!$B$9:$J$110,2+B47,FALSE) -> 0.0227321838 | D47: ='Summary and Discount of CoC V2'!$D$3*E46*(1+C47)^(-B47) -> 0 | E47: 0 | F47: 0 | H47: 0 | K47: ='Simplified Capital ProjectionV2'!D68 -> 0 | M47: ='Simplified Capital ProjectionV2'!H68 -> 0 | N47: ='Simplified Capital ProjectionV2'!L68 -> 0 | O47: ='Simplified Capital ProjectionV2'!P68 -> 0 | P47: ='Simplified Capital ProjectionV2'!T68 -> 0 | Q47: ='Simplified Capital ProjectionV2'!X68 -> 0 | S47: ='Simplified Capital ProjectionV2'!AB68 -> 0
B48: 42 | C48: =HLOOKUP($D$4,'Risk-free rates'!$B$9:$J$110,2+B48,FALSE) -> 0.02314132278 | D48: ='Summary and Discount of CoC V2'!$D$3*E47*(1+C48)^(-B48) -> 0 | E48: 0 | F48: 0 | H48: 0 | K48: ='Simplified Capital ProjectionV2'!D69 -> 0 | M48: ='Simplified Capital ProjectionV2'!H69 -> 0 | N48: ='Simplified Capital ProjectionV2'!L69 -> 0 | O48: ='Simplified Capital ProjectionV2'!P69 -> 0 | P48: ='Simplified Capital ProjectionV2'!T69 -> 0 | Q48: ='Simplified Capital ProjectionV2'!X69 -> 0 | S48: ='Simplified Capital ProjectionV2'!AB69 -> 0
B49: 43 | C49: =HLOOKUP($D$4,'Risk-free rates'!$B$9:$J$110,2+B49,FALSE) -> 0.02356572806 | D49: ='Summary and Discount of CoC V2'!$D$3*E48*(1+C49)^(-B49) -> 0 | E49: 0 | F49: 0 | H49: 0 | K49: ='Simplified Capital ProjectionV2'!D70 -> 0 | M49: ='Simplified Capital ProjectionV2'!H70 -> 0 | N49: ='Simplified Capital ProjectionV2'!L70 -> 0 | O49: ='Simplified Capital ProjectionV2'!P70 -> 0 | P49: ='Simplified Capital ProjectionV2'!T70 -> 0 | Q49: ='Simplified Capital ProjectionV2'!X70 -> 0 | S49: ='Simplified Capital ProjectionV2'!AB70 -> 0
B50: 44 | C50: =HLOOKUP($D$4,'Risk-free rates'!$B$9:$J$110,2+B50,FALSE) -> 0.02400225293 | D50: ='Summary and Discount of CoC V2'!$D$3*E49*(1+C50)^(-B50) -> 0 | E50: 0 | F50: 0 | H50: 0 | K50: ='Simplified Capital ProjectionV2'!D71 -> 0 | M50: ='Simplified Capital ProjectionV2'!H71 -> 0 | N50: ='Simplified Capital ProjectionV2'!L71 -> 0 | O50: ='Simplified Capital ProjectionV2'!P71 -> 0 | P50: ='Simplified Capital ProjectionV2'!T71 -> 0 | Q50: ='Simplified Capital ProjectionV2'!X71 -> 0 | S50: ='Simplified Capital ProjectionV2'!AB71 -> 0
B51: 45 | C51: =HLOOKUP($D$4,'Risk-free rates'!$B$9:$J$110,2+B51,FALSE) -> 0.02444774882 | D51: ='Summary and Discount of CoC V2'!$D$3*E50*(1+C51)^(-B51) -> 0 | E51: 0 | F51: 0 | H51: 0 | K51: ='Simplified Capital ProjectionV2'!D72 -> 0 | M51: ='Simplified Capital ProjectionV2'!H72 -> 0 | N51: ='Simplified Capital ProjectionV2'!L72 -> 0 | O51: ='Simplified Capital ProjectionV2'!P72 -> 0 | P51: ='Simplified Capital ProjectionV2'!T72 -> 0 | Q51: ='Simplified Capital ProjectionV2'!X72 -> 0 | S51: ='Simplified Capital ProjectionV2'!AB72 -> 0
B52: 46 | C52: =HLOOKUP($D$4,'Risk-free rates'!$B$9:$J$110,2+B52,FALSE) -> 0.02489906386 | D52: ='Summary and Discount of CoC V2'!$D$3*E51*(1+C52)^(-B52) -> 0 | E52: 0 | F52: 0 | H52: 0 | K52: ='Simplified Capital ProjectionV2'!D73 -> 0 | M52: ='Simplified Capital ProjectionV2'!H73 -> 0 | N52: ='Simplified Capital ProjectionV2'!L73 -> 0 | O52: ='Simplified Capital ProjectionV2'!P73 -> 0 | P52: ='Simplified Capital ProjectionV2'!T73 -> 0 | Q52: ='Simplified Capital ProjectionV2'!X73 -> 0 | S52: ='Simplified Capital ProjectionV2'!AB73 -> 0
B53: 47 | C53: =HLOOKUP($D$4,'Risk-free rates'!$B$9:$J$110,2+B53,FALSE) -> 0.02535304441 | D53: ='Summary and Discount of CoC V2'!$D$3*E52*(1+C53)^(-B53) -> 0 | E53: 0 | F53: 0 | H53: 0 | K53: ='Simplified Capital ProjectionV2'!D74 -> 0 | M53: ='Simplified Capital ProjectionV2'!H74 -> 0 | N53: ='Simplified Capital ProjectionV2'!L74 -> 0 | O53: ='Simplified Capital ProjectionV2'!P74 -> 0 | P53: ='Simplified Capital ProjectionV2'!T74 -> 0 | Q53: ='Simplified Capital ProjectionV2'!X74 -> 0 | S53: ='Simplified Capital ProjectionV2'!AB74 -> 0
B54: 48 | C54: =HLOOKUP($D$4,'Risk-free rates'!$B$9:$J$110,2+B54,FALSE) -> 0.02580653585 | D54: ='Summary and Discount of CoC V2'!$D$3*E53*(1+C54)^(-B54) -> 0 | E54: 0 | F54: 0 | H54: 0 | K54: ='Simplified Capital ProjectionV2'!D75 -> 0 | M54: ='Simplified Capital ProjectionV2'!H75 -> 0 | N54: ='Simplified Capital ProjectionV2'!L75 -> 0 | O54: ='Simplified Capital ProjectionV2'!P75 -> 0 | P54: ='Simplified Capital ProjectionV2'!T75 -> 0 | Q54: ='Simplified Capital ProjectionV2'!X75 -> 0 | S54: ='Simplified Capital ProjectionV2'!AB75 -> 0
B55: 49 | C55: =HLOOKUP($D$4,'Risk-free rates'!$B$9:$J$110,2+B55,FALSE) -> 0.02625638132 | D55: ='Summary and Discount of CoC V2'!$D$3*E54*(1+C55)^(-B55) -> 0 | E55: 0 | F55: 0 | H55: 0 | K55: ='Simplified Capital ProjectionV2'!D76 -> 0 | M55: ='Simplified Capital ProjectionV2'!H76 -> 0 | N55: ='Simplified Capital ProjectionV2'!L76 -> 0 | O55: ='Simplified Capital ProjectionV2'!P76 -> 0 | P55: ='Simplified Capital ProjectionV2'!T76 -> 0 | Q55: ='Simplified Capital ProjectionV2'!X76 -> 0 | S55: ='Simplified Capital ProjectionV2'!AB76 -> 0
B56: 50 | C56: =HLOOKUP($D$4,'Risk-free rates'!$B$9:$J$110,2+B56,FALSE) -> 0.02669942378 | D56: ='Summary and Discount of CoC V2'!$D$3*E55*(1+C56)^(-B56) -> 0 | E56: 0 | F56: 0 | H56: 0 | K56: ='Simplified Capital ProjectionV2'!D77 -> 0 | M56: ='Simplified Capital ProjectionV2'!H77 -> 0 | N56: ='Simplified Capital ProjectionV2'!L77 -> 0 | O56: ='Simplified Capital ProjectionV2'!P77 -> 0 | P56: ='Simplified Capital ProjectionV2'!T77 -> 0 | Q56: ='Simplified Capital ProjectionV2'!X77 -> 0 | S56: ='Simplified Capital ProjectionV2'!AB77 -> 0
B57: 51 | C57: =HLOOKUP($D$4,'Risk-free rates'!$B$9:$J$110,2+B57,FALSE) -> 0.02713250441 | D57: ='Summary and Discount of CoC V2'!$D$3*E56*(1+C57)^(-B57) -> 0 | E57: 0 | F57: 0 | H57: 0 | K57: ='Simplified Capital ProjectionV2'!D78 -> 0 | M57: ='Simplified Capital ProjectionV2'!H78 -> 0 | N57: ='Simplified Capital ProjectionV2'!L78 -> 0 | O57: ='Simplified Capital ProjectionV2'!P78 -> 0 | P57: ='Simplified Capital ProjectionV2'!T78 -> 0 | Q57: ='Simplified Capital ProjectionV2'!X78 -> 0 | S57: ='Simplified Capital ProjectionV2'!AB78 -> 0
B58: 52 | C58: =HLOOKUP($D$4,'Risk-free rates'!$B$9:$J$110,2+B58,FALSE) -> 0.02755246406 | D58: ='Summary and Discount of CoC V2'!$D$3*E57*(1+C58)^(-B58) -> 0 | E58: 0 | F58: 0 | H58: 0 | K58: ='Simplified Capital ProjectionV2'!D79 -> 0 | M58: ='Simplified Capital ProjectionV2'!H79 -> 0 | N58: ='Simplified Capital ProjectionV2'!L79 -> 0 | O58: ='Simplified Capital ProjectionV2'!P79 -> 0 | P58: ='Simplified Capital ProjectionV2'!T79 -> 0 | Q58: ='Simplified Capital ProjectionV2'!X79 -> 0 | S58: ='Simplified Capital ProjectionV2'!AB79 -> 0
B59: 53 | C59: =HLOOKUP($D$4,'Risk-free rates'!$B$9:$J$110,2+B59,FALSE) -> 0.02795614297 | D59: ='Summary and Discount of CoC V2'!$D$3*E58*(1+C59)^(-B59) -> 0 | E59: 0 | F59: 0 | H59: 0 | K59: ='Simplified Capital ProjectionV2'!D80 -> 0 | M59: ='Simplified Capital ProjectionV2'!H80 -> 0 | N59: ='Simplified Capital ProjectionV2'!L80 -> 0 | O59: ='Simplified Capital ProjectionV2'!P80 -> 0 | P59: ='Simplified Capital ProjectionV2'!T80 -> 0 | Q59: ='Simplified Capital ProjectionV2'!X80 -> 0 | S59: ='Simplified Capital ProjectionV2'!AB80 -> 0
B60: 54 | C60: =HLOOKUP($D$4,'Risk-free rates'!$B$9:$J$110,2+B60,FALSE) -> 0.02834038008 | D60: ='Summary and Discount of CoC V2'!$D$3*E59*(1+C60)^(-B60) -> 0 | E60: 0 | F60: 0 | H60: 0 | K60: ='Simplified Capital ProjectionV2'!D81 -> 0 | M60: ='Simplified Capital ProjectionV2'!H81 -> 0 | N60: ='Simplified Capital ProjectionV2'!L81 -> 0 | O60: ='Simplified Capital ProjectionV2'!P81 -> 0 | P60: ='Simplified Capital ProjectionV2'!T81 -> 0 | Q60: ='Simplified Capital ProjectionV2'!X81 -> 0 | S60: ='Simplified Capital ProjectionV2'!AB81 -> 0
B61: 55 | C61: =HLOOKUP($D$4,'Risk-free rates'!$B$9:$J$110,2+B61,FALSE) -> 0.02870201436 | D61: ='Summary and Discount of CoC V2'!$D$3*E60*(1+C61)^(-B61) -> 0 | E61: 0 | F61: 0 | H61: 0 | K61: ='Simplified Capital ProjectionV2'!D82 -> 0 | M61: ='Simplified Capital ProjectionV2'!H82 -> 0 | N61: ='Simplified Capital ProjectionV2'!L82 -> 0 | O61: ='Simplified Capital ProjectionV2'!P82 -> 0 | P61: ='Simplified Capital ProjectionV2'!T82 -> 0 | Q61: ='Simplified Capital ProjectionV2'!X82 -> 0 | S61: ='Simplified Capital ProjectionV2'!AB82 -> 0
B62: 56 | C62: =HLOOKUP($D$4,'Risk-free rates'!$B$9:$J$110,2+B62,FALSE) -> 0.02903788401 | D62: ='Summary and Discount of CoC V2'!$D$3*E61*(1+C62)^(-B62) -> 0 | E62: 0 | F62: 0 | H62: 0 | K62: ='Simplified Capital ProjectionV2'!D83 -> 0 | M62: ='Simplified Capital ProjectionV2'!H83 -> 0 | N62: ='Simplified Capital ProjectionV2'!L83 -> 0 | O62: ='Simplified Capital ProjectionV2'!P83 -> 0 | P62: ='Simplified Capital ProjectionV2'!T83 -> 0 | Q62: ='Simplified Capital ProjectionV2'!X83 -> 0 | S62: ='Simplified Capital ProjectionV2'!AB83 -> 0
B63: 57 | C63: =HLOOKUP($D$4,'Risk-free rates'!$B$9:$J$110,2+B63,FALSE) -> 0.02934482677 | D63: ='Summary and Discount of CoC V2'!$D$3*E62*(1+C63)^(-B63) -> 0 | E63: 0 | F63: 0 | H63: 0 | K63: ='Simplified Capital ProjectionV2'!D84 -> 0 | M63: ='Simplified Capital ProjectionV2'!H84 -> 0 | N63: ='Simplified Capital ProjectionV2'!L84 -> 0 | O63: ='Simplified Capital ProjectionV2'!P84 -> 0 | P63: ='Simplified Capital ProjectionV2'!T84 -> 0 | Q63: ='Simplified Capital ProjectionV2'!X84 -> 0 | S63: ='Simplified Capital ProjectionV2'!AB84 -> 0
B64: 58 | C64: =HLOOKUP($D$4,'Risk-free rates'!$B$9:$J$110,2+B64,FALSE) -> 0.02961967945 | D64: ='Summary and Discount of CoC V2'!$D$3*E63*(1+C64)^(-B64) -> 0 | E64: 0 | F64: 0 | H64: 0 | K64: ='Simplified Capital ProjectionV2'!D85 -> 0 | M64: ='Simplified Capital ProjectionV2'!H85 -> 0 | N64: ='Simplified Capital ProjectionV2'!L85 -> 0 | O64: ='Simplified Capital ProjectionV2'!P85 -> 0 | P64: ='Simplified Capital ProjectionV2'!T85 -> 0 | Q64: ='Simplified Capital ProjectionV2'!X85 -> 0 | S64: ='Simplified Capital ProjectionV2'!AB85 -> 0
B65: 59 | C65: =HLOOKUP($D$4,'Risk-free rates'!$B$9:$J$110,2+B65,FALSE) -> 0.0298592787 | D65: ='Summary and Discount of CoC V2'!$D$3*E64*(1+C65)^(-B65) -> 0 | E65: 0 | F65: 0 | H65: 0 | K65: ='Simplified Capital ProjectionV2'!D86 -> 0 | M65: ='Simplified Capital ProjectionV2'!H86 -> 0 | N65: ='Simplified Capital ProjectionV2'!L86 -> 0 | O65: ='Simplified Capital ProjectionV2'!P86 -> 0 | P65: ='Simplified Capital ProjectionV2'!T86 -> 0 | Q65: ='Simplified Capital ProjectionV2'!X86 -> 0 | S65: ='Simplified Capital ProjectionV2'!AB86 -> 0
B66: 60 | C66: =HLOOKUP($D$4,'Risk-free rates'!$B$9:$J$110,2+B66,FALSE) -> 0.03006046029 | D66: ='Summary and Discount of CoC V2'!$D$3*E65*(1+C66)^(-B66) -> 0 | E66: 0 | F66: 0 | H66: 0 | K66: ='Simplified Capital ProjectionV2'!D87 -> 0 | M66: ='Simplified Capital ProjectionV2'!H87 -> 0 | N66: ='Simplified Capital ProjectionV2'!L87 -> 0 | O66: ='Simplified Capital ProjectionV2'!P87 -> 0 | P66: ='Simplified Capital ProjectionV2'!T87 -> 0 | Q66: ='Simplified Capital ProjectionV2'!X87 -> 0 | S66: ='Simplified Capital ProjectionV2'!AB87 -> 0
B67: 61 | C67: =HLOOKUP($D$4,'Risk-free rates'!$B$9:$J$110,2+B67,FALSE) -> 0.03025508316 | D67: ='Summary and Discount of CoC V2'!$D$3*E66*(1+C67)^(-B67) -> 0 | E67: 0 | F67: 0 | H67: 0 | K67: ='Simplified Capital ProjectionV2'!D88 -> 0 | M67: ='Simplified Capital ProjectionV2'!H88 -> 0 | N67: ='Simplified Capital ProjectionV2'!L88 -> 0 | O67: ='Simplified Capital ProjectionV2'!P88 -> 0 | P67: ='Simplified Capital ProjectionV2'!T88 -> 0 | Q67: ='Simplified Capital ProjectionV2'!X88 -> 0 | S67: ='Simplified Capital ProjectionV2'!AB88 -> 0
B68: 62 | C68: =HLOOKUP($D$4,'Risk-free rates'!$B$9:$J$110,2+B68,FALSE) -> 0.03044346289 | D68: ='Summary and Discount of CoC V2'!$D$3*E67*(1+C68)^(-B68) -> 0 | E68: 0 | F68: 0 | H68: 0 | K68: ='Simplified Capital ProjectionV2'!D89 -> 0 | M68: ='Simplified Capital ProjectionV2'!H89 -> 0 | N68: ='Simplified Capital ProjectionV2'!L89 -> 0 | O68: ='Simplified Capital ProjectionV2'!P89 -> 0 | P68: ='Simplified Capital ProjectionV2'!T89 -> 0 | Q68: ='Simplified Capital ProjectionV2'!X89 -> 0 | S68: ='Simplified Capital ProjectionV2'!AB89 -> 0
B69: 63 | C69: =HLOOKUP($D$4,'Risk-free rates'!$B$9:$J$110,2+B69,FALSE) -> 0.03062589512 | D69: ='Summary and Discount of CoC V2'!$D$3*E68*(1+C69)^(-B69) -> 0 | E69: 0 | F69: 0 | H69: 0 | K69: ='Simplified Capital ProjectionV2'!D90 -> 0 | M69: ='Simplified Capital ProjectionV2'!H90 -> 0 | N69: ='Simplified Capital ProjectionV2'!L90 -> 0 | O69: ='Simplified Capital ProjectionV2'!P90 -> 0 | P69: ='Simplified Capital ProjectionV2'!T90 -> 0 | Q69: ='Simplified Capital ProjectionV2'!X90 -> 0 | S69: ='Simplified Capital ProjectionV2'!AB90 -> 0
B70: 64 | C70: =HLOOKUP($D$4,'Risk-free rates'!$B$9:$J$110,2+B70,FALSE) -> 0.03080265715 | D70: ='Summary and Discount of CoC V2'!$D$3*E69*(1+C70)^(-B70) -> 0 | E70: 0 | F70: 0 | H70: 0 | K70: ='Simplified Capital ProjectionV2'!D91 -> 0 | M70: ='Simplified Capital ProjectionV2'!H91 -> 0 | N70: ='Simplified Capital ProjectionV2'!L91 -> 0 | O70: ='Simplified Capital ProjectionV2'!P91 -> 0 | P70: ='Simplified Capital ProjectionV2'!T91 -> 0 | Q70: ='Simplified Capital ProjectionV2'!X91 -> 0 | S70: ='Simplified Capital ProjectionV2'!AB91 -> 0
B71: 65 | C71: =HLOOKUP($D$4,'Risk-free rates'!$B$9:$J$110,2+B71,FALSE) -> 0.03097400928 | D71: ='Summary and Discount of CoC V2'!$D$3*E70*(1+C71)^(-B71) -> 0 | E71: =F71+G71+H71 -> 0 | F71: =(I71^2+J71^2+K71^2+L71^2+(M71+N71+O71)^2+O71^2+P71^2+Q71^2+-0.5*((M71+N71+O71)*Q71)+R71^2+S71^2)^0.5 -> 0 | H71: 0 | K71: ='Simplified Capital ProjectionV2'!D92 -> 0 | M71: ='Simplified Capital ProjectionV2'!H92 -> 0 | N71: ='Simplified Capital ProjectionV2'!L92 -> 0 | O71: ='Simplified Capital ProjectionV2'!P92 -> 0 | P71: ='Simplified Capital ProjectionV2'!T92 -> 0 | Q71: ='Simplified Capital ProjectionV2'!X92 -> 0 | S71: ='Simplified Capital ProjectionV2'!AB92 -> 0
B72: 66 | C72: =HLOOKUP($D$4,'Risk-free rates'!$B$9:$J$110,2+B72,FALSE) -> 0.03114019613 | D72: ='Summary and Discount of CoC V2'!$D$3*E71*(1+C72)^(-B72) -> 0 | E72: =F72+G72+H72 -> 0 | F72: =(I72^2+J72^2+K72^2+L72^2+(M72+N72+O72)^2+O72^2+P72^2+Q72^2+-0.5*((M72+N72+O72)*Q72)+R72^2+S72^2)^0.5 -> 0 | H72: =IF(F72<>0,H$6*F72/F$6,0) -> 0 | K72: ='Simplified Capital ProjectionV2'!D93 -> 0 | M72: ='Simplified Capital ProjectionV2'!H93 -> 0 | N72: ='Simplified Capital ProjectionV2'!L93 -> 0 | O72: ='Simplified Capital ProjectionV2'!P93 -> 0 | P72: ='Simplified Capital ProjectionV2'!T93 -> 0 | Q72: ='Simplified Capital ProjectionV2'!X93 -> 0 | S72: ='Simplified Capital ProjectionV2'!AB93 -> 0
B73: 67 | C73: =HLOOKUP($D$4,'Risk-free rates'!$B$9:$J$110,2+B73,FALSE) -> 0.03130144777 | D73: ='Summary and Discount of CoC V2'!$D$3*E72*(1+C73)^(-B73) -> 0 | E73: =F73+G73+H73 -> 0 | F73: =(I73^2+J73^2+K73^2+L73^2+(M73+N73+O73)^2+O73^2+P73^2+Q73^2+-0.5*((M73+N73+O73)*Q73)+R73^2+S73^2)^0.5 -> 0 | H73: =IF(F73<>0,H$6*F73/F$6,0) -> 0 | K73: ='Simplified Capital ProjectionV2'!D94 -> 0 | M73: ='Simplified Capital ProjectionV2'!H94 -> 0 | N73: ='Simplified Capital ProjectionV2'!L94 -> 0 | O73: ='Simplified Capital ProjectionV2'!P94 -> 0 | P73: ='Simplified Capital ProjectionV2'!T94 -> 0 | Q73: ='Simplified Capital ProjectionV2'!X94 -> 0 | S73: ='Simplified Capital ProjectionV2'!AB94 -> 0
B75: Risk Margin | D75: =SUM(D7:D73) -> 63.81958782
F105: Adj (RU) at t=0 | G105: =G6 -> 0
F106: Adj (RU) at t=1 | G106: =G7 -> 0
F107: Adj (RU) at t=2 | G107: 0
F108: Adj (RU) at t=3 | G108: 0
F109: Adj (RU) at t=4 | G109: 0
F110: Adj (RU) at t=5 | G110: 0
F111: Adj (RU) at t=6 | G111: 0
F112: Adj (RU) at t=7 | G112: 0
F113: Adj (RU) at t=8 | G113: 0
F114: Adj (RU) at t=9 | G114: 0
F115: Adj (RU) at t=10 | G115: 0
F116: Adj (RU) at t=11 | G116: 0
F117: Adj (RU) at t=12 | G117: 0
F118: Adj (RU) at t=13 | G118: 0
F119: Adj (RU) at t=14 | G119: 0
F120: Adj (RU) at t=15 | G120: 0
F121: Adj (RU) at t=16 | G121: 0
F122: Adj (RU) at t=17 | G122: 0
F123: Adj (RU) at t=18 | G123: 0
F124: Adj (RU) at t=19 | G124: 0
F125: Adj (RU) at t=20 | G125: 0
F126: Adj (RU) at t=21 | G126: 0
F127: Adj (RU) at t=22 | G127: 0
F128: Adj (RU) at t=23 | G128: 0
F129: Adj (RU) at t=24 | G129: 0
F130: Adj (RU) at t=25 | G130: 0
F131: Adj (RU) at t=26 | G131: 0
F132: Adj (RU) at t=27 | G132: 0
F133: Adj (RU) at t=28 | G133: 0
F134: Adj (RU) at t=29 | G134: 0
F135: Adj (RU) at t=30 | G135: 0
F136: Adj (RU) at t=31 | G136: 0
F137: Adj (RU) at t=32 | G137: 0
F138: Adj (RU) at t=33 | G138: 0
F139: Adj (RU) at t=34 | G139: 0
F140: Adj (RU) at t=35 | G140: 0
F141: Adj (RU) at t=36 | G141: 0
F142: Adj (RU) at t=37 | G142: 0
F143: Adj (RU) at t=38 | G143: 0
F144: Adj (RU) at t=39 | G144: 0
F145: Adj (RU) at t=40 | G145: 0
F146: Adj (RU) at t=41 | G146: 0
F147: Adj (RU) at t=42 | G147: 0
F148: Adj (RU) at t=43 | G148: 0
F149: Adj (RU) at t=44 | G149: 0
F150: Adj (RU) at t=45 | G150: 0
F151: Adj (RU) at t=46 | G151: 0
F152: Adj (RU) at t=47 | G152: 0
F153: Adj (RU) at t=48 | G153: 0
F154: Adj (RU) at t=49 | G154: 0
F155: Adj (RU) at t=50 | G155: 0
F156: Adj (RU) at t=51 | G156: 0
F157: Adj (RU) at t=52 | G157: 0
F158: Adj (RU) at t=53 | G158: 0
F159: Adj (RU) at t=54 | G159: 0
F160: Adj (RU) at t=55 | G160: 0
F161: Adj (RU) at t=56 | G161: 0
F162: Adj (RU) at t=57 | G162: 0
F163: Adj (RU) at t=58 | G163: 0
F164: Adj (RU) at t=59 | G164: 0
F165: Adj (RU) at t=60 | G165: 0
F166: Adj (RU) at t=61 | G166: 0
F167: Adj (RU) at t=62 | G167: 0
F168: Adj (RU) at t=63 | G168: 0
F169: Adj (RU) at t=64 | G169: 0
F170: Adj (RU) at t=65 | G170: =G71 -> 0
F171: Adj (RU) at t=66 | G171: =G72 -> 0
F172: Adj (RU) at t=67 | G172: =G73 -> 0
F173: Operational risk (RU) at t=0 | G173: =H6 -> 50
F174: Operational risk (RU) at t=1 | G174: =H7 -> 32.17721213
F175: Operational risk (RU) at t=2 | G175: 26.37162032
F176: Operational risk (RU) at t=3 | G176: 20.67609391
F177: Operational risk (RU) at t=4 | G177: 15.21474561
F178: Operational risk (RU) at t=5 | G178: 10.36461442
F179: Operational risk (RU) at t=6 | G179: 8.291691535
F180: Operational risk (RU) at t=7 | G180: 6.218768651
F181: Operational risk (RU) at t=8 | G181: 4.145845767
F182: Operational risk (RU) at t=9 | G182: 2.072922884
F183: Operational risk (RU) at t=10 | G183: 0
F184: Operational risk (RU) at t=11 | G184: 0
F185: Operational risk (RU) at t=12 | G185: 0
F186: Operational risk (RU) at t=13 | G186: 0
F187: Operational risk (RU) at t=14 | G187: 0
F188: Operational risk (RU) at t=15 | G188: 0
F189: Operational risk (RU) at t=16 | G189: 0
F190: Operational risk (RU) at t=17 | G190: 0
F191: Operational risk (RU) at t=18 | G191: 0
F192: Operational risk (RU) at t=19 | G192: 0
F193: Operational risk (RU) at t=20 | G193: 0
F194: Operational risk (RU) at t=21 | G194: 0
F195: Operational risk (RU) at t=22 | G195: 0
F196: Operational risk (RU) at t=23 | G196: 0
F197: Operational risk (RU) at t=24 | G197: 0
F198: Operational risk (RU) at t=25 | G198: 0
F199: Operational risk (RU) at t=26 | G199: 0
F200: Operational risk (RU) at t=27 | G200: 0
F201: Operational risk (RU) at t=28 | G201: 0
F202: Operational risk (RU) at t=29 | G202: 0
F203: Operational risk (RU) at t=30 | G203: 0
F204: Operational risk (RU) at t=31 | G204: 0
F205: Operational risk (RU) at t=32 | G205: 0
F206: Operational risk (RU) at t=33 | G206: 0
F207: Operational risk (RU) at t=34 | G207: 0
F208: Operational risk (RU) at t=35 | G208: 0
F209: Operational risk (RU) at t=36 | G209: 0
F210: Operational risk (RU) at t=37 | G210: 0
F211: Operational risk (RU) at t=38 | G211: 0
F212: Operational risk (RU) at t=39 | G212: 0
F213: Operational risk (RU) at t=40 | G213: 0
F214: Operational risk (RU) at t=41 | G214: 0
F215: Operational risk (RU) at t=42 | G215: 0
F216: Operational risk (RU) at t=43 | G216: 0
F217: Operational risk (RU) at t=44 | G217: 0
F218: Operational risk (RU) at t=45 | G218: 0
F219: Operational risk (RU) at t=46 | G219: 0
F220: Operational risk (RU) at t=47 | G220: 0
F221: Operational risk (RU) at t=48 | G221: 0
F222: Operational risk (RU) at t=49 | G222: 0
F223: Operational risk (RU) at t=50 | G223: 0
F224: Operational risk (RU) at t=51 | G224: 0
F225: Operational risk (RU) at t=52 | G225: 0
F226: Operational risk (RU) at t=53 | G226: 0
F227: Operational risk (RU) at t=54 | G227: 0
F228: Operational risk (RU) at t=55 | G228: 0
F229: Operational risk (RU) at t=56 | G229: 0
F230: Operational risk (RU) at t=57 | G230: 0
F231: Operational risk (RU) at t=58 | G231: 0
... 8 more rows

Sheet Capital Req't Calc - New
B5: Capital Requirement Calculation - New Basis
B7: Risk Margin - New Basis | D7: =SUM(D14:D113) -> 478543.844
B9: Cost of Capital | D9: 0.06
C10: Currency
C11: =Summary!D11 -> USD | F11: Future Capital Req't calculation | J11: Risk Component
B12: t | C12: Yield curve | D12: Discounted CoC | E12: Total BSCR | F12: BMA Approved Adjustments | G12: Operational Risk | H12: Preliminary BSCR (excl adj and OR) | I12: Long Term Insurance Risk | J12: Counterparty Credit Risk | K12: Insurance Risk - Mortality | L12: Insurance Risk - Stop Loss | M12: Insurance Risk - Riders | N12: Insurance Risk - Morbidity and Disability | O12: Insurance Risk - Longevity | P12: Insurance Risk - Variable Annuities | Q12: Insurance Risk - Other
B13: 0 | C13: N/A | D13: N/A | E13: =H13+F13+G13 -> 1665585.702 | F13: ='Simplified Capital Proj - New'!D22 -> 200000 | G13: ='Simplified Capital Proj - New'!$D$18*H13 -> 133235.0638 | H13: =SQRT(MMULT(I13:J13,MMULT('Correlation Matrix'!$M$12:$N$13,TRANSPOSE(I13:J13)))) -> 1332350.638 | I13: =SQRT(MMULT(K13:Q13,MMULT('Correlation Matrix'!$C$11:$I$17,TRANSPOSE(K13:Q13)))) -> 1116282.894 | J13: ='Simplified Capital Proj - New'!H22 -> 500000 | K13: ='Simplified Capital Proj - New'!L22 -> 500000 | L13: ='Simplified Capital Proj - New'!P22 -> 5000 | M13: ='Simplified Capital Proj - New'!T22 -> 5000 | N13: ='Simplified Capital Proj - New'!X22 -> 50000 | O13: ='Simplified Capital Proj - New'!AB22 -> 400000 | P13: ='Simplified Capital Proj - New'!AG22 -> 1000000 | Q13: ='Simplified Capital Proj - New'!AK22 -> 20000
B14: 1 | C14: =HLOOKUP($C$11,'Risk-free rates'!$B$9:$J$110,2+B14,FALSE) -> 0.01684894319 | D14: ='Capital Req''t Calc - New'!$D$9*E13*(1+C14)^(-B14) -> 98279.24079 | E14: 1466640.493 | F14: ='Simplified Capital Proj - New'!D23 -> 180000 | G14: ='Simplified Capital Proj - New'!$D$18*H14 -> 116967.3175 | H14: =SQRT(MMULT(I14:J14,MMULT('Correlation Matrix'!$M$12:$N$13,TRANSPOSE(I14:J14)))) -> 1169673.175 | I14: =SQRT(MMULT(K14:Q14,MMULT('Correlation Matrix'!$C$11:$I$17,TRANSPOSE(K14:Q14)))) -> 1003691.686 | J14: ='Simplified Capital Proj - New'!H23 -> 400000 | K14: ='Simplified Capital Proj - New'!L23 -> 450000 | L14: ='Simplified Capital Proj - New'!P23 -> 4000 | M14: ='Simplified Capital Proj - New'!T23 -> 4000 | N14: ='Simplified Capital Proj - New'!X23 -> 40000 | O14: ='Simplified Capital Proj - New'!AB23 -> 360000 | P14: ='Simplified Capital Proj - New'!AG23 -> 900000 | Q14: ='Simplified Capital Proj - New'!AK23 -> 18000
B15: 2 | C15: =HLOOKUP($C$11,'Risk-free rates'!$B$9:$J$110,2+B15,FALSE) -> 0.01600462569 | D15: ='Capital Req''t Calc - New'!$D$9*E14*(1+C15)^(-B15) -> 85247.8729 | E15: 1269738.77 | F15: ='Simplified Capital Proj - New'!D24 -> 160000 | G15: ='Simplified Capital Proj - New'!$D$18*H15 -> 100885.3427 | H15: =SQRT(MMULT(I15:J15,MMULT('Correlation Matrix'!$M$12:$N$13,TRANSPOSE(I15:J15)))) -> 1008853.427 | I15: =SQRT(MMULT(K15:Q15,MMULT('Correlation Matrix'!$C$11:$I$17,TRANSPOSE(K15:Q15)))) -> 891131.584 | J15: ='Simplified Capital Proj - New'!H24 -> 300000 | K15: ='Simplified Capital Proj - New'!L24 -> 400000 | L15: ='Simplified Capital Proj - New'!P24 -> 3000 | M15: ='Simplified Capital Proj - New'!T24 -> 3000 | N15: ='Simplified Capital Proj - New'!X24 -> 30000 | O15: ='Simplified Capital Proj - New'!AB24 -> 320000 | P15: ='Simplified Capital Proj - New'!AG24 -> 800000 | Q15: ='Simplified Capital Proj - New'!AK24 -> 16000
B16: 3 | C16: =HLOOKUP($C$11,'Risk-free rates'!$B$9:$J$110,2+B16,FALSE) -> 0.01592702203 | D16: ='Capital Req''t Calc - New'!$D$9*E15*(1+C16)^(-B16) -> 72657.10588 | E16: 1076037.7 | F16: ='Simplified Capital Proj - New'!D25 -> 140000 | G16: ='Simplified Capital Proj - New'!$D$18*H16 -> 85094.33636 | H16: =SQRT(MMULT(I16:J16,MMULT('Correlation Matrix'!$M$12:$N$13,TRANSPOSE(I16:J16)))) -> 850943.3636 | I16: =SQRT(MMULT(K16:Q16,MMULT('Correlation Matrix'!$C$11:$I$17,TRANSPOSE(K16:Q16)))) -> 778616.08 | J16: ='Simplified Capital Proj - New'!H25 -> 200000 | K16: ='Simplified Capital Proj - New'!L25 -> 350000 | L16: ='Simplified Capital Proj - New'!P25 -> 2000 | M16: ='Simplified Capital Proj - New'!T25 -> 2000 | N16: ='Simplified Capital Proj - New'!X25 -> 20000 | O16: ='Simplified Capital Proj - New'!AB25 -> 280000 | P16: ='Simplified Capital Proj - New'!AG25 -> 700000 | Q16: ='Simplified Capital Proj - New'!AK25 -> 14000
B17: 4 | C17: =HLOOKUP($C$11,'Risk-free rates'!$B$9:$J$110,2+B17,FALSE) -> 0.01608265108 | D17: ='Capital Req''t Calc - New'!$D$9*E16*(1+C17)^(-B17) -> 60570.70008 | E17: 887708.5027 | F17: ='Simplified Capital Proj - New'!D26 -> 120000 | G17: ='Simplified Capital Proj - New'!$D$18*H17 -> 69791.68207 | H17: =SQRT(MMULT(I17:J17,MMULT('Correlation Matrix'!$M$12:$N$13,TRANSPOSE(I17:J17)))) -> 697916.8207 | I17: =SQRT(MMULT(K17:Q17,MMULT('Correlation Matrix'!$C$11:$I$17,TRANSPOSE(K17:Q17)))) -> 666167.7717 | J17: ='Simplified Capital Proj - New'!H26 -> 100000 | K17: ='Simplified Capital Proj - New'!L26 -> 300000 | L17: ='Simplified Capital Proj - New'!P26 -> 1000 | M17: ='Simplified Capital Proj - New'!T26 -> 1000 | N17: ='Simplified Capital Proj - New'!X26 -> 10000 | O17: ='Simplified Capital Proj - New'!AB26 -> 240000 | P17: ='Simplified Capital Proj - New'!AG26 -> 600000 | Q17: ='Simplified Capital Proj - New'!AK26 -> 12000
B18: 5 | C18: =HLOOKUP($C$11,'Risk-free rates'!$B$9:$J$110,2+B18,FALSE) -> 0.01636053865 | D18: ='Capital Req''t Calc - New'!$D$9*E17*(1+C18)^(-B18) -> 49111.43866 | E18: 709210.3496 | F18: ='Simplified Capital Proj - New'!D27 -> 100000 | G18: ='Simplified Capital Proj - New'!$D$18*H18 -> 55382.75905 | H18: =SQRT(MMULT(I18:J18,MMULT('Correlation Matrix'!$M$12:$N$13,TRANSPOSE(I18:J18)))) -> 553827.5905 | I18: =SQRT(MMULT(K18:Q18,MMULT('Correlation Matrix'!$C$11:$I$17,TRANSPOSE(K18:Q18)))) -> 553827.5905 | J18: ='Simplified Capital Proj - New'!H27 -> 0 | K18: ='Simplified Capital Proj - New'!L27 -> 250000 | L18: ='Simplified Capital Proj - New'!P27 -> 0 | M18: ='Simplified Capital Proj - New'!T27 -> 0 | N18: ='Simplified Capital Proj - New'!X27 -> 0 | O18: ='Simplified Capital Proj - New'!AB27 -> 200000 | P18: ='Simplified Capital Proj - New'!AG27 -> 500000 | Q18: ='Simplified Capital Proj - New'!AK27 -> 10000
B19: 6 | C19: =HLOOKUP($C$11,'Risk-free rates'!$B$9:$J$110,2+B19,FALSE) -> 0.01669133192 | D19: ='Capital Req''t Calc - New'!$D$9*E18*(1+C19)^(-B19) -> 38529.34178 | E19: 567368.2796 | F19: ='Simplified Capital Proj - New'!D28 -> 80000 | G19: ='Simplified Capital Proj - New'!$D$18*H19 -> 44306.20724 | H19: =SQRT(MMULT(I19:J19,MMULT('Correlation Matrix'!$M$12:$N$13,TRANSPOSE(I19:J19)))) -> 443062.0724 | I19: =SQRT(MMULT(K19:Q19,MMULT('Correlation Matrix'!$C$11:$I$17,TRANSPOSE(K19:Q19)))) -> 443062.0724 | J19: ='Simplified Capital Proj - New'!H28 -> 0 | K19: ='Simplified Capital Proj - New'!L28 -> 200000 | L19: ='Simplified Capital Proj - New'!P28 -> 0 | M19: ='Simplified Capital Proj - New'!T28 -> 0 | N19: ='Simplified Capital Proj - New'!X28 -> 0 | O19: ='Simplified Capital Proj - New'!AB28 -> 160000 | P19: ='Simplified Capital Proj - New'!AG28 -> 400000 | Q19: ='Simplified Capital Proj - New'!AK28 -> 8000
B20: 7 | C20: =HLOOKUP($C$11,'Risk-free rates'!$B$9:$J$110,2+B20,FALSE) -> 0.01702833084 | D20: ='Capital Req''t Calc - New'!$D$9*E19*(1+C20)^(-B20) -> 30247.18377 | E20: 425526.2097 | F20: ='Simplified Capital Proj - New'!D29 -> 60000 | G20: ='Simplified Capital Proj - New'!$D$18*H20 -> 33229.65543 | H20: =SQRT(MMULT(I20:J20,MMULT('Correlation Matrix'!$M$12:$N$13,TRANSPOSE(I20:J20)))) -> 332296.5543 | I20: =SQRT(MMULT(K20:Q20,MMULT('Correlation Matrix'!$C$11:$I$17,TRANSPOSE(K20:Q20)))) -> 332296.5543 | J20: ='Simplified Capital Proj - New'!H29 -> 0 | K20: ='Simplified Capital Proj - New'!L29 -> 150000 | L20: ='Simplified Capital Proj - New'!P29 -> 0 | M20: ='Simplified Capital Proj - New'!T29 -> 0 | N20: ='Simplified Capital Proj - New'!X29 -> 0 | O20: ='Simplified Capital Proj - New'!AB29 -> 120000 | P20: ='Simplified Capital Proj - New'!AG29 -> 300000 | Q20: ='Simplified Capital Proj - New'!AK29 -> 6000
B21: 8 | C21: =HLOOKUP($C$11,'Risk-free rates'!$B$9:$J$110,2+B21,FALSE) -> 0.01735579372 | D21: ='Capital Req''t Calc - New'!$D$9*E20*(1+C21)^(-B21) -> 22248.18894 | E21: 283684.1398 | F21: ='Simplified Capital Proj - New'!D30 -> 40000 | G21: ='Simplified Capital Proj - New'!$D$18*H21 -> 22153.10362 | H21: =SQRT(MMULT(I21:J21,MMULT('Correlation Matrix'!$M$12:$N$13,TRANSPOSE(I21:J21)))) -> 221531.0362 | I21: =SQRT(MMULT(K21:Q21,MMULT('Correlation Matrix'!$C$11:$I$17,TRANSPOSE(K21:Q21)))) -> 221531.0362 | J21: ='Simplified Capital Proj - New'!H30 -> 0 | K21: ='Simplified Capital Proj - New'!L30 -> 100000 | L21: ='Simplified Capital Proj - New'!P30 -> 0 | M21: ='Simplified Capital Proj - New'!T30 -> 0 | N21: ='Simplified Capital Proj - New'!X30 -> 0 | O21: ='Simplified Capital Proj - New'!AB30 -> 80000 | P21: ='Simplified Capital Proj - New'!AG30 -> 200000 | Q21: ='Simplified Capital Proj - New'!AK30 -> 4000
B22: 9 | C22: =HLOOKUP($C$11,'Risk-free rates'!$B$9:$J$110,2+B22,FALSE) -> 0.01769454424 | D22: ='Capital Req''t Calc - New'!$D$9*E21*(1+C22)^(-B22) -> 14535.47704 | E22: 141842.0699 | F22: ='Simplified Capital Proj - New'!D31 -> 20000 | G22: ='Simplified Capital Proj - New'!$D$18*H22 -> 11076.55181 | H22: =SQRT(MMULT(I22:J22,MMULT('Correlation Matrix'!$M$12:$N$13,TRANSPOSE(I22:J22)))) -> 110765.5181 | I22: =SQRT(MMULT(K22:Q22,MMULT('Correlation Matrix'!$C$11:$I$17,TRANSPOSE(K22:Q22)))) -> 110765.5181 | J22: ='Simplified Capital Proj - New'!H31 -> 0 | K22: ='Simplified Capital Proj - New'!L31 -> 50000 | L22: ='Simplified Capital Proj - New'!P31 -> 0 | M22: ='Simplified Capital Proj - New'!T31 -> 0 | N22: ='Simplified Capital Proj - New'!X31 -> 0 | O22: ='Simplified Capital Proj - New'!AB31 -> 40000 | P22: ='Simplified Capital Proj - New'!AG31 -> 100000 | Q22: ='Simplified Capital Proj - New'!AK31 -> 2000
B23: 10 | C23: =HLOOKUP($C$11,'Risk-free rates'!$B$9:$J$110,2+B23,FALSE) -> 0.01803835286 | D23: ='Capital Req''t Calc - New'!$D$9*E22*(1+C23)^(-B23) -> 7117.294141 | E23: 0 | F23: ='Simplified Capital Proj - New'!D32 -> 0 | G23: ='Simplified Capital Proj - New'!$D$18*H23 -> 0 | H23: =SQRT(MMULT(I23:J23,MMULT('Correlation Matrix'!$M$12:$N$13,TRANSPOSE(I23:J23)))) -> 0 | I23: =SQRT(MMULT(K23:Q23,MMULT('Correlation Matrix'!$C$11:$I$17,TRANSPOSE(K23:Q23)))) -> 0 | J23: ='Simplified Capital Proj - New'!H32 -> 0 | K23: ='Simplified Capital Proj - New'!L32 -> 0 | L23: ='Simplified Capital Proj - New'!P32 -> 0 | M23: ='Simplified Capital Proj - New'!T32 -> 0 | N23: ='Simplified Capital Proj - New'!X32 -> 0 | O23: ='Simplified Capital Proj - New'!AB32 -> 0 | P23: ='Simplified Capital Proj - New'!AG32 -> 0 | Q23: ='Simplified Capital Proj - New'!AK32 -> 0
B24: 11 | C24: =HLOOKUP($C$11,'Risk-free rates'!$B$9:$J$110,2+B24,FALSE) -> 0.0183561285 | D24: ='Capital Req''t Calc - New'!$D$9*E23*(1+C24)^(-B24) -> 0 | E24: 0 | F24: ='Simplified Capital Proj - New'!D33 -> 0 | G24: ='Simplified Capital Proj - New'!$D$18*H24 -> 0 | H24: =SQRT(MMULT(I24:J24,MMULT('Correlation Matrix'!$M$12:$N$13,TRANSPOSE(I24:J24)))) -> 0 | I24: =SQRT(MMULT(K24:Q24,MMULT('Correlation Matrix'!$C$11:$I$17,TRANSPOSE(K24:Q24)))) -> 0 | J24: ='Simplified Capital Proj - New'!H33 -> 0 | K24: ='Simplified Capital Proj - New'!L33 -> 0 | L24: ='Simplified Capital Proj - New'!P33 -> 0 | M24: ='Simplified Capital Proj - New'!T33 -> 0 | N24: ='Simplified Capital Proj - New'!X33 -> 0 | O24: ='Simplified Capital Proj - New'!AB33 -> 0 | P24: ='Simplified Capital Proj - New'!AG33 -> 0 | Q24: ='Simplified Capital Proj - New'!AK33 -> 0
B25: 12 | C25: =HLOOKUP($C$11,'Risk-free rates'!$B$9:$J$110,2+B25,FALSE) -> 0.01861797367 | D25: ='Capital Req''t Calc - New'!$D$9*E24*(1+C25)^(-B25) -> 0 | E25: 0 | F25: ='Simplified Capital Proj - New'!D34 -> 0 | G25: ='Simplified Capital Proj - New'!$D$18*H25 -> 0 | H25: =SQRT(MMULT(I25:J25,MMULT('Correlation Matrix'!$M$12:$N$13,TRANSPOSE(I25:J25)))) -> 0 | I25: =SQRT(MMULT(K25:Q25,MMULT('Correlation Matrix'!$C$11:$I$17,TRANSPOSE(K25:Q25)))) -> 0 | J25: ='Simplified Capital Proj - New'!H34 -> 0 | K25: ='Simplified Capital Proj - New'!L34 -> 0 | L25: ='Simplified Capital Proj - New'!P34 -> 0 | M25: ='Simplified Capital Proj - New'!T34 -> 0 | N25: ='Simplified Capital Proj - New'!X34 -> 0 | O25: ='Simplified Capital Proj - New'!AB34 -> 0 | P25: ='Simplified Capital Proj - New'!AG34 -> 0 | Q25: ='Simplified Capital Proj - New'!AK34 -> 0
B26: 13 | C26: =HLOOKUP($C$11,'Risk-free rates'!$B$9:$J$110,2+B26,FALSE) -> 0.01886533683 | D26: ='Capital Req''t Calc - New'!$D$9*E25*(1+C26)^(-B26) -> 0 | E26: 0 | F26: ='Simplified Capital Proj - New'!D35 -> 0 | G26: ='Simplified Capital Proj - New'!$D$18*H26 -> 0 | H26: =SQRT(MMULT(I26:J26,MMULT('Correlation Matrix'!$M$12:$N$13,TRANSPOSE(I26:J26)))) -> 0 | I26: =SQRT(MMULT(K26:Q26,MMULT('Correlation Matrix'!$C$11:$I$17,TRANSPOSE(K26:Q26)))) -> 0 | J26: ='Simplified Capital Proj - New'!H35 -> 0 | K26: ='Simplified Capital Proj - New'!L35 -> 0 | L26: ='Simplified Capital Proj - New'!P35 -> 0 | M26: ='Simplified Capital Proj - New'!T35 -> 0 | N26: ='Simplified Capital Proj - New'!X35 -> 0 | O26: ='Simplified Capital Proj - New'!AB35 -> 0 | P26: ='Simplified Capital Proj - New'!AG35 -> 0 | Q26: ='Simplified Capital Proj - New'!AK35 -> 0
B27: 14 | C27: =HLOOKUP($C$11,'Risk-free rates'!$B$9:$J$110,2+B27,FALSE) -> 0.019083972 | D27: ='Capital Req''t Calc - New'!$D$9*E26*(1+C27)^(-B27) -> 0 | E27: 0 | F27: ='Simplified Capital Proj - New'!D36 -> 0 | G27: ='Simplified Capital Proj - New'!$D$18*H27 -> 0 | H27: =SQRT(MMULT(I27:J27,MMULT('Correlation Matrix'!$M$12:$N$13,TRANSPOSE(I27:J27)))) -> 0 | I27: =SQRT(MMULT(K27:Q27,MMULT('Correlation Matrix'!$C$11:$I$17,TRANSPOSE(K27:Q27)))) -> 0 | J27: ='Simplified Capital Proj - New'!H36 -> 0 | K27: ='Simplified Capital Proj - New'!L36 -> 0 | L27: ='Simplified Capital Proj - New'!P36 -> 0 | M27: ='Simplified Capital Proj - New'!T36 -> 0 | N27: ='Simplified Capital Proj - New'!X36 -> 0 | O27: ='Simplified Capital Proj - New'!AB36 -> 0 | P27: ='Simplified Capital Proj - New'!AG36 -> 0 | Q27: ='Simplified Capital Proj - New'!AK36 -> 0
B28: 15 | C28: =HLOOKUP($C$11,'Risk-free rates'!$B$9:$J$110,2+B28,FALSE) -> 0.01923089545 | D28: ='Capital Req''t Calc - New'!$D$9*E27*(1+C28)^(-B28) -> 0 | E28: 0 | F28: ='Simplified Capital Proj - New'!D37 -> 0 | G28: ='Simplified Capital Proj - New'!$D$18*H28 -> 0 | H28: =SQRT(MMULT(I28:J28,MMULT('Correlation Matrix'!$M$12:$N$13,TRANSPOSE(I28:J28)))) -> 0 | I28: =SQRT(MMULT(K28:Q28,MMULT('Correlation Matrix'!$C$11:$I$17,TRANSPOSE(K28:Q28)))) -> 0 | J28: ='Simplified Capital Proj - New'!H37 -> 0 | K28: ='Simplified Capital Proj - New'!L37 -> 0 | L28: ='Simplified Capital Proj - New'!P37 -> 0 | M28: ='Simplified Capital Proj - New'!T37 -> 0 | N28: ='Simplified Capital Proj - New'!X37 -> 0 | O28: ='Simplified Capital Proj - New'!AB37 -> 0 | P28: ='Simplified Capital Proj - New'!AG37 -> 0 | Q28: ='Simplified Capital Proj - New'!AK37 -> 0
B29: 16 | C29: =HLOOKUP($C$11,'Risk-free rates'!$B$9:$J$110,2+B29,FALSE) -> 0.01943352016 | D29: ='Capital Req''t Calc - New'!$D$9*E28*(1+C29)^(-B29) -> 0 | E29: 0 | F29: ='Simplified Capital Proj - New'!D38 -> 0 | G29: ='Simplified Capital Proj - New'!$D$18*H29 -> 0 | H29: =SQRT(MMULT(I29:J29,MMULT('Correlation Matrix'!$M$12:$N$13,TRANSPOSE(I29:J29)))) -> 0 | I29: =SQRT(MMULT(K29:Q29,MMULT('Correlation Matrix'!$C$11:$I$17,TRANSPOSE(K29:Q29)))) -> 0 | J29: ='Simplified Capital Proj - New'!H38 -> 0 | K29: ='Simplified Capital Proj - New'!L38 -> 0 | L29: ='Simplified Capital Proj - New'!P38 -> 0 | M29: ='Simplified Capital Proj - New'!T38 -> 0 | N29: ='Simplified Capital Proj - New'!X38 -> 0 | O29: ='Simplified Capital Proj - New'!AB38 -> 0 | P29: ='Simplified Capital Proj - New'!AG38 -> 0 | Q29: ='Simplified Capital Proj - New'!AK38 -> 0
B30: 17 | C30: =HLOOKUP($C$11,'Risk-free rates'!$B$9:$J$110,2+B30,FALSE) -> 0.01957444155 | D30: ='Capital Req''t Calc - New'!$D$9*E29*(1+C30)^(-B30) -> 0 | E30: 0 | F30: ='Simplified Capital Proj - New'!D39 -> 0 | G30: ='Simplified Capital Proj - New'!$D$18*H30 -> 0 | H30: =SQRT(MMULT(I30:J30,MMULT('Correlation Matrix'!$M$12:$N$13,TRANSPOSE(I30:J30)))) -> 0 | I30: =SQRT(MMULT(K30:Q30,MMULT('Correlation Matrix'!$C$11:$I$17,TRANSPOSE(K30:Q30)))) -> 0 | J30: ='Simplified Capital Proj - New'!H39 -> 0 | K30: ='Simplified Capital Proj - New'!L39 -> 0 | L30: ='Simplified Capital Proj - New'!P39 -> 0 | M30: ='Simplified Capital Proj - New'!T39 -> 0 | N30: ='Simplified Capital Proj - New'!X39 -> 0 | O30: ='Simplified Capital Proj - New'!AB39 -> 0 | P30: ='Simplified Capital Proj - New'!AG39 -> 0 | Q30: ='Simplified Capital Proj - New'!AK39 -> 0
B31: 18 | C31: =HLOOKUP($C$11,'Risk-free rates'!$B$9:$J$110,2+B31,FALSE) -> 0.01972096985 | D31: ='Capital Req''t Calc - New'!$D$9*E30*(1+C31)^(-B31) -> 0 | E31: 0 | F31: ='Simplified Capital Proj - New'!D40 -> 0 | G31: ='Simplified Capital Proj - New'!$D$18*H31 -> 0 | H31: =SQRT(MMULT(I31:J31,MMULT('Correlation Matrix'!$M$12:$N$13,TRANSPOSE(I31:J31)))) -> 0 | I31: =SQRT(MMULT(K31:Q31,MMULT('Correlation Matrix'!$C$11:$I$17,TRANSPOSE(K31:Q31)))) -> 0 | J31: ='Simplified Capital Proj - New'!H40 -> 0 | K31: ='Simplified Capital Proj - New'!L40 -> 0 | L31: ='Simplified Capital Proj - New'!P40 -> 0 | M31: ='Simplified Capital Proj - New'!T40 -> 0 | N31: ='Simplified Capital Proj - New'!X40 -> 0 | O31: ='Simplified Capital Proj - New'!AB40 -> 0 | P31: ='Simplified Capital Proj - New'!AG40 -> 0 | Q31: ='Simplified Capital Proj - New'!AK40 -> 0
B32: 19 | C32: =HLOOKUP($C$11,'Risk-free rates'!$B$9:$J$110,2+B32,FALSE) -> 0.0198322475 | D32: ='Capital Req''t Calc - New'!$D$9*E31*(1+C32)^(-B32) -> 0 | E32: 0 | F32: ='Simplified Capital Proj - New'!D41 -> 0 | G32: ='Simplified Capital Proj - New'!$D$18*H32 -> 0 | H32: =SQRT(MMULT(I32:J32,MMULT('Correlation Matrix'!$M$12:$N$13,TRANSPOSE(I32:J32)))) -> 0 | I32: =SQRT(MMULT(K32:Q32,MMULT('Correlation Matrix'!$C$11:$I$17,TRANSPOSE(K32:Q32)))) -> 0 | J32: ='Simplified Capital Proj - New'!H41 -> 0 | K32: ='Simplified Capital Proj - New'!L41 -> 0 | L32: ='Simplified Capital Proj - New'!P41 -> 0 | M32: ='Simplified Capital Proj - New'!T41 -> 0 | N32: ='Simplified Capital Proj - New'!X41 -> 0 | O32: ='Simplified Capital Proj - New'!AB41 -> 0 | P32: ='Simplified Capital Proj - New'!AG41 -> 0 | Q32: ='Simplified Capital Proj - New'!AK41 -> 0
B33: 20 | C33: =HLOOKUP($C$11,'Risk-free rates'!$B$9:$J$110,2+B33,FALSE) -> 0.01991133845 | D33: ='Capital Req''t Calc - New'!$D$9*E32*(1+C33)^(-B33) -> 0 | E33: 0 | F33: ='Simplified Capital Proj - New'!D42 -> 0 | G33: ='Simplified Capital Proj - New'!$D$18*H33 -> 0 | H33: =SQRT(MMULT(I33:J33,MMULT('Correlation Matrix'!$M$12:$N$13,TRANSPOSE(I33:J33)))) -> 0 | I33: =SQRT(MMULT(K33:Q33,MMULT('Correlation Matrix'!$C$11:$I$17,TRANSPOSE(K33:Q33)))) -> 0 | J33: ='Simplified Capital Proj - New'!H42 -> 0 | K33: ='Simplified Capital Proj - New'!L42 -> 0 | L33: ='Simplified Capital Proj - New'!P42 -> 0 | M33: ='Simplified Capital Proj - New'!T42 -> 0 | N33: ='Simplified Capital Proj - New'!X42 -> 0 | O33: ='Simplified Capital Proj - New'!AB42 -> 0 | P33: ='Simplified Capital Proj - New'!AG42 -> 0 | Q33: ='Simplified Capital Proj - New'!AK42 -> 0
B34: 21 | C34: =HLOOKUP($C$11,'Risk-free rates'!$B$9:$J$110,2+B34,FALSE) -> 0.01996204977 | D34: ='Capital Req''t Calc - New'!$D$9*E33*(1+C34)^(-B34) -> 0 | E34: 0 | F34: ='Simplified Capital Proj - New'!D43 -> 0 | G34: ='Simplified Capital Proj - New'!$D$18*H34 -> 0 | H34: =SQRT(MMULT(I34:J34,MMULT('Correlation Matrix'!$M$12:$N$13,TRANSPOSE(I34:J34)))) -> 0 | I34: =SQRT(MMULT(K34:Q34,MMULT('Correlation Matrix'!$C$11:$I$17,TRANSPOSE(K34:Q34)))) -> 0 | J34: ='Simplified Capital Proj - New'!H43 -> 0 | K34: ='Simplified Capital Proj - New'!L43 -> 0 | L34: ='Simplified Capital Proj - New'!P43 -> 0 | M34: ='Simplified Capital Proj - New'!T43 -> 0 | N34: ='Simplified Capital Proj - New'!X43 -> 0 | O34: ='Simplified Capital Proj - New'!AB43 -> 0 | P34: ='Simplified Capital Proj - New'!AG43 -> 0 | Q34: ='Simplified Capital Proj - New'!AK43 -> 0
B35: 22 | C35: =HLOOKUP($C$11,'Risk-free rates'!$B$9:$J$110,2+B35,FALSE) -> 0.02000696399 | D35: ='Capital Req''t Calc - New'!$D$9*E34*(1+C35)^(-B35) -> 0 | E35: 0 | F35: ='Simplified Capital Proj - New'!D44 -> 0 | G35: ='Simplified Capital Proj - New'!$D$18*H35 -> 0 | H35: =SQRT(MMULT(I35:J35,MMULT('Correlation Matrix'!$M$12:$N$13,TRANSPOSE(I35:J35)))) -> 0 | I35: =SQRT(MMULT(K35:Q35,MMULT('Correlation Matrix'!$C$11:$I$17,TRANSPOSE(K35:Q35)))) -> 0 | J35: ='Simplified Capital Proj - New'!H44 -> 0 | K35: ='Simplified Capital Proj - New'!L44 -> 0 | L35: ='Simplified Capital Proj - New'!P44 -> 0 | M35: ='Simplified Capital Proj - New'!T44 -> 0 | N35: ='Simplified Capital Proj - New'!X44 -> 0 | O35: ='Simplified Capital Proj - New'!AB44 -> 0 | P35: ='Simplified Capital Proj - New'!AG44 -> 0 | Q35: ='Simplified Capital Proj - New'!AK44 -> 0
B36: 23 | C36: =HLOOKUP($C$11,'Risk-free rates'!$B$9:$J$110,2+B36,FALSE) -> 0.02004636892 | D36: ='Capital Req''t Calc - New'!$D$9*E35*(1+C36)^(-B36) -> 0 | E36: 0 | F36: ='Simplified Capital Proj - New'!D45 -> 0 | G36: ='Simplified Capital Proj - New'!$D$18*H36 -> 0 | H36: =SQRT(MMULT(I36:J36,MMULT('Correlation Matrix'!$M$12:$N$13,TRANSPOSE(I36:J36)))) -> 0 | I36: =SQRT(MMULT(K36:Q36,MMULT('Correlation Matrix'!$C$11:$I$17,TRANSPOSE(K36:Q36)))) -> 0 | J36: ='Simplified Capital Proj - New'!H45 -> 0 | K36: ='Simplified Capital Proj - New'!L45 -> 0 | L36: ='Simplified Capital Proj - New'!P45 -> 0 | M36: ='Simplified Capital Proj - New'!T45 -> 0 | N36: ='Simplified Capital Proj - New'!X45 -> 0 | O36: ='Simplified Capital Proj - New'!AB45 -> 0 | P36: ='Simplified Capital Proj - New'!AG45 -> 0 | Q36: ='Simplified Capital Proj - New'!AK45 -> 0
B37: 24 | C37: =HLOOKUP($C$11,'Risk-free rates'!$B$9:$J$110,2+B37,FALSE) -> 0.02008051041 | D37: ='Capital Req''t Calc - New'!$D$9*E36*(1+C37)^(-B37) -> 0 | E37: 0 | F37: ='Simplified Capital Proj - New'!D46 -> 0 | G37: ='Simplified Capital Proj - New'!$D$18*H37 -> 0 | H37: =SQRT(MMULT(I37:J37,MMULT('Correlation Matrix'!$M$12:$N$13,TRANSPOSE(I37:J37)))) -> 0 | I37: =SQRT(MMULT(K37:Q37,MMULT('Correlation Matrix'!$C$11:$I$17,TRANSPOSE(K37:Q37)))) -> 0 | J37: ='Simplified Capital Proj - New'!H46 -> 0 | K37: ='Simplified Capital Proj - New'!L46 -> 0 | L37: ='Simplified Capital Proj - New'!P46 -> 0 | M37: ='Simplified Capital Proj - New'!T46 -> 0 | N37: ='Simplified Capital Proj - New'!X46 -> 0 | O37: ='Simplified Capital Proj - New'!AB46 -> 0 | P37: ='Simplified Capital Proj - New'!AG46 -> 0 | Q37: ='Simplified Capital Proj - New'!AK46 -> 0
B38: 25 | C38: =HLOOKUP($C$11,'Risk-free rates'!$B$9:$J$110,2+B38,FALSE) -> 0.02010959838 | D38: ='Capital Req''t Calc - New'!$D$9*E37*(1+C38)^(-B38) -> 0 | E38: 0 | F38: ='Simplified Capital Proj - New'!D47 -> 0 | G38: ='Simplified Capital Proj - New'!$D$18*H38 -> 0 | H38: =SQRT(MMULT(I38:J38,MMULT('Correlation Matrix'!$M$12:$N$13,TRANSPOSE(I38:J38)))) -> 0 | I38: =SQRT(MMULT(K38:Q38,MMULT('Correlation Matrix'!$C$11:$I$17,TRANSPOSE(K38:Q38)))) -> 0 | J38: ='Simplified Capital Proj - New'!H47 -> 0 | K38: ='Simplified Capital Proj - New'!L47 -> 0 | L38: ='Simplified Capital Proj - New'!P47 -> 0 | M38: ='Simplified Capital Proj - New'!T47 -> 0 | N38: ='Simplified Capital Proj - New'!X47 -> 0 | O38: ='Simplified Capital Proj - New'!AB47 -> 0 | P38: ='Simplified Capital Proj - New'!AG47 -> 0 | Q38: ='Simplified Capital Proj - New'!AK47 -> 0
B39: 26 | C39: =HLOOKUP($C$11,'Risk-free rates'!$B$9:$J$110,2+B39,FALSE) -> 0.02012357486 | D39: ='Capital Req''t Calc - New'!$D$9*E38*(1+C39)^(-B39) -> 0 | E39: 0 | F39: ='Simplified Capital Proj - New'!D48 -> 0 | G39: ='Simplified Capital Proj - New'!$D$18*H39 -> 0 | H39: =SQRT(MMULT(I39:J39,MMULT('Correlation Matrix'!$M$12:$N$13,TRANSPOSE(I39:J39)))) -> 0 | I39: =SQRT(MMULT(K39:Q39,MMULT('Correlation Matrix'!$C$11:$I$17,TRANSPOSE(K39:Q39)))) -> 0 | J39: ='Simplified Capital Proj - New'!H48 -> 0 | K39: ='Simplified Capital Proj - New'!L48 -> 0 | L39: ='Simplified Capital Proj - New'!P48 -> 0 | M39: ='Simplified Capital Proj - New'!T48 -> 0 | N39: ='Simplified Capital Proj - New'!X48 -> 0 | O39: ='Simplified Capital Proj - New'!AB48 -> 0 | P39: ='Simplified Capital Proj - New'!AG48 -> 0 | Q39: ='Simplified Capital Proj - New'!AK48 -> 0
B40: 27 | C40: =HLOOKUP($C$11,'Risk-free rates'!$B$9:$J$110,2+B40,FALSE) -> 0.02013283039 | D40: ='Capital Req''t Calc - New'!$D$9*E39*(1+C40)^(-B40) -> 0 | E40: 0 | F40: ='Simplified Capital Proj - New'!D49 -> 0 | G40: ='Simplified Capital Proj - New'!$D$18*H40 -> 0 | H40: =SQRT(MMULT(I40:J40,MMULT('Correlation Matrix'!$M$12:$N$13,TRANSPOSE(I40:J40)))) -> 0 | I40: =SQRT(MMULT(K40:Q40,MMULT('Correlation Matrix'!$C$11:$I$17,TRANSPOSE(K40:Q40)))) -> 0 | J40: ='Simplified Capital Proj - New'!H49 -> 0 | K40: ='Simplified Capital Proj - New'!L49 -> 0 | L40: ='Simplified Capital Proj - New'!P49 -> 0 | M40: ='Simplified Capital Proj - New'!T49 -> 0 | N40: ='Simplified Capital Proj - New'!X49 -> 0 | O40: ='Simplified Capital Proj - New'!AB49 -> 0 | P40: ='Simplified Capital Proj - New'!AG49 -> 0 | Q40: ='Simplified Capital Proj - New'!AK49 -> 0
B41: 28 | C41: =HLOOKUP($C$11,'Risk-free rates'!$B$9:$J$110,2+B41,FALSE) -> 0.0201374953 | D41: ='Capital Req''t Calc - New'!$D$9*E40*(1+C41)^(-B41) -> 0 | E41: 0 | F41: ='Simplified Capital Proj - New'!D50 -> 0 | G41: ='Simplified Capital Proj - New'!$D$18*H41 -> 0 | H41: =SQRT(MMULT(I41:J41,MMULT('Correlation Matrix'!$M$12:$N$13,TRANSPOSE(I41:J41)))) -> 0 | I41: =SQRT(MMULT(K41:Q41,MMULT('Correlation Matrix'!$C$11:$I$17,TRANSPOSE(K41:Q41)))) -> 0 | J41: ='Simplified Capital Proj - New'!H50 -> 0 | K41: ='Simplified Capital Proj - New'!L50 -> 0 | L41: ='Simplified Capital Proj - New'!P50 -> 0 | M41: ='Simplified Capital Proj - New'!T50 -> 0 | N41: ='Simplified Capital Proj - New'!X50 -> 0 | O41: ='Simplified Capital Proj - New'!AB50 -> 0 | P41: ='Simplified Capital Proj - New'!AG50 -> 0 | Q41: ='Simplified Capital Proj - New'!AK50 -> 0
B42: 29 | C42: =HLOOKUP($C$11,'Risk-free rates'!$B$9:$J$110,2+B42,FALSE) -> 0.02013768128 | D42: ='Capital Req''t Calc - New'!$D$9*E41*(1+C42)^(-B42) -> 0 | E42: 0 | F42: ='Simplified Capital Proj - New'!D51 -> 0 | G42: ='Simplified Capital Proj - New'!$D$18*H42 -> 0 | H42: =SQRT(MMULT(I42:J42,MMULT('Correlation Matrix'!$M$12:$N$13,TRANSPOSE(I42:J42)))) -> 0 | I42: =SQRT(MMULT(K42:Q42,MMULT('Correlation Matrix'!$C$11:$I$17,TRANSPOSE(K42:Q42)))) -> 0 | J42: ='Simplified Capital Proj - New'!H51 -> 0 | K42: ='Simplified Capital Proj - New'!L51 -> 0 | L42: ='Simplified Capital Proj - New'!P51 -> 0 | M42: ='Simplified Capital Proj - New'!T51 -> 0 | N42: ='Simplified Capital Proj - New'!X51 -> 0 | O42: ='Simplified Capital Proj - New'!AB51 -> 0 | P42: ='Simplified Capital Proj - New'!AG51 -> 0 | Q42: ='Simplified Capital Proj - New'!AK51 -> 0
B43: 30 | C43: =HLOOKUP($C$11,'Risk-free rates'!$B$9:$J$110,2+B43,FALSE) -> 0.02013348579 | D43: ='Capital Req''t Calc - New'!$D$9*E42*(1+C43)^(-B43) -> 0 | E43: 0 | F43: ='Simplified Capital Proj - New'!D52 -> 0 | G43: ='Simplified Capital Proj - New'!$D$18*H43 -> 0 | H43: =SQRT(MMULT(I43:J43,MMULT('Correlation Matrix'!$M$12:$N$13,TRANSPOSE(I43:J43)))) -> 0 | I43: =SQRT(MMULT(K43:Q43,MMULT('Correlation Matrix'!$C$11:$I$17,TRANSPOSE(K43:Q43)))) -> 0 | J43: ='Simplified Capital Proj - New'!H52 -> 0 | K43: ='Simplified Capital Proj - New'!L52 -> 0 | L43: ='Simplified Capital Proj - New'!P52 -> 0 | M43: ='Simplified Capital Proj - New'!T52 -> 0 | N43: ='Simplified Capital Proj - New'!X52 -> 0 | O43: ='Simplified Capital Proj - New'!AB52 -> 0 | P43: ='Simplified Capital Proj - New'!AG52 -> 0 | Q43: ='Simplified Capital Proj - New'!AK52 -> 0
B44: 31 | C44: =HLOOKUP($C$11,'Risk-free rates'!$B$9:$J$110,2+B44,FALSE) -> 0.02016882814 | D44: ='Capital Req''t Calc - New'!$D$9*E43*(1+C44)^(-B44) -> 0 | E44: 0 | F44: ='Simplified Capital Proj - New'!D53 -> 0 | G44: ='Simplified Capital Proj - New'!$D$18*H44 -> 0 | H44: =SQRT(MMULT(I44:J44,MMULT('Correlation Matrix'!$M$12:$N$13,TRANSPOSE(I44:J44)))) -> 0 | I44: =SQRT(MMULT(K44:Q44,MMULT('Correlation Matrix'!$C$11:$I$17,TRANSPOSE(K44:Q44)))) -> 0 | J44: ='Simplified Capital Proj - New'!H53 -> 0 | K44: ='Simplified Capital Proj - New'!L53 -> 0 | L44: ='Simplified Capital Proj - New'!P53 -> 0 | M44: ='Simplified Capital Proj - New'!T53 -> 0 | N44: ='Simplified Capital Proj - New'!X53 -> 0 | O44: ='Simplified Capital Proj - New'!AB53 -> 0 | P44: ='Simplified Capital Proj - New'!AG53 -> 0 | Q44: ='Simplified Capital Proj - New'!AK53 -> 0
B45: 32 | C45: =HLOOKUP($C$11,'Risk-free rates'!$B$9:$J$110,2+B45,FALSE) -> 0.02025355063 | D45: ='Capital Req''t Calc - New'!$D$9*E44*(1+C45)^(-B45) -> 0 | E45: 0 | F45: ='Simplified Capital Proj - New'!D54 -> 0 | G45: ='Simplified Capital Proj - New'!$D$18*H45 -> 0 | H45: =SQRT(MMULT(I45:J45,MMULT('Correlation Matrix'!$M$12:$N$13,TRANSPOSE(I45:J45)))) -> 0 | I45: =SQRT(MMULT(K45:Q45,MMULT('Correlation Matrix'!$C$11:$I$17,TRANSPOSE(K45:Q45)))) -> 0 | J45: ='Simplified Capital Proj - New'!H54 -> 0 | K45: ='Simplified Capital Proj - New'!L54 -> 0 | L45: ='Simplified Capital Proj - New'!P54 -> 0 | M45: ='Simplified Capital Proj - New'!T54 -> 0 | N45: ='Simplified Capital Proj - New'!X54 -> 0 | O45: ='Simplified Capital Proj - New'!AB54 -> 0 | P45: ='Simplified Capital Proj - New'!AG54 -> 0 | Q45: ='Simplified Capital Proj - New'!AK54 -> 0
B46: 33 | C46: =HLOOKUP($C$11,'Risk-free rates'!$B$9:$J$110,2+B46,FALSE) -> 0.02038462088 | D46: ='Capital Req''t Calc - New'!$D$9*E45*(1+C46)^(-B46) -> 0 | E46: 0 | F46: ='Simplified Capital Proj - New'!D55 -> 0 | G46: ='Simplified Capital Proj - New'!$D$18*H46 -> 0 | H46: =SQRT(MMULT(I46:J46,MMULT('Correlation Matrix'!$M$12:$N$13,TRANSPOSE(I46:J46)))) -> 0 | I46: =SQRT(MMULT(K46:Q46,MMULT('Correlation Matrix'!$C$11:$I$17,TRANSPOSE(K46:Q46)))) -> 0 | J46: ='Simplified Capital Proj - New'!H55 -> 0 | K46: ='Simplified Capital Proj - New'!L55 -> 0 | L46: ='Simplified Capital Proj - New'!P55 -> 0 | M46: ='Simplified Capital Proj - New'!T55 -> 0 | N46: ='Simplified Capital Proj - New'!X55 -> 0 | O46: ='Simplified Capital Proj - New'!AB55 -> 0 | P46: ='Simplified Capital Proj - New'!AG55 -> 0 | Q46: ='Simplified Capital Proj - New'!AK55 -> 0
B47: 34 | C47: =HLOOKUP($C$11,'Risk-free rates'!$B$9:$J$110,2+B47,FALSE) -> 0.0205589873 | D47: ='Capital Req''t Calc - New'!$D$9*E46*(1+C47)^(-B47) -> 0 | E47: 0 | F47: ='Simplified Capital Proj - New'!D56 -> 0 | G47: ='Simplified Capital Proj - New'!$D$18*H47 -> 0 | H47: =SQRT(MMULT(I47:J47,MMULT('Correlation Matrix'!$M$12:$N$13,TRANSPOSE(I47:J47)))) -> 0 | I47: =SQRT(MMULT(K47:Q47,MMULT('Correlation Matrix'!$C$11:$I$17,TRANSPOSE(K47:Q47)))) -> 0 | J47: ='Simplified Capital Proj - New'!H56 -> 0 | K47: ='Simplified Capital Proj - New'!L56 -> 0 | L47: ='Simplified Capital Proj - New'!P56 -> 0 | M47: ='Simplified Capital Proj - New'!T56 -> 0 | N47: ='Simplified Capital Proj - New'!X56 -> 0 | O47: ='Simplified Capital Proj - New'!AB56 -> 0 | P47: ='Simplified Capital Proj - New'!AG56 -> 0 | Q47: ='Simplified Capital Proj - New'!AK56 -> 0
B48: 35 | C48: =HLOOKUP($C$11,'Risk-free rates'!$B$9:$J$110,2+B48,FALSE) -> 0.02077357815 | D48: ='Capital Req''t Calc - New'!$D$9*E47*(1+C48)^(-B48) -> 0 | E48: 0 | F48: ='Simplified Capital Proj - New'!D57 -> 0 | G48: ='Simplified Capital Proj - New'!$D$18*H48 -> 0 | H48: =SQRT(MMULT(I48:J48,MMULT('Correlation Matrix'!$M$12:$N$13,TRANSPOSE(I48:J48)))) -> 0 | I48: =SQRT(MMULT(K48:Q48,MMULT('Correlation Matrix'!$C$11:$I$17,TRANSPOSE(K48:Q48)))) -> 0 | J48: ='Simplified Capital Proj - New'!H57 -> 0 | K48: ='Simplified Capital Proj - New'!L57 -> 0 | L48: ='Simplified Capital Proj - New'!P57 -> 0 | M48: ='Simplified Capital Proj - New'!T57 -> 0 | N48: ='Simplified Capital Proj - New'!X57 -> 0 | O48: ='Simplified Capital Proj - New'!AB57 -> 0 | P48: ='Simplified Capital Proj - New'!AG57 -> 0 | Q48: ='Simplified Capital Proj - New'!AK57 -> 0
B49: 36 | C49: =HLOOKUP($C$11,'Risk-free rates'!$B$9:$J$110,2+B49,FALSE) -> 0.02102530737 | D49: ='Capital Req''t Calc - New'!$D$9*E48*(1+C49)^(-B49) -> 0 | E49: 0 | F49: ='Simplified Capital Proj - New'!D58 -> 0 | G49: ='Simplified Capital Proj - New'!$D$18*H49 -> 0 | H49: =SQRT(MMULT(I49:J49,MMULT('Correlation Matrix'!$M$12:$N$13,TRANSPOSE(I49:J49)))) -> 0 | I49: =SQRT(MMULT(K49:Q49,MMULT('Correlation Matrix'!$C$11:$I$17,TRANSPOSE(K49:Q49)))) -> 0 | J49: ='Simplified Capital Proj - New'!H58 -> 0 | K49: ='Simplified Capital Proj - New'!L58 -> 0 | L49: ='Simplified Capital Proj - New'!P58 -> 0 | M49: ='Simplified Capital Proj - New'!T58 -> 0 | N49: ='Simplified Capital Proj - New'!X58 -> 0 | O49: ='Simplified Capital Proj - New'!AB58 -> 0 | P49: ='Simplified Capital Proj - New'!AG58 -> 0 | Q49: ='Simplified Capital Proj - New'!AK58 -> 0
B50: 37 | C50: =HLOOKUP($C$11,'Risk-free rates'!$B$9:$J$110,2+B50,FALSE) -> 0.02131107416 | D50: ='Capital Req''t Calc - New'!$D$9*E49*(1+C50)^(-B50) -> 0 | E50: 0 | F50: ='Simplified Capital Proj - New'!D59 -> 0 | G50: ='Simplified Capital Proj - New'!$D$18*H50 -> 0 | H50: =SQRT(MMULT(I50:J50,MMULT('Correlation Matrix'!$M$12:$N$13,TRANSPOSE(I50:J50)))) -> 0 | I50: =SQRT(MMULT(K50:Q50,MMULT('Correlation Matrix'!$C$11:$I$17,TRANSPOSE(K50:Q50)))) -> 0 | J50: ='Simplified Capital Proj - New'!H59 -> 0 | K50: ='Simplified Capital Proj - New'!L59 -> 0 | L50: ='Simplified Capital Proj - New'!P59 -> 0 | M50: ='Simplified Capital Proj - New'!T59 -> 0 | N50: ='Simplified Capital Proj - New'!X59 -> 0 | O50: ='Simplified Capital Proj - New'!AB59 -> 0 | P50: ='Simplified Capital Proj - New'!AG59 -> 0 | Q50: ='Simplified Capital Proj - New'!AK59 -> 0
B51: 38 | C51: =HLOOKUP($C$11,'Risk-free rates'!$B$9:$J$110,2+B51,FALSE) -> 0.02162776833 | D51: ='Capital Req''t Calc - New'!$D$9*E50*(1+C51)^(-B51) -> 0 | E51: 0 | F51: ='Simplified Capital Proj - New'!D60 -> 0 | G51: ='Simplified Capital Proj - New'!$D$18*H51 -> 0 | H51: =SQRT(MMULT(I51:J51,MMULT('Correlation Matrix'!$M$12:$N$13,TRANSPOSE(I51:J51)))) -> 0 | I51: =SQRT(MMULT(K51:Q51,MMULT('Correlation Matrix'!$C$11:$I$17,TRANSPOSE(K51:Q51)))) -> 0 | J51: ='Simplified Capital Proj - New'!H60 -> 0 | K51: ='Simplified Capital Proj - New'!L60 -> 0 | L51: ='Simplified Capital Proj - New'!P60 -> 0 | M51: ='Simplified Capital Proj - New'!T60 -> 0 | N51: ='Simplified Capital Proj - New'!X60 -> 0 | O51: ='Simplified Capital Proj - New'!AB60 -> 0 | P51: ='Simplified Capital Proj - New'!AG60 -> 0 | Q51: ='Simplified Capital Proj - New'!AK60 -> 0
B52: 39 | C52: =HLOOKUP($C$11,'Risk-free rates'!$B$9:$J$110,2+B52,FALSE) -> 0.0219722707 | D52: ='Capital Req''t Calc - New'!$D$9*E51*(1+C52)^(-B52) -> 0 | E52: 0 | F52: ='Simplified Capital Proj - New'!D61 -> 0 | G52: ='Simplified Capital Proj - New'!$D$18*H52 -> 0 | H52: =SQRT(MMULT(I52:J52,MMULT('Correlation Matrix'!$M$12:$N$13,TRANSPOSE(I52:J52)))) -> 0 | I52: =SQRT(MMULT(K52:Q52,MMULT('Correlation Matrix'!$C$11:$I$17,TRANSPOSE(K52:Q52)))) -> 0 | J52: ='Simplified Capital Proj - New'!H61 -> 0 | K52: ='Simplified Capital Proj - New'!L61 -> 0 | L52: ='Simplified Capital Proj - New'!P61 -> 0 | M52: ='Simplified Capital Proj - New'!T61 -> 0 | N52: ='Simplified Capital Proj - New'!X61 -> 0 | O52: ='Simplified Capital Proj - New'!AB61 -> 0 | P52: ='Simplified Capital Proj - New'!AG61 -> 0 | Q52: ='Simplified Capital Proj - New'!AK61 -> 0
B53: 40 | C53: =HLOOKUP($C$11,'Risk-free rates'!$B$9:$J$110,2+B53,FALSE) -> 0.02234145354 | D53: ='Capital Req''t Calc - New'!$D$9*E52*(1+C53)^(-B53) -> 0 | E53: 0 | F53: ='Simplified Capital Proj - New'!D62 -> 0 | G53: ='Simplified Capital Proj - New'!$D$18*H53 -> 0 | H53: =SQRT(MMULT(I53:J53,MMULT('Correlation Matrix'!$M$12:$N$13,TRANSPOSE(I53:J53)))) -> 0 | I53: =SQRT(MMULT(K53:Q53,MMULT('Correlation Matrix'!$C$11:$I$17,TRANSPOSE(K53:Q53)))) -> 0 | J53: ='Simplified Capital Proj - New'!H62 -> 0 | K53: ='Simplified Capital Proj - New'!L62 -> 0 | L53: ='Simplified Capital Proj - New'!P62 -> 0 | M53: ='Simplified Capital Proj - New'!T62 -> 0 | N53: ='Simplified Capital Proj - New'!X62 -> 0 | O53: ='Simplified Capital Proj - New'!AB62 -> 0 | P53: ='Simplified Capital Proj - New'!AG62 -> 0 | Q53: ='Simplified Capital Proj - New'!AK62 -> 0
B54: 41 | C54: =HLOOKUP($C$11,'Risk-free rates'!$B$9:$J$110,2+B54,FALSE) -> 0.0227321838 | D54: ='Capital Req''t Calc - New'!$D$9*E53*(1+C54)^(-B54) -> 0 | E54: 0 | F54: ='Simplified Capital Proj - New'!D63 -> 0 | G54: ='Simplified Capital Proj - New'!$D$18*H54 -> 0 | H54: =SQRT(MMULT(I54:J54,MMULT('Correlation Matrix'!$M$12:$N$13,TRANSPOSE(I54:J54)))) -> 0 | I54: =SQRT(MMULT(K54:Q54,MMULT('Correlation Matrix'!$C$11:$I$17,TRANSPOSE(K54:Q54)))) -> 0 | J54: ='Simplified Capital Proj - New'!H63 -> 0 | K54: ='Simplified Capital Proj - New'!L63 -> 0 | L54: ='Simplified Capital Proj - New'!P63 -> 0 | M54: ='Simplified Capital Proj - New'!T63 -> 0 | N54: ='Simplified Capital Proj - New'!X63 -> 0 | O54: ='Simplified Capital Proj - New'!AB63 -> 0 | P54: ='Simplified Capital Proj - New'!AG63 -> 0 | Q54: ='Simplified Capital Proj - New'!AK63 -> 0
B55: 42 | C55: =HLOOKUP($C$11,'Risk-free rates'!$B$9:$J$110,2+B55,FALSE) -> 0.02314132278 | D55: ='Capital Req''t Calc - New'!$D$9*E54*(1+C55)^(-B55) -> 0 | E55: 0 | F55: ='Simplified Capital Proj - New'!D64 -> 0 | G55: ='Simplified Capital Proj - New'!$D$18*H55 -> 0 | H55: =SQRT(MMULT(I55:J55,MMULT('Correlation Matrix'!$M$12:$N$13,TRANSPOSE(I55:J55)))) -> 0 | I55: =SQRT(MMULT(K55:Q55,MMULT('Correlation Matrix'!$C$11:$I$17,TRANSPOSE(K55:Q55)))) -> 0 | J55: ='Simplified Capital Proj - New'!H64 -> 0 | K55: ='Simplified Capital Proj - New'!L64 -> 0 | L55: ='Simplified Capital Proj - New'!P64 -> 0 | M55: ='Simplified Capital Proj - New'!T64 -> 0 | N55: ='Simplified Capital Proj - New'!X64 -> 0 | O55: ='Simplified Capital Proj - New'!AB64 -> 0 | P55: ='Simplified Capital Proj - New'!AG64 -> 0 | Q55: ='Simplified Capital Proj - New'!AK64 -> 0
B56: 43 | C56: =HLOOKUP($C$11,'Risk-free rates'!$B$9:$J$110,2+B56,FALSE) -> 0.02356572806 | D56: ='Capital Req''t Calc - New'!$D$9*E55*(1+C56)^(-B56) -> 0 | E56: 0 | F56: ='Simplified Capital Proj - New'!D65 -> 0 | G56: ='Simplified Capital Proj - New'!$D$18*H56 -> 0 | H56: =SQRT(MMULT(I56:J56,MMULT('Correlation Matrix'!$M$12:$N$13,TRANSPOSE(I56:J56)))) -> 0 | I56: =SQRT(MMULT(K56:Q56,MMULT('Correlation Matrix'!$C$11:$I$17,TRANSPOSE(K56:Q56)))) -> 0 | J56: ='Simplified Capital Proj - New'!H65 -> 0 | K56: ='Simplified Capital Proj - New'!L65 -> 0 | L56: ='Simplified Capital Proj - New'!P65 -> 0 | M56: ='Simplified Capital Proj - New'!T65 -> 0 | N56: ='Simplified Capital Proj - New'!X65 -> 0 | O56: ='Simplified Capital Proj - New'!AB65 -> 0 | P56: ='Simplified Capital Proj - New'!AG65 -> 0 | Q56: ='Simplified Capital Proj - New'!AK65 -> 0
B57: 44 | C57: =HLOOKUP($C$11,'Risk-free rates'!$B$9:$J$110,2+B57,FALSE) -> 0.02400225293 | D57: ='Capital Req''t Calc - New'!$D$9*E56*(1+C57)^(-B57) -> 0 | E57: 0 | F57: ='Simplified Capital Proj - New'!D66 -> 0 | G57: ='Simplified Capital Proj - New'!$D$18*H57 -> 0 | H57: =SQRT(MMULT(I57:J57,MMULT('Correlation Matrix'!$M$12:$N$13,TRANSPOSE(I57:J57)))) -> 0 | I57: =SQRT(MMULT(K57:Q57,MMULT('Correlation Matrix'!$C$11:$I$17,TRANSPOSE(K57:Q57)))) -> 0 | J57: ='Simplified Capital Proj - New'!H66 -> 0 | K57: ='Simplified Capital Proj - New'!L66 -> 0 | L57: ='Simplified Capital Proj - New'!P66 -> 0 | M57: ='Simplified Capital Proj - New'!T66 -> 0 | N57: ='Simplified Capital Proj - New'!X66 -> 0 | O57: ='Simplified Capital Proj - New'!AB66 -> 0 | P57: ='Simplified Capital Proj - New'!AG66 -> 0 | Q57: ='Simplified Capital Proj - New'!AK66 -> 0
B58: 45 | C58: =HLOOKUP($C$11,'Risk-free rates'!$B$9:$J$110,2+B58,FALSE) -> 0.02444774882 | D58: ='Capital Req''t Calc - New'!$D$9*E57*(1+C58)^(-B58) -> 0 | E58: 0 | F58: ='Simplified Capital Proj - New'!D67 -> 0 | G58: ='Simplified Capital Proj - New'!$D$18*H58 -> 0 | H58: =SQRT(MMULT(I58:J58,MMULT('Correlation Matrix'!$M$12:$N$13,TRANSPOSE(I58:J58)))) -> 0 | I58: =SQRT(MMULT(K58:Q58,MMULT('Correlation Matrix'!$C$11:$I$17,TRANSPOSE(K58:Q58)))) -> 0 | J58: ='Simplified Capital Proj - New'!H67 -> 0 | K58: ='Simplified Capital Proj - New'!L67 -> 0 | L58: ='Simplified Capital Proj - New'!P67 -> 0 | M58: ='Simplified Capital Proj - New'!T67 -> 0 | N58: ='Simplified Capital Proj - New'!X67 -> 0 | O58: ='Simplified Capital Proj - New'!AB67 -> 0 | P58: ='Simplified Capital Proj - New'!AG67 -> 0 | Q58: ='Simplified Capital Proj - New'!AK67 -> 0
B59: 46 | C59: =HLOOKUP($C$11,'Risk-free rates'!$B$9:$J$110,2+B59,FALSE) -> 0.02489906386 | D59: ='Capital Req''t Calc - New'!$D$9*E58*(1+C59)^(-B59) -> 0 | E59: 0 | F59: ='Simplified Capital Proj - New'!D68 -> 0 | G59: ='Simplified Capital Proj - New'!$D$18*H59 -> 0 | H59: =SQRT(MMULT(I59:J59,MMULT('Correlation Matrix'!$M$12:$N$13,TRANSPOSE(I59:J59)))) -> 0 | I59: =SQRT(MMULT(K59:Q59,MMULT('Correlation Matrix'!$C$11:$I$17,TRANSPOSE(K59:Q59)))) -> 0 | J59: ='Simplified Capital Proj - New'!H68 -> 0 | K59: ='Simplified Capital Proj - New'!L68 -> 0 | L59: ='Simplified Capital Proj - New'!P68 -> 0 | M59: ='Simplified Capital Proj - New'!T68 -> 0 | N59: ='Simplified Capital Proj - New'!X68 -> 0 | O59: ='Simplified Capital Proj - New'!AB68 -> 0 | P59: ='Simplified Capital Proj - New'!AG68 -> 0 | Q59: ='Simplified Capital Proj - New'!AK68 -> 0
B60: 47 | C60: =HLOOKUP($C$11,'Risk-free rates'!$B$9:$J$110,2+B60,FALSE) -> 0.02535304441 | D60: ='Capital Req''t Calc - New'!$D$9*E59*(1+C60)^(-B60) -> 0 | E60: 0 | F60: ='Simplified Capital Proj - New'!D69 -> 0 | G60: ='Simplified Capital Proj - New'!$D$18*H60 -> 0 | H60: =SQRT(MMULT(I60:J60,MMULT('Correlation Matrix'!$M$12:$N$13,TRANSPOSE(I60:J60)))) -> 0 | I60: =SQRT(MMULT(K60:Q60,MMULT('Correlation Matrix'!$C$11:$I$17,TRANSPOSE(K60:Q60)))) -> 0 | J60: ='Simplified Capital Proj - New'!H69 -> 0 | K60: ='Simplified Capital Proj - New'!L69 -> 0 | L60: ='Simplified Capital Proj - New'!P69 -> 0 | M60: ='Simplified Capital Proj - New'!T69 -> 0 | N60: ='Simplified Capital Proj - New'!X69 -> 0 | O60: ='Simplified Capital Proj - New'!AB69 -> 0 | P60: ='Simplified Capital Proj - New'!AG69 -> 0 | Q60: ='Simplified Capital Proj - New'!AK69 -> 0
B61: 48 | C61: =HLOOKUP($C$11,'Risk-free rates'!$B$9:$J$110,2+B61,FALSE) -> 0.02580653585 | D61: ='Capital Req''t Calc - New'!$D$9*E60*(1+C61)^(-B61) -> 0 | E61: 0 | F61: ='Simplified Capital Proj - New'!D70 -> 0 | G61: ='Simplified Capital Proj - New'!$D$18*H61 -> 0 | H61: =SQRT(MMULT(I61:J61,MMULT('Correlation Matrix'!$M$12:$N$13,TRANSPOSE(I61:J61)))) -> 0 | I61: =SQRT(MMULT(K61:Q61,MMULT('Correlation Matrix'!$C$11:$I$17,TRANSPOSE(K61:Q61)))) -> 0 | J61: ='Simplified Capital Proj - New'!H70 -> 0 | K61: ='Simplified Capital Proj - New'!L70 -> 0 | L61: ='Simplified Capital Proj - New'!P70 -> 0 | M61: ='Simplified Capital Proj - New'!T70 -> 0 | N61: ='Simplified Capital Proj - New'!X70 -> 0 | O61: ='Simplified Capital Proj - New'!AB70 -> 0 | P61: ='Simplified Capital Proj - New'!AG70 -> 0 | Q61: ='Simplified Capital Proj - New'!AK70 -> 0
B62: 49 | C62: =HLOOKUP($C$11,'Risk-free rates'!$B$9:$J$110,2+B62,FALSE) -> 0.02625638132 | D62: ='Capital Req''t Calc - New'!$D$9*E61*(1+C62)^(-B62) -> 0 | E62: 0 | F62: ='Simplified Capital Proj - New'!D71 -> 0 | G62: ='Simplified Capital Proj - New'!$D$18*H62 -> 0 | H62: =SQRT(MMULT(I62:J62,MMULT('Correlation Matrix'!$M$12:$N$13,TRANSPOSE(I62:J62)))) -> 0 | I62: =SQRT(MMULT(K62:Q62,MMULT('Correlation Matrix'!$C$11:$I$17,TRANSPOSE(K62:Q62)))) -> 0 | J62: ='Simplified Capital Proj - New'!H71 -> 0 | K62: ='Simplified Capital Proj - New'!L71 -> 0 | L62: ='Simplified Capital Proj - New'!P71 -> 0 | M62: ='Simplified Capital Proj - New'!T71 -> 0 | N62: ='Simplified Capital Proj - New'!X71 -> 0 | O62: ='Simplified Capital Proj - New'!AB71 -> 0 | P62: ='Simplified Capital Proj - New'!AG71 -> 0 | Q62: ='Simplified Capital Proj - New'!AK71 -> 0
B63: 50 | C63: =HLOOKUP($C$11,'Risk-free rates'!$B$9:$J$110,2+B63,FALSE) -> 0.02669942378 | D63: ='Capital Req''t Calc - New'!$D$9*E62*(1+C63)^(-B63) -> 0 | E63: 0 | F63: ='Simplified Capital Proj - New'!D72 -> 0 | G63: ='Simplified Capital Proj - New'!$D$18*H63 -> 0 | H63: =SQRT(MMULT(I63:J63,MMULT('Correlation Matrix'!$M$12:$N$13,TRANSPOSE(I63:J63)))) -> 0 | I63: =SQRT(MMULT(K63:Q63,MMULT('Correlation Matrix'!$C$11:$I$17,TRANSPOSE(K63:Q63)))) -> 0 | J63: ='Simplified Capital Proj - New'!H72 -> 0 | K63: ='Simplified Capital Proj - New'!L72 -> 0 | L63: ='Simplified Capital Proj - New'!P72 -> 0 | M63: ='Simplified Capital Proj - New'!T72 -> 0 | N63: ='Simplified Capital Proj - New'!X72 -> 0 | O63: ='Simplified Capital Proj - New'!AB72 -> 0 | P63: ='Simplified Capital Proj - New'!AG72 -> 0 | Q63: ='Simplified Capital Proj - New'!AK72 -> 0
B64: 51 | C64: =HLOOKUP($C$11,'Risk-free rates'!$B$9:$J$110,2+B64,FALSE) -> 0.02713250441 | D64: ='Capital Req''t Calc - New'!$D$9*E63*(1+C64)^(-B64) -> 0 | E64: 0 | F64: ='Simplified Capital Proj - New'!D73 -> 0 | G64: ='Simplified Capital Proj - New'!$D$18*H64 -> 0 | H64: =SQRT(MMULT(I64:J64,MMULT('Correlation Matrix'!$M$12:$N$13,TRANSPOSE(I64:J64)))) -> 0 | I64: =SQRT(MMULT(K64:Q64,MMULT('Correlation Matrix'!$C$11:$I$17,TRANSPOSE(K64:Q64)))) -> 0 | J64: ='Simplified Capital Proj - New'!H73 -> 0 | K64: ='Simplified Capital Proj - New'!L73 -> 0 | L64: ='Simplified Capital Proj - New'!P73 -> 0 | M64: ='Simplified Capital Proj - New'!T73 -> 0 | N64: ='Simplified Capital Proj - New'!X73 -> 0 | O64: ='Simplified Capital Proj - New'!AB73 -> 0 | P64: ='Simplified Capital Proj - New'!AG73 -> 0 | Q64: ='Simplified Capital Proj - New'!AK73 -> 0
B65: 52 | C65: =HLOOKUP($C$11,'Risk-free rates'!$B$9:$J$110,2+B65,FALSE) -> 0.02755246406 | D65: ='Capital Req''t Calc - New'!$D$9*E64*(1+C65)^(-B65) -> 0 | E65: 0 | F65: ='Simplified Capital Proj - New'!D74 -> 0 | G65: ='Simplified Capital Proj - New'!$D$18*H65 -> 0 | H65: =SQRT(MMULT(I65:J65,MMULT('Correlation Matrix'!$M$12:$N$13,TRANSPOSE(I65:J65)))) -> 0 | I65: =SQRT(MMULT(K65:Q65,MMULT('Correlation Matrix'!$C$11:$I$17,TRANSPOSE(K65:Q65)))) -> 0 | J65: ='Simplified Capital Proj - New'!H74 -> 0 | K65: ='Simplified Capital Proj - New'!L74 -> 0 | L65: ='Simplified Capital Proj - New'!P74 -> 0 | M65: ='Simplified Capital Proj - New'!T74 -> 0 | N65: ='Simplified Capital Proj - New'!X74 -> 0 | O65: ='Simplified Capital Proj - New'!AB74 -> 0 | P65: ='Simplified Capital Proj - New'!AG74 -> 0 | Q65: ='Simplified Capital Proj - New'!AK74 -> 0
B66: 53 | C66: =HLOOKUP($C$11,'Risk-free rates'!$B$9:$J$110,2+B66,FALSE) -> 0.02795614297 | D66: ='Capital Req''t Calc - New'!$D$9*E65*(1+C66)^(-B66) -> 0 | E66: 0 | F66: ='Simplified Capital Proj - New'!D75 -> 0 | G66: ='Simplified Capital Proj - New'!$D$18*H66 -> 0 | H66: =SQRT(MMULT(I66:J66,MMULT('Correlation Matrix'!$M$12:$N$13,TRANSPOSE(I66:J66)))) -> 0 | I66: =SQRT(MMULT(K66:Q66,MMULT('Correlation Matrix'!$C$11:$I$17,TRANSPOSE(K66:Q66)))) -> 0 | J66: ='Simplified Capital Proj - New'!H75 -> 0 | K66: ='Simplified Capital Proj - New'!L75 -> 0 | L66: ='Simplified Capital Proj - New'!P75 -> 0 | M66: ='Simplified Capital Proj - New'!T75 -> 0 | N66: ='Simplified Capital Proj - New'!X75 -> 0 | O66: ='Simplified Capital Proj - New'!AB75 -> 0 | P66: ='Simplified Capital Proj - New'!AG75 -> 0 | Q66: ='Simplified Capital Proj - New'!AK75 -> 0
B67: 54 | C67: =HLOOKUP($C$11,'Risk-free rates'!$B$9:$J$110,2+B67,FALSE) -> 0.02834038008 | D67: ='Capital Req''t Calc - New'!$D$9*E66*(1+C67)^(-B67) -> 0 | E67: 0 | F67: ='Simplified Capital Proj - New'!D76 -> 0 | G67: ='Simplified Capital Proj - New'!$D$18*H67 -> 0 | H67: =SQRT(MMULT(I67:J67,MMULT('Correlation Matrix'!$M$12:$N$13,TRANSPOSE(I67:J67)))) -> 0 | I67: =SQRT(MMULT(K67:Q67,MMULT('Correlation Matrix'!$C$11:$I$17,TRANSPOSE(K67:Q67)))) -> 0 | J67: ='Simplified Capital Proj - New'!H76 -> 0 | K67: ='Simplified Capital Proj - New'!L76 -> 0 | L67: ='Simplified Capital Proj - New'!P76 -> 0 | M67: ='Simplified Capital Proj - New'!T76 -> 0 | N67: ='Simplified Capital Proj - New'!X76 -> 0 | O67: ='Simplified Capital Proj - New'!AB76 -> 0 | P67: ='Simplified Capital Proj - New'!AG76 -> 0 | Q67: ='Simplified Capital Proj - New'!AK76 -> 0
B68: 55 | C68: =HLOOKUP($C$11,'Risk-free rates'!$B$9:$J$110,2+B68,FALSE) -> 0.02870201436 | D68: ='Capital Req''t Calc - New'!$D$9*E67*(1+C68)^(-B68) -> 0 | E68: 0 | F68: ='Simplified Capital Proj - New'!D77 -> 0 | G68: ='Simplified Capital Proj - New'!$D$18*H68 -> 0 | H68: =SQRT(MMULT(I68:J68,MMULT('Correlation Matrix'!$M$12:$N$13,TRANSPOSE(I68:J68)))) -> 0 | I68: =SQRT(MMULT(K68:Q68,MMULT('Correlation Matrix'!$C$11:$I$17,TRANSPOSE(K68:Q68)))) -> 0 | J68: ='Simplified Capital Proj - New'!H77 -> 0 | K68: ='Simplified Capital Proj - New'!L77 -> 0 | L68: ='Simplified Capital Proj - New'!P77 -> 0 | M68: ='Simplified Capital Proj - New'!T77 -> 0 | N68: ='Simplified Capital Proj - New'!X77 -> 0 | O68: ='Simplified Capital Proj - New'!AB77 -> 0 | P68: ='Simplified Capital Proj - New'!AG77 -> 0 | Q68: ='Simplified Capital Proj - New'!AK77 -> 0
B69: 56 | C69: =HLOOKUP($C$11,'Risk-free rates'!$B$9:$J$110,2+B69,FALSE) -> 0.02903788401 | D69: ='Capital Req''t Calc - New'!$D$9*E68*(1+C69)^(-B69) -> 0 | E69: 0 | F69: ='Simplified Capital Proj - New'!D78 -> 0 | G69: ='Simplified Capital Proj - New'!$D$18*H69 -> 0 | H69: =SQRT(MMULT(I69:J69,MMULT('Correlation Matrix'!$M$12:$N$13,TRANSPOSE(I69:J69)))) -> 0 | I69: =SQRT(MMULT(K69:Q69,MMULT('Correlation Matrix'!$C$11:$I$17,TRANSPOSE(K69:Q69)))) -> 0 | J69: ='Simplified Capital Proj - New'!H78 -> 0 | K69: ='Simplified Capital Proj - New'!L78 -> 0 | L69: ='Simplified Capital Proj - New'!P78 -> 0 | M69: ='Simplified Capital Proj - New'!T78 -> 0 | N69: ='Simplified Capital Proj - New'!X78 -> 0 | O69: ='Simplified Capital Proj - New'!AB78 -> 0 | P69: ='Simplified Capital Proj - New'!AG78 -> 0 | Q69: ='Simplified Capital Proj - New'!AK78 -> 0
B70: 57 | C70: =HLOOKUP($C$11,'Risk-free rates'!$B$9:$J$110,2+B70,FALSE) -> 0.02934482677 | D70: ='Capital Req''t Calc - New'!$D$9*E69*(1+C70)^(-B70) -> 0 | E70: 0 | F70: ='Simplified Capital Proj - New'!D79 -> 0 | G70: ='Simplified Capital Proj - New'!$D$18*H70 -> 0 | H70: =SQRT(MMULT(I70:J70,MMULT('Correlation Matrix'!$M$12:$N$13,TRANSPOSE(I70:J70)))) -> 0 | I70: =SQRT(MMULT(K70:Q70,MMULT('Correlation Matrix'!$C$11:$I$17,TRANSPOSE(K70:Q70)))) -> 0 | J70: ='Simplified Capital Proj - New'!H79 -> 0 | K70: ='Simplified Capital Proj - New'!L79 -> 0 | L70: ='Simplified Capital Proj - New'!P79 -> 0 | M70: ='Simplified Capital Proj - New'!T79 -> 0 | N70: ='Simplified Capital Proj - New'!X79 -> 0 | O70: ='Simplified Capital Proj - New'!AB79 -> 0 | P70: ='Simplified Capital Proj - New'!AG79 -> 0 | Q70: ='Simplified Capital Proj - New'!AK79 -> 0
B71: 58 | C71: =HLOOKUP($C$11,'Risk-free rates'!$B$9:$J$110,2+B71,FALSE) -> 0.02961967945 | D71: ='Capital Req''t Calc - New'!$D$9*E70*(1+C71)^(-B71) -> 0 | E71: 0 | F71: ='Simplified Capital Proj - New'!D80 -> 0 | G71: ='Simplified Capital Proj - New'!$D$18*H71 -> 0 | H71: =SQRT(MMULT(I71:J71,MMULT('Correlation Matrix'!$M$12:$N$13,TRANSPOSE(I71:J71)))) -> 0 | I71: =SQRT(MMULT(K71:Q71,MMULT('Correlation Matrix'!$C$11:$I$17,TRANSPOSE(K71:Q71)))) -> 0 | J71: ='Simplified Capital Proj - New'!H80 -> 0 | K71: ='Simplified Capital Proj - New'!L80 -> 0 | L71: ='Simplified Capital Proj - New'!P80 -> 0 | M71: ='Simplified Capital Proj - New'!T80 -> 0 | N71: ='Simplified Capital Proj - New'!X80 -> 0 | O71: ='Simplified Capital Proj - New'!AB80 -> 0 | P71: ='Simplified Capital Proj - New'!AG80 -> 0 | Q71: ='Simplified Capital Proj - New'!AK80 -> 0
B72: 59 | C72: =HLOOKUP($C$11,'Risk-free rates'!$B$9:$J$110,2+B72,FALSE) -> 0.0298592787 | D72: ='Capital Req''t Calc - New'!$D$9*E71*(1+C72)^(-B72) -> 0 | E72: 0 | F72: ='Simplified Capital Proj - New'!D81 -> 0 | G72: ='Simplified Capital Proj - New'!$D$18*H72 -> 0 | H72: =SQRT(MMULT(I72:J72,MMULT('Correlation Matrix'!$M$12:$N$13,TRANSPOSE(I72:J72)))) -> 0 | I72: =SQRT(MMULT(K72:Q72,MMULT('Correlation Matrix'!$C$11:$I$17,TRANSPOSE(K72:Q72)))) -> 0 | J72: ='Simplified Capital Proj - New'!H81 -> 0 | K72: ='Simplified Capital Proj - New'!L81 -> 0 | L72: ='Simplified Capital Proj - New'!P81 -> 0 | M72: ='Simplified Capital Proj - New'!T81 -> 0 | N72: ='Simplified Capital Proj - New'!X81 -> 0 | O72: ='Simplified Capital Proj - New'!AB81 -> 0 | P72: ='Simplified Capital Proj - New'!AG81 -> 0 | Q72: ='Simplified Capital Proj - New'!AK81 -> 0
B73: 60 | C73: =HLOOKUP($C$11,'Risk-free rates'!$B$9:$J$110,2+B73,FALSE) -> 0.03006046029 | D73: ='Capital Req''t Calc - New'!$D$9*E72*(1+C73)^(-B73) -> 0 | E73: 0 | F73: ='Simplified Capital Proj - New'!D82 -> 0 | G73: ='Simplified Capital Proj - New'!$D$18*H73 -> 0 | H73: =SQRT(MMULT(I73:J73,MMULT('Correlation Matrix'!$M$12:$N$13,TRANSPOSE(I73:J73)))) -> 0 | I73: =SQRT(MMULT(K73:Q73,MMULT('Correlation Matrix'!$C$11:$I$17,TRANSPOSE(K73:Q73)))) -> 0 | J73: ='Simplified Capital Proj - New'!H82 -> 0 | K73: ='Simplified Capital Proj - New'!L82 -> 0 | L73: ='Simplified Capital Proj - New'!P82 -> 0 | M73: ='Simplified Capital Proj - New'!T82 -> 0 | N73: ='Simplified Capital Proj - New'!X82 -> 0 | O73: ='Simplified Capital Proj - New'!AB82 -> 0 | P73: ='Simplified Capital Proj - New'!AG82 -> 0 | Q73: ='Simplified Capital Proj - New'!AK82 -> 0
B74: 61 | C74: =HLOOKUP($C$11,'Risk-free rates'!$B$9:$J$110,2+B74,FALSE) -> 0.03025508316 | D74: ='Capital Req''t Calc - New'!$D$9*E73*(1+C74)^(-B74) -> 0 | E74: 0 | F74: ='Simplified Capital Proj - New'!D83 -> 0 | G74: ='Simplified Capital Proj - New'!$D$18*H74 -> 0 | H74: =SQRT(MMULT(I74:J74,MMULT('Correlation Matrix'!$M$12:$N$13,TRANSPOSE(I74:J74)))) -> 0 | I74: =SQRT(MMULT(K74:Q74,MMULT('Correlation Matrix'!$C$11:$I$17,TRANSPOSE(K74:Q74)))) -> 0 | J74: ='Simplified Capital Proj - New'!H83 -> 0 | K74: ='Simplified Capital Proj - New'!L83 -> 0 | L74: ='Simplified Capital Proj - New'!P83 -> 0 | M74: ='Simplified Capital Proj - New'!T83 -> 0 | N74: ='Simplified Capital Proj - New'!X83 -> 0 | O74: ='Simplified Capital Proj - New'!AB83 -> 0 | P74: ='Simplified Capital Proj - New'!AG83 -> 0 | Q74: ='Simplified Capital Proj - New'!AK83 -> 0
B75: 62 | C75: =HLOOKUP($C$11,'Risk-free rates'!$B$9:$J$110,2+B75,FALSE) -> 0.03044346289 | D75: ='Capital Req''t Calc - New'!$D$9*E74*(1+C75)^(-B75) -> 0 | E75: 0 | F75: ='Simplified Capital Proj - New'!D84 -> 0 | G75: ='Simplified Capital Proj - New'!$D$18*H75 -> 0 | H75: =SQRT(MMULT(I75:J75,MMULT('Correlation Matrix'!$M$12:$N$13,TRANSPOSE(I75:J75)))) -> 0 | I75: =SQRT(MMULT(K75:Q75,MMULT('Correlation Matrix'!$C$11:$I$17,TRANSPOSE(K75:Q75)))) -> 0 | J75: ='Simplified Capital Proj - New'!H84 -> 0 | K75: ='Simplified Capital Proj - New'!L84 -> 0 | L75: ='Simplified Capital Proj - New'!P84 -> 0 | M75: ='Simplified Capital Proj - New'!T84 -> 0 | N75: ='Simplified Capital Proj - New'!X84 -> 0 | O75: ='Simplified Capital Proj - New'!AB84 -> 0 | P75: ='Simplified Capital Proj - New'!AG84 -> 0 | Q75: ='Simplified Capital Proj - New'!AK84 -> 0
B76: 63 | C76: =HLOOKUP($C$11,'Risk-free rates'!$B$9:$J$110,2+B76,FALSE) -> 0.03062589512 | D76: ='Capital Req''t Calc - New'!$D$9*E75*(1+C76)^(-B76) -> 0 | E76: 0 | F76: ='Simplified Capital Proj - New'!D85 -> 0 | G76: ='Simplified Capital Proj - New'!$D$18*H76 -> 0 | H76: =SQRT(MMULT(I76:J76,MMULT('Correlation Matrix'!$M$12:$N$13,TRANSPOSE(I76:J76)))) -> 0 | I76: =SQRT(MMULT(K76:Q76,MMULT('Correlation Matrix'!$C$11:$I$17,TRANSPOSE(K76:Q76)))) -> 0 | J76: ='Simplified Capital Proj - New'!H85 -> 0 | K76: ='Simplified Capital Proj - New'!L85 -> 0 | L76: ='Simplified Capital Proj - New'!P85 -> 0 | M76: ='Simplified Capital Proj - New'!T85 -> 0 | N76: ='Simplified Capital Proj - New'!X85 -> 0 | O76: ='Simplified Capital Proj - New'!AB85 -> 0 | P76: ='Simplified Capital Proj - New'!AG85 -> 0 | Q76: ='Simplified Capital Proj - New'!AK85 -> 0
B77: 64 | C77: =HLOOKUP($C$11,'Risk-free rates'!$B$9:$J$110,2+B77,FALSE) -> 0.03080265715 | D77: ='Capital Req''t Calc - New'!$D$9*E76*(1+C77)^(-B77) -> 0 | E77: =H77+F77+G77 -> 0 | F77: ='Simplified Capital Proj - New'!D86 -> 0 | G77: ='Simplified Capital Proj - New'!$D$18*H77 -> 0 | H77: =SQRT(MMULT(I77:J77,MMULT('Correlation Matrix'!$M$12:$N$13,TRANSPOSE(I77:J77)))) -> 0 | I77: =SQRT(MMULT(K77:Q77,MMULT('Correlation Matrix'!$C$11:$I$17,TRANSPOSE(K77:Q77)))) -> 0 | J77: ='Simplified Capital Proj - New'!H86 -> 0 | K77: ='Simplified Capital Proj - New'!L86 -> 0 | L77: ='Simplified Capital Proj - New'!P86 -> 0 | M77: ='Simplified Capital Proj - New'!T86 -> 0 | N77: ='Simplified Capital Proj - New'!X86 -> 0 | O77: ='Simplified Capital Proj - New'!AB86 -> 0 | P77: ='Simplified Capital Proj - New'!AG86 -> 0 | Q77: ='Simplified Capital Proj - New'!AK86 -> 0
B78: 65 | C78: =HLOOKUP($C$11,'Risk-free rates'!$B$9:$J$110,2+B78,FALSE) -> 0.03097400928 | D78: ='Capital Req''t Calc - New'!$D$9*E77*(1+C78)^(-B78) -> 0 | E78: =H78+F78+G78 -> 0 | F78: ='Simplified Capital Proj - New'!D87 -> 0 | G78: ='Simplified Capital Proj - New'!$D$18*H78 -> 0 | H78: =SQRT(MMULT(I78:J78,MMULT('Correlation Matrix'!$M$12:$N$13,TRANSPOSE(I78:J78)))) -> 0 | I78: =SQRT(MMULT(K78:Q78,MMULT('Correlation Matrix'!$C$11:$I$17,TRANSPOSE(K78:Q78)))) -> 0 | J78: ='Simplified Capital Proj - New'!H87 -> 0 | K78: ='Simplified Capital Proj - New'!L87 -> 0 | L78: ='Simplified Capital Proj - New'!P87 -> 0 | M78: ='Simplified Capital Proj - New'!T87 -> 0 | N78: ='Simplified Capital Proj - New'!X87 -> 0 | O78: ='Simplified Capital Proj - New'!AB87 -> 0 | P78: ='Simplified Capital Proj - New'!AG87 -> 0 | Q78: ='Simplified Capital Proj - New'!AK87 -> 0
B79: 66 | C79: =HLOOKUP($C$11,'Risk-free rates'!$B$9:$J$110,2+B79,FALSE) -> 0.03114019613 | D79: ='Capital Req''t Calc - New'!$D$9*E78*(1+C79)^(-B79) -> 0 | E79: =H79+F79+G79 -> 0 | F79: ='Simplified Capital Proj - New'!D88 -> 0 | G79: ='Simplified Capital Proj - New'!$D$18*H79 -> 0 | H79: =SQRT(MMULT(I79:J79,MMULT('Correlation Matrix'!$M$12:$N$13,TRANSPOSE(I79:J79)))) -> 0 | I79: =SQRT(MMULT(K79:Q79,MMULT('Correlation Matrix'!$C$11:$I$17,TRANSPOSE(K79:Q79)))) -> 0 | J79: ='Simplified Capital Proj - New'!H88 -> 0 | K79: ='Simplified Capital Proj - New'!L88 -> 0 | L79: ='Simplified Capital Proj - New'!P88 -> 0 | M79: ='Simplified Capital Proj - New'!T88 -> 0 | N79: ='Simplified Capital Proj - New'!X88 -> 0 | O79: ='Simplified Capital Proj - New'!AB88 -> 0 | P79: ='Simplified Capital Proj - New'!AG88 -> 0 | Q79: ='Simplified Capital Proj - New'!AK88 -> 0
B80: 67 | C80: =HLOOKUP($C$11,'Risk-free rates'!$B$9:$J$110,2+B80,FALSE) -> 0.03130144777 | D80: ='Capital Req''t Calc - New'!$D$9*E79*(1+C80)^(-B80) -> 0 | E80: =H80+F80+G80 -> 0 | F80: ='Simplified Capital Proj - New'!D89 -> 0 | G80: ='Simplified Capital Proj - New'!$D$18*H80 -> 0 | H80: =SQRT(MMULT(I80:J80,MMULT('Correlation Matrix'!$M$12:$N$13,TRANSPOSE(I80:J80)))) -> 0 | I80: =SQRT(MMULT(K80:Q80,MMULT('Correlation Matrix'!$C$11:$I$17,TRANSPOSE(K80:Q80)))) -> 0 | J80: ='Simplified Capital Proj - New'!H89 -> 0 | K80: ='Simplified Capital Proj - New'!L89 -> 0 | L80: ='Simplified Capital Proj - New'!P89 -> 0 | M80: ='Simplified Capital Proj - New'!T89 -> 0 | N80: ='Simplified Capital Proj - New'!X89 -> 0 | O80: ='Simplified Capital Proj - New'!AB89 -> 0 | P80: ='Simplified Capital Proj - New'!AG89 -> 0 | Q80: ='Simplified Capital Proj - New'!AK89 -> 0
B81: 68 | C81: =HLOOKUP($C$11,'Risk-free rates'!$B$9:$J$110,2+B81,FALSE) -> 0.03145798083 | D81: ='Capital Req''t Calc - New'!$D$9*E80*(1+C81)^(-B81) -> 0 | E81: =H81+F81+G81 -> 0 | F81: ='Simplified Capital Proj - New'!D90 -> 0 | G81: ='Simplified Capital Proj - New'!$D$18*H81 -> 0 | H81: =SQRT(MMULT(I81:J81,MMULT('Correlation Matrix'!$M$12:$N$13,TRANSPOSE(I81:J81)))) -> 0 | I81: =SQRT(MMULT(K81:Q81,MMULT('Correlation Matrix'!$C$11:$I$17,TRANSPOSE(K81:Q81)))) -> 0 | J81: ='Simplified Capital Proj - New'!H90 -> 0 | K81: ='Simplified Capital Proj - New'!L90 -> 0 | L81: ='Simplified Capital Proj - New'!P90 -> 0 | M81: ='Simplified Capital Proj - New'!T90 -> 0 | N81: ='Simplified Capital Proj - New'!X90 -> 0 | O81: ='Simplified Capital Proj - New'!AB90 -> 0 | P81: ='Simplified Capital Proj - New'!AG90 -> 0 | Q81: ='Simplified Capital Proj - New'!AK90 -> 0
B82: 69 | C82: =HLOOKUP($C$11,'Risk-free rates'!$B$9:$J$110,2+B82,FALSE) -> 0.03160999944 | D82: ='Capital Req''t Calc - New'!$D$9*E81*(1+C82)^(-B82) -> 0 | E82: 0 | F82: ='Simplified Capital Proj - New'!D91 -> 0 | G82: ='Simplified Capital Proj - New'!$D$18*H82 -> 0 | H82: =SQRT(MMULT(I82:J82,MMULT('Correlation Matrix'!$M$12:$N$13,TRANSPOSE(I82:J82)))) -> 0 | I82: =SQRT(MMULT(K82:Q82,MMULT('Correlation Matrix'!$C$11:$I$17,TRANSPOSE(K82:Q82)))) -> 0 | J82: ='Simplified Capital Proj - New'!H91 -> 0 | K82: ='Simplified Capital Proj - New'!L91 -> 0 | L82: ='Simplified Capital Proj - New'!P91 -> 0 | M82: ='Simplified Capital Proj - New'!T91 -> 0 | N82: ='Simplified Capital Proj - New'!X91 -> 0 | O82: ='Simplified Capital Proj - New'!AB91 -> 0 | P82: ='Simplified Capital Proj - New'!AG91 -> 0 | Q82: ='Simplified Capital Proj - New'!AK91 -> 0
B83: 70 | C83: =HLOOKUP($C$11,'Risk-free rates'!$B$9:$J$110,2+B83,FALSE) -> 0.03175769611 | D83: ='Capital Req''t Calc - New'!$D$9*E82*(1+C83)^(-B83) -> 0 | E83: 0 | F83: ='Simplified Capital Proj - New'!D92 -> 0 | G83: ='Simplified Capital Proj - New'!$D$18*H83 -> 0 | H83: =SQRT(MMULT(I83:J83,MMULT('Correlation Matrix'!$M$12:$N$13,TRANSPOSE(I83:J83)))) -> 0 | I83: =SQRT(MMULT(K83:Q83,MMULT('Correlation Matrix'!$C$11:$I$17,TRANSPOSE(K83:Q83)))) -> 0 | J83: ='Simplified Capital Proj - New'!H92 -> 0 | K83: ='Simplified Capital Proj - New'!L92 -> 0 | L83: ='Simplified Capital Proj - New'!P92 -> 0 | M83: ='Simplified Capital Proj - New'!T92 -> 0 | N83: ='Simplified Capital Proj - New'!X92 -> 0 | O83: ='Simplified Capital Proj - New'!AB92 -> 0 | P83: ='Simplified Capital Proj - New'!AG92 -> 0 | Q83: ='Simplified Capital Proj - New'!AK92 -> 0
B84: 71 | C84: =HLOOKUP($C$11,'Risk-free rates'!$B$9:$J$110,2+B84,FALSE) -> 0.03190125258 | D84: ='Capital Req''t Calc - New'!$D$9*E83*(1+C84)^(-B84) -> 0 | E84: 0 | F84: ='Simplified Capital Proj - New'!D93 -> 0 | G84: ='Simplified Capital Proj - New'!$D$18*H84 -> 0 | H84: =SQRT(MMULT(I84:J84,MMULT('Correlation Matrix'!$M$12:$N$13,TRANSPOSE(I84:J84)))) -> 0 | I84: =SQRT(MMULT(K84:Q84,MMULT('Correlation Matrix'!$C$11:$I$17,TRANSPOSE(K84:Q84)))) -> 0 | J84: ='Simplified Capital Proj - New'!H93 -> 0 | K84: ='Simplified Capital Proj - New'!L93 -> 0 | L84: ='Simplified Capital Proj - New'!P93 -> 0 | M84: ='Simplified Capital Proj - New'!T93 -> 0 | N84: ='Simplified Capital Proj - New'!X93 -> 0 | O84: ='Simplified Capital Proj - New'!AB93 -> 0 | P84: ='Simplified Capital Proj - New'!AG93 -> 0 | Q84: ='Simplified Capital Proj - New'!AK93 -> 0
B85: 72 | C85: =HLOOKUP($C$11,'Risk-free rates'!$B$9:$J$110,2+B85,FALSE) -> 0.03204084051 | D85: ='Capital Req''t Calc - New'!$D$9*E84*(1+C85)^(-B85) -> 0 | E85: 0 | F85: ='Simplified Capital Proj - New'!D94 -> 0 | G85: ='Simplified Capital Proj - New'!$D$18*H85 -> 0 | H85: =SQRT(MMULT(I85:J85,MMULT('Correlation Matrix'!$M$12:$N$13,TRANSPOSE(I85:J85)))) -> 0 | I85: =SQRT(MMULT(K85:Q85,MMULT('Correlation Matrix'!$C$11:$I$17,TRANSPOSE(K85:Q85)))) -> 0 | J85: ='Simplified Capital Proj - New'!H94 -> 0 | K85: ='Simplified Capital Proj - New'!L94 -> 0 | L85: ='Simplified Capital Proj - New'!P94 -> 0 | M85: ='Simplified Capital Proj - New'!T94 -> 0 | N85: ='Simplified Capital Proj - New'!X94 -> 0 | O85: ='Simplified Capital Proj - New'!AB94 -> 0 | P85: ='Simplified Capital Proj - New'!AG94 -> 0 | Q85: ='Simplified Capital Proj - New'!AK94 -> 0
B86: 73 | C86: =HLOOKUP($C$11,'Risk-free rates'!$B$9:$J$110,2+B86,FALSE) -> 0.03217662223 | D86: ='Capital Req''t Calc - New'!$D$9*E85*(1+C86)^(-B86) -> 0 | E86: 0 | F86: ='Simplified Capital Proj - New'!D95 -> 0 | G86: ='Simplified Capital Proj - New'!$D$18*H86 -> 0 | H86: =SQRT(MMULT(I86:J86,MMULT('Correlation Matrix'!$M$12:$N$13,TRANSPOSE(I86:J86)))) -> 0 | I86: =SQRT(MMULT(K86:Q86,MMULT('Correlation Matrix'!$C$11:$I$17,TRANSPOSE(K86:Q86)))) -> 0 | J86: ='Simplified Capital Proj - New'!H95 -> 0 | K86: ='Simplified Capital Proj - New'!L95 -> 0 | L86: ='Simplified Capital Proj - New'!P95 -> 0 | M86: ='Simplified Capital Proj - New'!T95 -> 0 | N86: ='Simplified Capital Proj - New'!X95 -> 0 | O86: ='Simplified Capital Proj - New'!AB95 -> 0 | P86: ='Simplified Capital Proj - New'!AG95 -> 0 | Q86: ='Simplified Capital Proj - New'!AK95 -> 0
B87: 74 | C87: =HLOOKUP($C$11,'Risk-free rates'!$B$9:$J$110,2+B87,FALSE) -> 0.03230875132 | D87: ='Capital Req''t Calc - New'!$D$9*E86*(1+C87)^(-B87) -> 0 | E87: 0 | F87: ='Simplified Capital Proj - New'!D96 -> 0 | G87: ='Simplified Capital Proj - New'!$D$18*H87 -> 0 | H87: =SQRT(MMULT(I87:J87,MMULT('Correlation Matrix'!$M$12:$N$13,TRANSPOSE(I87:J87)))) -> 0 | I87: =SQRT(MMULT(K87:Q87,MMULT('Correlation Matrix'!$C$11:$I$17,TRANSPOSE(K87:Q87)))) -> 0 | J87: ='Simplified Capital Proj - New'!H96 -> 0 | K87: ='Simplified Capital Proj - New'!L96 -> 0 | L87: ='Simplified Capital Proj - New'!P96 -> 0 | M87: ='Simplified Capital Proj - New'!T96 -> 0 | N87: ='Simplified Capital Proj - New'!X96 -> 0 | O87: ='Simplified Capital Proj - New'!AB96 -> 0 | P87: ='Simplified Capital Proj - New'!AG96 -> 0 | Q87: ='Simplified Capital Proj - New'!AK96 -> 0
B88: 75 | C88: =HLOOKUP($C$11,'Risk-free rates'!$B$9:$J$110,2+B88,FALSE) -> 0.03243737322 | D88: ='Capital Req''t Calc - New'!$D$9*E87*(1+C88)^(-B88) -> 0 | E88: 0 | F88: ='Simplified Capital Proj - New'!D97 -> 0 | G88: ='Simplified Capital Proj - New'!$D$18*H88 -> 0 | H88: =SQRT(MMULT(I88:J88,MMULT('Correlation Matrix'!$M$12:$N$13,TRANSPOSE(I88:J88)))) -> 0 | I88: =SQRT(MMULT(K88:Q88,MMULT('Correlation Matrix'!$C$11:$I$17,TRANSPOSE(K88:Q88)))) -> 0 | J88: ='Simplified Capital Proj - New'!H97 -> 0 | K88: ='Simplified Capital Proj - New'!L97 -> 0 | L88: ='Simplified Capital Proj - New'!P97 -> 0 | M88: ='Simplified Capital Proj - New'!T97 -> 0 | N88: ='Simplified Capital Proj - New'!X97 -> 0 | O88: ='Simplified Capital Proj - New'!AB97 -> 0 | P88: ='Simplified Capital Proj - New'!AG97 -> 0 | Q88: ='Simplified Capital Proj - New'!AK97 -> 0
B89: 76 | C89: =HLOOKUP($C$11,'Risk-free rates'!$B$9:$J$110,2+B89,FALSE) -> 0.03256262572 | D89: ='Capital Req''t Calc - New'!$D$9*E88*(1+C89)^(-B89) -> 0 | E89: 0 | F89: ='Simplified Capital Proj - New'!D98 -> 0 | G89: ='Simplified Capital Proj - New'!$D$18*H89 -> 0 | H89: =SQRT(MMULT(I89:J89,MMULT('Correlation Matrix'!$M$12:$N$13,TRANSPOSE(I89:J89)))) -> 0 | I89: =SQRT(MMULT(K89:Q89,MMULT('Correlation Matrix'!$C$11:$I$17,TRANSPOSE(K89:Q89)))) -> 0 | J89: ='Simplified Capital Proj - New'!H98 -> 0 | K89: ='Simplified Capital Proj - New'!L98 -> 0 | L89: ='Simplified Capital Proj - New'!P98 -> 0 | M89: ='Simplified Capital Proj - New'!T98 -> 0 | N89: ='Simplified Capital Proj - New'!X98 -> 0 | O89: ='Simplified Capital Proj - New'!AB98 -> 0 | P89: ='Simplified Capital Proj - New'!AG98 -> 0 | Q89: ='Simplified Capital Proj - New'!AK98 -> 0
B90: 77 | C90: =HLOOKUP($C$11,'Risk-free rates'!$B$9:$J$110,2+B90,FALSE) -> 0.03268463952 | D90: ='Capital Req''t Calc - New'!$D$9*E89*(1+C90)^(-B90) -> 0 | E90: 0 | F90: ='Simplified Capital Proj - New'!D99 -> 0 | G90: ='Simplified Capital Proj - New'!$D$18*H90 -> 0 | H90: =SQRT(MMULT(I90:J90,MMULT('Correlation Matrix'!$M$12:$N$13,TRANSPOSE(I90:J90)))) -> 0 | I90: =SQRT(MMULT(K90:Q90,MMULT('Correlation Matrix'!$C$11:$I$17,TRANSPOSE(K90:Q90)))) -> 0 | J90: ='Simplified Capital Proj - New'!H99 -> 0 | K90: ='Simplified Capital Proj - New'!L99 -> 0 | L90: ='Simplified Capital Proj - New'!P99 -> 0 | M90: ='Simplified Capital Proj - New'!T99 -> 0 | N90: ='Simplified Capital Proj - New'!X99 -> 0 | O90: ='Simplified Capital Proj - New'!AB99 -> 0 | P90: ='Simplified Capital Proj - New'!AG99 -> 0 | Q90: ='Simplified Capital Proj - New'!AK99 -> 0
B91: 78 | C91: =HLOOKUP($C$11,'Risk-free rates'!$B$9:$J$110,2+B91,FALSE) -> 0.03280353863 | D91: ='Capital Req''t Calc - New'!$D$9*E90*(1+C91)^(-B91) -> 0 | E91: 0 | F91: ='Simplified Capital Proj - New'!D100 -> 0 | G91: ='Simplified Capital Proj - New'!$D$18*H91 -> 0 | H91: =SQRT(MMULT(I91:J91,MMULT('Correlation Matrix'!$M$12:$N$13,TRANSPOSE(I91:J91)))) -> 0 | I91: =SQRT(MMULT(K91:Q91,MMULT('Correlation Matrix'!$C$11:$I$17,TRANSPOSE(K91:Q91)))) -> 0 | J91: ='Simplified Capital Proj - New'!H100 -> 0 | K91: ='Simplified Capital Proj - New'!L100 -> 0 | L91: ='Simplified Capital Proj - New'!P100 -> 0 | M91: ='Simplified Capital Proj - New'!T100 -> 0 | N91: ='Simplified Capital Proj - New'!X100 -> 0 | O91: ='Simplified Capital Proj - New'!AB100 -> 0 | P91: ='Simplified Capital Proj - New'!AG100 -> 0 | Q91: ='Simplified Capital Proj - New'!AK100 -> 0
B92: 79 | C92: =HLOOKUP($C$11,'Risk-free rates'!$B$9:$J$110,2+B92,FALSE) -> 0.03291944081 | D92: ='Capital Req''t Calc - New'!$D$9*E91*(1+C92)^(-B92) -> 0 | E92: 0 | F92: ='Simplified Capital Proj - New'!D101 -> 0 | G92: ='Simplified Capital Proj - New'!$D$18*H92 -> 0 | H92: =SQRT(MMULT(I92:J92,MMULT('Correlation Matrix'!$M$12:$N$13,TRANSPOSE(I92:J92)))) -> 0 | I92: =SQRT(MMULT(K92:Q92,MMULT('Correlation Matrix'!$C$11:$I$17,TRANSPOSE(K92:Q92)))) -> 0 | J92: ='Simplified Capital Proj - New'!H101 -> 0 | K92: ='Simplified Capital Proj - New'!L101 -> 0 | L92: ='Simplified Capital Proj - New'!P101 -> 0 | M92: ='Simplified Capital Proj - New'!T101 -> 0 | N92: ='Simplified Capital Proj - New'!X101 -> 0 | O92: ='Simplified Capital Proj - New'!AB101 -> 0 | P92: ='Simplified Capital Proj - New'!AG101 -> 0 | Q92: ='Simplified Capital Proj - New'!AK101 -> 0
B93: 80 | C93: =HLOOKUP($C$11,'Risk-free rates'!$B$9:$J$110,2+B93,FALSE) -> 0.03303245796 | D93: ='Capital Req''t Calc - New'!$D$9*E92*(1+C93)^(-B93) -> 0 | E93: 0 | F93: ='Simplified Capital Proj - New'!D102 -> 0 | G93: ='Simplified Capital Proj - New'!$D$18*H93 -> 0 | H93: =SQRT(MMULT(I93:J93,MMULT('Correlation Matrix'!$M$12:$N$13,TRANSPOSE(I93:J93)))) -> 0 | I93: =SQRT(MMULT(K93:Q93,MMULT('Correlation Matrix'!$C$11:$I$17,TRANSPOSE(K93:Q93)))) -> 0 | J93: ='Simplified Capital Proj - New'!H102 -> 0 | K93: ='Simplified Capital Proj - New'!L102 -> 0 | L93: ='Simplified Capital Proj - New'!P102 -> 0 | M93: ='Simplified Capital Proj - New'!T102 -> 0 | N93: ='Simplified Capital Proj - New'!X102 -> 0 | O93: ='Simplified Capital Proj - New'!AB102 -> 0 | P93: ='Simplified Capital Proj - New'!AG102 -> 0 | Q93: ='Simplified Capital Proj - New'!AK102 -> 0
B94: 81 | C94: =HLOOKUP($C$11,'Risk-free rates'!$B$9:$J$110,2+B94,FALSE) -> 0.03314269647 | D94: ='Capital Req''t Calc - New'!$D$9*E93*(1+C94)^(-B94) -> 0 | E94: 0 | F94: ='Simplified Capital Proj - New'!D103 -> 0 | G94: ='Simplified Capital Proj - New'!$D$18*H94 -> 0 | H94: =SQRT(MMULT(I94:J94,MMULT('Correlation Matrix'!$M$12:$N$13,TRANSPOSE(I94:J94)))) -> 0 | I94: =SQRT(MMULT(K94:Q94,MMULT('Correlation Matrix'!$C$11:$I$17,TRANSPOSE(K94:Q94)))) -> 0 | J94: ='Simplified Capital Proj - New'!H103 -> 0 | K94: ='Simplified Capital Proj - New'!L103 -> 0 | L94: ='Simplified Capital Proj - New'!P103 -> 0 | M94: ='Simplified Capital Proj - New'!T103 -> 0 | N94: ='Simplified Capital Proj - New'!X103 -> 0 | O94: ='Simplified Capital Proj - New'!AB103 -> 0 | P94: ='Simplified Capital Proj - New'!AG103 -> 0 | Q94: ='Simplified Capital Proj - New'!AK103 -> 0
B95: 82 | C95: =HLOOKUP($C$11,'Risk-free rates'!$B$9:$J$110,2+B95,FALSE) -> 0.03325025758 | D95: ='Capital Req''t Calc - New'!$D$9*E94*(1+C95)^(-B95) -> 0 | E95: 0 | F95: ='Simplified Capital Proj - New'!D104 -> 0 | G95: ='Simplified Capital Proj - New'!$D$18*H95 -> 0 | H95: =SQRT(MMULT(I95:J95,MMULT('Correlation Matrix'!$M$12:$N$13,TRANSPOSE(I95:J95)))) -> 0 | I95: =SQRT(MMULT(K95:Q95,MMULT('Correlation Matrix'!$C$11:$I$17,TRANSPOSE(K95:Q95)))) -> 0 | J95: ='Simplified Capital Proj - New'!H104 -> 0 | K95: ='Simplified Capital Proj - New'!L104 -> 0 | L95: ='Simplified Capital Proj - New'!P104 -> 0 | M95: ='Simplified Capital Proj - New'!T104 -> 0 | N95: ='Simplified Capital Proj - New'!X104 -> 0 | O95: ='Simplified Capital Proj - New'!AB104 -> 0 | P95: ='Simplified Capital Proj - New'!AG104 -> 0 | Q95: ='Simplified Capital Proj - New'!AK104 -> 0
B96: 83 | C96: =HLOOKUP($C$11,'Risk-free rates'!$B$9:$J$110,2+B96,FALSE) -> 0.03335523765 | D96: ='Capital Req''t Calc - New'!$D$9*E95*(1+C96)^(-B96) -> 0 | E96: 0 | F96: ='Simplified Capital Proj - New'!D105 -> 0 | G96: ='Simplified Capital Proj - New'!$D$18*H96 -> 0 | H96: =SQRT(MMULT(I96:J96,MMULT('Correlation Matrix'!$M$12:$N$13,TRANSPOSE(I96:J96)))) -> 0 | I96: =SQRT(MMULT(K96:Q96,MMULT('Correlation Matrix'!$C$11:$I$17,TRANSPOSE(K96:Q96)))) -> 0 | J96: ='Simplified Capital Proj - New'!H105 -> 0 | K96: ='Simplified Capital Proj - New'!L105 -> 0 | L96: ='Simplified Capital Proj - New'!P105 -> 0 | M96: ='Simplified Capital Proj - New'!T105 -> 0 | N96: ='Simplified Capital Proj - New'!X105 -> 0 | O96: ='Simplified Capital Proj - New'!AB105 -> 0 | P96: ='Simplified Capital Proj - New'!AG105 -> 0 | Q96: ='Simplified Capital Proj - New'!AK105 -> 0
B97: 84 | C97: =HLOOKUP($C$11,'Risk-free rates'!$B$9:$J$110,2+B97,FALSE) -> 0.03345772848 | D97: ='Capital Req''t Calc - New'!$D$9*E96*(1+C97)^(-B97) -> 0 | E97: 0 | F97: ='Simplified Capital Proj - New'!D106 -> 0 | G97: ='Simplified Capital Proj - New'!$D$18*H97 -> 0 | H97: =SQRT(MMULT(I97:J97,MMULT('Correlation Matrix'!$M$12:$N$13,TRANSPOSE(I97:J97)))) -> 0 | I97: =SQRT(MMULT(K97:Q97,MMULT('Correlation Matrix'!$C$11:$I$17,TRANSPOSE(K97:Q97)))) -> 0 | J97: ='Simplified Capital Proj - New'!H106 -> 0 | K97: ='Simplified Capital Proj - New'!L106 -> 0 | L97: ='Simplified Capital Proj - New'!P106 -> 0 | M97: ='Simplified Capital Proj - New'!T106 -> 0 | N97: ='Simplified Capital Proj - New'!X106 -> 0 | O97: ='Simplified Capital Proj - New'!AB106 -> 0 | P97: ='Simplified Capital Proj - New'!AG106 -> 0 | Q97: ='Simplified Capital Proj - New'!AK106 -> 0
B98: 85 | C98: =HLOOKUP($C$11,'Risk-free rates'!$B$9:$J$110,2+B98,FALSE) -> 0.03355781757 | D98: ='Capital Req''t Calc - New'!$D$9*E97*(1+C98)^(-B98) -> 0 | E98: 0 | F98: ='Simplified Capital Proj - New'!D107 -> 0 | G98: ='Simplified Capital Proj - New'!$D$18*H98 -> 0 | H98: =SQRT(MMULT(I98:J98,MMULT('Correlation Matrix'!$M$12:$N$13,TRANSPOSE(I98:J98)))) -> 0 | I98: =SQRT(MMULT(K98:Q98,MMULT('Correlation Matrix'!$C$11:$I$17,TRANSPOSE(K98:Q98)))) -> 0 | J98: ='Simplified Capital Proj - New'!H107 -> 0 | K98: ='Simplified Capital Proj - New'!L107 -> 0 | L98: ='Simplified Capital Proj - New'!P107 -> 0 | M98: ='Simplified Capital Proj - New'!T107 -> 0 | N98: ='Simplified Capital Proj - New'!X107 -> 0 | O98: ='Simplified Capital Proj - New'!AB107 -> 0 | P98: ='Simplified Capital Proj - New'!AG107 -> 0 | Q98: ='Simplified Capital Proj - New'!AK107 -> 0
B99: 86 | C99: =HLOOKUP($C$11,'Risk-free rates'!$B$9:$J$110,2+B99,FALSE) -> 0.03365558837 | D99: ='Capital Req''t Calc - New'!$D$9*E98*(1+C99)^(-B99) -> 0 | E99: 0 | F99: ='Simplified Capital Proj - New'!D108 -> 0 | G99: ='Simplified Capital Proj - New'!$D$18*H99 -> 0 | H99: =SQRT(MMULT(I99:J99,MMULT('Correlation Matrix'!$M$12:$N$13,TRANSPOSE(I99:J99)))) -> 0 | I99: =SQRT(MMULT(K99:Q99,MMULT('Correlation Matrix'!$C$11:$I$17,TRANSPOSE(K99:Q99)))) -> 0 | J99: ='Simplified Capital Proj - New'!H108 -> 0 | K99: ='Simplified Capital Proj - New'!L108 -> 0 | L99: ='Simplified Capital Proj - New'!P108 -> 0 | M99: ='Simplified Capital Proj - New'!T108 -> 0 | N99: ='Simplified Capital Proj - New'!X108 -> 0 | O99: ='Simplified Capital Proj - New'!AB108 -> 0 | P99: ='Simplified Capital Proj - New'!AG108 -> 0 | Q99: ='Simplified Capital Proj - New'!AK108 -> 0
B100: 87 | C100: =HLOOKUP($C$11,'Risk-free rates'!$B$9:$J$110,2+B100,FALSE) -> 0.03375112049 | D100: ='Capital Req''t Calc - New'!$D$9*E99*(1+C100)^(-B100) -> 0 | E100: 0 | F100: ='Simplified Capital Proj - New'!D109 -> 0 | G100: ='Simplified Capital Proj - New'!$D$18*H100 -> 0 | H100: =SQRT(MMULT(I100:J100,MMULT('Correlation Matrix'!$M$12:$N$13,TRANSPOSE(I100:J100)))) -> 0 | I100: =SQRT(MMULT(K100:Q100,MMULT('Correlation Matrix'!$C$11:$I$17,TRANSPOSE(K100:Q100)))) -> 0 | J100: ='Simplified Capital Proj - New'!H109 -> 0 | K100: ='Simplified Capital Proj - New'!L109 -> 0 | L100: ='Simplified Capital Proj - New'!P109 -> 0 | M100: ='Simplified Capital Proj - New'!T109 -> 0 | N100: ='Simplified Capital Proj - New'!X109 -> 0 | O100: ='Simplified Capital Proj - New'!AB109 -> 0 | P100: ='Simplified Capital Proj - New'!AG109 -> 0 | Q100: ='Simplified Capital Proj - New'!AK109 -> 0
B101: 88 | C101: =HLOOKUP($C$11,'Risk-free rates'!$B$9:$J$110,2+B101,FALSE) -> 0.03384448996 | D101: ='Capital Req''t Calc - New'!$D$9*E100*(1+C101)^(-B101) -> 0 | E101: 0 | F101: ='Simplified Capital Proj - New'!D110 -> 0 | G101: ='Simplified Capital Proj - New'!$D$18*H101 -> 0 | H101: =SQRT(MMULT(I101:J101,MMULT('Correlation Matrix'!$M$12:$N$13,TRANSPOSE(I101:J101)))) -> 0 | I101: =SQRT(MMULT(K101:Q101,MMULT('Correlation Matrix'!$C$11:$I$17,TRANSPOSE(K101:Q101)))) -> 0 | J101: ='Simplified Capital Proj - New'!H110 -> 0 | K101: ='Simplified Capital Proj - New'!L110 -> 0 | L101: ='Simplified Capital Proj - New'!P110 -> 0 | M101: ='Simplified Capital Proj - New'!T110 -> 0 | N101: ='Simplified Capital Proj - New'!X110 -> 0 | O101: ='Simplified Capital Proj - New'!AB110 -> 0 | P101: ='Simplified Capital Proj - New'!AG110 -> 0 | Q101: ='Simplified Capital Proj - New'!AK110 -> 0
B102: 89 | C102: =HLOOKUP($C$11,'Risk-free rates'!$B$9:$J$110,2+B102,FALSE) -> 0.03393576939 | D102: ='Capital Req''t Calc - New'!$D$9*E101*(1+C102)^(-B102) -> 0 | E102: 0 | F102: ='Simplified Capital Proj - New'!D111 -> 0 | G102: ='Simplified Capital Proj - New'!$D$18*H102 -> 0 | H102: =SQRT(MMULT(I102:J102,MMULT('Correlation Matrix'!$M$12:$N$13,TRANSPOSE(I102:J102)))) -> 0 | I102: =SQRT(MMULT(K102:Q102,MMULT('Correlation Matrix'!$C$11:$I$17,TRANSPOSE(K102:Q102)))) -> 0 | J102: ='Simplified Capital Proj - New'!H111 -> 0 | K102: ='Simplified Capital Proj - New'!L111 -> 0 | L102: ='Simplified Capital Proj - New'!P111 -> 0 | M102: ='Simplified Capital Proj - New'!T111 -> 0 | N102: ='Simplified Capital Proj - New'!X111 -> 0 | O102: ='Simplified Capital Proj - New'!AB111 -> 0 | P102: ='Simplified Capital Proj - New'!AG111 -> 0 | Q102: ='Simplified Capital Proj - New'!AK111 -> 0
B103: 90 | C103: =HLOOKUP($C$11,'Risk-free rates'!$B$9:$J$110,2+B103,FALSE) -> 0.03402502818 | D103: ='Capital Req''t Calc - New'!$D$9*E102*(1+C103)^(-B103) -> 0 | E103: 0 | F103: ='Simplified Capital Proj - New'!D112 -> 0 | G103: ='Simplified Capital Proj - New'!$D$18*H103 -> 0 | H103: =SQRT(MMULT(I103:J103,MMULT('Correlation Matrix'!$M$12:$N$13,TRANSPOSE(I103:J103)))) -> 0 | I103: =SQRT(MMULT(K103:Q103,MMULT('Correlation Matrix'!$C$11:$I$17,TRANSPOSE(K103:Q103)))) -> 0 | J103: ='Simplified Capital Proj - New'!H112 -> 0 | K103: ='Simplified Capital Proj - New'!L112 -> 0 | L103: ='Simplified Capital Proj - New'!P112 -> 0 | M103: ='Simplified Capital Proj - New'!T112 -> 0 | N103: ='Simplified Capital Proj - New'!X112 -> 0 | O103: ='Simplified Capital Proj - New'!AB112 -> 0 | P103: ='Simplified Capital Proj - New'!AG112 -> 0 | Q103: ='Simplified Capital Proj - New'!AK112 -> 0
B104: 91 | C104: =HLOOKUP($C$11,'Risk-free rates'!$B$9:$J$110,2+B104,FALSE) -> 0.0341123327 | D104: ='Capital Req''t Calc - New'!$D$9*E103*(1+C104)^(-B104) -> 0 | E104: 0 | F104: ='Simplified Capital Proj - New'!D113 -> 0 | G104: ='Simplified Capital Proj - New'!$D$18*H104 -> 0 | H104: =SQRT(MMULT(I104:J104,MMULT('Correlation Matrix'!$M$12:$N$13,TRANSPOSE(I104:J104)))) -> 0 | I104: =SQRT(MMULT(K104:Q104,MMULT('Correlation Matrix'!$C$11:$I$17,TRANSPOSE(K104:Q104)))) -> 0 | J104: ='Simplified Capital Proj - New'!H113 -> 0 | K104: ='Simplified Capital Proj - New'!L113 -> 0 | L104: ='Simplified Capital Proj - New'!P113 -> 0 | M104: ='Simplified Capital Proj - New'!T113 -> 0 | N104: ='Simplified Capital Proj - New'!X113 -> 0 | O104: ='Simplified Capital Proj - New'!AB113 -> 0 | P104: ='Simplified Capital Proj - New'!AG113 -> 0 | Q104: ='Simplified Capital Proj - New'!AK113 -> 0
B105: 92 | C105: =HLOOKUP($C$11,'Risk-free rates'!$B$9:$J$110,2+B105,FALSE) -> 0.03419774642 | D105: ='Capital Req''t Calc - New'!$D$9*E104*(1+C105)^(-B105) -> 0 | E105: 0 | F105: ='Simplified Capital Proj - New'!D114 -> 0 | G105: ='Simplified Capital Proj - New'!$D$18*H105 -> 0 | H105: =SQRT(MMULT(I105:J105,MMULT('Correlation Matrix'!$M$12:$N$13,TRANSPOSE(I105:J105)))) -> 0 | I105: =SQRT(MMULT(K105:Q105,MMULT('Correlation Matrix'!$C$11:$I$17,TRANSPOSE(K105:Q105)))) -> 0 | J105: ='Simplified Capital Proj - New'!H114 -> 0 | K105: ='Simplified Capital Proj - New'!L114 -> 0 | L105: ='Simplified Capital Proj - New'!P114 -> 0 | M105: ='Simplified Capital Proj - New'!T114 -> 0 | N105: ='Simplified Capital Proj - New'!X114 -> 0 | O105: ='Simplified Capital Proj - New'!AB114 -> 0 | P105: ='Simplified Capital Proj - New'!AG114 -> 0 | Q105: ='Simplified Capital Proj - New'!AK114 -> 0
B106: 93 | C106: =HLOOKUP($C$11,'Risk-free rates'!$B$9:$J$110,2+B106,FALSE) -> 0.03428133012 | D106: ='Capital Req''t Calc - New'!$D$9*E105*(1+C106)^(-B106) -> 0 | E106: 0 | F106: ='Simplified Capital Proj - New'!D115 -> 0 | G106: ='Simplified Capital Proj - New'!$D$18*H106 -> 0 | H106: =SQRT(MMULT(I106:J106,MMULT('Correlation Matrix'!$M$12:$N$13,TRANSPOSE(I106:J106)))) -> 0 | I106: =SQRT(MMULT(K106:Q106,MMULT('Correlation Matrix'!$C$11:$I$17,TRANSPOSE(K106:Q106)))) -> 0 | J106: ='Simplified Capital Proj - New'!H115 -> 0 | K106: ='Simplified Capital Proj - New'!L115 -> 0 | L106: ='Simplified Capital Proj - New'!P115 -> 0 | M106: ='Simplified Capital Proj - New'!T115 -> 0 | N106: ='Simplified Capital Proj - New'!X115 -> 0 | O106: ='Simplified Capital Proj - New'!AB115 -> 0 | P106: ='Simplified Capital Proj - New'!AG115 -> 0 | Q106: ='Simplified Capital Proj - New'!AK115 -> 0
B107: 94 | C107: =HLOOKUP($C$11,'Risk-free rates'!$B$9:$J$110,2+B107,FALSE) -> 0.03436314198 | D107: ='Capital Req''t Calc - New'!$D$9*E106*(1+C107)^(-B107) -> 0 | E107: 0 | F107: ='Simplified Capital Proj - New'!D116 -> 0 | G107: ='Simplified Capital Proj - New'!$D$18*H107 -> 0 | H107: =SQRT(MMULT(I107:J107,MMULT('Correlation Matrix'!$M$12:$N$13,TRANSPOSE(I107:J107)))) -> 0 | I107: =SQRT(MMULT(K107:Q107,MMULT('Correlation Matrix'!$C$11:$I$17,TRANSPOSE(K107:Q107)))) -> 0 | J107: ='Simplified Capital Proj - New'!H116 -> 0 | K107: ='Simplified Capital Proj - New'!L116 -> 0 | L107: ='Simplified Capital Proj - New'!P116 -> 0 | M107: ='Simplified Capital Proj - New'!T116 -> 0 | N107: ='Simplified Capital Proj - New'!X116 -> 0 | O107: ='Simplified Capital Proj - New'!AB116 -> 0 | P107: ='Simplified Capital Proj - New'!AG116 -> 0 | Q107: ='Simplified Capital Proj - New'!AK116 -> 0
B108: 95 | C108: =HLOOKUP($C$11,'Risk-free rates'!$B$9:$J$110,2+B108,FALSE) -> 0.03444323775 | D108: ='Capital Req''t Calc - New'!$D$9*E107*(1+C108)^(-B108) -> 0 | E108: 0 | F108: ='Simplified Capital Proj - New'!D117 -> 0 | G108: ='Simplified Capital Proj - New'!$D$18*H108 -> 0 | H108: =SQRT(MMULT(I108:J108,MMULT('Correlation Matrix'!$M$12:$N$13,TRANSPOSE(I108:J108)))) -> 0 | I108: =SQRT(MMULT(K108:Q108,MMULT('Correlation Matrix'!$C$11:$I$17,TRANSPOSE(K108:Q108)))) -> 0 | J108: ='Simplified Capital Proj - New'!H117 -> 0 | K108: ='Simplified Capital Proj - New'!L117 -> 0 | L108: ='Simplified Capital Proj - New'!P117 -> 0 | M108: ='Simplified Capital Proj - New'!T117 -> 0 | N108: ='Simplified Capital Proj - New'!X117 -> 0 | O108: ='Simplified Capital Proj - New'!AB117 -> 0 | P108: ='Simplified Capital Proj - New'!AG117 -> 0 | Q108: ='Simplified Capital Proj - New'!AK117 -> 0
B109: 96 | C109: =HLOOKUP($C$11,'Risk-free rates'!$B$9:$J$110,2+B109,FALSE) -> 0.03452167087 | D109: ='Capital Req''t Calc - New'!$D$9*E108*(1+C109)^(-B109) -> 0 | E109: 0 | F109: ='Simplified Capital Proj - New'!D118 -> 0 | G109: ='Simplified Capital Proj - New'!$D$18*H109 -> 0 | H109: =SQRT(MMULT(I109:J109,MMULT('Correlation Matrix'!$M$12:$N$13,TRANSPOSE(I109:J109)))) -> 0 | I109: =SQRT(MMULT(K109:Q109,MMULT('Correlation Matrix'!$C$11:$I$17,TRANSPOSE(K109:Q109)))) -> 0 | J109: ='Simplified Capital Proj - New'!H118 -> 0 | K109: ='Simplified Capital Proj - New'!L118 -> 0 | L109: ='Simplified Capital Proj - New'!P118 -> 0 | M109: ='Simplified Capital Proj - New'!T118 -> 0 | N109: ='Simplified Capital Proj - New'!X118 -> 0 | O109: ='Simplified Capital Proj - New'!AB118 -> 0 | P109: ='Simplified Capital Proj - New'!AG118 -> 0 | Q109: ='Simplified Capital Proj - New'!AK118 -> 0
B110: 97 | C110: =HLOOKUP($C$11,'Risk-free rates'!$B$9:$J$110,2+B110,FALSE) -> 0.03459849258 | D110: ='Capital Req''t Calc - New'!$D$9*E109*(1+C110)^(-B110) -> 0 | E110: 0 | F110: ='Simplified Capital Proj - New'!D119 -> 0 | G110: ='Simplified Capital Proj - New'!$D$18*H110 -> 0 | H110: =SQRT(MMULT(I110:J110,MMULT('Correlation Matrix'!$M$12:$N$13,TRANSPOSE(I110:J110)))) -> 0 | I110: =SQRT(MMULT(K110:Q110,MMULT('Correlation Matrix'!$C$11:$I$17,TRANSPOSE(K110:Q110)))) -> 0 | J110: ='Simplified Capital Proj - New'!H119 -> 0 | K110: ='Simplified Capital Proj - New'!L119 -> 0 | L110: ='Simplified Capital Proj - New'!P119 -> 0 | M110: ='Simplified Capital Proj - New'!T119 -> 0 | N110: ='Simplified Capital Proj - New'!X119 -> 0 | O110: ='Simplified Capital Proj - New'!AB119 -> 0 | P110: ='Simplified Capital Proj - New'!AG119 -> 0 | Q110: ='Simplified Capital Proj - New'!AK119 -> 0
B111: 98 | C111: =HLOOKUP($C$11,'Risk-free rates'!$B$9:$J$110,2+B111,FALSE) -> 0.03467375203 | D111: ='Capital Req''t Calc - New'!$D$9*E110*(1+C111)^(-B111) -> 0 | E111: 0 | F111: ='Simplified Capital Proj - New'!D120 -> 0 | G111: ='Simplified Capital Proj - New'!$D$18*H111 -> 0 | H111: =SQRT(MMULT(I111:J111,MMULT('Correlation Matrix'!$M$12:$N$13,TRANSPOSE(I111:J111)))) -> 0 | I111: =SQRT(MMULT(K111:Q111,MMULT('Correlation Matrix'!$C$11:$I$17,TRANSPOSE(K111:Q111)))) -> 0 | J111: ='Simplified Capital Proj - New'!H120 -> 0 | K111: ='Simplified Capital Proj - New'!L120 -> 0 | L111: ='Simplified Capital Proj - New'!P120 -> 0 | M111: ='Simplified Capital Proj - New'!T120 -> 0 | N111: ='Simplified Capital Proj - New'!X120 -> 0 | O111: ='Simplified Capital Proj - New'!AB120 -> 0 | P111: ='Simplified Capital Proj - New'!AG120 -> 0 | Q111: ='Simplified Capital Proj - New'!AK120 -> 0
B112: 99 | C112: =HLOOKUP($C$11,'Risk-free rates'!$B$9:$J$110,2+B112,FALSE) -> 0.0347474964 | D112: ='Capital Req''t Calc - New'!$D$9*E111*(1+C112)^(-B112) -> 0 | E112: 0 | F112: ='Simplified Capital Proj - New'!D121 -> 0 | G112: ='Simplified Capital Proj - New'!$D$18*H112 -> 0 | H112: =SQRT(MMULT(I112:J112,MMULT('Correlation Matrix'!$M$12:$N$13,TRANSPOSE(I112:J112)))) -> 0 | I112: =SQRT(MMULT(K112:Q112,MMULT('Correlation Matrix'!$C$11:$I$17,TRANSPOSE(K112:Q112)))) -> 0 | J112: ='Simplified Capital Proj - New'!H121 -> 0 | K112: ='Simplified Capital Proj - New'!L121 -> 0 | L112: ='Simplified Capital Proj - New'!P121 -> 0 | M112: ='Simplified Capital Proj - New'!T121 -> 0 | N112: ='Simplified Capital Proj - New'!X121 -> 0 | O112: ='Simplified Capital Proj - New'!AB121 -> 0 | P112: ='Simplified Capital Proj - New'!AG121 -> 0 | Q112: ='Simplified Capital Proj - New'!AK121 -> 0
B113: 100 | C113: =HLOOKUP($C$11,'Risk-free rates'!$B$9:$J$110,2+B113,FALSE) -> 0.03481977098 | D113: ='Capital Req''t Calc - New'!$D$9*E112*(1+C113)^(-B113) -> 0 | E113: 0 | F113: ='Simplified Capital Proj - New'!D122 -> 0 | G113: ='Simplified Capital Proj - New'!$D$18*H113 -> 0 | H113: =SQRT(MMULT(I113:J113,MMULT('Correlation Matrix'!$M$12:$N$13,TRANSPOSE(I113:J113)))) -> 0 | I113: =SQRT(MMULT(K113:Q113,MMULT('Correlation Matrix'!$C$11:$I$17,TRANSPOSE(K113:Q113)))) -> 0 | J113: ='Simplified Capital Proj - New'!H122 -> 0 | K113: ='Simplified Capital Proj - New'!L122 -> 0 | L113: ='Simplified Capital Proj - New'!P122 -> 0 | M113: ='Simplified Capital Proj - New'!T122 -> 0 | N113: ='Simplified Capital Proj - New'!X122 -> 0 | O113: ='Simplified Capital Proj - New'!AB122 -> 0 | P113: ='Simplified Capital Proj - New'!AG122 -> 0 | Q113: ='Simplified Capital Proj - New'!AK122 -> 0

Sheet Summary
B5: Risk Margin Calculation
B7: Risk Margin | E7: =SUM(E14:E113) -> 452836.4919 | G7: Calendar Year End | I7: 2019
B9: Cost of Capital | E9: 0.06
D10: Currency
D11: USD
B12: t | C12: Cal Year | D12: Yield curve | E12: Discounted CoC | F12: BSCR | G12: Transitional Weight | H12: Old Basis BSCR | I12: New Basis BSCR
B13: 0 | C13: =I7 -> 2019 | D13: N/A | E13: N/A | F13: =G13*H13+(1-G13)*I13 -> 1508456.095 | G13: =MIN(MAX((2028-C13)/10,0),1) -> 0.9 | H13: ='Capital Req''t Calc - Old'!E13 -> 1490997.25 | I13: ='Capital Req''t Calc - New'!E13 -> 1665585.702
B14: 1 | C14: =C13+1 -> 2020 | D14: =HLOOKUP($D$11,'Risk-free rates'!$B$9:$J$110,2+B14,FALSE) -> 0.01684894319 | E14: =Summary!$E$9*F13*(1+D14)^(-B14) -> 89007.68037 | F14: =G14*H14+(1-G14)*I14 -> 1350760.252 | G14: =MIN(MAX((2028-C14)/10,0),1) -> 0.8 | H14: ='Capital Req''t Calc - Old'!E14 -> 1321790.192 | I14: ='Capital Req''t Calc - New'!E14 -> 1466640.493
B15: 2 | C15: =C14+1 -> 2021 | D15: =HLOOKUP($D$11,'Risk-free rates'!$B$9:$J$110,2+B15,FALSE) -> 0.01600462569 | E15: =Summary!$E$9*F14*(1+D15)^(-B15) -> 78512.38179 | F15: 1189510.623 | G15: 0.7 | H15: ='Capital Req''t Calc - Old'!E15 -> 1155127.132 | I15: ='Capital Req''t Calc - New'!E15 -> 1269738.77
B16: 3 | C16: 2022 | D16: =HLOOKUP($D$11,'Risk-free rates'!$B$9:$J$110,2+B16,FALSE) -> 0.01592702203 | E16: =Summary!$E$9*F15*(1+D16)^(-B16) -> 68066.28367 | F16: 1025808.493 | G16: 0.6 | H16: ='Capital Req''t Calc - Old'!E16 -> 992322.355 | I16: ='Capital Req''t Calc - New'!E16 -> 1076037.7
B17: 4 | C17: 2023 | D17: =HLOOKUP($D$11,'Risk-free rates'!$B$9:$J$110,2+B17,FALSE) -> 0.01608265108 | E17: =Summary!$E$9*F16*(1+D17)^(-B17) -> 57743.27291 | F17: 861698.8431 | G17: 0.5 | H17: ='Capital Req''t Calc - Old'!E17 -> 835689.1834 | I17: ='Capital Req''t Calc - New'!E17 -> 887708.5027
B18: 5 | C18: 2024 | D18: =HLOOKUP($D$11,'Risk-free rates'!$B$9:$J$110,2+B18,FALSE) -> 0.01636053865 | E18: =Summary!$E$9*F17*(1+D18)^(-B18) -> 47672.48454 | F18: 701339.9803 | G18: 0.4 | H18: ='Capital Req''t Calc - Old'!E18 -> 689534.4265 | I18: ='Capital Req''t Calc - New'!E18 -> 709210.3496
B19: 6 | C19: 2025 | D19: =HLOOKUP($D$11,'Risk-free rates'!$B$9:$J$110,2+B19,FALSE) -> 0.01669133192 | E19: =Summary!$E$9*F18*(1+D19)^(-B19) -> 38101.76744 | F19: 562646.0581 | G19: 0.3 | H19: ='Capital Req''t Calc - Old'!E19 -> 551627.5412 | I19: ='Capital Req''t Calc - New'!E19 -> 567368.2796
B20: 7 | C20: 2026 | D20: =HLOOKUP($D$11,'Risk-free rates'!$B$9:$J$110,2+B20,FALSE) -> 0.01702833084 | E20: =Summary!$E$9*F19*(1+D20)^(-B20) -> 29995.43564 | F20: 423165.099 | G20: 0.2 | H20: ='Capital Req''t Calc - Old'!E20 -> 413720.6559 | I20: ='Capital Req''t Calc - New'!E20 -> 425526.2097
B21: 8 | C21: 2027 | D21: =HLOOKUP($D$11,'Risk-free rates'!$B$9:$J$110,2+B21,FALSE) -> 0.01735579372 | E21: =Summary!$E$9*F20*(1+D21)^(-B21) -> 22124.74075 | F21: 282897.1029 | G21: 0.1 | H21: ='Capital Req''t Calc - Old'!E21 -> 275813.7706 | I21: ='Capital Req''t Calc - New'!E21 -> 283684.1398
B22: 9 | C22: 2028 | D22: =HLOOKUP($D$11,'Risk-free rates'!$B$9:$J$110,2+B22,FALSE) -> 0.01769454424 | E22: =Summary!$E$9*F21*(1+D22)^(-B22) -> 14495.15065 | F22: 141842.0699 | G22: 0 | H22: ='Capital Req''t Calc - Old'!E22 -> 137906.8853 | I22: ='Capital Req''t Calc - New'!E22 -> 141842.0699
B23: 10 | C23: 2029 | D23: =HLOOKUP($D$11,'Risk-free rates'!$B$9:$J$110,2+B23,FALSE) -> 0.01803835286 | E23: =Summary!$E$9*F22*(1+D23)^(-B23) -> 7117.294141 | F23: 0 | G23: 0 | H23: ='Capital Req''t Calc - Old'!E23 -> 0 | I23: ='Capital Req''t Calc - New'!E23 -> 0
B24: 11 | C24: 2030 | D24: =HLOOKUP($D$11,'Risk-free rates'!$B$9:$J$110,2+B24,FALSE) -> 0.0183561285 | E24: =Summary!$E$9*F23*(1+D24)^(-B24) -> 0 | F24: 0 | G24: 0 | H24: ='Capital Req''t Calc - Old'!E24 -> 0 | I24: ='Capital Req''t Calc - New'!E24 -> 0
B25: 12 | C25: 2031 | D25: =HLOOKUP($D$11,'Risk-free rates'!$B$9:$J$110,2+B25,FALSE) -> 0.01861797367 | E25: =Summary!$E$9*F24*(1+D25)^(-B25) -> 0 | F25: 0 | G25: 0 | H25: ='Capital Req''t Calc - Old'!E25 -> 0 | I25: ='Capital Req''t Calc - New'!E25 -> 0
B26: 13 | C26: 2032 | D26: =HLOOKUP($D$11,'Risk-free rates'!$B$9:$J$110,2+B26,FALSE) -> 0.01886533683 | E26: =Summary!$E$9*F25*(1+D26)^(-B26) -> 0 | F26: 0 | G26: 0 | H26: ='Capital Req''t Calc - Old'!E26 -> 0 | I26: ='Capital Req''t Calc - New'!E26 -> 0
B27: 14 | C27: 2033 | D27: =HLOOKUP($D$11,'Risk-free rates'!$B$9:$J$110,2+B27,FALSE) -> 0.019083972 | E27: =Summary!$E$9*F26*(1+D27)^(-B27) -> 0 | F27: 0 | G27: 0 | H27: ='Capital Req''t Calc - Old'!E27 -> 0 | I27: ='Capital Req''t Calc - New'!E27 -> 0
B28: 15 | C28: 2034 | D28: =HLOOKUP($D$11,'Risk-free rates'!$B$9:$J$110,2+B28,FALSE) -> 0.01923089545 | E28: =Summary!$E$9*F27*(1+D28)^(-B28) -> 0 | F28: 0 | G28: 0 | H28: ='Capital Req''t Calc - Old'!E28 -> 0 | I28: ='Capital Req''t Calc - New'!E28 -> 0
B29: 16 | C29: 2035 | D29: =HLOOKUP($D$11,'Risk-free rates'!$B$9:$J$110,2+B29,FALSE) -> 0.01943352016 | E29: =Summary!$E$9*F28*(1+D29)^(-B29) -> 0 | F29: 0 | G29: 0 | H29: ='Capital Req''t Calc - Old'!E29 -> 0 | I29: ='Capital Req''t Calc - New'!E29 -> 0
B30: 17 | C30: 2036 | D30: =HLOOKUP($D$11,'Risk-free rates'!$B$9:$J$110,2+B30,FALSE) -> 0.01957444155 | E30: =Summary!$E$9*F29*(1+D30)^(-B30) -> 0 | F30: 0 | G30: 0 | H30: ='Capital Req''t Calc - Old'!E30 -> 0 | I30: ='Capital Req''t Calc - New'!E30 -> 0
B31: 18 | C31: 2037 | D31: =HLOOKUP($D$11,'Risk-free rates'!$B$9:$J$110,2+B31,FALSE) -> 0.01972096985 | E31: =Summary!$E$9*F30*(1+D31)^(-B31) -> 0 | F31: 0 | G31: 0 | H31: ='Capital Req''t Calc - Old'!E31 -> 0 | I31: ='Capital Req''t Calc - New'!E31 -> 0
B32: 19 | C32: 2038 | D32: =HLOOKUP($D$11,'Risk-free rates'!$B$9:$J$110,2+B32,FALSE) -> 0.0198322475 | E32: =Summary!$E$9*F31*(1+D32)^(-B32) -> 0 | F32: 0 | G32: 0 | H32: ='Capital Req''t Calc - Old'!E32 -> 0 | I32: ='Capital Req''t Calc - New'!E32 -> 0
B33: 20 | C33: 2039 | D33: =HLOOKUP($D$11,'Risk-free rates'!$B$9:$J$110,2+B33,FALSE) -> 0.01991133845 | E33: =Summary!$E$9*F32*(1+D33)^(-B33) -> 0 | F33: 0 | G33: 0 | H33: ='Capital Req''t Calc - Old'!E33 -> 0 | I33: ='Capital Req''t Calc - New'!E33 -> 0
B34: 21 | C34: 2040 | D34: =HLOOKUP($D$11,'Risk-free rates'!$B$9:$J$110,2+B34,FALSE) -> 0.01996204977 | E34: =Summary!$E$9*F33*(1+D34)^(-B34) -> 0 | F34: 0 | G34: 0 | H34: ='Capital Req''t Calc - Old'!E34 -> 0 | I34: ='Capital Req''t Calc - New'!E34 -> 0
B35: 22 | C35: 2041 | D35: =HLOOKUP($D$11,'Risk-free rates'!$B$9:$J$110,2+B35,FALSE) -> 0.02000696399 | E35: =Summary!$E$9*F34*(1+D35)^(-B35) -> 0 | F35: 0 | G35: 0 | H35: ='Capital Req''t Calc - Old'!E35 -> 0 | I35: ='Capital Req''t Calc - New'!E35 -> 0
B36: 23 | C36: 2042 | D36: =HLOOKUP($D$11,'Risk-free rates'!$B$9:$J$110,2+B36,FALSE) -> 0.02004636892 | E36: =Summary!$E$9*F35*(1+D36)^(-B36) -> 0 | F36: 0 | G36: 0 | H36: ='Capital Req''t Calc - Old'!E36 -> 0 | I36: ='Capital Req''t Calc - New'!E36 -> 0
B37: 24 | C37: 2043 | D37: =HLOOKUP($D$11,'Risk-free rates'!$B$9:$J$110,2+B37,FALSE) -> 0.02008051041 | E37: =Summary!$E$9*F36*(1+D37)^(-B37) -> 0 | F37: 0 | G37: 0 | H37: ='Capital Req''t Calc - Old'!E37 -> 0 | I37: ='Capital Req''t Calc - New'!E37 -> 0
B38: 25 | C38: 2044 | D38: =HLOOKUP($D$11,'Risk-free rates'!$B$9:$J$110,2+B38,FALSE) -> 0.02010959838 | E38: =Summary!$E$9*F37*(1+D38)^(-B38) -> 0 | F38: 0 | G38: 0 | H38: ='Capital Req''t Calc - Old'!E38 -> 0 | I38: ='Capital Req''t Calc - New'!E38 -> 0
B39: 26 | C39: 2045 | D39: =HLOOKUP($D$11,'Risk-free rates'!$B$9:$J$110,2+B39,FALSE) -> 0.02012357486 | E39: =Summary!$E$9*F38*(1+D39)^(-B39) -> 0 | F39: 0 | G39: 0 | H39: ='Capital Req''t Calc - Old'!E39 -> 0 | I39: ='Capital Req''t Calc - New'!E39 -> 0
B40: 27 | C40: 2046 | D40: =HLOOKUP($D$11,'Risk-free rates'!$B$9:$J$110,2+B40,FALSE) -> 0.02013283039 | E40: =Summary!$E$9*F39*(1+D40)^(-B40) -> 0 | F40: 0 | G40: 0 | H40: ='Capital Req''t Calc - Old'!E40 -> 0 | I40: ='Capital Req''t Calc - New'!E40 -> 0
B41: 28 | C41: 2047 | D41: =HLOOKUP($D$11,'Risk-free rates'!$B$9:$J$110,2+B41,FALSE) -> 0.0201374953 | E41: =Summary!$E$9*F40*(1+D41)^(-B41) -> 0 | F41: 0 | G41: 0 | H41: ='Capital Req''t Calc - Old'!E41 -> 0 | I41: ='Capital Req''t Calc - New'!E41 -> 0
B42: 29 | C42: 2048 | D42: =HLOOKUP($D$11,'Risk-free rates'!$B$9:$J$110,2+B42,FALSE) -> 0.02013768128 | E42: =Summary!$E$9*F41*(1+D42)^(-B42) -> 0 | F42: 0 | G42: 0 | H42: ='Capital Req''t Calc - Old'!E42 -> 0 | I42: ='Capital Req''t Calc - New'!E42 -> 0
B43: 30 | C43: 2049 | D43: =HLOOKUP($D$11,'Risk-free rates'!$B$9:$J$110,2+B43,FALSE) -> 0.02013348579 | E43: =Summary!$E$9*F42*(1+D43)^(-B43) -> 0 | F43: 0 | G43: 0 | H43: ='Capital Req''t Calc - Old'!E43 -> 0 | I43: ='Capital Req''t Calc - New'!E43 -> 0
B44: 31 | C44: 2050 | D44: =HLOOKUP($D$11,'Risk-free rates'!$B$9:$J$110,2+B44,FALSE) -> 0.02016882814 | E44: =Summary!$E$9*F43*(1+D44)^(-B44) -> 0 | F44: 0 | G44: 0 | H44: ='Capital Req''t Calc - Old'!E44 -> 0 | I44: ='Capital Req''t Calc - New'!E44 -> 0
B45: 32 | C45: 2051 | D45: =HLOOKUP($D$11,'Risk-free rates'!$B$9:$J$110,2+B45,FALSE) -> 0.02025355063 | E45: =Summary!$E$9*F44*(1+D45)^(-B45) -> 0 | F45: 0 | G45: 0 | H45: ='Capital Req''t Calc - Old'!E45 -> 0 | I45: ='Capital Req''t Calc - New'!E45 -> 0
B46: 33 | C46: 2052 | D46: =HLOOKUP($D$11,'Risk-free rates'!$B$9:$J$110,2+B46,FALSE) -> 0.02038462088 | E46: =Summary!$E$9*F45*(1+D46)^(-B46) -> 0 | F46: 0 | G46: 0 | H46: ='Capital Req''t Calc - Old'!E46 -> 0 | I46: ='Capital Req''t Calc - New'!E46 -> 0
B47: 34 | C47: 2053 | D47: =HLOOKUP($D$11,'Risk-free rates'!$B$9:$J$110,2+B47,FALSE) -> 0.0205589873 | E47: =Summary!$E$9*F46*(1+D47)^(-B47) -> 0 | F47: 0 | G47: 0 | H47: ='Capital Req''t Calc - Old'!E47 -> 0 | I47: ='Capital Req''t Calc - New'!E47 -> 0
B48: 35 | C48: 2054 | D48: =HLOOKUP($D$11,'Risk-free rates'!$B$9:$J$110,2+B48,FALSE) -> 0.02077357815 | E48: =Summary!$E$9*F47*(1+D48)^(-B48) -> 0 | F48: 0 | G48: 0 | H48: ='Capital Req''t Calc - Old'!E48 -> 0 | I48: ='Capital Req''t Calc - New'!E48 -> 0
B49: 36 | C49: 2055 | D49: =HLOOKUP($D$11,'Risk-free rates'!$B$9:$J$110,2+B49,FALSE) -> 0.02102530737 | E49: =Summary!$E$9*F48*(1+D49)^(-B49) -> 0 | F49: 0 | G49: 0 | H49: ='Capital Req''t Calc - Old'!E49 -> 0 | I49: ='Capital Req''t Calc - New'!E49 -> 0
B50: 37 | C50: 2056 | D50: =HLOOKUP($D$11,'Risk-free rates'!$B$9:$J$110,2+B50,FALSE) -> 0.02131107416 | E50: =Summary!$E$9*F49*(1+D50)^(-B50) -> 0 | F50: 0 | G50: 0 | H50: ='Capital Req''t Calc - Old'!E50 -> 0 | I50: ='Capital Req''t Calc - New'!E50 -> 0
B51: 38 | C51: 2057 | D51: =HLOOKUP($D$11,'Risk-free rates'!$B$9:$J$110,2+B51,FALSE) -> 0.02162776833 | E51: =Summary!$E$9*F50*(1+D51)^(-B51) -> 0 | F51: 0 | G51: 0 | H51: ='Capital Req''t Calc - Old'!E51 -> 0 | I51: ='Capital Req''t Calc - New'!E51 -> 0
B52: 39 | C52: 2058 | D52: =HLOOKUP($D$11,'Risk-free rates'!$B$9:$J$110,2+B52,FALSE) -> 0.0219722707 | E52: =Summary!$E$9*F51*(1+D52)^(-B52) -> 0 | F52: 0 | G52: 0 | H52: ='Capital Req''t Calc - Old'!E52 -> 0 | I52: ='Capital Req''t Calc - New'!E52 -> 0
B53: 40 | C53: 2059 | D53: =HLOOKUP($D$11,'Risk-free rates'!$B$9:$J$110,2+B53,FALSE) -> 0.02234145354 | E53: =Summary!$E$9*F52*(1+D53)^(-B53) -> 0 | F53: 0 | G53: 0 | H53: ='Capital Req''t Calc - Old'!E53 -> 0 | I53: ='Capital Req''t Calc - New'!E53 -> 0
B54: 41 | C54: 2060 | D54: =HLOOKUP($D$11,'Risk-free rates'!$B$9:$J$110,2+B54,FALSE) -> 0.0227321838 | E54: =Summary!$E$9*F53*(1+D54)^(-B54) -> 0 | F54: 0 | G54: 0 | H54: ='Capital Req''t Calc - Old'!E54 -> 0 | I54: ='Capital Req''t Calc - New'!E54 -> 0
B55: 42 | C55: 2061 | D55: =HLOOKUP($D$11,'Risk-free rates'!$B$9:$J$110,2+B55,FALSE) -> 0.02314132278 | E55: =Summary!$E$9*F54*(1+D55)^(-B55) -> 0 | F55: 0 | G55: 0 | H55: ='Capital Req''t Calc - Old'!E55 -> 0 | I55: ='Capital Req''t Calc - New'!E55 -> 0
B56: 43 | C56: 2062 | D56: =HLOOKUP($D$11,'Risk-free rates'!$B$9:$J$110,2+B56,FALSE) -> 0.02356572806 | E56: =Summary!$E$9*F55*(1+D56)^(-B56) -> 0 | F56: 0 | G56: 0 | H56: ='Capital Req''t Calc - Old'!E56 -> 0 | I56: ='Capital Req''t Calc - New'!E56 -> 0
B57: 44 | C57: 2063 | D57: =HLOOKUP($D$11,'Risk-free rates'!$B$9:$J$110,2+B57,FALSE) -> 0.02400225293 | E57: =Summary!$E$9*F56*(1+D57)^(-B57) -> 0 | F57: 0 | G57: 0 | H57: ='Capital Req''t Calc - Old'!E57 -> 0 | I57: ='Capital Req''t Calc - New'!E57 -> 0
B58: 45 | C58: 2064 | D58: =HLOOKUP($D$11,'Risk-free rates'!$B$9:$J$110,2+B58,FALSE) -> 0.02444774882 | E58: =Summary!$E$9*F57*(1+D58)^(-B58) -> 0 | F58: 0 | G58: 0 | H58: ='Capital Req''t Calc - Old'!E58 -> 0 | I58: ='Capital Req''t Calc - New'!E58 -> 0
B59: 46 | C59: 2065 | D59: =HLOOKUP($D$11,'Risk-free rates'!$B$9:$J$110,2+B59,FALSE) -> 0.02489906386 | E59: =Summary!$E$9*F58*(1+D59)^(-B59) -> 0 | F59: 0 | G59: 0 | H59: ='Capital Req''t Calc - Old'!E59 -> 0 | I59: ='Capital Req''t Calc - New'!E59 -> 0
B60: 47 | C60: 2066 | D60: =HLOOKUP($D$11,'Risk-free rates'!$B$9:$J$110,2+B60,FALSE) -> 0.02535304441 | E60: =Summary!$E$9*F59*(1+D60)^(-B60) -> 0 | F60: 0 | G60: 0 | H60: ='Capital Req''t Calc - Old'!E60 -> 0 | I60: ='Capital Req''t Calc - New'!E60 -> 0
B61: 48 | C61: 2067 | D61: =HLOOKUP($D$11,'Risk-free rates'!$B$9:$J$110,2+B61,FALSE) -> 0.02580653585 | E61: =Summary!$E$9*F60*(1+D61)^(-B61) -> 0 | F61: 0 | G61: 0 | H61: ='Capital Req''t Calc - Old'!E61 -> 0 | I61: ='Capital Req''t Calc - New'!E61 -> 0
B62: 49 | C62: 2068 | D62: =HLOOKUP($D$11,'Risk-free rates'!$B$9:$J$110,2+B62,FALSE) -> 0.02625638132 | E62: =Summary!$E$9*F61*(1+D62)^(-B62) -> 0 | F62: 0 | G62: 0 | H62: ='Capital Req''t Calc - Old'!E62 -> 0 | I62: ='Capital Req''t Calc - New'!E62 -> 0
B63: 50 | C63: 2069 | D63: =HLOOKUP($D$11,'Risk-free rates'!$B$9:$J$110,2+B63,FALSE) -> 0.02669942378 | E63: =Summary!$E$9*F62*(1+D63)^(-B63) -> 0 | F63: 0 | G63: 0 | H63: ='Capital Req''t Calc - Old'!E63 -> 0 | I63: ='Capital Req''t Calc - New'!E63 -> 0
B64: 51 | C64: 2070 | D64: =HLOOKUP($D$11,'Risk-free rates'!$B$9:$J$110,2+B64,FALSE) -> 0.02713250441 | E64: =Summary!$E$9*F63*(1+D64)^(-B64) -> 0 | F64: 0 | G64: 0 | H64: ='Capital Req''t Calc - Old'!E64 -> 0 | I64: ='Capital Req''t Calc - New'!E64 -> 0
B65: 52 | C65: 2071 | D65: =HLOOKUP($D$11,'Risk-free rates'!$B$9:$J$110,2+B65,FALSE) -> 0.02755246406 | E65: =Summary!$E$9*F64*(1+D65)^(-B65) -> 0 | F65: 0 | G65: 0 | H65: ='Capital Req''t Calc - Old'!E65 -> 0 | I65: ='Capital Req''t Calc - New'!E65 -> 0
B66: 53 | C66: 2072 | D66: =HLOOKUP($D$11,'Risk-free rates'!$B$9:$J$110,2+B66,FALSE) -> 0.02795614297 | E66: =Summary!$E$9*F65*(1+D66)^(-B66) -> 0 | F66: 0 | G66: 0 | H66: ='Capital Req''t Calc - Old'!E66 -> 0 | I66: ='Capital Req''t Calc - New'!E66 -> 0
B67: 54 | C67: 2073 | D67: =HLOOKUP($D$11,'Risk-free rates'!$B$9:$J$110,2+B67,FALSE) -> 0.02834038008 | E67: =Summary!$E$9*F66*(1+D67)^(-B67) -> 0 | F67: 0 | G67: 0 | H67: ='Capital Req''t Calc - Old'!E67 -> 0 | I67: ='Capital Req''t Calc - New'!E67 -> 0
B68: 55 | C68: 2074 | D68: =HLOOKUP($D$11,'Risk-free rates'!$B$9:$J$110,2+B68,FALSE) -> 0.02870201436 | E68: =Summary!$E$9*F67*(1+D68)^(-B68) -> 0 | F68: 0 | G68: 0 | H68: ='Capital Req''t Calc - Old'!E68 -> 0 | I68: ='Capital Req''t Calc - New'!E68 -> 0
B69: 56 | C69: 2075 | D69: =HLOOKUP($D$11,'Risk-free rates'!$B$9:$J$110,2+B69,FALSE) -> 0.02903788401 | E69: =Summary!$E$9*F68*(1+D69)^(-B69) -> 0 | F69: 0 | G69: 0 | H69: ='Capital Req''t Calc - Old'!E69 -> 0 | I69: ='Capital Req''t Calc - New'!E69 -> 0
B70: 57 | C70: 2076 | D70: =HLOOKUP($D$11,'Risk-free rates'!$B$9:$J$110,2+B70,FALSE) -> 0.02934482677 | E70: =Summary!$E$9*F69*(1+D70)^(-B70) -> 0 | F70: 0 | G70: 0 | H70: ='Capital Req''t Calc - Old'!E70 -> 0 | I70: ='Capital Req''t Calc - New'!E70 -> 0
B71: 58 | C71: 2077 | D71: =HLOOKUP($D$11,'Risk-free rates'!$B$9:$J$110,2+B71,FALSE) -> 0.02961967945 | E71: =Summary!$E$9*F70*(1+D71)^(-B71) -> 0 | F71: 0 | G71: 0 | H71: ='Capital Req''t Calc - Old'!E71 -> 0 | I71: ='Capital Req''t Calc - New'!E71 -> 0
B72: 59 | C72: 2078 | D72: =HLOOKUP($D$11,'Risk-free rates'!$B$9:$J$110,2+B72,FALSE) -> 0.0298592787 | E72: =Summary!$E$9*F71*(1+D72)^(-B72) -> 0 | F72: 0 | G72: 0 | H72: ='Capital Req''t Calc - Old'!E72 -> 0 | I72: ='Capital Req''t Calc - New'!E72 -> 0
B73: 60 | C73: 2079 | D73: =HLOOKUP($D$11,'Risk-free rates'!$B$9:$J$110,2+B73,FALSE) -> 0.03006046029 | E73: =Summary!$E$9*F72*(1+D73)^(-B73) -> 0 | F73: 0 | G73: 0 | H73: ='Capital Req''t Calc - Old'!E73 -> 0 | I73: ='Capital Req''t Calc - New'!E73 -> 0
B74: 61 | C74: 2080 | D74: =HLOOKUP($D$11,'Risk-free rates'!$B$9:$J$110,2+B74,FALSE) -> 0.03025508316 | E74: =Summary!$E$9*F73*(1+D74)^(-B74) -> 0 | F74: 0 | G74: 0 | H74: ='Capital Req''t Calc - Old'!E74 -> 0 | I74: ='Capital Req''t Calc - New'!E74 -> 0
B75: 62 | C75: 2081 | D75: =HLOOKUP($D$11,'Risk-free rates'!$B$9:$J$110,2+B75,FALSE) -> 0.03044346289 | E75: =Summary!$E$9*F74*(1+D75)^(-B75) -> 0 | F75: 0 | G75: 0 | H75: ='Capital Req''t Calc - Old'!E75 -> 0 | I75: ='Capital Req''t Calc - New'!E75 -> 0
B76: 63 | C76: 2082 | D76: =HLOOKUP($D$11,'Risk-free rates'!$B$9:$J$110,2+B76,FALSE) -> 0.03062589512 | E76: =Summary!$E$9*F75*(1+D76)^(-B76) -> 0 | F76: 0 | G76: 0 | H76: ='Capital Req''t Calc - Old'!E76 -> 0 | I76: ='Capital Req''t Calc - New'!E76 -> 0
B77: 64 | C77: 2083 | D77: =HLOOKUP($D$11,'Risk-free rates'!$B$9:$J$110,2+B77,FALSE) -> 0.03080265715 | E77: =Summary!$E$9*F76*(1+D77)^(-B77) -> 0 | F77: 0 | G77: 0 | H77: ='Capital Req''t Calc - Old'!E77 -> 0 | I77: ='Capital Req''t Calc - New'!E77 -> 0
B78: 65 | C78: 2084 | D78: =HLOOKUP($D$11,'Risk-free rates'!$B$9:$J$110,2+B78,FALSE) -> 0.03097400928 | E78: =Summary!$E$9*F77*(1+D78)^(-B78) -> 0 | F78: =G78*H78+(1-G78)*I78 -> 0 | G78: =MIN(MAX((2028-C78)/10,0),1) -> 0 | H78: ='Capital Req''t Calc - Old'!E78 -> 0 | I78: ='Capital Req''t Calc - New'!E78 -> 0
B79: 66 | C79: =C78+1 -> 2085 | D79: =HLOOKUP($D$11,'Risk-free rates'!$B$9:$J$110,2+B79,FALSE) -> 0.03114019613 | E79: =Summary!$E$9*F78*(1+D79)^(-B79) -> 0 | F79: 0 | G79: 0 | H79: ='Capital Req''t Calc - Old'!E79 -> 0 | I79: ='Capital Req''t Calc - New'!E79 -> 0
B80: 67 | C80: 2086 | D80: =HLOOKUP($D$11,'Risk-free rates'!$B$9:$J$110,2+B80,FALSE) -> 0.03130144777 | E80: =Summary!$E$9*F79*(1+D80)^(-B80) -> 0 | F80: 0 | G80: 0 | H80: ='Capital Req''t Calc - Old'!E80 -> 0 | I80: ='Capital Req''t Calc - New'!E80 -> 0
B81: 68 | C81: 2087 | D81: =HLOOKUP($D$11,'Risk-free rates'!$B$9:$J$110,2+B81,FALSE) -> 0.03145798083 | E81: =Summary!$E$9*F80*(1+D81)^(-B81) -> 0 | F81: 0 | G81: 0 | H81: ='Capital Req''t Calc - Old'!E81 -> 0 | I81: ='Capital Req''t Calc - New'!E81 -> 0
B82: 69 | C82: 2088 | D82: =HLOOKUP($D$11,'Risk-free rates'!$B$9:$J$110,2+B82,FALSE) -> 0.03160999944 | E82: =Summary!$E$9*F81*(1+D82)^(-B82) -> 0 | F82: 0 | G82: 0 | H82: ='Capital Req''t Calc - Old'!E82 -> 0 | I82: ='Capital Req''t Calc - New'!E82 -> 0
B83: 70 | C83: 2089 | D83: =HLOOKUP($D$11,'Risk-free rates'!$B$9:$J$110,2+B83,FALSE) -> 0.03175769611 | E83: =Summary!$E$9*F82*(1+D83)^(-B83) -> 0 | F83: 0 | G83: 0 | H83: ='Capital Req''t Calc - Old'!E83 -> 0 | I83: ='Capital Req''t Calc - New'!E83 -> 0
B84: 71 | C84: 2090 | D84: =HLOOKUP($D$11,'Risk-free rates'!$B$9:$J$110,2+B84,FALSE) -> 0.03190125258 | E84: =Summary!$E$9*F83*(1+D84)^(-B84) -> 0 | F84: 0 | G84: 0 | H84: ='Capital Req''t Calc - Old'!E84 -> 0 | I84: ='Capital Req''t Calc - New'!E84 -> 0
B85: 72 | C85: 2091 | D85: =HLOOKUP($D$11,'Risk-free rates'!$B$9:$J$110,2+B85,FALSE) -> 0.03204084051 | E85: =Summary!$E$9*F84*(1+D85)^(-B85) -> 0 | F85: 0 | G85: 0 | H85: ='Capital Req''t Calc - Old'!E85 -> 0 | I85: ='Capital Req''t Calc - New'!E85 -> 0
B86: 73 | C86: 2092 | D86: =HLOOKUP($D$11,'Risk-free rates'!$B$9:$J$110,2+B86,FALSE) -> 0.03217662223 | E86: =Summary!$E$9*F85*(1+D86)^(-B86) -> 0 | F86: 0 | G86: 0 | H86: ='Capital Req''t Calc - Old'!E86 -> 0 | I86: ='Capital Req''t Calc - New'!E86 -> 0
B87: 74 | C87: 2093 | D87: =HLOOKUP($D$11,'Risk-free rates'!$B$9:$J$110,2+B87,FALSE) -> 0.03230875132 | E87: =Summary!$E$9*F86*(1+D87)^(-B87) -> 0 | F87: 0 | G87: 0 | H87: ='Capital Req''t Calc - Old'!E87 -> 0 | I87: ='Capital Req''t Calc - New'!E87 -> 0
B88: 75 | C88: 2094 | D88: =HLOOKUP($D$11,'Risk-free rates'!$B$9:$J$110,2+B88,FALSE) -> 0.03243737322 | E88: =Summary!$E$9*F87*(1+D88)^(-B88) -> 0 | F88: 0 | G88: 0 | H88: ='Capital Req''t Calc - Old'!E88 -> 0 | I88: ='Capital Req''t Calc - New'!E88 -> 0
B89: 76 | C89: 2095 | D89: =HLOOKUP($D$11,'Risk-free rates'!$B$9:$J$110,2+B89,FALSE) -> 0.03256262572 | E89: =Summary!$E$9*F88*(1+D89)^(-B89) -> 0 | F89: 0 | G89: 0 | H89: ='Capital Req''t Calc - Old'!E89 -> 0 | I89: ='Capital Req''t Calc - New'!E89 -> 0
B90: 77 | C90: 2096 | D90: =HLOOKUP($D$11,'Risk-free rates'!$B$9:$J$110,2+B90,FALSE) -> 0.03268463952 | E90: =Summary!$E$9*F89*(1+D90)^(-B90) -> 0 | F90: 0 | G90: 0 | H90: ='Capital Req''t Calc - Old'!E90 -> 0 | I90: ='Capital Req''t Calc - New'!E90 -> 0
B91: 78 | C91: 2097 | D91: =HLOOKUP($D$11,'Risk-free rates'!$B$9:$J$110,2+B91,FALSE) -> 0.03280353863 | E91: =Summary!$E$9*F90*(1+D91)^(-B91) -> 0 | F91: 0 | G91: 0 | H91: ='Capital Req''t Calc - Old'!E91 -> 0 | I91: ='Capital Req''t Calc - New'!E91 -> 0
B92: 79 | C92: 2098 | D92: =HLOOKUP($D$11,'Risk-free rates'!$B$9:$J$110,2+B92,FALSE) -> 0.03291944081 | E92: =Summary!$E$9*F91*(1+D92)^(-B92) -> 0 | F92: 0 | G92: 0 | H92: ='Capital Req''t Calc - Old'!E92 -> 0 | I92: ='Capital Req''t Calc - New'!E92 -> 0
B93: 80 | C93: 2099 | D93: =HLOOKUP($D$11,'Risk-free rates'!$B$9:$J$110,2+B93,FALSE) -> 0.03303245796 | E93: =Summary!$E$9*F92*(1+D93)^(-B93) -> 0 | F93: 0 | G93: 0 | H93: ='Capital Req''t Calc - Old'!E93 -> 0 | I93: ='Capital Req''t Calc - New'!E93 -> 0
B94: 81 | C94: 2100 | D94: =HLOOKUP($D$11,'Risk-free rates'!$B$9:$J$110,2+B94,FALSE) -> 0.03314269647 | E94: =Summary!$E$9*F93*(1+D94)^(-B94) -> 0 | F94: 0 | G94: 0 | H94: ='Capital Req''t Calc - Old'!E94 -> 0 | I94: ='Capital Req''t Calc - New'!E94 -> 0
B95: 82 | C95: 2101 | D95: =HLOOKUP($D$11,'Risk-free rates'!$B$9:$J$110,2+B95,FALSE) -> 0.03325025758 | E95: =Summary!$E$9*F94*(1+D95)^(-B95) -> 0 | F95: 0 | G95: 0 | H95: ='Capital Req''t Calc - Old'!E95 -> 0 | I95: ='Capital Req''t Calc - New'!E95 -> 0
B96: 83 | C96: 2102 | D96: =HLOOKUP($D$11,'Risk-free rates'!$B$9:$J$110,2+B96,FALSE) -> 0.03335523765 | E96: =Summary!$E$9*F95*(1+D96)^(-B96) -> 0 | F96: 0 | G96: 0 | H96: ='Capital Req''t Calc - Old'!E96 -> 0 | I96: ='Capital Req''t Calc - New'!E96 -> 0
B97: 84 | C97: 2103 | D97: =HLOOKUP($D$11,'Risk-free rates'!$B$9:$J$110,2+B97,FALSE) -> 0.03345772848 | E97: =Summary!$E$9*F96*(1+D97)^(-B97) -> 0 | F97: 0 | G97: 0 | H97: ='Capital Req''t Calc - Old'!E97 -> 0 | I97: ='Capital Req''t Calc - New'!E97 -> 0
B98: 85 | C98: 2104 | D98: =HLOOKUP($D$11,'Risk-free rates'!$B$9:$J$110,2+B98,FALSE) -> 0.03355781757 | E98: =Summary!$E$9*F97*(1+D98)^(-B98) -> 0 | F98: 0 | G98: 0 | H98: ='Capital Req''t Calc - Old'!E98 -> 0 | I98: ='Capital Req''t Calc - New'!E98 -> 0
B99: 86 | C99: 2105 | D99: =HLOOKUP($D$11,'Risk-free rates'!$B$9:$J$110,2+B99,FALSE) -> 0.03365558837 | E99: =Summary!$E$9*F98*(1+D99)^(-B99) -> 0 | F99: 0 | G99: 0 | H99: ='Capital Req''t Calc - Old'!E99 -> 0 | I99: ='Capital Req''t Calc - New'!E99 -> 0
B100: 87 | C100: 2106 | D100: =HLOOKUP($D$11,'Risk-free rates'!$B$9:$J$110,2+B100,FALSE) -> 0.03375112049 | E100: =Summary!$E$9*F99*(1+D100)^(-B100) -> 0 | F100: 0 | G100: 0 | H100: ='Capital Req''t Calc - Old'!E100 -> 0 | I100: ='Capital Req''t Calc - New'!E100 -> 0
B101: 88 | C101: 2107 | D101: =HLOOKUP($D$11,'Risk-free rates'!$B$9:$J$110,2+B101,FALSE) -> 0.03384448996 | E101: =Summary!$E$9*F100*(1+D101)^(-B101) -> 0 | F101: 0 | G101: 0 | H101: ='Capital Req''t Calc - Old'!E101 -> 0 | I101: ='Capital Req''t Calc - New'!E101 -> 0
B102: 89 | C102: 2108 | D102: =HLOOKUP($D$11,'Risk-free rates'!$B$9:$J$110,2+B102,FALSE) -> 0.03393576939 | E102: =Summary!$E$9*F101*(1+D102)^(-B102) -> 0 | F102: 0 | G102: 0 | H102: ='Capital Req''t Calc - Old'!E102 -> 0 | I102: ='Capital Req''t Calc - New'!E102 -> 0
B103: 90 | C103: 2109 | D103: =HLOOKUP($D$11,'Risk-free rates'!$B$9:$J$110,2+B103,FALSE) -> 0.03402502818 | E103: =Summary!$E$9*F102*(1+D103)^(-B103) -> 0 | F103: 0 | G103: 0 | H103: ='Capital Req''t Calc - Old'!E103 -> 0 | I103: ='Capital Req''t Calc - New'!E103 -> 0
B104: 91 | C104: 2110 | D104: =HLOOKUP($D$11,'Risk-free rates'!$B$9:$J$110,2+B104,FALSE) -> 0.0341123327 | E104: =Summary!$E$9*F103*(1+D104)^(-B104) -> 0 | F104: 0 | G104: 0 | H104: ='Capital Req''t Calc - Old'!E104 -> 0 | I104: ='Capital Req''t Calc - New'!E104 -> 0
B105: 92 | C105: 2111 | D105: =HLOOKUP($D$11,'Risk-free rates'!$B$9:$J$110,2+B105,FALSE) -> 0.03419774642 | E105: =Summary!$E$9*F104*(1+D105)^(-B105) -> 0 | F105: 0 | G105: 0 | H105: ='Capital Req''t Calc - Old'!E105 -> 0 | I105: ='Capital Req''t Calc - New'!E105 -> 0
B106: 93 | C106: 2112 | D106: =HLOOKUP($D$11,'Risk-free rates'!$B$9:$J$110,2+B106,FALSE) -> 0.03428133012 | E106: =Summary!$E$9*F105*(1+D106)^(-B106) -> 0 | F106: 0 | G106: 0 | H106: ='Capital Req''t Calc - Old'!E106 -> 0 | I106: ='Capital Req''t Calc - New'!E106 -> 0
B107: 94 | C107: 2113 | D107: =HLOOKUP($D$11,'Risk-free rates'!$B$9:$J$110,2+B107,FALSE) -> 0.03436314198 | E107: =Summary!$E$9*F106*(1+D107)^(-B107) -> 0 | F107: 0 | G107: 0 | H107: ='Capital Req''t Calc - Old'!E107 -> 0 | I107: ='Capital Req''t Calc - New'!E107 -> 0
B108: 95 | C108: 2114 | D108: =HLOOKUP($D$11,'Risk-free rates'!$B$9:$J$110,2+B108,FALSE) -> 0.03444323775 | E108: =Summary!$E$9*F107*(1+D108)^(-B108) -> 0 | F108: 0 | G108: 0 | H108: ='Capital Req''t Calc - Old'!E108 -> 0 | I108: ='Capital Req''t Calc - New'!E108 -> 0
B109: 96 | C109: 2115 | D109: =HLOOKUP($D$11,'Risk-free rates'!$B$9:$J$110,2+B109,FALSE) -> 0.03452167087 | E109: =Summary!$E$9*F108*(1+D109)^(-B109) -> 0 | F109: 0 | G109: 0 | H109: ='Capital Req''t Calc - Old'!E109 -> 0 | I109: ='Capital Req''t Calc - New'!E109 -> 0
B110: 97 | C110: 2116 | D110: =HLOOKUP($D$11,'Risk-free rates'!$B$9:$J$110,2+B110,FALSE) -> 0.03459849258 | E110: =Summary!$E$9*F109*(1+D110)^(-B110) -> 0 | F110: 0 | G110: 0 | H110: ='Capital Req''t Calc - Old'!E110 -> 0 | I110: ='Capital Req''t Calc - New'!E110 -> 0
B111: 98 | C111: 2117 | D111: =HLOOKUP($D$11,'Risk-free rates'!$B$9:$J$110,2+B111,FALSE) -> 0.03467375203 | E111: =Summary!$E$9*F110*(1+D111)^(-B111) -> 0 | F111: 0 | G111: 0 | H111: ='Capital Req''t Calc - Old'!E111 -> 0 | I111: ='Capital Req''t Calc - New'!E111 -> 0
B112: 99 | C112: 2118 | D112: =HLOOKUP($D$11,'Risk-free rates'!$B$9:$J$110,2+B112,FALSE) -> 0.0347474964 | E112: =Summary!$E$9*F111*(1+D112)^(-B112) -> 0 | F112: 0 | G112: 0 | H112: ='Capital Req''t Calc - Old'!E112 -> 0 | I112: ='Capital Req''t Calc - New'!E112 -> 0
B113: 100 | C113: 2119 | D113: =HLOOKUP($D$11,'Risk-free rates'!$B$9:$J$110,2+B113,FALSE) -> 0.03481977098 | E113: =Summary!$E$9*F112*(1+D113)^(-B113) -> 0 | F113: 0 | G113: 0 | H113: ='Capital Req''t Calc - Old'!E113 -> 0 | I113: ='Capital Req''t Calc - New'!E113 -> 0

Sheet Risk-free rates
A1: Summary and Discount of Cost of Capital
F7: Risk Free Spot Rates - End December 2019
C9: USD | D9: EUR | E9: GBP | F9: CHF | G9: CAD | H9: JPY | I9: AUD | J9: NZD
B10: Maturity (years)
B11: 1 | C11: 0.01684894319 | D11: -0.004903183799 | E11: 0.007397556119 | F11: -0.008129247964 | G11: 0.01930504022 | H11: -0.0008624952603 | I11: 0.008803912098 | J11: 0.01130260742
B12: 2 | C12: 0.01600462569 | D12: -0.004636175853 | E12: 0.007286640535 | F12: -0.007864096858 | G12: 0.01924280142 | H12: -0.0008724965493 | I12: 0.009024290175 | J12: 0.01174311247
B13: 3 | C13: 0.01592702203 | D13: -0.004124439232 | E13: 0.007534917958 | F13: -0.007294236532 | G13: 0.01925743841 | H13: -0.0008324868278 | I13: 0.009657999068 | J13: 0.01211034583
B14: 4 | C14: 0.01608265108 | D14: -0.003500909964 | E14: 0.007873956847 | F14: -0.006675048166 | G14: 0.01937931438 | H14: -0.000787468532 | I14: 0.0103432483 | J14: 0.01284281212
B15: 5 | C15: 0.01636053865 | D15: -0.002848614494 | E15: 0.008166049628 | F15: -0.006055672919 | G15: 0.01950175481 | H15: -0.0006573554682 | I15: 0.01101665185 | J15: 0.01356538578
B16: 6 | C16: 0.01669133192 | D16: -0.002195002578 | E16: 0.008443892727 | F16: -0.005336741713 | G16: 0.01967392562 | H16: -0.0004895780096 | I16: 0.01175323597 | J16: 0.01429337606
B17: 7 | C17: 0.01702833084 | D17: -0.001543686487 | E17: 0.00870432258 | F17: -0.004616310543 | G17: 0.01984719681 | H17: -0.0003141108823 | I17: 0.01255341383 | J17: 0.0150275266
B18: 8 | C18: 0.01735579372 | D18: -0.0008701137452 | E18: 0.008958180652 | F18: -0.003943704925 | G18: 0.02002172453 | H18: -9.822925334e-05 | I18: 0.01326099903 | J18: 0.01574163351
B19: 9 | C19: 0.01769454424 | D19: -0.0001978519465 | E19: 0.009196516944 | F19: -0.003294088485 | G19: 0.02022519974 | H19: 0.0001431936168 | I19: 0.01395348831 | J19: 0.01629930074
B20: 10 | C20: 0.01803835286 | D20: 0.00048471522 | E20: 0.009439304503 | F20: -0.00269239364 | G20: 0.0204571151 | H20: 0.000380056412 | I20: 0.01459836665 | J20: 0.01691828219
B21: 11 | C21: 0.0183561285 | D21: 0.001106444197 | E21: 0.009636013104 | F21: -0.002164041956 | G21: 0.02075288516 | H21: 0.0004934086532 | I21: 0.01522145578 | J21: 0.01768695279
B22: 12 | C22: 0.01861797367 | D22: 0.001734741034 | E22: 0.0098220885 | F22: -0.001659173396 | G22: 0.02104632172 | H22: 0.0008581691866 | I22: 0.01581907253 | J22: 0.01829112146
B23: 13 | C23: 0.01886533683 | D23: 0.00231082947 | E23: 0.009980655115 | F23: -0.001247477295 | G23: 0.02129524275 | H23: 0.0009490078448 | I23: 0.01629135362 | J23: 0.01886319764
B24: 14 | C24: 0.019083972 | D24: 0.002828759192 | E24: 0.01011194235 | F24: -0.0008537381278 | G24: 0.02154197857 | H24: 0.001190634594 | I24: 0.01674384583 | J24: 0.01936753483
B25: 15 | C25: 0.01923089545 | D25: 0.003270789094 | E25: 0.01022221365 | F25: -0.0004773147799 | G25: 0.02178660071 | H25: 0.00158718574 | I25: 0.01717882556 | J25: 0.01983148841
B26: 16 | C26: 0.01943352016 | D26: 0.00369209496 | E26: 0.01029577836 | F26: -0.0002544513433 | G26: 0.02188636031 | H26: 0.001804898681 | I26: 0.01743378935 | J26: 0.0201516278
B27: 17 | C27: 0.01957444155 | D27: 0.004037875513 | E27: 0.0103744526 | F27: -4.76769928e-05 | G27: 0.02198414452 | H27: 0.00199742008 | I27: 0.01767471605 | J27: 0.02046417803
B28: 18 | C28: 0.01972096985 | D28: 0.004339354508 | E28: 0.01041799812 | F28: 0.0001435946251 | G28: 0.02208002012 | H28: 0.002184074679 | I28: 0.01790290699 | J28: 0.02077872527
B29: 19 | C29: 0.0198322475 | D29: 0.004580785133 | E29: 0.01044295377 | F29: 0.0003199337221 | G29: 0.02217405238 | H29: 0.002371378467 | I29: 0.01811944091 | J29: 0.02110199511
B30: 20 | C30: 0.01991133845 | D30: 0.004769077019 | E30: 0.01046609787 | F30: 0.0004818929591 | G30: 0.0222663051 | H30: 0.002594863611 | I30: 0.01832521694 | J30: 0.02143863508
B31: 21 | C31: 0.01996204977 | D31: 0.004945283525 | E31: 0.01043244035 | F31: 0.0005269773022 | G31: 0.02218360294 | H31: 0.002727757533 | I31: 0.01842547071 | J31: 0.02161336684
B32: 22 | C32: 0.02000696399 | D32: 0.005055362131 | E32: 0.01032334852 | F32: 0.0005587401714 | G32: 0.02209924443 | H32: 0.002856830791 | I32: 0.018516361 | J32: 0.02180659653
B33: 23 | C33: 0.02004636892 | D33: 0.005147385704 | E33: 0.0103887674 | F33: 0.0005776874444 | G33: 0.02201328906 | H33: 0.002981893976 | I33: 0.01859843413 | J33: 0.02201949446
B34: 24 | C34: 0.02008051041 | D34: 0.00520679927 | E34: 0.01042128051 | F34: 0.000584310082 | G34: 0.02192579537 | H34: 0.00310283507 | I34: 0.01867216091 | J34: 0.02225261257
B35: 25 | C35: 0.02010959838 | D35: 0.005222302781 | E35: 0.01042316654 | F35: 0.0005790845272 | G35: 0.0218368192 | H35: 0.00321960121 | I35: 0.01873795115 | J35: 0.02250604496
B36: 26 | C36: 0.02012357486 | D36: 0.005271728802 | E36: 0.01044799379 | F36: 0.0005629543545 | G36: 0.02172843723 | H36: 0.003309479632 | I36: 0.01869577045 | J36: 0.02261439654
B37: 27 | C37: 0.02013283039 | D37: 0.005276886564 | E37: 0.01044654531 | F37: 0.0005358869822 | G37: 0.02161868325 | H37: 0.003395201504 | I37: 0.01864633108 | J37: 0.02274233076
B38: 28 | C38: 0.0201374953 | D38: 0.005271259273 | E38: 0.01042085318 | F38: 0.000498317475 | G38: 0.02150760915 | H38: 0.003476817704 | I38: 0.01858991676 | J38: 0.02288918232
B39: 29 | C39: 0.02013768128 | D39: 0.005254795235 | E39: 0.01037283863 | F39: 0.0004506678754 | G39: 0.02139526747 | H39: 0.003554397337 | I39: 0.01852678292 | J39: 0.02305416164
B40: 30 | C40: 0.02013348579 | D40: 0.005193744132 | E40: 0.0103043085 | F40: 0.0003933479031 | G40: 0.02128170764 | H40: 0.003628021544 | I40: 0.01845716073 | J40: 0.02323639599
B41: 31 | C41: 0.02016882814 | D41: 0.005155355046 | E41: 0.01028264999 | F41: 0.0003818215035 | G41: 0.02118632125 | H41: 0.003741541102 | I41: 0.01842881739 | J41: 0.02340354087
B42: 32 | C42: 0.02025355063 | D42: 0.005148555351 | E42: 0.01030860957 | F42: 0.000411231412 | G42: 0.02110369411 | H42: 0.003899391594 | I42: 0.01845338159 | J42: 0.02354371914
B43: 33 | C43: 0.02038462088 | D43: 0.005171432071 | E43: 0.01037827497 | F43: 0.0004776087065 | G43: 0.02103251814 | H43: 0.004098460443 | I43: 0.01852793365 | J43: 0.02365824956
B44: 34 | C44: 0.0205589873 | D44: 0.005222306769 | E44: 0.01048809753 | F44: 0.000577522912 | G44: 0.02097179634 | H44: 0.004335802487 | I44: 0.01864951185 | J44: 0.02374859959
B45: 35 | C45: 0.02077357815 | D45: 0.005299692578 | E45: 0.01063483052 | F45: 0.0007080020395 | G45: 0.02092079873 | H45: 0.004608611266 | I45: 0.01881511212 | J45: 0.0238163776
B46: 36 | C46: 0.02102530737 | D46: 0.00540226259 | E46: 0.01081547878 | F46: 0.0008664676517 | G46: 0.02087902418 | H46: 0.004914201563 | I46: 0.01902169859 | J46: 0.02386332053
B47: 37 | C47: 0.02131107416 | D47: 0.005528821787 | E47: 0.01102725876 | F47: 0.001050679072 | G47: 0.02084616866 | H47: 0.00524999042 | I47: 0.01926620414 | J47: 0.02389128798
